Workbook

Sheet Introduction
B3: KSU-Farm Financial Benchmarking Tool
B5: A spreadsheet tool to for benchmarking your farm's financial measures based on regions of Kansas, crop acres, and cattle inventory
L8: Version- 6.11.2020
B28: INTRODUCTION
B29: The KSU-Farm Financial Benchmarking tool is designed for producers to compare their financial ratios to farms of similar region, size and enterprise type. The percentage of farms that falls within a range of ratio values gives a distribution so a producer can see where they rank among their peers. Ten-year averages and past year values give two different distributions to benchmark from.
B31: INSTRUCTIONS FOR THE USER:
B32: Be sure to "Enable Content" and "Enable Macros" for the spreadsheet to function correctly. Select the tab for what region of Kansas you would like to benchmark against or "state" to benchmark additional categories. Use the dropdown menus in the tan boxes to select the benchmark category. If the benchmark shows N/A, you have mismatched categories and need to "Start Over". You may add your own farm values to be graphed against benchmark values in the green boxes or leave them as 2019 benchmark averages. You may also use the supplied Balance Sheet and Income Statement frameworks to calculate your own financial ratio values and then click "Enter Your Farm Values" to bring these into the benchmarking spreadsheets.
B35: The benchmarking tables and graphs can either be displayed in a normal distribution format (showing what percentage of farms fall within each range) or a cumlative distribution format (showing what percentage of farms are lower than the range value). Use the buttons on the top of the spreadsheet to switch back and forth between these two formats. This may take a few seconds to run.
B36: FOR MORE INFORMATION:
B37: See Farm Management Guides:
B38: Balance Sheet | E38: Income Statement | H38: Financial Ratios
B39: Developed by: | F39: With Assistance From:
B41: Robin Reid | F41: Kevin Herbel | J41: Mark Dikeman
B42: Extension Associate | F42: Kansas Farm Management Association | J42: Kansas Farm Management Association
B43: Kansas State University | F43: Kansas State University | J43: Kansas State University
B44: robinreid@ksu.edu | F44: kherbel@ksu.edu | J44: dikemanm@ksu.edu
B45: 785-532-0964 | F45: 785-532-8706 | J45: 785-539-0373
B47: ACKNOWLEDGEMENTS:
B48: Funded in part through the 2016/2017 and 2017/2018 CoBank Research Fellow program.

Sheet State
E1: KSU FARM FINANCIAL BENCHMARKING TOOL-State of Kansas | S1: Category | T1: Lookup | U1: 2019 | W1: Operator Age<40 | AI1: 10-Year
S2: Crop Acres | T2: Acres | U2: 2019 KFMA Farms | W2: Current Ratio | X2: Working Capital Ratio | Y2: Debt to Asset Ratio | Z2: Operating Profit Margin | AA2: ROA | AB2: ROE | AC2: Asset Turnover | AD2: Operating Expense Ratio | AE2: Depr Expense Ratio | AF2: Interest Expense Ratio | AG2: NFI Ratio | AJ2: Current Ratio | AK2: Working Capital Ratio | AL2: Debt to Asset Ratio | AM2: Operating Profit Margin | AN2: ROA | AO2: ROE | AP2: Asset Turnover | AQ2: Operating Expense Ratio | AR2: Depr Expense Ratio | AS2: Interest Expense Ratio | AT2: NFI Ratio
E3: Benchmarked by: | G3: =B16 -> Operator Age | I3: =A17 -> Category: | K3: =IF(B17="","",B17) -> 40-60 | L3: =A18 ->  | N3: =IF(B18="","",B18) ->  | S3: Dairy | T3: Dairy | W3: 0 | X3: 2 | Y3: 1 | Z3: 7 | AA3: 11 | AB3: 24 | AC3: 0 | AD3: 8 | AE3: 1 | AF3: 7 | AG3: 2 | AJ3: 0 | AK3: 1 | AL3: 1 | AM3: 1 | AN3: 3 | AO3: 11 | AP3: 0 | AQ3: 0 | AR3: 0 | AS3: 0 | AT3: 0
S4: Operator Age | T4: Age | W4: 4 | X4: 5 | Y4: 10 | Z4: 2 | AA4: 3 | AB4: 5 | AC4: 5 | AD4: 13 | AE4: 21 | AF4: 39 | AG4: 2 | AJ4: 1 | AK4: 1 | AL4: 5 | AM4: 1 | AN4: 3 | AO4: 5 | AP4: 0 | AQ4: 8 | AR4: 3 | AS4: 35 | AT4: 1
E5: Current Ratio | W5: 17 | X5: 14 | Y5: 8 | Z5: 2 | AA5: 10 | AB5: 7 | AC5: 10 | AD5: 21 | AE5: 33 | AF5: 30 | AG5: 1 | AJ5: 9 | AK5: 8 | AL5: 2 | AM5: 0 | AN5: 5 | AO5: 5 | AP5: 5 | AQ5: 15 | AR5: 18 | AS5: 29 | AT5: 0
F6: =U1 -> 2019 | G6: 10-Year | T6: =B16&B17&B18 -> Operator Age40-60 | W6: 19 | X6: 22 | Y6: 9 | Z6: 5 | AA6: 14 | AB6: 16 | AC6: 15 | AD6: 22 | AE6: 26 | AF6: 16 | AG6: 7 | AJ6: 19 | AK6: 27 | AL6: 12 | AM6: 2 | AN6: 10 | AO6: 12 | AP6: 13 | AQ6: 26 | AR6: 29 | AS6: 11 | AT6: 1
E7: 0 | F7: =Q17 -> 0 | G7: =R17 -> 0 | Q7: =Q17 -> 0 | R7: =R17 -> 0 | W7: 11 | X7: 27 | Y7: 15 | Z7: 12 | AA7: 21 | AB7: 13 | AC7: 19 | AD7: 23 | AE7: 16 | AF7: 7 | AG7: 27 | AJ7: 6 | AK7: 21 | AL7: 14 | AM7: 12 | AN7: 26 | AO7: 22 | AP7: 14 | AQ7: 26 | AR7: 22 | AS7: 6 | AT7: 21
E8: 0.5 | F8: =Q18 -> 0.05128205128 | G8: =R18 -> 0.02850877193 | Q8: =Q7+Q18 -> 0.05128205128 | R8: =R7+R18 -> 0.02850877193 | S8: Acres | W8: 9 | X8: 16 | Y8: 13 | Z8: 29 | AA8: 18 | AB8: 6 | AC8: 17 | AD8: 12 | AE8: 6 | AF8: 2 | AG8: 31 | AJ8: 13 | AK8: 5 | AL8: 13 | AM8: 34 | AN8: 21 | AO8: 13 | AP8: 16 | AQ8: 4 | AR8: 3 | AS8: 0 | AT8: 36
E9: 1 | F9: 0.1566951567 | G9: 0.1118421053 | Q9: 0.207977208 | R9: 0.1403508772 | S9: <500 | T9: SLT | W9: 4 | X9: 11 | Y9: 14 | Z9: 36 | AA9: 8 | AB9: 5 | AC9: 11 | AD9: 7 | AE9: 3 | AF9: 2 | AG9: 25 | AJ9: 4 | AK9: 11 | AL9: 13 | AM9: 26 | AN9: 12 | AO9: 7 | AP9: 12 | AQ9: 1 | AR9: 4 | AS9: 0 | AT9: 22
E10: 1.5 | F10: 0.2051282051 | G10: 0.1842105263 | Q10: 0.4131054131 | R10: 0.3245614035 | S10: 500-1000 | T10: SIBL | W10: 4 | X10: 4 | Y10: 9 | Z10: 13 | AA10: 9 | AB10: 6 | AC10: 5 | AD10: 0 | AE10: 0 | AF10: 1 | AG10: 13 | AJ10: 3 | AK10: 3 | AL10: 11 | AM10: 5 | AN10: 0 | AO10: 2 | AP10: 4 | AQ10: 0 | AR10: 2 | AS10: 0 | AT10: 0
E11: 2 | F11: 0.09971509972 | G11: 0.1140350877 | Q11: 0.5128205128 | R11: 0.4385964912 | S11: 1000-2000 | T11: SIBH | W11: 0 | X11: 3 | Y11: 30 | Z11: 2 | AA11: 6 | AB11: 4 | AC11: 5 | AD11: 3 | AE11: 3 | AF11: 5 | AG11: 1 | AJ11: 4 | AK11: 4 | AL11: 10 | AM11: 0 | AN11: 1 | AO11: 1 | AP11: 7 | AQ11: 1 | AR11: 0 | AS11: 0 | AT11: 0
E12: 2.5 | F12: 0.05982905983 | G12: 0.08333333333 | Q12: 0.5726495726 | R12: 0.5219298246 | S12: 2000+ | T12: SGT | W12: 41 | X12: 5 | Z12: 1 | AA12: 9 | AB12: 23 | AC12: 22 | AG12: 0 | AJ12: 22 | AK12: 0 | AM12: 0 | AN12: 0 | AO12: 3 | AP12: 10 | AT12: 0
E13: 3 | F13: 0.04843304843 | G13: 0.04824561404 | Q13: 0.6210826211 | R13: 0.5701754386 | S13: Cattle | V13: Count | W13: 109 | X13: 109 | Y13: 109 | Z13: 109 | AA13: 109 | AB13: 109 | AC13: 109 | AD13: 109 | AE13: 109 | AF13: 109 | AG13: 109 | AI13: Count | AJ13: 81 | AK13: 81 | AL13: 81 | AM13: 81 | AN13: 81 | AO13: 81 | AP13: 81 | AQ13: 81 | AR13: 81 | AS13: 81 | AT13: 81
E14: 3.5 | F14: 0.02279202279 | G14: 0.04605263158 | Q14: 0.6438746439 | R14: 0.6162280702 | S14: None | V14: Average | W14: 1.78856858 | X14: 0.3322700981 | Y14: 0.4620957093 | Z14: 0.1436900019 | AA14: 0.05817910645 | AB14: 0.06525104753 | AC14: 0.4048932123 | AD14: 0.7025999513 | AE14: 0.06507402825 | AF14: 0.04670252549 | AG14: 0.185623495 | AI14: Average | AJ14: 2.032776274 | AK14: 0.3737996959 | AL14: 0.4232266986 | AM14: 0.1341726401 | AN14: 0.05801578751 | AO14: 0.06808439196 | AP14: 0.4323965561 | AQ14: 0.6820494168 | AR14: 0.08482272699 | AS14: 0.03676963983 | AT14: 0.1963582163
A15: BENCHMARK CATEGORY | E15: 4 | F15: 0.02279202279 | G15: 0.03070175439 | Q15: 0.6666666667 | R15: 0.6469298246 | S15: No Cows-Feedlot | V15: Non-ratio average | X15: 217951.788 | AG15: 121759.2942 | AI15: Non-ratio average | AK15: 200811.7344 | AT15: 105487.0681
A16: Benchmark by: | B16: Operator Age | E16: More | F16: 0.3333333333 | G16: 0.3530701754 | Q16: 1 | R16: 1 | S16: <100 Cows
A17: =IF(B16="Dairy", "", "Category:") -> Category: | B17: 40-60 | E17: Count | F17: =IF($T$6=$W$1,$W$13,IF($T$6=$W$17,$W$29,IF($T$6=$W$33,$W$45,IF($T$6=$W$49,$W$61,IF($T$6=$W$65,$W$77,IF($T$6=$W$81,$W$93,IF($T$6=$W$97,$W$109,IF($T$6=$W$113,$W$125,IF($T$6=$W$129,$W$141,IF($T$6=$W$145,$W$157,IF(T6=$W$161,$W$173,IF($T$6=$W$177,$W$189,IF($T$6=$W$193,$W$205,IF($T$6=$W$209,$W$221,IF($T$6=$W$225,$W$237,IF($T$6=$W$241,$W$253,IF($T$6=$W$257,$W$269,IF($T$6=$W$273,$W$285,IF($T$6=$W$289,$W$301,IF($T$6=$W$305,$W$317,"N/A")))))))))))))))))))) -> 351 | G17: =IF($T$6=$W$1,$AJ$13,IF($T$6=$W$17,$AJ$29,IF($T$6=$W$33,$AJ$45,IF($T$6=$W$49,$AJ$61,IF($T$6=$W$65,$AJ$77,IF($T$6=$W$81,$AJ$93,IF($T$6=$W$97,$AJ$109,IF($T$6=$W$113,$AJ$125,IF($T$6=$W$129,$AJ$141,IF($T$6=$W$145,$AJ$157, IF($T$6=$W$161,$AJ$173,IF($T$6=$W$177,$AJ$189,IF($T$6=$W$193,$AJ$205,IF($T$6=$W$209,$AJ$221,IF($T$6=$W$225,$AJ$237,IF($T$6=$W$241,$AJ$253,IF($T$6=$W$257,$AJ$269,IF($T$6=$W$273,$AJ$285,IF($T$6=$W$289,$AJ$301,IF($T$6=$W$305,$AJ$317,"N/A")))))))))))))))))))) -> 456 | Q17: =IF($T$6=$W$1,W3/$W$13,IF($T$6=$W$17,W19/$W$29,IF($T$6=$W$33,W35/$W$45,IF($T$6=$W$49,W51/$W$61,IF($T$6=$W$65,W67/$W$77,IF($T$6=$W$81,W83/$W$93,IF($T$6=$W$97,W99/$W$109,IF($T$6=$W$113,W115/$W$125,IF($T$6=$W$129,W131/$W$141,IF($T$6=$W$145,W147/$W$157,IF($T$6=$W$161,W163/$W$173,IF($T$6=$W$177,W179/$W$189,IF($T$6=$W$193,W195/$W$205,IF($T$6=$W$209,W211/$W$221,IF($T$6=$W$225,W227/$W$237,IF($T$6=$W$241,W243/$W$253,IF($T$6=$W$257,W259/$W$269,IF($T$6=$W$273,W275/$W$285,IF($T$6=$W$289,W291/$W$301,IF($T$6=$W$305,W307/$W$317,"N/A")))))))))))))))))))) -> 0 | R17: =IF($T$6=$W$1,AJ3/$AJ$13,IF($T$6=$W$17,AJ19/$AJ$29,IF($T$6=$W$33,AJ35/$AJ$45,IF($T$6=$W$49,AJ51/$AJ$61,IF($T$6=$W$65,AJ67/$AJ$77,IF($T$6=$W$81,AJ83/$AJ$93,IF($T$6=$W$97,AJ99/$AJ$109,IF($T$6=$W$113,AJ115/$AJ$125,IF($T$6=$W$129,AJ131/$AJ$141,IF($T$6=$W$145,AJ147/$AJ$157,IF($T$6=$W$161,AJ163/$AJ$173,IF($T$6=$W$177,AJ179/$AJ$189,IF($T$6=$W$193,AJ195/$AJ$205,IF($T$6=$W$209,AJ211/$AJ$221,IF($T$6=$W$225,AJ227/$AJ$237,IF($T$6=$W$241,AJ243/$AJ$253,IF($T$6=$W$257,AJ259/$AJ$269,IF($T$6=$W$273,AJ275/$AJ$285,IF($T$6=$W$289,AJ291/$AJ$301,IF($T$6=$W$305,AJ307/$AJ$317,"N/A")))))))))))))))))))) -> 0 | S17: 100+ Cows | W17: Operator Age40-60
A18: =(IF(B16="Crop Acres","Cattle:","")) ->  | E18: Average | F18: =IF($T$6=$W$1,$W$14,IF($T$6=$W$17,$W$30,IF($T$6=$W$33,$W$46,IF($T$6=$W$49,$W$62,IF($T$6=$W$65,$W$78,IF($T$6=$W$81,$W$94,IF($T$6=$W$97,$W$110,IF($T$6=$W$113,$W$126,IF($T$6=$W$129,$W$142,IF($T$6=$W$145,$W$158,IF($T$6=$W$161,$W$174,IF($T$6=$W$177,$W$190,IF($T$6=$W$193,$W$206,IF($T$6=$W$209,$W$222,IF($T$6=$W$225,$W$238,IF($T$6=$W$241,$W$254,IF($T$6=$W$257,$W$270,IF($T$6=$W$273,$W$286,IF($T$6=$W$289,$W$302,IF($T$6=$W$305,$W$318,"N/A")))))))))))))))))))) -> 1.948623189 | G18: =IF($T$6=$W$1,$AJ$14,IF($T$6=$W$17,$AJ$30,IF($T$6=$W$33,$AJ$46,IF($T$6=$W$49,$AJ$62,IF($T$6=$W$65,$AJ$78,IF($T$6=$W$81,$AJ$94,IF($T$6=$W$97,$AJ$110,IF($T$6=$W$113,$AJ$126,IF($T$6=$W$129,$AJ$142,IF($T$6=$W$145,$AJ$158,IF($T$6=$W$161,$AJ$174,IF($T$6=$W$177,$AJ$190,IF($T$6=$W$193,$AJ$206,IF($T$6=$W$209,$AJ$222,IF($T$6=$W$225,$AJ$238,IF($T$6=$W$241,$AJ$254,IF($T$6=$W$257,$AJ$270,IF($T$6=$W$273,$AJ$286,IF($T$6=$W$289,$AJ$302,IF($T$6=$W$305,$AJ$318,"N/A")))))))))))))))))))) -> 2.400534657 | Q18: 0.05128205128 | R18: 0.02850877193 | W18: Current Ratio | X18: Working Capital Ratio | Y18: Debt to Asset Ratio | Z18: Operating Profit Margin | AA18: ROA | AB18: ROE | AC18: Asset Turnover | AD18: Operating Expense Ratio | AE18: Depr Expense Ratio | AF18: Interest Expense Ratio | AG18: NFI Ratio | AJ18: Current Ratio | AK18: Working Capital Ratio | AL18: Debt to Asset Ratio | AM18: Operating Profit Margin | AN18: ROA | AO18: ROE | AP18: Asset Turnover | AQ18: Operating Expense Ratio | AR18: Depr Expense Ratio | AS18: Interest Expense Ratio | AT18: NFI Ratio
Q19: 0.1566951567 | R19: 0.1118421053 | W19: 0 | X19: 11 | Y19: 24 | Z19: 18 | AA19: 22 | AB19: 46 | AC19: 0 | AD19: 3 | AE19: 3 | AF19: 32 | AG19: 12 | AJ19: 0 | AK19: 6 | AL19: 8 | AM19: 7 | AN19: 7 | AO19: 45 | AP19: 0 | AQ19: 1 | AR19: 1 | AS19: 7 | AT19: 0
F20: =IF(B22=F18,"","Your Farm") ->  | G20: =IF(B22=F18,"",B22) ->  | Q20: 0.2051282051 | R20: 0.1842105263 | S20: Age | W20: 18 | X20: 16 | Y20: 55 | Z20: 7 | AA20: 14 | AB20: 33 | AC20: 28 | AD20: 18 | AE20: 34 | AF20: 105 | AG20: 8 | AJ20: 13 | AK20: 9 | AL20: 89 | AM20: 2 | AN20: 16 | AO20: 39 | AP20: 11 | AQ20: 8 | AR20: 25 | AS20: 185 | AT20: 2
A21: YOUR FARM VALUES* | Q21: 0.09971509972 | R21: 0.1140350877 | S21: <40 | W21: 55 | X21: 46 | Y21: 48 | Z21: 16 | AA21: 42 | AB21: 90 | AC21: 84 | AD21: 60 | AE21: 81 | AF21: 98 | AG21: 7 | AJ21: 51 | AK21: 49 | AL21: 81 | AM21: 9 | AN21: 50 | AO21: 110 | AP21: 111 | AQ21: 60 | AR21: 79 | AS21: 167 | AT21: 6
A22: Current Ratio: | B22: =S37 -> 1.948623189 | Q22: 0.05982905983 | R22: 0.08333333333 | S22: 40-60 | W22: 72 | X22: 79 | Y22: 58 | Z22: 20 | AA22: 104 | AB22: 77 | AC22: 95 | AD22: 91 | AE22: 114 | AF22: 52 | AG22: 32 | AJ22: 84 | AK22: 101 | AL22: 78 | AM22: 25 | AN22: 161 | AO22: 161 | AP22: 140 | AQ22: 151 | AR22: 141 | AS22: 55 | AT22: 31
A23: Working Capital Ratio: | B23: 0.4189865668 | Q23: 0.04843304843 | R23: 0.04824561404 | S23: >60 | W23: 35 | X23: 72 | Y23: 51 | Z23: 63 | AA23: 84 | AB23: 48 | AC23: 45 | AD23: 73 | AE23: 58 | AF23: 19 | AG23: 103 | AJ23: 52 | AK23: 113 | AL23: 78 | AM23: 103 | AN23: 158 | AO23: 59 | AP23: 71 | AQ23: 145 | AR23: 128 | AS23: 24 | AT23: 162
A24: Debt to Asset Ratio: | B24: 0.2990173101 | Q24: 0.02279202279 | R24: 0.04605263158 | W24: 21 | X24: 49 | Y24: 37 | Z24: 115 | AA24: 50 | AB24: 25 | AC24: 24 | AD24: 60 | AE24: 29 | AF24: 18 | AG24: 127 | AJ24: 38 | AK24: 65 | AL24: 51 | AM24: 202 | AN24: 49 | AO24: 32 | AP24: 62 | AQ24: 75 | AR24: 49 | AS24: 12 | AT24: 215
A25: Operating Profit Margin | B25: 0.1096613061 | Q25: 0.02279202279 | R25: 0.03070175439 | W25: 17 | X25: 26 | Y25: 27 | Z25: 87 | AA25: 17 | AB25: 11 | AC25: 31 | AD25: 26 | AE25: 18 | AF25: 11 | AG25: 51 | AJ25: 22 | AK25: 54 | AL25: 29 | AM25: 99 | AN25: 12 | AO25: 1 | AP25: 29 | AQ25: 10 | AR25: 18 | AS25: 3 | AT25: 37
A26: Rate of Return on Farm Assets | B26: 0.02907667563 | E26: Working Captial Ratio | Q26: 0.3333333333 | R26: 0.3530701754 | W26: 8 | X26: 25 | Y26: 17 | Z26: 23 | AA26: 8 | AB26: 8 | AC26: 15 | AD26: 9 | AE26: 7 | AF26: 4 | AG26: 11 | AJ26: 21 | AK26: 26 | AL26: 19 | AM26: 9 | AN26: 2 | AO26: 3 | AP26: 17 | AQ26: 5 | AR26: 10 | AS26: 2 | AT26: 3
A27: Rate of Return on Farm Equity | B27: 0.02084262301 | F27: =U1 -> 2019 | G27: 10-Year | S27: Your Farm Line-Current Ratio | W27: 8 | X27: 10 | Y27: 34 | Z27: 2 | AA27: 7 | AB27: 1 | AC27: 12 | AD27: 11 | AE27: 7 | AF27: 12 | AG27: 0 | AJ27: 14 | AK27: 18 | AL27: 23 | AM27: 0 | AN27: 1 | AO27: 2 | AP27: 6 | AQ27: 1 | AR27: 5 | AS27: 1 | AT27: 0
A28: Asset Turnover Rate | B28: 0.2651498206 | E28: -0.5 | F28: =Q38 -> 0.03133903134 | G28: =R38 -> 0.01315789474 | Q28: =Q38 -> 0.03133903134 | R28: =R38 -> 0.01315789474 | S28: X's | T28: =IF(B22<4.5,B22,4.5) -> 1.948623189 | U28: =IF(B22<4.5,B22,4.5) -> 1.948623189 | W28: 117 | X28: 17 | Z28: 0 | AA28: 3 | AB28: 12 | AC28: 17 | AG28: 0 | AJ28: 161 | AK28: 15 | AM28: 0 | AN28: 0 | AO28: 4 | AP28: 9 | AT28: 0
A29: Operating Expense Ratio | B29: 0.7069911047 | E29: =E28+0.25 -> -0.25 | F29: =Q39 -> 0.04558404558 | G29: =R39 -> 0.01973684211 | Q29: =Q28+Q39 -> 0.07692307692 | R29: =R28+R39 -> 0.03289473684 | S29: Y's | T29: 0 | U29: 1 | V29: Count | W29: 351 | X29: 351 | Y29: 351 | Z29: 351 | AA29: 351 | AB29: 351 | AC29: 351 | AD29: 351 | AE29: 351 | AF29: 351 | AG29: 351 | AI29: Count | AJ29: 456 | AK29: 456 | AL29: 456 | AM29: 456 | AN29: 456 | AO29: 456 | AP29: 456 | AQ29: 456 | AR29: 456 | AS29: 456 | AT29: 456
A30: Depreciation Expense Ratio | B30: 0.08266392517 | E30: =E29+0.25 -> 0 | F30: 0.1310541311 | G30: 0.1074561404 | Q30: 0.207977208 | R30: 0.1403508772 | S30: =IF(B22=F18,U1 &" Average","Your Farm") -> 2019 Average | V30: Average | W30: 1.948623189 | X30: 0.4189865668 | Y30: 0.2990173101 | Z30: 0.1096613061 | AA30: 0.02907667563 | AB30: 0.02084262301 | AC30: 0.2651498206 | AD30: 0.7069911047 | AE30: 0.08266392517 | AF30: 0.04906565066 | AG30: 0.1612793195 | AI30: Average | AJ30: 2.400534657 | AK30: 0.4843739432 | AL30: 0.2573465284 | AM30: 0.105782007 | AN30: 0.0297816352 | AO30: 0.0254134349 | AP30: 0.2815378158 | AQ30: 0.7119051443 | AR30: 0.0887493277 | AS30: 0.03522750166 | AT30: 0.1641180263
A31: Interest Expense Ratio | B31: 0.04906565066 | E31: 0.25 | F31: 0.2250712251 | G31: 0.2214912281 | Q31: 0.433048433 | R31: 0.3618421053 | S31: Your Farm Line-Working Capital Ratio | V31: Non-ratio average | X31: 376650.6179 | AG31: 144983.0619 | AI31: Non-ratio average | AK31: 365945.7682 | AT31: 123991.5938
A32: Net Farm Income Ratio: | B32: 0.1612793195 | E32: 0.5 | F32: 0.2051282051 | G32: 0.2478070175 | Q32: 0.6381766382 | R32: 0.6096491228 | S32: X's | T32: =IF(B23>1.75,1.75,B23) -> 0.4189865668 | U32: =IF(B23>1.75,1.75,B23) -> 0.4189865668
A33: *Defaults to Averages for 2019 if not entered | E33: 0.75 | F33: 0.1396011396 | G33: 0.1425438596 | Q33: 0.7777777778 | R33: 0.7521929825 | S33: Y's | T33: 0 | U33: 1 | W33: Operator Age>60
E34: 1 | F34: 0.07407407407 | G34: 0.1184210526 | Q34: 0.8518518519 | R34: 0.8706140351 | S34: =IF(B23=F39,U1 &" Average","Your Farm") -> 2019 Average | W34: Current Ratio | X34: Working Capital Ratio | Y34: Debt to Asset Ratio | Z34: Operating Profit Margin | AA34: ROA | AB34: ROE | AC34: Asset Turnover | AD34: Operating Expense Ratio | AE34: Depr Expense Ratio | AF34: Interest Expense Ratio | AG34: NFI Ratio | AJ34: Current Ratio | AK34: Working Capital Ratio | AL34: Debt to Asset Ratio | AM34: Operating Profit Margin | AN34: ROA | AO34: ROE | AP34: Asset Turnover | AQ34: Operating Expense Ratio | AR34: Depr Expense Ratio | AS34: Interest Expense Ratio | AT34: NFI Ratio
E35: 1.25 | F35: 0.07122507123 | G35: 0.05701754386 | Q35: 0.9230769231 | R35: 0.9276315789 | W35: 0 | X35: 12 | Y35: 89 | Z35: 43 | AA35: 25 | AB35: 46 | AC35: 0 | AD35: 5 | AE35: 4 | AF35: 93 | AG35: 18 | AJ35: 0 | AK35: 7 | AL35: 31 | AM35: 6 | AN35: 10 | AO35: 31 | AP35: 0 | AQ35: 1 | AR35: 0 | AS35: 23 | AT35: 2
E36: 1.5 | F36: 0.02849002849 | G36: 0.03947368421 | Q36: 0.9515669516 | R36: 0.9671052632 | W36: 17 | X36: 13 | Y36: 147 | Z36: 11 | AA36: 23 | AB36: 51 | AC36: 105 | AD36: 24 | AE36: 44 | AF36: 173 | AG36: 11 | AJ36: 13 | AK36: 7 | AL36: 206 | AM36: 10 | AN36: 13 | AO36: 41 | AP36: 74 | AQ36: 15 | AR36: 26 | AS36: 274 | AT36: 1
E37: More | F37: 0.04843304843 | G37: 0.03289473684 | Q37: 1 | R37: 1 | S37: =$F$18 -> 1.948623189 | W37: 53 | X37: 45 | Y37: 93 | Z37: 25 | AA37: 96 | AB37: 178 | AC37: 207 | AD37: 63 | AE37: 95 | AF37: 100 | AG37: 24 | AJ37: 36 | AK37: 35 | AL37: 85 | AM37: 20 | AN37: 68 | AO37: 156 | AP37: 192 | AQ37: 64 | AR37: 103 | AS37: 116 | AT37: 10
E38: Count | F38: =F17 -> 351 | G38: =G17 -> 456 | Q38: =IF($T$6=$W$1,X3/$F$38,IF($T$6=$W$17,X19/$F$38,IF($T$6=$W$33,X35/$F$38,IF($T$6=$W$49,X51/$F$38,IF($T$6=$W$65,X67/$F$38,IF($T$6=$W$81,X83/$F$38,IF($T$6=$W$97,X99/$F$38,IF($T$6=$W$113,X115/$F$38,IF($T$6=$W$129,X131/$F$38,IF($T$6=$W$145,X147/$F$38,IF($T$6=$W$161,X163/$F$38,IF($T$6=$W$177,X179/$F$38,IF($T$6=$W$193,X195/$F$38,IF($T$6=$W$209,X211/$F$38,IF($T$6=$W$225,X227/$F$38,IF($T$6=$W$241,X243/$F$38,IF($T$6=$W$257,X259/$F$38,IF($T$6=$W$273,X275/$F$38,IF($T$6=$W$289,X291/$F$38,IF($T$6=$W$305,X307/$F$38,"N/A")))))))))))))))))))) -> 0.03133903134 | R38: =IF($T$6=$W$1,AK3/$G$38,IF($T$6=$W$17,AK19/$G$38,IF($T$6=$W$33,AK35/$G$38,IF($T$6=$W$49,AK51/$G$38,IF($T$6=$W$65,AK67/$G$38,IF($T$6=$W$81,AK83/$G$38,IF($T$6=$W$97,AK99/$G$38,IF($T$6=$W$113,AK115/$G$38,IF($T$6=$W$129,AK131/$G$38,IF($T$6=$W$145,AK147/$G$38,IF($T$6=$W$161,AK163/$G$38,IF($T$6=$W$177,AK179/$G$38,IF($T$6=$W$193,AK195/$G$38,IF($T$6=$W$209,AK211/$G$38,IF($T$6=$W$225,AK227/$G$38,IF($T$6=$W$241,AK243/$G$38,IF($T$6=$W$257,AK259/$G$38,IF($T$6=$W$273,AK275/$G$38,IF($T$6=$W$289,AK291/$G$38,IF($T$6=$W$305,AK307/$G$38,"N/A")))))))))))))))))))) -> 0.01315789474 | S38: =$F$39 -> 0.4189865668 | W38: 61 | X38: 74 | Y38: 58 | Z38: 51 | AA38: 208 | AB38: 163 | AC38: 89 | AD38: 132 | AE38: 124 | AF38: 68 | AG38: 45 | AJ38: 61 | AK38: 74 | AL38: 68 | AM38: 45 | AN38: 242 | AO38: 222 | AP38: 118 | AQ38: 166 | AR38: 127 | AS38: 53 | AT38: 28
E39: Average | F39: =IF($T$6=$W$1,$X$14,IF($T$6=$W$17,$X$30,IF($T$6=$W$33,$X$46,IF($T$6=$W$49,$X$62,IF($T$6=$W$65,$X$78,IF($T$6=$W$81,$X$94,IF($T$6=$W$97,$X$110,IF($T$6=$W$113,$X$126,IF($T$6=$W$129,$X$142,IF($T$6=$W$145,$X$158,IF($T$6=$W$161,$X$174,IF($T$6=$W$177,$X$190,IF($T$6=$W$193,$X$206,IF($T$6=$W$209,$X$222,IF($T$6=$W$225,$X$238,IF($T$6=$W$241,$X$254,IF($T$6=$W$257,$X$270,IF($T$6=$W$273,$X$286,IF($T$6=$W$289,$X$302,IF($T$6=$W$305,$X$318,"N/A")))))))))))))))))))) -> 0.4189865668 | G39: =IF($T$6=$W$1,$AK$14,IF($T$6=$W$17,$AK$30,IF($T$6=$W$33,$AK$46,IF($T$6=$W$49,$AK$62,IF($T$6=$W$65,$AK$78,IF($T$6=$W$81,$AK$94,IF($T$6=$W$97,$AK$110,IF($T$6=$W$113,$AK$126,IF($T$6=$W$129,$AK$142,IF($T$6=$W$145,$AK$158,IF($T$6=$W$161,$AK$174,IF($T$6=$W$177,$AK$190,IF($T$6=$W$193,$AK$206,IF($T$6=$W$209,$AK$222,IF($T$6=$W$225,$AK$238,IF($T$6=$W$241,$AK$254,IF($T$6=$W$257,$AK$270,IF($T$6=$W$273,$AK$286,IF($T$6=$W$289,$AK$302,IF($T$6=$W$305,$AK$318,"N/A")))))))))))))))))))) -> 0.4843739432 | Q39: 0.04558404558 | R39: 0.01973684211 | S39: =$F$59 -> 0.2990173101 | W39: 39 | X39: 80 | Y39: 42 | Z39: 104 | AA39: 102 | AB39: 35 | AC39: 30 | AD39: 116 | AE39: 103 | AF39: 30 | AG39: 160 | AJ39: 45 | AK39: 94 | AL39: 48 | AM39: 108 | AN39: 137 | AO39: 43 | AP39: 53 | AQ39: 153 | AR39: 115 | AS39: 22 | AT39: 177
E40: Working Capital Avg. | Q40: 0.1310541311 | R40: 0.1074561404 | S40: =$F$81 -> 0.1096613061 | W40: 32 | X40: 71 | Y40: 30 | Z40: 162 | AA40: 28 | AB40: 9 | AC40: 25 | AD40: 76 | AE40: 50 | AF40: 13 | AG40: 160 | AJ40: 28 | AK40: 82 | AL40: 28 | AM40: 204 | AN40: 30 | AO40: 4 | AP40: 28 | AQ40: 74 | AR40: 72 | AS40: 8 | AT40: 221
F41: =IF($T$6=$W$1,$X$15,IF($T$6=$W$17,$X$31,IF($T$6=$W$33,$X$47,IF($T$6=$W$49,$X$63,IF($T$6=$W$65,$X$79,IF($T$6=$W$81,$X$95,IF($T$6=$W$97,$X$111,IF($T$6=$W$113,$X$127,IF($T$6=$W$129,$X$143,IF($T$6=$W$145,$X$159,IF($T$6=$W$161,$X$175,IF($T$6=$W$177,$X$191,IF($T$6=$W$193,$X$207,IF($T$6=$W$209,$X$223,IF($T$6=$W$225,$X$239,IF($T$6=$W$241,$X$255,IF($T$6=$W$257,$X$271,IF($T$6=$W$273,$X$287,IF($T$6=$W$289,$X$303,IF($T$6=$W$305,$X$319,"N/A")))))))))))))))))))) -> 376650.6179 | G41: =IF($T$6=$W$1,$AK$15,IF($T$6=$W$17,$AK$31,IF($T$6=$W$33,$AK$47,IF($T$6=$W$49,$AK$63,IF($T$6=$W$65,$AK$79,IF($T$6=$W$81,$AK$95,IF($T$6=$W$97,$AK$111,IF($T$6=$W$113,$AK$127,IF($T$6=$W$129,$AK$143,IF($T$6=$W$145,$AK$159,IF($T$6=$W$161,$AK$175,IF($T$6=$W$177,$AK$191,IF($T$6=$W$193,$AK$207,IF($T$6=$W$209,$AK$223,IF($T$6=$W$225,$AK$239,IF($T$6=$W$241,$AK$255,IF($T$6=$W$257,$AK$271,IF($T$6=$W$273,$AK$287,IF($T$6=$W$289,$AK$303,IF($T$6=$W$305,$AK$319,"N/A")))))))))))))))))))) -> 365945.7682 | Q41: 0.2250712251 | R41: 0.2214912281 | S41: =$F$102 -> 0.02907667563 | W41: 23 | X41: 50 | Y41: 16 | Z41: 76 | AA41: 9 | AB41: 6 | AC41: 15 | AD41: 30 | AE41: 33 | AF41: 10 | AG41: 67 | AJ41: 26 | AK41: 66 | AL41: 15 | AM41: 97 | AN41: 1 | AO41: 2 | AP41: 13 | AQ41: 19 | AR41: 39 | AS41: 3 | AT41: 55
Q42: 0.2051282051 | R42: 0.2478070175 | S42: =$F$123 -> 0.02084262301 | W42: 19 | X42: 44 | Y42: 8 | Z42: 21 | AA42: 3 | AB42: 1 | AC42: 9 | AD42: 17 | AE42: 15 | AF42: 2 | AG42: 10 | AJ42: 16 | AK42: 46 | AL42: 9 | AM42: 11 | AN42: 0 | AO42: 0 | AP42: 7 | AQ42: 5 | AR42: 11 | AS42: 2 | AT42: 8
F43: =IF(B23=F39,"","Your Farm") ->  | G43: =IF(B23=F39,"",B23) ->  | Q43: 0.1396011396 | R43: 0.1425438596 | S43: =$F$144 -> 0.2651498206 | W43: 8 | X43: 38 | Y43: 14 | Z43: 4 | AA43: 1 | AB43: 0 | AC43: 4 | AD43: 34 | AE43: 29 | AF43: 8 | AG43: 2 | AJ43: 11 | AK43: 35 | AL43: 12 | AM43: 1 | AN43: 1 | AO43: 0 | AP43: 6 | AQ43: 5 | AR43: 9 | AS43: 1 | AT43: 0
Q44: 0.07407407407 | R44: 0.1184210526 | S44: =$F$164 -> 0.7069911047 | W44: 245 | X44: 70 | Z44: 0 | AA44: 2 | AB44: 8 | AC44: 13 | AG44: 0 | AJ44: 266 | AK44: 56 | AM44: 0 | AN44: 0 | AO44: 3 | AP44: 11 | AT44: 0
Q45: 0.07122507123 | R45: 0.05701754386 | S45: =$F$185 -> 0.08266392517 | V45: Count | W45: 497 | X45: 497 | Y45: 497 | Z45: 497 | AA45: 497 | AB45: 497 | AC45: 497 | AD45: 497 | AE45: 497 | AF45: 497 | AG45: 497 | AI45: Count | AJ45: 502 | AK45: 502 | AL45: 502 | AM45: 502 | AN45: 502 | AO45: 502 | AP45: 502 | AQ45: 502 | AR45: 502 | AS45: 502 | AT45: 502
Q46: 0.02849002849 | R46: 0.03947368421 | S46: =$F$206 -> 0.04906565066 | V46: Average | W46: 2.591596108 | X46: 0.6077926393 | Y46: 0.1675521942 | Z46: 0.05287444447 | AA46: 0.009692845782 | AB46: 0.002495422789 | AC46: 0.1833181583 | AD46: 0.7315006366 | AE46: 0.09417881609 | AF46: 0.03826066764 | AG46: 0.1360598797 | AI46: Average | AJ46: 3.063173981 | AK46: 0.6660729259 | AL46: 0.1666312788 | AM46: 0.08826733305 | AN46: 0.018518975 | AO46: 0.0138546556 | AP46: 0.2098055347 | AQ46: 0.709720371 | AR46: 0.09250693959 | AS46: 0.03008630828 | AT46: 0.1676863811
E47: Debt to Asset Ratio | Q47: 0.04843304843 | R47: 0.03289473684 | S47: =$F$228 -> 0.1612793195 | V47: Non-ratio average | X47: 375625.7924 | AG47: 84087.23111 | AI47: Non-ratio average | AK47: 372367.4392 | AT47: 93744.91278
F48: =U1 -> 2019 | G48: 10-Year
E49: 0 | F49: =Q58 -> 0.06837606838 | G49: =R58 -> 0.01754385965 | Q49: =Q58 -> 0.06837606838 | R49: =R58 -> 0.01754385965 | S49: Your Farm Line-Debt to Asset | W49: Crop Acres<500None
E50: 0.1 | F50: =Q59 -> 0.1566951567 | G50: =R59 -> 0.1951754386 | Q50: =Q49+Q59 -> 0.2250712251 | R50: 0.2127192982 | S50: X's | T50: =IF(B24>0.8,0.8,B24) -> 0.2990173101 | U50: =T50 -> 0.2990173101 | W50: Current Ratio | X50: Working Capital Ratio | Y50: Debt to Asset Ratio | Z50: Operating Profit Margin | AA50: ROA | AB50: ROE | AC50: Asset Turnover | AD50: Operating Expense Ratio | AE50: Depr Expense Ratio | AF50: Interest Expense Ratio | AG50: NFI Ratio | AJ50: Current Ratio | AK50: Working Capital Ratio | AL50: Debt to Asset Ratio | AM50: Operating Profit Margin | AN50: ROA | AO50: ROE | AP50: Asset Turnover | AQ50: Operating Expense Ratio | AR50: Depr Expense Ratio | AS50: Interest Expense Ratio | AT50: NFI Ratio
E51: 0.2 | F51: 0.1367521368 | G51: 0.1776315789 | Q51: 0.3618233618 | R51: 0.3903508772 | S51: Y's | T51: 0 | U51: 1 | W51: 0 | X51: 4 | Y51: 15 | Z51: 9 | AA51: 9 | AB51: 12 | AC51: 0 | AD51: 2 | AE51: 2 | AF51: 19 | AG51: 5 | AJ51: 0 | AK51: 0 | AL51: 6 | AM51: 3 | AN51: 4 | AO51: 6 | AP51: 0 | AQ51: 2 | AR51: 0 | AS51: 7 | AT51: 0
E52: 0.3 | F52: 0.1652421652 | G52: 0.1710526316 | Q52: 0.5270655271 | R52: 0.5614035088 | S52: =IF(B24=F59,U1 &" Average","Your Farm") -> 2019 Average | W52: 5 | X52: 0 | Y52: 16 | Z52: 5 | AA52: 6 | AB52: 7 | AC52: 19 | AD52: 5 | AE52: 13 | AF52: 20 | AG52: 3 | AJ52: 2 | AK52: 3 | AL52: 19 | AM52: 2 | AN52: 5 | AO52: 6 | AP52: 14 | AQ52: 2 | AR52: 7 | AS52: 19 | AT52: 2
E53: 0.4 | F53: 0.1452991453 | G53: 0.1710526316 | Q53: 0.6723646724 | R53: 0.7324561404 | W53: 4 | X53: 5 | Y53: 3 | Z53: 5 | AA53: 9 | AB53: 18 | AC53: 16 | AD53: 9 | AE53: 10 | AF53: 3 | AG53: 3 | AJ53: 6 | AK53: 5 | AL53: 4 | AM53: 3 | AN53: 9 | AO53: 14 | AP53: 14 | AQ53: 9 | AR53: 9 | AS53: 8 | AT53: 3
E54: 0.5 | F54: 0.1054131054 | G54: 0.1118421053 | Q54: 0.7777777778 | R54: 0.8442982456 | W54: 1 | X54: 6 | Y54: 2 | Z54: 4 | AA54: 18 | AB54: 10 | AC54: 5 | AD54: 10 | AE54: 14 | AF54: 2 | AG54: 8 | AJ54: 3 | AK54: 4 | AL54: 3 | AM54: 7 | AN54: 17 | AO54: 12 | AP54: 6 | AQ54: 7 | AR54: 11 | AS54: 5 | AT54: 4
E55: 0.6 | F55: 0.07692307692 | G55: 0.06359649123 | Q55: 0.8547008547 | R55: 0.9078947368 | W55: 2 | X55: 9 | Y55: 5 | Z55: 11 | AA55: 8 | AB55: 1 | AC55: 4 | AD55: 9 | AE55: 7 | AF55: 5 | AG55: 8 | AJ55: 0 | AK55: 6 | AL55: 5 | AM55: 13 | AN55: 6 | AO55: 1 | AP55: 3 | AQ55: 12 | AR55: 6 | AS55: 3 | AT55: 13
E56: 0.7 | F56: 0.04843304843 | G56: 0.04166666667 | Q56: 0.9031339031 | R56: 0.9495614035 | W56: 2 | X56: 2 | Y56: 3 | Z56: 7 | AA56: 0 | AB56: 1 | AC56: 1 | AD56: 6 | AE56: 1 | AF56: 0 | AG56: 14 | AJ56: 2 | AK56: 8 | AL56: 0 | AM56: 7 | AN56: 1 | AO56: 0 | AP56: 1 | AQ56: 6 | AR56: 3 | AS56: 0 | AT56: 11
E57: More | F57: 0.09686609687 | G57: 0.05043859649 | Q57: 1 | R57: 1 | W57: 2 | X57: 6 | Y57: 2 | Z57: 11 | AA57: 0 | AB57: 0 | AC57: 3 | AD57: 5 | AE57: 1 | AF57: 3 | AG57: 10 | AJ57: 0 | AK57: 4 | AL57: 0 | AM57: 5 | AN57: 0 | AO57: 1 | AP57: 0 | AQ57: 2 | AR57: 7 | AS57: 0 | AT57: 8
E58: Count | F58: =F38 -> 351 | G58: =G38 -> 456 | Q58: =IF($T$6=$W$1,Y3/$F$58,IF($T$6=$W$17,Y19/$F$58,IF($T$6=$W$33,Y35/$F$58,IF($T$6=$W$49,Y51/$F$58,IF($T$6=$W$65,Y67/$F$58,IF($T$6=$W$81,Y83/$F$58,IF($T$6=$W$97,Y99/$F$58,IF($T$6=$W$113,Y115/$F$58,IF($T$6=$W$129,Y131/$F$58,IF($T$6=$W$145,Y147/$F$58,IF($T$6=$W$161,Y163/$F$58, IF($T$6=$W$177,Y179/$F$58,IF($T$6=$W$193,Y195/$F$58,IF($T$6=$W$209,Y211/$F$58,IF($T$6=$W$225,Y227/$F$58,IF($T$6=$W$241,Y243/$F$58,IF($T$6=$W$257,Y259/$F$58,IF($T$6=$W$273,Y275/$F$58,IF($T$6=$W$289,Y291/$F$58,IF($T$6=$W$305,Y307/$F$58,"N/A")))))))))))))))))))) -> 0.06837606838 | R58: =IF($T$6=$W$1,AL3/$G$38,IF($T$6=$W$17,AL19/$G$38,IF($T$6=$W$33,AL35/$G$38,IF($T$6=$W$49,AL51/$G$38,IF($T$6=$W$65,AL67/$G$38,IF($T$6=$W$81,AL83/$G$38,IF($T$6=$W$97,AL99/$G$38,IF($T$6=$W$113,AL115/$G$38,IF($T$6=$W$129,AL131/$G$38,IF($T$6=$W$145,AL147/$G$38,IF($T$6=$W$161,AL163/$G$38,IF($T$6=$W$177,AL179/$G$38,IF($T$6=$W$193,AL195/$G$38,IF($T$6=$W$209,AL211/$G$38,IF($T$6=$W$225,AL227/$G$38,IF($T$6=$W$241,AL243/$G$38,IF($T$6=$W$257,AL259/$G$38,IF($T$6=$W$273,AL275/$G$38,IF($T$6=$W$289,AL291/$G$38,IF($T$6=$W$305,AL307/$G$38,"N/A")))))))))))))))))))) -> 0.01754385965 | W58: 1 | X58: 4 | Y58: 2 | Z58: 3 | AA58: 2 | AB58: 1 | AC58: 0 | AD58: 3 | AE58: 4 | AF58: 0 | AG58: 4 | AJ58: 0 | AK58: 1 | AL58: 1 | AM58: 3 | AN58: 1 | AO58: 1 | AP58: 0 | AQ58: 1 | AR58: 0 | AS58: 1 | AT58: 3
E59: Average | F59: =IF($T$6=$W$1,$Y$14,IF($T$6=$W$17,$Y$30,IF($T$6=$W$33,$Y$46,IF($T$6=$W$49,$Y$62,IF($T$6=$W$65,$Y$78,IF($T$6=$W$81,$Y$94,IF($T$6=$W$97,$Y$110,IF($T$6=$W$113,$Y$126,IF($T$6=$W$129,$Y$142,IF($T$6=$W$145,$Y$158,IF($T$6=$W$161,$Y$174,IF($T$6=$W$177,$Y$190,IF($T$6=$W$193,$Y$206,IF($T$6=$W$209,$Y$222,IF($T$6=$W$225,$Y$238,IF($T$6=$W$241,$Y$254,IF($T$6=$W$257,$Y$270,IF($T$6=$W$273,$Y$286,IF($T$6=$W$289,$Y$302,IF($T$6=$W$305,$Y$318,"N/A")))))))))))))))))))) -> 0.2990173101 | G59: =IF($T$6=$W$1,$AL$14,IF($T$6=$W$17,$AL$30,IF($T$6=$W$33,$AL$46,IF($T$6=$W$49,$AL$62,IF($T$6=$W$65,$AL$78,IF($T$6=$W$81,$AL$94,IF($T$6=$W$97,$AL$110,IF($T$6=$W$113,$AL$126,IF($T$6=$W$129,$AL$142,IF($T$6=$W$145,$AL$158,IF($T$6=$W$161,$AL$174,IF($T$6=$W$177,$AL$190,IF($T$6=$W$193,$AL$206,IF($T$6=$W$209,$AL$222,IF($T$6=$W$225,$AL$238,IF($T$6=$W$241,$AL$254,IF($T$6=$W$257,$AL$270,IF($T$6=$W$273,$AL$286,IF($T$6=$W$289,$AL$302,IF($T$6=$W$305,$AL$318,"N/A")))))))))))))))))))) -> 0.2573465284 | Q59: 0.1566951567 | R59: 0.1951754386 | W59: 0 | X59: 6 | Y59: 8 | Z59: 1 | AA59: 1 | AB59: 1 | AC59: 0 | AD59: 7 | AE59: 4 | AF59: 4 | AG59: 1 | AJ59: 1 | AK59: 4 | AL59: 6 | AM59: 1 | AN59: 1 | AO59: 0 | AP59: 2 | AQ59: 3 | AR59: 1 | AS59: 1 | AT59: 0
Q60: 0.1367521368 | R60: 0.1776315789 | W60: 39 | X60: 14 | Z60: 0 | AA60: 3 | AB60: 5 | AC60: 8 | AG60: 0 | AJ60: 30 | AK60: 9 | AM60: 0 | AN60: 0 | AO60: 3 | AP60: 4 | AT60: 0
Q61: 0.1652421652 | R61: 0.1710526316 | V61: Count | W61: 56 | X61: 56 | Y61: 56 | Z61: 56 | AA61: 56 | AB61: 56 | AC61: 56 | AD61: 56 | AE61: 56 | AF61: 56 | AG61: 56 | AI61: Count | AJ61: 44 | AK61: 44 | AL61: 44 | AM61: 44 | AN61: 44 | AO61: 44 | AP61: 44 | AQ61: 44 | AR61: 44 | AS61: 44 | AT61: 44
Q62: 0.1452991453 | R62: 0.1710526316 | V62: Average | W62: 6.221897461 | X62: 0.9066418926 | Y62: 0.1240455179 | Z62: -0.07573199957 | AA62: -0.0103679555 | AB62: -0.01787427776 | AC62: 0.1369032318 | AD62: 0.7285060826 | AE62: 0.07948812546 | AF62: 0.04224115761 | AG62: 0.1497646344 | AI62: Average | AJ62: 5.381660293 | AK62: 0.8133950131 | AL62: 0.1047847527 | AM62: 0.002100718162 | AN62: 0.0003123879032 | AO62: -0.004722321909 | AP62: 0.1487052899 | AQ62: 0.6783349622 | AR62: 0.09085426868 | AS62: 0.03157606793 | AT62: 0.1992347012
F63: =IF(B24=F59,"","Your Farm") ->  | G63: =IF(B24=F59,"",B24) ->  | Q63: 0.1054131054 | R63: 0.1118421053 | V63: Non-ratio average | X63: 120218.2984 | AG63: 19858.39134 | AI63: Non-ratio average | AK63: 111011.1808 | AT63: 27191.31429
Q64: 0.07692307692 | R64: 0.06359649123
Q65: 0.04843304843 | R65: 0.04166666667 | W65: Crop Acres<500No Cows-Feedlot
Q66: 0.09686609687 | R66: 0.05043859649 | W66: Current Ratio | X66: Working Capital Ratio | Y66: Debt to Asset Ratio | Z66: Operating Profit Margin | AA66: ROA | AB66: ROE | AC66: Asset Turnover | AD66: Operating Expense Ratio | AE66: Depr Expense Ratio | AF66: Interest Expense Ratio | AG66: NFI Ratio | AJ66: Current Ratio | AK66: Working Capital Ratio | AL66: Debt to Asset Ratio | AM66: Operating Profit Margin | AN66: ROA | AO66: ROE | AP66: Asset Turnover | AQ66: Operating Expense Ratio | AR66: Depr Expense Ratio | AS66: Interest Expense Ratio | AT66: NFI Ratio
W67: 0 | X67: 4 | Y67: 1 | Z67: 6 | AA67: 3 | AB67: 7 | AC67: 0 | AD67: 1 | AE67: 0 | AF67: 2 | AG67: 1 | AJ67: 0 | AK67: 0 | AL67: 1 | AM67: 0 | AN67: 1 | AO67: 5 | AP67: 0 | AQ67: 0 | AR67: 0 | AS67: 1 | AT67: 0
E68: Operating Profit Margin Ratio | W68: 2 | X68: 3 | Y68: 0 | Z68: 1 | AA68: 2 | AB68: 3 | AC68: 7 | AD68: 1 | AE68: 7 | AF68: 2 | AG68: 3 | AJ68: 0 | AK68: 0 | AL68: 1 | AM68: 1 | AN68: 1 | AO68: 1 | AP68: 4 | AQ68: 0 | AR68: 9 | AS68: 2 | AT68: 0
F69: =U1 -> 2019 | G69: 10-Year | W69: 6 | X69: 1 | Y69: 4 | Z69: 1 | AA69: 3 | AB69: 4 | AC69: 5 | AD69: 0 | AE69: 5 | AF69: 3 | AG69: 1 | AJ69: 4 | AK69: 4 | AL69: 1 | AM69: 1 | AN69: 1 | AO69: 4 | AP69: 5 | AQ69: 1 | AR69: 2 | AS69: 3 | AT69: 1
E70: -0.6 | F70: =Q80 -> 0.05128205128 | G70: =R80 -> 0.01535087719 | Q70: =Q80 -> 0.05128205128 | R70: =R80 -> 0.01535087719 | W70: 5 | X70: 2 | Y70: 1 | Z70: 1 | AA70: 7 | AB70: 4 | AC70: 7 | AD70: 7 | AE70: 4 | AF70: 4 | AG70: 2 | AJ70: 7 | AK70: 4 | AL70: 3 | AM70: 1 | AN70: 9 | AO70: 5 | AP70: 7 | AQ70: 4 | AR70: 4 | AS70: 5 | AT70: 2
E71: -0.45 | F71: =Q81 -> 0.01994301994 | G71: =R81 -> 0.004385964912 | Q71: =Q70+Q81 -> 0.07122507123 | R71: =R70+R81 -> 0.01973684211 | S71: Your Farm Line-Operating Profit Margin Ratio | W71: 1 | X71: 4 | Y71: 2 | Z71: 2 | AA71: 4 | AB71: 2 | AC71: 2 | AD71: 2 | AE71: 4 | AF71: 2 | AG71: 5 | AJ71: 0 | AK71: 3 | AL71: 1 | AM71: 3 | AN71: 3 | AO71: 2 | AP71: 1 | AQ71: 6 | AR71: 2 | AS71: 4 | AT71: 8
E72: -0.3 | F72: 0.04558404558 | G72: 0.01973684211 | Q72: 0.1168091168 | R72: 0.03947368421 | S72: X's | T72: =IF(B25>0.75,0.75,B25) -> 0.1096613061 | U72: =T72 -> 0.1096613061 | W72: 2 | X72: 1 | Y72: 6 | Z72: 5 | AA72: 1 | AB72: 0 | AC72: 0 | AD72: 3 | AE72: 0 | AF72: 4 | AG72: 5 | AJ72: 1 | AK72: 2 | AL72: 3 | AM72: 5 | AN72: 2 | AO72: 0 | AP72: 0 | AQ72: 4 | AR72: 0 | AS72: 1 | AT72: 4
E73: -0.15 | F73: 0.05698005698 | G73: 0.0548245614 | Q73: 0.1737891738 | R73: 0.09429824561 | S73: Y's | T73: 0 | U73: 1 | W73: 1 | X73: 4 | Y73: 0 | Z73: 3 | AA73: 1 | AB73: 0 | AC73: 0 | AD73: 2 | AE73: 1 | AF73: 2 | AG73: 3 | AJ73: 1 | AK73: 2 | AL73: 3 | AM73: 4 | AN73: 0 | AO73: 0 | AP73: 0 | AQ73: 1 | AR73: 0 | AS73: 1 | AT73: 2
E74: 0 | F74: 0.1794871795 | G74: 0.225877193 | Q74: 0.3532763533 | R74: 0.3201754386 | S74: =IF(B25=F81,U1 &" Average","Your Farm") -> 2019 Average | W74: 0 | X74: 0 | Y74: 2 | Z74: 2 | AA74: 0 | AB74: 0 | AC74: 0 | AD74: 3 | AE74: 0 | AF74: 1 | AG74: 1 | AJ74: 0 | AK74: 0 | AL74: 2 | AM74: 2 | AN74: 0 | AO74: 0 | AP74: 0 | AQ74: 1 | AR74: 0 | AS74: 0 | AT74: 0
E75: 0.15 | F75: 0.3276353276 | G75: 0.4429824561 | Q75: 0.6809116809 | R75: 0.7631578947 | W75: 0 | X75: 0 | Y75: 5 | Z75: 0 | AA75: 0 | AB75: 0 | AC75: 0 | AD75: 2 | AE75: 0 | AF75: 1 | AG75: 0 | AJ75: 0 | AK75: 0 | AL75: 2 | AM75: 0 | AN75: 0 | AO75: 0 | AP75: 0 | AQ75: 0 | AR75: 0 | AS75: 0 | AT75: 0
E76: 0.3 | F76: 0.2478632479 | G76: 0.2171052632 | Q76: 0.9287749288 | R76: 0.9802631579 | W76: 4 | X76: 2 | Z76: 0 | AA76: 0 | AB76: 1 | AC76: 0 | AG76: 0 | AJ76: 4 | AK76: 2 | AM76: 0 | AN76: 0 | AO76: 0 | AP76: 0 | AT76: 0
E77: 0.45 | F77: 0.06552706553 | G77: 0.01973684211 | Q77: 0.9943019943 | R77: 1 | V77: Count | W77: 21 | X77: 21 | Y77: 21 | Z77: 21 | AA77: 21 | AB77: 21 | AC77: 21 | AD77: 21 | AE77: 21 | AF77: 21 | AG77: 21 | AI77: Count | AJ77: 17 | AK77: 17 | AL77: 17 | AM77: 17 | AN77: 17 | AO77: 17 | AP77: 17 | AQ77: 17 | AR77: 17 | AS77: 17 | AT77: 17
E78: 0.6 | F78: 0.005698005698 | G78: 0 | Q78: 1 | R78: 1 | V78: Average | W78: 1.604644778 | X78: 0.6072066484 | Y78: 0.344977999 | Z78: -0.06976875494 | AA78: -0.008541910207 | AB78: -0.03653644769 | AC78: 0.122431742 | AD78: 0.8313294521 | AE78: 0.04307749094 | AF78: 0.0655740204 | AG78: 0.06001903653 | AI78: Average | AJ78: 1.761321603 | AK78: 0.6471609845 | AL78: 0.3399069496 | AM78: 0.1163191437 | AN78: 0.01786848507 | AO78: 0.004812890065 | AP78: 0.15361603 | AQ78: 0.8126146161 | AR78: 0.03331125376 | AS78: 0.05000774852 | AT78: 0.1040663816
E79: More | F79: 0 | G79: 0 | Q79: 1 | R79: 1 | V79: Non-ratio average | X79: 215231.5451 | AG79: 21274.4541 | AI79: Non-ratio average | AK79: 337158.944 | AT79: 54216.66657
E80: Count | F80: =F58 -> 351 | G80: =G58 -> 456 | Q80: =IF($T$6=$W$1,Z3/$F$80,IF($T$6=$W$17,Z19/$F$80,IF($T$6=$W$33,Z35/$F$80,IF($T$6=$W$49,Z51/$F$80,IF($T$6=$W$65,Z67/$F$80,IF($T$6=$W$81,Z83/$F$80,IF($T$6=$W$97,Z99/$F$80,IF($T$6=$W$113,Z115/$F$80,IF($T$6=$W$129,Z131/$F$80,IF($T$6=$W$145,Z147/$F$80,IF($T$6=$W$161,Z163/$F$80,IF($T$6=$W$177,Z179/$F$58,IF($T$6=$W$193,Z195/$F$58,IF($T$6=$W$209,Z211/$F$58,IF($T$6=$W$225,Z227/$F$58,IF($T$6=$W$241,Z243/$F$58,IF($T$6=$W$257,Z259/$F$58,IF($T$6=$W$273,Z275/$F$58,IF($T$6=$W$289,Z291/$F$58,IF($T$6=$W$305,Z307/$F$58,"N/A")))))))))))))))))))) -> 0.05128205128 | R80: =IF($T$6=$W$1,AM3/$G$38,IF($T$6=$W$17,AM19/$G$38,IF($T$6=$W$33,AM35/$G$38,IF($T$6=$W$49,AM51/$G$38,IF($T$6=$W$65,AM67/$G$38,IF($T$6=$W$81,AM83/$G$38,IF($T$6=$W$97,AM99/$G$38,IF($T$6=$W$113,AM115/$G$38,IF($T$6=$W$129,AM131/$G$38,IF($T$6=$W$145,AM147/$G$38,IF($T$6=$W$161,AM163/$G$38,IF($T$6=$W$177,AM179/$G$38,IF($T$6=$W$193,AM195/$G$38,IF($T$6=$W$209,AM211/$G$38,IF($T$6=$W$225,AM227/$G$38,IF($T$6=$W$241,AM243/$G$38,IF($T$6=$W$257,AM259/$G$38,IF($T$6=$W$273,AM275/$G$38,IF($T$6=$W$289,AM291/$G$38,IF($T$6=$W$305,AM307/$G$38,"N/A")))))))))))))))))))) -> 0.01535087719
E81: Average | F81: =IF($T$6=$W$1,$Z$14,IF($T$6=$W$17,$Z$30,IF($T$6=$W$33,$Z$46,IF($T$6=$W$49,$Z$62,IF($T$6=$W$65,$Z$78,IF($T$6=$W$81,$Z$94,IF($T$6=$W$97,$Z$110,IF($T$6=$W$113,$Z$126,IF($T$6=$W$129,$Z$142,IF($T$6=$W$145,$Z$158,IF($T$6=W161,Z174,IF($T$6=$W$177,$Z$190,IF($T$6=$W$193,$Z$206,IF($T$6=$W$209,$Z$222,IF($T$6=$W$225,$Z$238,IF($T$6=$W$241,$Z$254,IF($T$6=$W$257,$Z$270,IF($T$6=$W$273,$Z$286,IF($T$6=$W$289,$Z$302,IF($T$6=$W$305,$Z$318,"N/A")))))))))))))))))))) -> 0.1096613061 | G81: =IF($T$6=$W$1,$AM$14,IF($T$6=$W$17,$AM$30,IF($T$6=$W$33,$AM$46,IF($T$6=$W$49,$AM$62,IF($T$6=$W$65,$AM$78,IF($T$6=$W$81,$AM$94,IF($T$6=$W$97,$AM$110,IF($T$6=$W$113,$AM$126,IF($T$6=$W$129,$AM$142,IF($T$6=$W$145,$AM$158,IF($T$6=$W$161,$AM$174,IF($T$6=$W$177,$AM$190,IF($T$6=$W$193,$AM$206,IF($T$6=$W$209,$AM$222,IF($T$6=$W$225,$AM$238,IF($T$6=$W$241,$AM$254,IF($T$6=$W$257,$AM$270,IF($T$6=$W$273,$AM$286,IF($T$6=$W$289,$AM$302,IF($T$6=$W$305,$AM$318,"N/A")))))))))))))))))))) -> 0.105782007 | Q81: 0.01994301994 | R81: 0.004385964912 | W81: Crop Acres<500<100 Cows
Q82: 0.04558404558 | R82: 0.01973684211 | W82: Current Ratio | X82: Working Capital Ratio | Y82: Debt to Asset Ratio | Z82: Operating Profit Margin | AA82: ROA | AB82: ROE | AC82: Asset Turnover | AD82: Operating Expense Ratio | AE82: Depr Expense Ratio | AF82: Interest Expense Ratio | AG82: NFI Ratio | AJ82: Current Ratio | AK82: Working Capital Ratio | AL82: Debt to Asset Ratio | AM82: Operating Profit Margin | AN82: ROA | AO82: ROE | AP82: Asset Turnover | AQ82: Operating Expense Ratio | AR82: Depr Expense Ratio | AS82: Interest Expense Ratio | AT82: NFI Ratio
Q83: 0.05698005698 | R83: 0.0548245614 | W83: 0 | X83: 3 | Y83: 18 | Z83: 26 | AA83: 10 | AB83: 18 | AC83: 0 | AD83: 5 | AE83: 3 | AF83: 18 | AG83: 18 | AJ83: 0 | AK83: 3 | AL83: 7 | AM83: 8 | AN83: 6 | AO83: 12 | AP83: 0 | AQ83: 0 | AR83: 0 | AS83: 4 | AT83: 2
Q84: 0.1794871795 | R84: 0.225877193 | W84: 2 | X84: 1 | Y84: 16 | Z84: 2 | AA84: 11 | AB84: 14 | AC84: 37 | AD84: 5 | AE84: 14 | AF84: 16 | AG84: 2 | AJ84: 3 | AK84: 1 | AL84: 23 | AM84: 5 | AN84: 5 | AO84: 12 | AP84: 20 | AQ84: 6 | AR84: 9 | AS84: 24 | AT84: 1
F85: =IF(B25=F81,"","Your Farm") ->  | G85: =IF(B25=F81,"",B25) ->  | Q85: 0.3276353276 | R85: 0.4429824561 | W85: 8 | X85: 6 | Y85: 10 | Z85: 5 | AA85: 20 | AB85: 23 | AC85: 19 | AD85: 6 | AE85: 12 | AF85: 13 | AG85: 4 | AJ85: 2 | AK85: 1 | AL85: 14 | AM85: 8 | AN85: 19 | AO85: 28 | AP85: 28 | AQ85: 6 | AR85: 13 | AS85: 16 | AT85: 6
Q86: 0.2478632479 | R86: 0.2171052632 | W86: 11 | X86: 15 | Y86: 7 | Z86: 10 | AA86: 22 | AB86: 9 | AC86: 4 | AD86: 8 | AE86: 14 | AF86: 7 | AG86: 6 | AJ86: 11 | AK86: 12 | AL86: 5 | AM86: 13 | AN86: 24 | AO86: 9 | AP86: 11 | AQ86: 10 | AR86: 21 | AS86: 8 | AT86: 10
Q87: 0.06552706553 | R87: 0.01973684211 | W87: 5 | X87: 7 | Y87: 4 | Z87: 8 | AA87: 4 | AB87: 1 | AC87: 6 | AD87: 17 | AE87: 8 | AF87: 3 | AG87: 12 | AJ87: 2 | AK87: 14 | AL87: 8 | AM87: 14 | AN87: 8 | AO87: 3 | AP87: 1 | AQ87: 14 | AR87: 10 | AS87: 9 | AT87: 25
Q88: 0.005698005698 | R88: 0 | W88: 3 | X88: 7 | Y88: 5 | Z88: 12 | AA88: 2 | AB88: 3 | AC88: 5 | AD88: 6 | AE88: 6 | AF88: 4 | AG88: 18 | AJ88: 3 | AK88: 10 | AL88: 4 | AM88: 9 | AN88: 5 | AO88: 3 | AP88: 6 | AQ88: 19 | AR88: 7 | AS88: 3 | AT88: 12
E89: Rate of Return on Farm Assets | Q89: 0 | R89: 0 | W89: 2 | X89: 9 | Y89: 4 | Z89: 4 | AA89: 3 | AB89: 2 | AC89: 1 | AD89: 6 | AE89: 4 | AF89: 3 | AG89: 7 | AJ89: 7 | AK89: 11 | AL89: 3 | AM89: 6 | AN89: 0 | AO89: 0 | AP89: 0 | AQ89: 6 | AR89: 2 | AS89: 1 | AT89: 9
F90: =U1 -> 2019 | G90: 10-Year | W90: 3 | X90: 4 | Y90: 2 | Z90: 4 | AA90: 2 | AB90: 0 | AC90: 0 | AD90: 3 | AE90: 3 | AF90: 1 | AG90: 8 | AJ90: 5 | AK90: 1 | AL90: 0 | AM90: 4 | AN90: 0 | AO90: 0 | AP90: 0 | AQ90: 2 | AR90: 3 | AS90: 1 | AT90: 2
E91: -0.1 | F91: =Q101 -> 0.06267806268 | G91: =R101 -> 0.01535087719 | Q91: =Q101 -> 0.06267806268 | R91: =R101 -> 0.01535087719 | W91: 0 | X91: 3 | Y91: 9 | Z91: 3 | AA91: 1 | AB91: 0 | AC91: 2 | AD91: 19 | AE91: 11 | AF91: 10 | AG91: 0 | AJ91: 2 | AK91: 5 | AL91: 3 | AM91: 0 | AN91: 0 | AO91: 0 | AP91: 0 | AQ91: 4 | AR91: 2 | AS91: 1 | AT91: 0
E92: -0.06 | F92: =Q102 -> 0.03988603989 | G92: =R102 -> 0.0350877193 | Q92: =Q91+Q102 -> 0.1025641026 | R92: =R91+R102 -> 0.05043859649 | W92: 41 | X92: 20 | Z92: 1 | AA92: 0 | AB92: 5 | AC92: 1 | AG92: 0 | AJ92: 32 | AK92: 9 | AM92: 0 | AN92: 0 | AO92: 0 | AP92: 1 | AT92: 0
E93: -0.02 | F93: 0.1196581197 | G93: 0.1096491228 | Q93: 0.2222222222 | R93: 0.1600877193 | S93: Your Farm Line-Return on Assets | V93: Count | W93: 75 | X93: 75 | Y93: 75 | Z93: 75 | AA93: 75 | AB93: 75 | AC93: 75 | AD93: 75 | AE93: 75 | AF93: 75 | AG93: 75 | AI93: Count | AJ93: 67 | AK93: 67 | AL93: 67 | AM93: 67 | AN93: 67 | AO93: 67 | AP93: 67 | AQ93: 67 | AR93: 67 | AS93: 67 | AT93: 67
E94: 0.02 | F94: 0.2962962963 | G94: 0.3530701754 | Q94: 0.5185185185 | R94: 0.5131578947 | S94: X's | T94: =IF(B26>0.24,0.24,B26) -> 0.02907667563 | U94: =T94 -> 0.02907667563 | V94: Average | W94: 2.384761879 | X94: 0.5902682276 | Y94: 0.1892690793 | Z94: -0.140035256 | AA94: -0.01700204325 | AB94: -0.03088409933 | AC94: 0.121412591 | AD94: 0.7854876215 | AE94: 0.07420427196 | AF94: 0.06107506966 | AG94: 0.07923303689 | AI94: Average | AJ94: 1.713125376 | AK94: 0.467243841 | AL94: 0.2255886999 | AM94: -0.05657479576 | AN94: -0.008635163947 | AO94: -0.0245429584 | AP94: 0.1526327021 | AQ94: 0.785475046 | AR94: 0.05445784848 | AS94: 0.05232906877 | AT94: 0.1077380367
E95: 0.06 | F95: 0.2393162393 | G95: 0.3464912281 | Q95: 0.7578347578 | R95: 0.8596491228 | S95: Y's | T95: 0 | U95: 1 | V95: Non-ratio average | X95: 92619.98633 | AG95: 12432.58988 | AI95: Non-ratio average | AK95: 82703.53118 | AT95: 19069.94871
E96: 0.1 | F96: 0.1424501425 | G96: 0.1074561404 | Q96: 0.9002849003 | R96: 0.9671052632 | S96: =IF(B26=F102,U1 &" Average","Your Farm") -> 2019 Average
E97: 0.14 | F97: 0.04843304843 | G97: 0.02631578947 | Q97: 0.9487179487 | R97: 0.9934210526 | W97: Crop Acres<500100+ Cows
E98: 0.18 | F98: 0.02279202279 | G98: 0.004385964912 | Q98: 0.9715099715 | R98: 0.9978070175 | W98: Current Ratio | X98: Working Capital Ratio | Y98: Debt to Asset Ratio | Z98: Operating Profit Margin | AA98: ROA | AB98: ROE | AC98: Asset Turnover | AD98: Operating Expense Ratio | AE98: Depr Expense Ratio | AF98: Interest Expense Ratio | AG98: NFI Ratio | AJ98: Current Ratio | AK98: Working Capital Ratio | AL98: Debt to Asset Ratio | AM98: Operating Profit Margin | AN98: ROA | AO98: ROE | AP98: Asset Turnover | AQ98: Operating Expense Ratio | AR98: Depr Expense Ratio | AS98: Interest Expense Ratio | AT98: NFI Ratio
E99: 0.22 | F99: 0.01994301994 | G99: 0.002192982456 | Q99: 0.9914529915 | R99: 1 | W99: 0 | X99: 2 | Y99: 3 | Z99: 9 | AA99: 5 | AB99: 10 | AC99: 0 | AD99: 1 | AE99: 0 | AF99: 4 | AG99: 3 | AJ99: 0 | AK99: 2 | AL99: 0 | AM99: 0 | AN99: 0 | AO99: 4 | AP99: 0 | AQ99: 0 | AR99: 0 | AS99: 0 | AT99: 0
E100: More | F100: 0.008547008547 | G100: 0 | Q100: 1 | R100: 1 | W100: 2 | X100: 2 | Y100: 8 | Z100: 1 | AA100: 3 | AB100: 5 | AC100: 12 | AD100: 2 | AE100: 8 | AF100: 7 | AG100: 2 | AJ100: 1 | AK100: 0 | AL100: 11 | AM100: 0 | AN100: 2 | AO100: 4 | AP100: 7 | AQ100: 2 | AR100: 3 | AS100: 13 | AT100: 0
E101: Count | F101: =F80 -> 351 | G101: =G80 -> 456 | Q101: =IF($T$6=$W$1,AA3/$F$101,IF($T$6=$W$17,AA19/$F$101,IF($T$6=$W$33,AA35/$F$101,IF($T$6=$W$49,AA51/$F$101,IF($T$6=$W$65,AA67/$F$101,IF($T$6=$W$81,AA83/$F$101,IF($T$6=$W$97,AA99/$F$101,IF($T$6=$W$113,AA115/$F$101,IF($T$6=$W$129,AA131/$F$101,IF($T$6=$W$145,AA147/$F$101,IF($T$6=$W$161,AA163/$F$101,IF($T$6=$W$177,AA179/$F$58,IF($T$6=$W$193,AA195/$F$58,IF($T$6=$W$209,AA211/$F$58,IF($T$6=$W$225,AA227/$F$58,IF($T$6=$W$241,AA243/$F$58,IF($T$6=$W$257,AA259/$F$58,IF($T$6=$W$273,AA275/$F$58,IF($T$6=$W$289,AA291/$F$58,IF($T$6=$W$305,AA307/$F$58,"N/A")))))))))))))))))))) -> 0.06267806268 | R101: =IF($T$6=$W$1,AN3/$G$38,IF($T$6=$W$17,AN19/$G$38,IF($T$6=$W$33,AN35/$G$38,IF($T$6=$W$49,AN51/$G$38,IF($T$6=$W$65,AN67/$G$38,IF($T$6=$W$81,AN83/$G$38,IF($T$6=$W$97,AN99/$G$38,IF($T$6=$W$113,AN115/$G$38,IF($T$6=$W$129,AN131/$G$38,IF($T$6=$W$145,AN147/$G$38,IF($T$6=$W$161,AN163/$G$38,IF($T$6=$W$177,AN179/$G$38,IF($T$6=$W$193,AN195/$G$38,IF($T$6=$W$209,AN211/$G$38,IF($T$6=$W$225,AN227/$G$38,IF($T$6=$W$241,AN243/$G$38,IF($T$6=$W$257,AN259/$G$38,IF($T$6=$W$273,AN275/$G$38,IF($T$6=$W$289,AN291/$G$38,IF($T$6=$W$305,AN307/$G$38,"N/A")))))))))))))))))))) -> 0.01535087719 | W101: 5 | X101: 3 | Y101: 4 | Z101: 3 | AA101: 9 | AB101: 9 | AC101: 10 | AD101: 1 | AE101: 8 | AF101: 3 | AG101: 3 | AJ101: 4 | AK101: 3 | AL101: 4 | AM101: 3 | AN101: 7 | AO101: 6 | AP101: 10 | AQ101: 4 | AR101: 11 | AS101: 6 | AT101: 1
E102: Average | F102: =IF($T$6=$W$1,$AA$14,IF($T$6=$W$17,$AA$30,IF($T$6=$W$33,$AA$46,IF($T$6=$W$49,$AA$62,IF($T$6=$W$65,$AA$78,IF($T$6=$W$81,$AA$94,IF($T$6=$W$97,$AA$110,IF($T$6=$W$113,$AA$126,IF($T$6=$W$129,$AA$142,IF($T$6=$W$145,$AA$158,IF($T$6=$W$161,AA174,IF($T$6=$W$177,$AA$190,IF($T$6=$W$193,$AA$206,IF($T$6=$W$209,$AA$222,IF($T$6=$W$225,$AA$238,IF($T$6=$W$241,$AA$254,IF($T$6=$W$257,$AA$270,IF($T$6=$W$273,$AA$286,IF($T$6=$W$289,$AA$302,IF($T$6=$W$305,$AA$318,"N/A")))))))))))))))))))) -> 0.02907667563 | G102: =IF($T$6=$W$1,$AN$14,IF($T$6=$W$17,$AN$30,IF($T$6=$W$33,$AN$46,IF($T$6=$W$49,$AN$62,IF($T$6=$W$65,$AN$78,IF($T$6=$W$81,$AN$94,IF($T$6=$W$97,$AN$110,IF($T$6=$W$113,$AN$126,IF($T$6=$W$129,$AN$142,IF($T$6=$W$145,$AN$158,IF($T$6=$W$161,$AN$174,IF($T$6=$W$177,$AN$190,IF($T$6=$W$193,$AN$206,IF($T$6=$W$209,$AN$222,IF($T$6=$W$225,$AN$238,IF($T$6=$W$241,$AN$254,IF($T$6=$W$257,$AN$270,IF($T$6=$W$273,$AN$286,IF($T$6=$W$289,$AN$302,IF($T$6=$W$305,$AN$318,"N/A")))))))))))))))))))) -> 0.0297816352 | Q102: 0.03988603989 | R102: 0.0350877193 | W102: 3 | X102: 4 | Y102: 2 | Z102: 4 | AA102: 8 | AB102: 2 | AC102: 2 | AD102: 4 | AE102: 3 | AF102: 5 | AG102: 6 | AJ102: 4 | AK102: 4 | AL102: 3 | AM102: 3 | AN102: 9 | AO102: 8 | AP102: 3 | AQ102: 8 | AR102: 9 | AS102: 5 | AT102: 3
Q103: 0.1196581197 | R103: 0.1096491228 | W103: 5 | X103: 5 | Y103: 3 | Z103: 6 | AA103: 1 | AB103: 1 | AC103: 2 | AD103: 3 | AE103: 1 | AF103: 4 | AG103: 9 | AJ103: 0 | AK103: 5 | AL103: 1 | AM103: 9 | AN103: 9 | AO103: 5 | AP103: 4 | AQ103: 9 | AR103: 4 | AS103: 3 | AT103: 8
Q104: 0.2962962963 | R104: 0.3530701754 | W104: 1 | X104: 5 | Y104: 4 | Z104: 1 | AA104: 1 | AB104: 1 | AC104: 3 | AD104: 7 | AE104: 3 | AF104: 2 | AG104: 4 | AJ104: 2 | AK104: 6 | AL104: 3 | AM104: 5 | AN104: 1 | AO104: 0 | AP104: 4 | AQ104: 3 | AR104: 2 | AS104: 1 | AT104: 10
Q105: 0.2393162393 | R105: 0.3464912281 | W105: 1 | X105: 2 | Y105: 1 | Z105: 2 | AA105: 1 | AB105: 0 | AC105: 0 | AD105: 6 | AE105: 1 | AF105: 2 | AG105: 2 | AJ105: 2 | AK105: 6 | AL105: 2 | AM105: 7 | AN105: 1 | AO105: 0 | AP105: 1 | AQ105: 3 | AR105: 0 | AS105: 1 | AT105: 6
F106: =IF(B26=F102,"","Your Farm") ->  | G106: =IF(B26=F102,"",B26) ->  | Q106: 0.1424501425 | R106: 0.1074561404 | W106: 0 | X106: 1 | Y106: 2 | Z106: 3 | AA106: 1 | AB106: 0 | AC106: 0 | AD106: 2 | AE106: 1 | AF106: 1 | AG106: 0 | AJ106: 0 | AK106: 2 | AL106: 1 | AM106: 2 | AN106: 0 | AO106: 0 | AP106: 0 | AQ106: 0 | AR106: 0 | AS106: 0 | AT106: 1
Q107: 0.04843304843 | R107: 0.02631578947 | W107: 0 | X107: 3 | Y107: 3 | Z107: 1 | AA107: 0 | AB107: 0 | AC107: 0 | AD107: 4 | AE107: 5 | AF107: 2 | AG107: 1 | AJ107: 1 | AK107: 0 | AL107: 4 | AM107: 0 | AN107: 0 | AO107: 0 | AP107: 0 | AQ107: 0 | AR107: 0 | AS107: 0 | AT107: 0
Q108: 0.02279202279 | R108: 0.004385964912 | W108: 13 | X108: 3 | Z108: 0 | AA108: 1 | AB108: 2 | AC108: 1 | AG108: 0 | AJ108: 15 | AK108: 1 | AM108: 0 | AN108: 0 | AO108: 2 | AP108: 0 | AT108: 0
Q109: 0.01994301994 | R109: 0.002192982456 | V109: Count | W109: 30 | X109: 30 | Y109: 30 | Z109: 30 | AA109: 30 | AB109: 30 | AC109: 30 | AD109: 30 | AE109: 30 | AF109: 30 | AG109: 30 | AI109: Count | AJ109: 29 | AK109: 29 | AL109: 29 | AM109: 29 | AN109: 29 | AO109: 29 | AP109: 29 | AQ109: 29 | AR109: 29 | AS109: 29 | AT109: 29
E110: Rate of Return on Farm Equity | Q110: 0.008547008547 | R110: 0 | V110: Average | W110: 1.558255131 | X110: 0.4281456156 | Y110: 0.2661761141 | Z110: -0.02114305061 | AA110: -0.002904685446 | AB110: -0.02440596366 | AC110: 0.1373825139 | AD110: 0.824908305 | AE110: 0.04472224275 | AF110: 0.06917826414 | AG110: 0.06119118808 | AI110: Average | AJ110: 2.142317073 | AK110: 0.4411817958 | AL110: 0.2035647547 | AM110: 0.04852326816 | AN110: 0.007754389225 | AO110: -0.001761363867 | AP110: 0.1598076453 | AQ110: 0.7334242109 | AR110: 0.05496035709 | AS110: 0.04282845767 | AT110: 0.1687869743
F111: =U1 -> 2019 | G111: 10-Year | V111: Non-ratio average | X111: 197264.4512 | AG111: 28193.3195 | AI111: Non-ratio average | AK111: 137612.5599 | AT111: 52647.70178
E112: -0.1 | F112: =Q122 -> 0.1310541311 | G112: =R122 -> 0.09868421053 | Q112: =Q122 -> 0.1310541311 | R112: =R122 -> 0.09868421053
E113: -0.05 | F113: =Q123 -> 0.09401709402 | G113: =R123 -> 0.08552631579 | Q113: =Q112+Q123 -> 0.2250712251 | R113: =R112+R123 -> 0.1842105263 | W113: Crop Acres500-1000None
E114: 0 | F114: 0.2564102564 | G114: 0.2412280702 | Q114: 0.4814814815 | R114: 0.4254385965 | W114: Current Ratio | X114: Working Capital Ratio | Y114: Debt to Asset Ratio | Z114: Operating Profit Margin | AA114: ROA | AB114: ROE | AC114: Asset Turnover | AD114: Operating Expense Ratio | AE114: Depr Expense Ratio | AF114: Interest Expense Ratio | AG114: NFI Ratio | AJ114: Current Ratio | AK114: Working Capital Ratio | AL114: Debt to Asset Ratio | AM114: Operating Profit Margin | AN114: ROA | AO114: ROE | AP114: Asset Turnover | AQ114: Operating Expense Ratio | AR114: Depr Expense Ratio | AS114: Interest Expense Ratio | AT114: NFI Ratio
E115: 0.05 | F115: 0.2193732194 | G115: 0.3530701754 | Q115: 0.7008547009 | R115: 0.7785087719 | S115: Your Farm Line-Return on Equity | W115: 0 | X115: 2 | Y115: 17 | Z115: 3 | AA115: 4 | AB115: 5 | AC115: 0 | AD115: 0 | AE115: 1 | AF115: 18 | AG115: 0 | AJ115: 0 | AK115: 2 | AL115: 4 | AM115: 0 | AN115: 1 | AO115: 6 | AP115: 0 | AQ115: 0 | AR115: 0 | AS115: 1 | AT115: 0
E116: 0.1 | F116: 0.1367521368 | G116: 0.1293859649 | Q116: 0.8376068376 | R116: 0.9078947368 | S116: X's | T116: =IF(B27>0.35,0.35,B27) -> 0.02084262301 | U116: =T116 -> 0.02084262301 | W116: 4 | X116: 4 | Y116: 20 | Z116: 1 | AA116: 1 | AB116: 6 | AC116: 10 | AD116: 7 | AE116: 9 | AF116: 25 | AG116: 0 | AJ116: 5 | AK116: 2 | AL116: 37 | AM116: 0 | AN116: 1 | AO116: 2 | AP116: 7 | AQ116: 1 | AR116: 4 | AS116: 47 | AT116: 0
E117: 0.15 | F117: 0.07122507123 | G117: 0.0701754386 | Q117: 0.9088319088 | R117: 0.9780701754 | S117: Y's | T117: 0 | U117: 1 | W117: 8 | X117: 6 | Y117: 10 | Z117: 3 | AA117: 13 | AB117: 18 | AC117: 22 | AD117: 16 | AE117: 10 | AF117: 15 | AG117: 5 | AJ117: 8 | AK117: 9 | AL117: 7 | AM117: 3 | AN117: 11 | AO117: 27 | AP117: 26 | AQ117: 15 | AR117: 12 | AS117: 19 | AT117: 0
E118: 0.2 | F118: 0.03133903134 | G118: 0.002192982456 | Q118: 0.9401709402 | R118: 0.9802631579 | S118: =IF(B27=F123,U1 &" Average","Your Farm") -> 2019 Average | W118: 5 | X118: 11 | Y118: 5 | Z118: 9 | AA118: 27 | AB118: 25 | AC118: 13 | AD118: 24 | AE118: 20 | AF118: 8 | AG118: 3 | AJ118: 3 | AK118: 8 | AL118: 11 | AM118: 10 | AN118: 40 | AO118: 29 | AP118: 14 | AQ118: 30 | AR118: 20 | AS118: 3 | AT118: 3
E119: 0.25 | F119: 0.02279202279 | G119: 0.006578947368 | Q119: 0.962962963 | R119: 0.9868421053 | W119: 5 | X119: 11 | Y119: 6 | Z119: 7 | AA119: 13 | AB119: 8 | AC119: 7 | AD119: 13 | AE119: 15 | AF119: 3 | AG119: 19 | AJ119: 3 | AK119: 15 | AL119: 5 | AM119: 18 | AN119: 17 | AO119: 5 | AP119: 12 | AQ119: 20 | AR119: 19 | AS119: 4 | AT119: 22
E120: 0.3 | F120: 0.002849002849 | G120: 0.004385964912 | Q120: 0.9658119658 | R120: 0.9912280702 | W120: 3 | X120: 10 | Y120: 3 | Z120: 32 | AA120: 6 | AB120: 2 | AC120: 4 | AD120: 4 | AE120: 6 | AF120: 0 | AG120: 27 | AJ120: 8 | AK120: 5 | AL120: 3 | AM120: 33 | AN120: 4 | AO120: 3 | AP120: 8 | AQ120: 10 | AR120: 9 | AS120: 1 | AT120: 39
E121: More | F121: 0.03418803419 | G121: 0.008771929825 | Q121: 1 | R121: 1 | W121: 2 | X121: 6 | Y121: 4 | Z121: 11 | AA121: 4 | AB121: 2 | AC121: 5 | AD121: 3 | AE121: 3 | AF121: 2 | AG121: 12 | AJ121: 1 | AK121: 12 | AL121: 3 | AM121: 12 | AN121: 2 | AO121: 2 | AP121: 4 | AQ121: 0 | AR121: 8 | AS121: 0 | AT121: 12
E122: Count | F122: =F101 -> 351 | G122: =G101 -> 456 | Q122: =IF($T$6=$W$1,AB3/$F$122,IF($T$6=$W$17,AB19/$F$122,IF($T$6=$W$33,AB35/$F$122,IF($T$6=$W$49,AB51/$F$122,IF($T$6=$W$65,AB67/$F$122,IF($T$6=$W$81,AB83/$F$122,IF($T$6=$W$97,AB99/$F$122,IF($T$6=$W$113,AB115/$F$122,IF($T$6=$W$129,AB131/$F$122,IF($T$6=$W$145,AB147/$F$122,IF($T$6=$W$161,AB163/$F$122,IF($T$6=$W$177,AB179/$F$58,IF($T$6=$W$193,AB195/$F$58,IF($T$6=$W$209,AB211/$F$58,IF($T$6=$W$225,AB227/$F$58,IF($T$6=$W$241,AB243/$F$58,IF($T$6=$W$257,AB259/$F$58,IF($T$6=$W$273,AB275/$F$58,IF($T$6=$W$289,AB291/$F$58,IF($T$6=$W$305,AB307/$F$58,"N/A")))))))))))))))))))) -> 0.1310541311 | R122: =IF($T$6=$W$1,AO3/$G$38,IF($T$6=$W$17,AO19/$G$38,IF($T$6=$W$33,AO35/$G$38,IF($T$6=$W$49,AO51/$G$38,IF($T$6=$W$65,AO67/$G$38,IF($T$6=$W$81,AO83/$G$38,IF($T$6=$W$97,AO99/$G$38,IF($T$6=$W$113,AO115/$G$38,IF($T$6=$W$129,AO131/$G$38,IF($T$6=$W$145,AO147/$G$38,IF($T$6=$W$161,AO163/$G$38,IF($T$6=$W$177,AO179/$G$38,IF($T$6=$W$193,AO195/$G$38,IF($T$6=$W$209,AO211/$G$38,IF($T$6=$W$225,AO227/$G$38,IF($T$6=$W$241,AO243/$G$38,IF($T$6=$W$257,AO259/$G$38,IF($T$6=$W$273,AO275/$G$38,IF($T$6=$W$289,AO291/$G$38,IF($T$6=$W$305,AO307/$G$38,"N/A")))))))))))))))))))) -> 0.09868421053 | W122: 1 | X122: 7 | Y122: 1 | Z122: 5 | AA122: 2 | AB122: 2 | AC122: 2 | AD122: 3 | AE122: 1 | AF122: 0 | AG122: 5 | AJ122: 4 | AK122: 7 | AL122: 2 | AM122: 0 | AN122: 0 | AO122: 0 | AP122: 1 | AQ122: 0 | AR122: 1 | AS122: 1 | AT122: 0
E123: Average | F123: =IF($T$6=$W$1,$AB$14,IF($T$6=$W$17,$AB$30,IF($T$6=$W$33,$AB$46,IF($T$6=$W$49,$AB$62,IF($T$6=$W$65,$AB$78,IF($T$6=$W$81,$AB$94,IF($T$6=$W$97,$AB$110,IF($T$6=$W$113,$AB$126,IF($T$6=$W$129,$AB$142,IF($T$6=$W$145,$AB$158,IF($T$6=W161,AB174,IF($T$6=$W$177,$AB$190,IF($T$6=$W$193,$AB$206,IF($T$6=$W$209,$AB$222,IF($T$6=$W$225,$AB$238,IF($T$6=$W$241,$AB$254,IF($T$6=$W$257,$AB$270,IF($T$6=$W$273,$AB$286,IF($T$6=$W$289,$AB$302,IF($T$6=$W$305,$AB$318,"N/A")))))))))))))))))))) -> 0.02084262301 | G123: =IF($T$6=$W$1,$AO$14,IF($T$6=$W$17,$AO$30,IF($T$6=$W$33,$AO$46,IF($T$6=$W$49,$AO$62,IF($T$6=$W$65,$AO$78,IF($T$6=$W$81,$AO$94,IF($T$6=$W$97,$AO$110,IF($T$6=$W$113,$AO$126,IF($T$6=$W$129,$AO$142,IF($T$6=$W$145,$AO$158,IF($T$6=$W$161,$AO$174,IF($T$6=$W$177,$AO$190,IF($T$6=$W$193,$AO$206,IF($T$6=$W$209,$AO$222,IF($T$6=$W$225,$AO$238,IF($T$6=$W$241,$AO$254,IF($T$6=$W$257,$AO$270,IF($T$6=$W$273,$AO$286,IF($T$6=$W$289,$AO$302,IF($T$6=$W$305,$AO$318,"N/A")))))))))))))))))))) -> 0.0254134349 | Q123: 0.09401709402 | R123: 0.08552631579 | W123: 2 | X123: 5 | Y123: 5 | Z123: 0 | AA123: 0 | AB123: 0 | AC123: 1 | AD123: 1 | AE123: 6 | AF123: 0 | AG123: 0 | AJ123: 1 | AK123: 4 | AL123: 4 | AM123: 0 | AN123: 0 | AO123: 1 | AP123: 1 | AQ123: 0 | AR123: 3 | AS123: 0 | AT123: 0
Q124: 0.2564102564 | R124: 0.2412280702 | W124: 41 | X124: 9 | Z124: 0 | AA124: 1 | AB124: 3 | AC124: 7 | AG124: 0 | AJ124: 43 | AK124: 12 | AM124: 0 | AN124: 0 | AO124: 1 | AP124: 3 | AT124: 0
Q125: 0.2193732194 | R125: 0.3530701754 | V125: Count | W125: 71 | X125: 71 | Y125: 71 | Z125: 71 | AA125: 71 | AB125: 71 | AC125: 71 | AD125: 71 | AE125: 71 | AF125: 71 | AG125: 71 | AI125: Count | AJ125: 76 | AK125: 76 | AL125: 76 | AM125: 76 | AN125: 76 | AO125: 76 | AP125: 76 | AQ125: 76 | AR125: 76 | AS125: 76 | AT125: 76
Q126: 0.1367521368 | R126: 0.1293859649 | V126: Average | W126: 3.697169464 | X126: 0.6339076176 | Y126: 0.1177415413 | Z126: 0.07315201122 | AA126: 0.01435152233 | AB126: 0.008375280743 | AC126: 0.1961876658 | AD126: 0.654498465 | AE126: 0.08703194305 | AF126: 0.03501136757 | AG126: 0.2234582244 | AI126: Average | AJ126: 4.543482394 | AK126: 0.7098797731 | AL126: 0.1301938998 | AM126: 0.03798132679 | AN126: 0.008082315677 | AO126: 0.00215626255 | AP126: 0.2127970864 | AQ126: 0.6752896334 | AR126: 0.1005171856 | AS126: 0.0286664087 | AT126: 0.1955267723
F127: =IF(B27=F123,"","Your Farm") ->  | G127: =IF(B27=F123,"",B27) ->  | Q127: 0.07122507123 | R127: 0.0701754386 | V127: Non-ratio average | X127: 194865.6371 | AG127: 68691.91668 | AI127: Non-ratio average | AK127: 202937.6322 | AT127: 55896.42318
Q128: 0.03133903134 | R128: 0.002192982456
Q129: 0.02279202279 | R129: 0.006578947368 | W129: Crop Acres500-1000No Cows-Feedlot
Q130: 0.002849002849 | R130: 0.004385964912 | W130: Current Ratio | X130: Working Capital Ratio | Y130: Debt to Asset Ratio | Z130: Operating Profit Margin | AA130: ROA | AB130: ROE | AC130: Asset Turnover | AD130: Operating Expense Ratio | AE130: Depr Expense Ratio | AF130: Interest Expense Ratio | AG130: NFI Ratio | AJ130: Current Ratio | AK130: Working Capital Ratio | AL130: Debt to Asset Ratio | AM130: Operating Profit Margin | AN130: ROA | AO130: ROE | AP130: Asset Turnover | AQ130: Operating Expense Ratio | AR130: Depr Expense Ratio | AS130: Interest Expense Ratio | AT130: NFI Ratio
E131: Asset Turnover Rate | Q131: 0.03418803419 | R131: 0.008771929825 | W131: 0 | X131: 1 | Y131: 0 | Z131: 1 | AA131: 1 | AB131: 1 | AC131: 0 | AD131: 0 | AE131: 0 | AF131: 0 | AG131: 1 | AJ131: 0 | AK131: 0 | AL131: 0 | AM131: 0 | AN131: 0 | AO131: 4 | AP131: 0 | AQ131: 0 | AR131: 0 | AS131: 0 | AT131: 0
F132: =U1 -> 2019 | G132: 10-Year | W132: 0 | X132: 0 | Y132: 0 | Z132: 0 | AA132: 0 | AB132: 3 | AC132: 3 | AD132: 0 | AE132: 4 | AF132: 2 | AG132: 0 | AJ132: 0 | AK132: 0 | AL132: 3 | AM132: 0 | AN132: 1 | AO132: 1 | AP132: 3 | AQ132: 1 | AR132: 1 | AS132: 6 | AT132: 0
E133: 0 | F133: =Q143 -> 0 | G133: =R143 -> 0 | Q133: =Q143 -> 0 | R133: =R143 -> 0 | W133: 3 | X133: 2 | Y133: 3 | Z133: 1 | AA133: 1 | AB133: 3 | AC133: 2 | AD133: 5 | AE133: 6 | AF133: 6 | AG133: 0 | AJ133: 1 | AK133: 1 | AL133: 3 | AM133: 0 | AN133: 1 | AO133: 5 | AP133: 7 | AQ133: 0 | AR133: 8 | AS133: 4 | AT133: 0
E134: 0.1 | F134: =Q144 -> 0.07977207977 | G134: =R144 -> 0.02412280702 | Q134: =Q133+Q144 -> 0.07977207977 | R134: =R133+R144 -> 0.02412280702 | W134: 6 | X134: 3 | Y134: 0 | Z134: 0 | AA134: 7 | AB134: 3 | AC134: 4 | AD134: 2 | AE134: 2 | AF134: 3 | AG134: 0 | AJ134: 5 | AK134: 3 | AL134: 4 | AM134: 1 | AN134: 11 | AO134: 5 | AP134: 2 | AQ134: 7 | AR134: 6 | AS134: 6 | AT134: 0
E135: 0.2 | F135: 0.2393162393 | G135: 0.2434210526 | Q135: 0.3190883191 | R135: 0.2675438596 | W135: 2 | X135: 4 | Y135: 4 | Z135: 1 | AA135: 3 | AB135: 1 | AC135: 2 | AD135: 5 | AE135: 3 | AF135: 3 | AG135: 6 | AJ135: 4 | AK135: 4 | AL135: 2 | AM135: 6 | AN135: 4 | AO135: 2 | AP135: 3 | AQ135: 6 | AR135: 3 | AS135: 2 | AT135: 7
E136: 0.3 | F136: 0.2706552707 | G136: 0.3070175439 | Q136: 0.5897435897 | R136: 0.5745614035 | W136: 1 | X136: 2 | Y136: 2 | Z136: 5 | AA136: 1 | AB136: 1 | AC136: 3 | AD136: 1 | AE136: 0 | AF136: 0 | AG136: 6 | AJ136: 3 | AK136: 4 | AL136: 0 | AM136: 7 | AN136: 0 | AO136: 0 | AP136: 1 | AQ136: 4 | AR136: 0 | AS136: 0 | AT136: 9
E137: 0.4 | F137: 0.1282051282 | G137: 0.1557017544 | Q137: 0.7179487179 | R137: 0.7302631579 | S137: Your Farm Line-Asset Turnover Rate | W137: 3 | X137: 2 | Y137: 2 | Z137: 5 | AA137: 1 | AB137: 0 | AC137: 0 | AD137: 2 | AE137: 1 | AF137: 1 | AG137: 3 | AJ137: 0 | AK137: 0 | AL137: 2 | AM137: 3 | AN137: 0 | AO137: 0 | AP137: 0 | AQ137: 0 | AR137: 0 | AS137: 0 | AT137: 2
E138: 0.5 | F138: 0.06837606838 | G138: 0.1359649123 | Q138: 0.7863247863 | R138: 0.8662280702 | S138: X's | T138: =IF(B28>0.9,0.9,B28) -> 0.2651498206 | U138: =T138 -> 0.2651498206 | W138: 0 | X138: 0 | Y138: 3 | Z138: 2 | AA138: 1 | AB138: 1 | AC138: 0 | AD138: 0 | AE138: 0 | AF138: 0 | AG138: 0 | AJ138: 2 | AK138: 3 | AL138: 2 | AM138: 1 | AN138: 0 | AO138: 0 | AP138: 0 | AQ138: 0 | AR138: 0 | AS138: 0 | AT138: 0
E139: 0.6 | F139: 0.08831908832 | G139: 0.06359649123 | Q139: 0.8746438746 | R139: 0.9298245614 | S139: Y's | T139: 0 | U139: 1 | W139: 0 | X139: 2 | Y139: 2 | Z139: 1 | AA139: 0 | AB139: 0 | AC139: 0 | AD139: 1 | AE139: 0 | AF139: 1 | AG139: 0 | AJ139: 0 | AK139: 1 | AL139: 2 | AM139: 0 | AN139: 1 | AO139: 0 | AP139: 1 | AQ139: 0 | AR139: 0 | AS139: 0 | AT139: 0
E140: 0.7 | F140: 0.04273504274 | G140: 0.03728070175 | Q140: 0.9173789174 | R140: 0.9671052632 | S140: =IF(B28=F144,U1 &" Average","Your Farm") -> 2019 Average | W140: 1 | X140: 0 | Z140: 0 | AA140: 1 | AB140: 3 | AC140: 2 | AG140: 0 | AJ140: 3 | AK140: 2 | AM140: 0 | AN140: 0 | AO140: 1 | AP140: 1 | AT140: 0
E141: 0.8 | F141: 0.03418803419 | G141: 0.01315789474 | Q141: 0.9515669516 | R141: 0.9802631579 | V141: Count | W141: 16 | X141: 16 | Y141: 16 | Z141: 16 | AA141: 16 | AB141: 16 | AC141: 16 | AD141: 16 | AE141: 16 | AF141: 16 | AG141: 16 | AI141: Count | AJ141: 18 | AK141: 18 | AL141: 18 | AM141: 18 | AN141: 18 | AO141: 18 | AP141: 18 | AQ141: 18 | AR141: 18 | AS141: 18 | AT141: 18
E142: More | F142: 0.04843304843 | G142: =R152 -> 0.01973684211 | Q142: 1 | R142: 1 | V142: Average | W142: 1.428500256 | X142: 0.4781358944 | Y142: 0.4263177412 | Z142: 0.1535598494 | AA142: 0.02978571402 | AB142: 0.02115758389 | AC142: 0.1939681117 | AD142: 0.7374020405 | AE142: 0.04355417246 | AF142: 0.05815810869 | AG142: 0.1608856783 | AI142: Average | AJ142: 1.716426511 | AK142: 0.6931987384 | AL142: 0.2930984927 | AM142: 0.1069823485 | AN142: 0.01812004076 | AO142: 0.01009282877 | AP142: 0.1693741164 | AQ142: 0.7513415312 | AR142: 0.04918896599 | AS142: 0.04630535357 | AT142: 0.1531641492
E143: Count | F143: =F122 -> 351 | G143: =G122 -> 456 | Q143: =IF($T$6=$W$1,AC3/$F$143,IF($T$6=$W$17,AC19/$F$143,IF($T$6=$W$33,AC35/$F$143,IF($T$6=$W$49,AC51/$F$143,IF($T$6=$W$65,AC67/$F$143,IF($T$6=$W$81,AC83/$F$143,IF($T$6=$W$97,AC99/$F$143,IF($T$6=$W$113,AC115/$F$143,IF($T$6=$W$129,AC131/$F$143,IF($T$6=$W$145,AC147/$F$143,IF($T$6=$W$161,AC163/$F$143,IF($T$6=$W$177,AC179/$F$58,IF($T$6=$W$193,AC195/$F$58,IF($T$6=$W$209,AC211/$F$58,IF($T$6=$W$225,AC227/$F$58,IF($T$6=$W$241,AC243/$F$58,IF($T$6=$W$257,AC259/$F$58,IF($T$6=$W$273,AC275/$F$58,IF($T$6=$W$289,AC291/$F$58,IF($T$6=$W$305,AC307/$F$58,"N/A")))))))))))))))))))) -> 0 | R143: =IF($T$6=$W$1,AP3/$G$38,IF($T$6=$W$17,AP19/$G$38,IF($T$6=$W$33,AP35/$G$38,IF($T$6=$W$49,AP51/$G$38,IF($T$6=$W$65,AP67/$G$38,IF($T$6=$W$81,AP83/$G$38,IF($T$6=$W$97,AP99/$G$38,IF($T$6=$W$113,AP115/$G$38,IF($T$6=$W$129,AP131/$G$38,IF($T$6=$W$145,AP147/$G$38,IF($T$6=$W$161,AP163/$G$38,IF($T$6=$W$177,AP179/$G$38,IF($T$6=$W$193,AP195/$G$38,IF($T$6=$W$209,AP211/$G$38,IF($T$6=$W$225,AP227/$G$38,IF($T$6=$W$241,AP243/$G$38,IF($T$6=$W$257,AP259/$G$38,IF($T$6=$W$273,AP275/$G$38,IF($T$6=$W$289,AP291/$G$38,IF($T$6=$W$305,AP307/$G$38,"N/A")))))))))))))))))))) -> 0 | V143: Non-ratio average | X143: 399125.2981 | AG143: 134299.7777 | AI143: Non-ratio average | AK143: 430207.0103 | AT143: 95055.41062
E144: Average | F144: =IF($T$6=$W$1,$AC$14,IF($T$6=$W$17,$AC$30,IF($T$6=$W$33,$AC$46,IF($T$6=$W$49,$AC$62,IF($T$6=$W$65,$AC$78,IF($T$6=$W$81,$AC$94,IF($T$6=$W$97,$AC$110,IF($T$6=$W$113,$AC$126,IF($T$6=$W$129,$AC$142,IF($T$6=$W$145,$AC$158,IF($T$6=W161,AC174,IF($T$6=$W$177,$AC$190,IF($T$6=$W$193,$AC$206,IF($T$6=$W$209,$AC$222,IF($T$6=$W$225,$AC$238,IF($T$6=$W$241,$AC$254,IF($T$6=$W$257,$AC$270,IF($T$6=$W$273,$AC$286,IF($T$6=$W$289,$AC$302,IF($T$6=$W$305,$AC$318,"N/A")))))))))))))))))))) -> 0.2651498206 | G144: =IF($T$6=$W$1,$AP$14,IF($T$6=$W$17,$AP$30,IF($T$6=$W$33,$AP$46,IF($T$6=$W$49,$AP$62,IF($T$6=$W$65,$AP$78,IF($T$6=$W$81,$AP$94,IF($T$6=$W$97,$AP$110,IF($T$6=$W$113,$AP$126,IF($T$6=$W$129,$AP$142,IF($T$6=$W$145,$AP$158,IF($T$6=$W$161,$AP$174,IF($T$6=$W$177,$AP$190,IF($T$6=$W$193,$AP$206,IF($T$6=$W$209,$AP$222,IF($T$6=$W$225,$AP$238,IF($T$6=$W$241,$AP$254,IF($T$6=$W$257,$AP$270,IF($T$6=$W$273,$AP$286,IF($T$6=$W$289,$AP$302,IF($T$6=$W$305,$AP$318,"N/A")))))))))))))))))))) -> 0.2815378158 | Q144: 0.07977207977 | R144: 0.02412280702
Q145: 0.2393162393 | R145: 0.2434210526 | W145: Crop Acres500-1000<100 Cows
Q146: 0.2706552707 | R146: 0.3070175439 | W146: Current Ratio | X146: Working Capital Ratio | Y146: Debt to Asset Ratio | Z146: Operating Profit Margin | AA146: ROA | AB146: ROE | AC146: Asset Turnover | AD146: Operating Expense Ratio | AE146: Depr Expense Ratio | AF146: Interest Expense Ratio | AG146: NFI Ratio | AJ146: Current Ratio | AK146: Working Capital Ratio | AL146: Debt to Asset Ratio | AM146: Operating Profit Margin | AN146: ROA | AO146: ROE | AP146: Asset Turnover | AQ146: Operating Expense Ratio | AR146: Depr Expense Ratio | AS146: Interest Expense Ratio | AT146: NFI Ratio
Q147: 0.1282051282 | R147: 0.1557017544 | W147: 0 | X147: 1 | Y147: 8 | Z147: 3 | AA147: 4 | AB147: 8 | AC147: 0 | AD147: 2 | AE147: 0 | AF147: 8 | AG147: 0 | AJ147: 0 | AK147: 2 | AL147: 7 | AM147: 2 | AN147: 3 | AO147: 10 | AP147: 0 | AQ147: 0 | AR147: 0 | AS147: 5 | AT147: 0
F148: =IF(B28=F144,"","Your Farm") ->  | G148: =IF(B28=F144,"",B28) ->  | Q148: 0.06837606838 | R148: 0.1359649123 | W148: 1 | X148: 1 | Y148: 14 | Z148: 1 | AA148: 2 | AB148: 9 | AC148: 10 | AD148: 4 | AE148: 7 | AF148: 19 | AG148: 1 | AJ148: 3 | AK148: 2 | AL148: 22 | AM148: 3 | AN148: 4 | AO148: 12 | AP148: 9 | AQ148: 3 | AR148: 10 | AS148: 33 | AT148: 0
Q149: 0.08831908832 | R149: 0.06359649123 | W149: 6 | X149: 5 | Y149: 10 | Z149: 6 | AA149: 18 | AB149: 30 | AC149: 27 | AD149: 9 | AE149: 13 | AF149: 14 | AG149: 2 | AJ149: 7 | AK149: 6 | AL149: 16 | AM149: 3 | AN149: 19 | AO149: 37 | AP149: 34 | AQ149: 9 | AR149: 13 | AS149: 23 | AT149: 1
Q150: 0.04273504274 | R150: 0.03728070175 | W150: 11 | X150: 11 | Y150: 16 | Z150: 10 | AA150: 27 | AB150: 11 | AC150: 14 | AD150: 18 | AE150: 15 | AF150: 15 | AG150: 7 | AJ150: 10 | AK150: 13 | AL150: 12 | AM150: 9 | AN150: 48 | AO150: 19 | AP150: 20 | AQ150: 30 | AR150: 24 | AS150: 16 | AT150: 4
Q151: 0.03418803419 | R151: 0.01315789474 | W151: 6 | X151: 16 | Y151: 8 | Z151: 19 | AA151: 8 | AB151: 2 | AC151: 4 | AD151: 14 | AE151: 13 | AF151: 5 | AG151: 21 | AJ151: 12 | AK151: 27 | AL151: 9 | AM151: 31 | AN151: 6 | AO151: 3 | AP151: 6 | AQ151: 24 | AR151: 23 | AS151: 3 | AT151: 34
E152: Operating Expense Ratio | Q152: 0.04843304843 | R152: 0.01973684211 | W152: 5 | X152: 15 | Y152: 2 | Z152: 19 | AA152: 4 | AB152: 0 | AC152: 5 | AD152: 12 | AE152: 7 | AF152: 3 | AG152: 23 | AJ152: 5 | AK152: 7 | AL152: 8 | AM152: 29 | AN152: 3 | AO152: 1 | AP152: 8 | AQ152: 14 | AR152: 6 | AS152: 2 | AT152: 36
F153: =U1 -> 2019 | G153: 10-Year | W153: 4 | X153: 3 | Y153: 4 | Z153: 6 | AA153: 0 | AB153: 2 | AC153: 1 | AD153: 3 | AE153: 4 | AF153: 0 | AG153: 8 | AJ153: 2 | AK153: 4 | AL153: 4 | AM153: 7 | AN153: 1 | AO153: 1 | AP153: 2 | AQ153: 3 | AR153: 6 | AS153: 2 | AT153: 7
E154: 0.4 | F154: =Q163 -> 0.008547008547 | G154: =R163 -> 0.002192982456 | Q154: =Q163 -> 0.008547008547 | R154: =R163 -> 0.002192982456 | W154: 4 | X154: 3 | Y154: 0 | Z154: 1 | AA154: 1 | AB154: 1 | AC154: 2 | AD154: 1 | AE154: 4 | AF154: 0 | AG154: 3 | AJ154: 1 | AK154: 8 | AL154: 1 | AM154: 0 | AN154: 0 | AO154: 0 | AP154: 0 | AQ154: 1 | AR154: 1 | AS154: 0 | AT154: 2
E155: 0.5 | F155: =Q164 -> 0.05128205128 | G155: =R164 -> 0.01754385965 | Q155: =Q154+Q164 -> 0.05982905983 | R155: 0.01973684211 | W155: 1 | X155: 5 | Y155: 3 | Z155: 0 | AA155: 0 | AB155: 0 | AC155: 1 | AD155: 2 | AE155: 2 | AF155: 1 | AG155: 0 | AJ155: 4 | AK155: 5 | AL155: 5 | AM155: 0 | AN155: 0 | AO155: 0 | AP155: 3 | AQ155: 0 | AR155: 1 | AS155: 0 | AT155: 0
E156: 0.6 | F156: 0.1709401709 | G156: 0.1315789474 | Q156: 0.2307692308 | R156: 0.1513157895 | W156: 27 | X156: 5 | Z156: 0 | AA156: 1 | AB156: 2 | AC156: 1 | AG156: 0 | AJ156: 40 | AK156: 10 | AM156: 0 | AN156: 0 | AO156: 1 | AP156: 2 | AT156: 0
E157: 0.7 | F157: 0.2592592593 | G157: 0.3311403509 | Q157: 0.49002849 | R157: 0.4824561404 | V157: Count | W157: 65 | X157: 65 | Y157: 65 | Z157: 65 | AA157: 65 | AB157: 65 | AC157: 65 | AD157: 65 | AE157: 65 | AF157: 65 | AG157: 65 | AI157: Count | AJ157: 84 | AK157: 84 | AL157: 84 | AM157: 84 | AN157: 84 | AO157: 84 | AP157: 84 | AQ157: 84 | AR157: 84 | AS157: 84 | AT157: 84
E158: 0.8 | F158: 0.207977208 | G158: 0.3179824561 | Q158: 0.698005698 | R158: 0.8004385965 | V158: Average | W158: 2.768563601 | X158: 0.5812570349 | Y158: 0.1945740155 | Z158: -0.02399853904 | AA158: -0.004211875399 | AB158: -0.01589147391 | AC158: 0.1755054919 | AD158: 0.699867847 | AE158: 0.09730841911 | AF158: 0.04615801299 | AG158: 0.1566657209 | AI158: Average | AJ158: 3.360950549 | AK158: 0.6608492346 | AL158: 0.1818034873 | AM158: -0.01400769588 | AN158: -0.002655012751 | AO158: -0.01317859704 | AP158: 0.189539577 | AQ158: 0.7006635321 | AR158: 0.08772326306 | AS158: 0.04134834874 | AT158: 0.1702648561
E159: 0.9 | F159: 0.1709401709 | G159: 0.1644736842 | Q159: 0.8689458689 | R159: 0.9649122807 | S159: Your Farm Line-Operating Expense Ratio | V159: Non-ratio average | X159: 185851.9491 | AG159: 50092.51989 | AI159: Non-ratio average | AK159: 174803.2302 | AT159: 45037.27215
E160: 1 | F160: 0.07407407407 | G160: 0.02192982456 | Q160: 0.943019943 | R160: 0.9868421053 | S160: X's | T160: =IF(B29>1.2,1.2,B29) -> 0.7069911047 | U160: =T160 -> 0.7069911047
E161: 1.1 | F161: 0.02564102564 | G161: 0.01096491228 | Q161: 0.9686609687 | R161: 0.9978070175 | S161: Y's | T161: 0 | U161: 1 | W161: Crop Acres500-1000100+ Cows
E162: More | F162: 0.03133903134 | G162: 0.002192982456 | Q162: 1 | R162: 1 | S162: =IF(B29=F164,U1 &" Average","Your Farm") -> 2019 Average | W162: Current Ratio | X162: Working Capital Ratio | Y162: Debt to Asset Ratio | Z162: Operating Profit Margin | AA162: ROA | AB162: ROE | AC162: Asset Turnover | AD162: Operating Expense Ratio | AE162: Depr Expense Ratio | AF162: Interest Expense Ratio | AG162: NFI Ratio | AJ162: Current Ratio | AK162: Working Capital Ratio | AL162: Debt to Asset Ratio | AM162: Operating Profit Margin | AN162: ROA | AO162: ROE | AP162: Asset Turnover | AQ162: Operating Expense Ratio | AR162: Depr Expense Ratio | AS162: Interest Expense Ratio | AT162: NFI Ratio
E163: Count | F163: =F143 -> 351 | G163: =G143 -> 456 | Q163: =IF($T$6=$W$1,AD3/$F$143,IF($T$6=$W$17,AD19/$F$143,IF($T$6=$W$33,AD35/$F$143,IF($T$6=$W$49,AD51/$F$143,IF($T$6=$W$65,AD67/$F$143,IF($T$6=$W$81,AD83/$F$143,IF($T$6=$W$97,AD99/$F$143,IF($T$6=$W$113,AD115/$F$143,IF($T$6=$W$129,AD131/$F$143,IF($T$6=$W$145,AD147/$F$143,IF($T$6=$W$161,AD163/$F$143,IF($T$6=$W$177,AD179/$F$58,IF($T$6=$W$193,AD195/$F$58,IF($T$6=$W$209,AD211/$F$58,IF($T$6=$W$225,AD227/$F$58,IF($T$6=$W$241,AD243/$F$58,IF($T$6=$W$257,AD259/$F$58,IF($T$6=$W$273,AD275/$F$58,IF($T$6=$W$289,AD291/$F$58,IF($T$6=$W$305,AD307/$F$58,"N/A")))))))))))))))))))) -> 0.008547008547 | R163: =IF($T$6=$W$1,AQ3/$G$38,IF($T$6=$W$17,AQ19/$G$38,IF($T$6=$W$33,AQ35/$G$38,IF($T$6=$W$49,AQ51/$G$38,IF($T$6=$W$65,AQ67/$G$38,IF($T$6=$W$81,AQ83/$G$38,IF($T$6=$W$97,AQ99/$G$38,IF($T$6=$W$113,AQ115/$G$38,IF($T$6=$W$129,AQ131/$G$38,IF($T$6=$W$145,AQ147/$G$38,IF($T$6=$W$161,AQ163/$G$38,IF($T$6=$W$177,AQ179/$G$38,IF($T$6=$W$193,AQ195/$G$38,IF($T$6=$W$209,AQ211/$G$38,IF($T$6=$W$225,AQ227/$G$38,IF($T$6=$W$241,AQ243/$G$38,IF($T$6=$W$257,AQ259/$G$38,IF($T$6=$W$273,AQ275/$G$38,IF($T$6=$W$289,AQ291/$G$38,IF($T$6=$W$305,AQ307/$G$38,"N/A")))))))))))))))))))) -> 0.002192982456 | W163: 0 | X163: 0 | Y163: 3 | Z163: 5 | AA163: 2 | AB163: 4 | AC163: 0 | AD163: 1 | AE163: 0 | AF163: 6 | AG163: 1 | AJ163: 0 | AK163: 0 | AL163: 0 | AM163: 0 | AN163: 0 | AO163: 1 | AP163: 0 | AQ163: 0 | AR163: 0 | AS163: 0 | AT163: 0
E164: Average | F164: =IF($T$6=$W$1,$AD$14,IF($T$6=$W$17,$AD$30,IF($T$6=$W$33,$AD$46,IF($T$6=$W$49,$AD$62,IF($T$6=$W$65,$AD$78,IF($T$6=$W$81,$AD$94,IF($T$6=$W$97,$AD$110,IF($T$6=$W$113,$AD$126,IF($T$6=$W$129,$AD$142,IF($T$6=$W$145,$AD$158,IF($T$6=W161,AD174,IF($T$6=$W$177,$AD$190,IF($T$6=$W$193,$AD$206,IF($T$6=$W$209,$AD$222,IF($T$6=$W$225,$AD$238,IF($T$6=$W$241,$AD$254,IF($T$6=$W$257,$AD$270,IF($T$6=$W$273,$AD$286,IF($T$6=$W$289,$AD$302,IF($T$6=$W$305,$AD$318,"N/A")))))))))))))))))))) -> 0.7069911047 | G164: =IF($T$6=$W$1,$AQ$14,IF($T$6=$W$17,$AQ$30,IF($T$6=$W$33,$AQ$46,IF($T$6=$W$49,$AQ$62,IF($T$6=$W$65,$AQ$78,IF($T$6=$W$81,$AQ$94,IF($T$6=$W$97,$AQ$110,IF($T$6=$W$113,$AQ$126,IF($T$6=$W$129,$AQ$142,IF($T$6=$W$145,$AQ$158,IF($T$6=$W$161,$AQ$174,IF($T$6=$W$177,$AQ$190,IF($T$6=$W$193,$AQ$206,IF($T$6=$W$209,$AQ$222,IF($T$6=$W$225,$AQ$238,IF($T$6=$W$241,$AQ$254,IF($T$6=$W$257,$AQ$270,IF($T$6=$W$273,$AQ$286,IF($T$6=$W$289,$AQ$302,IF($T$6=$W$305,$AQ$318,"N/A")))))))))))))))))))) -> 0.7119051443 | Q164: 0.05128205128 | R164: 0.01754385965 | W164: 0 | X164: 0 | Y164: 11 | Z164: 3 | AA164: 3 | AB164: 9 | AC164: 8 | AD164: 1 | AE164: 2 | AF164: 7 | AG164: 3 | AJ164: 0 | AK164: 1 | AL164: 11 | AM164: 0 | AN164: 0 | AO164: 5 | AP164: 5 | AQ164: 1 | AR164: 1 | AS164: 19 | AT164: 0
Q165: 0.1709401709 | R165: 0.1315789474 | W165: 6 | X165: 6 | Y165: 7 | Z165: 4 | AA165: 12 | AB165: 16 | AC165: 18 | AD165: 3 | AE165: 8 | AF165: 11 | AG165: 3 | AJ165: 4 | AK165: 3 | AL165: 11 | AM165: 0 | AN165: 4 | AO165: 18 | AP165: 21 | AQ165: 11 | AR165: 13 | AS165: 15 | AT165: 0
Q166: 0.2592592593 | R166: 0.3311403509 | W166: 3 | X166: 3 | Y166: 7 | Z166: 5 | AA166: 15 | AB166: 5 | AC166: 6 | AD166: 11 | AE166: 14 | AF166: 7 | AG166: 5 | AJ166: 2 | AK166: 2 | AL166: 11 | AM166: 1 | AN166: 29 | AO166: 14 | AP166: 7 | AQ166: 14 | AR166: 15 | AS166: 5 | AT166: 0
Q167: 0.207977208 | R167: 0.3179824561 | W167: 3 | X167: 8 | Y167: 4 | Z167: 8 | AA167: 3 | AB167: 3 | AC167: 5 | AD167: 7 | AE167: 9 | AF167: 4 | AG167: 11 | AJ167: 4 | AK167: 13 | AL167: 5 | AM167: 14 | AN167: 6 | AO167: 3 | AP167: 4 | AQ167: 14 | AR167: 8 | AS167: 3 | AT167: 10
F168: =IF(B29=F164,"","Your Farm") ->  | G168: =IF(B29=F164,"",B29) ->  | Q168: 0.1709401709 | R168: 0.1644736842 | W168: 4 | X168: 6 | Y168: 4 | Z168: 8 | AA168: 3 | AB168: 0 | AC168: 1 | AD168: 8 | AE168: 4 | AF168: 3 | AG168: 9 | AJ168: 4 | AK168: 9 | AL168: 3 | AM168: 21 | AN168: 2 | AO168: 0 | AP168: 2 | AQ168: 2 | AR168: 4 | AS168: 0 | AT168: 24
Q169: 0.07407407407 | R169: 0.02192982456 | W169: 2 | X169: 4 | Y169: 2 | Z169: 6 | AA169: 0 | AB169: 1 | AC169: 1 | AD169: 3 | AE169: 2 | AF169: 2 | AG169: 6 | AJ169: 4 | AK169: 10 | AL169: 0 | AM169: 5 | AN169: 1 | AO169: 1 | AP169: 3 | AQ169: 0 | AR169: 1 | AS169: 0 | AT169: 8
Q170: 0.02564102564 | R170: 0.01096491228 | W170: 0 | X170: 9 | Y170: 1 | Z170: 0 | AA170: 1 | AB170: 1 | AC170: 0 | AD170: 4 | AE170: 0 | AF170: 0 | AG170: 2 | AJ170: 2 | AK170: 3 | AL170: 1 | AM170: 1 | AN170: 0 | AO170: 0 | AP170: 0 | AQ170: 0 | AR170: 0 | AS170: 0 | AT170: 0
Q171: 0.03133903134 | R171: 0.002192982456 | W171: 2 | X171: 2 | Y171: 1 | Z171: 1 | AA171: 1 | AB171: 0 | AC171: 0 | AD171: 2 | AE171: 1 | AF171: 0 | AG171: 0 | AJ171: 2 | AK171: 0 | AL171: 0 | AM171: 0 | AN171: 0 | AO171: 0 | AP171: 0 | AQ171: 0 | AR171: 0 | AS171: 0 | AT171: 0
W172: 20 | X172: 2 | Z172: 0 | AA172: 0 | AB172: 1 | AC172: 1 | AG172: 0 | AJ172: 20 | AK172: 1 | AM172: 0 | AN172: 0 | AO172: 0 | AP172: 0 | AT172: 0
E173: Depreciation Expense Ratio | V173: Count | W173: 40 | X173: 40 | Y173: 40 | Z173: 40 | AA173: 40 | AB173: 40 | AC173: 40 | AD173: 40 | AE173: 40 | AF173: 40 | AG173: 40 | AI173: Count | AJ173: 42 | AK173: 42 | AL173: 42 | AM173: 42 | AN173: 42 | AO173: 42 | AP173: 42 | AQ173: 42 | AR173: 42 | AS173: 42 | AT173: 42
F174: =U1 -> 2019 | G174: 10-Year | V174: Average | W174: 2.602482944 | X174: 0.6480959908 | Y174: 0.186962948 | Z174: -0.05847397889 | AA174: -0.008674399834 | AB174: -0.0220338821 | AC174: 0.1483463243 | AD174: 0.7601215166 | AE174: 0.07888695997 | AF174: 0.05109987369 | AG174: 0.1098916498 | AI174: Average | AJ174: 2.64206045 | AK174: 0.5663750478 | AL174: 0.1685327807 | AM174: 0.05436277299 | AN174: 0.00911068091 | AO174: 0.00171843565 | AP174: 0.1675904375 | AQ174: 0.6897562473 | AR174: 0.07580931055 | AS174: 0.03899833683 | AT174: 0.1954361053
E175: 0 | F175: =Q184 -> 0.008547008547 | G175: =R184 -> 0.002192982456 | Q175: =Q184 -> 0.008547008547 | R175: =R184 -> 0.002192982456 | V175: Non-ratio average | X175: 236625.276 | AG175: 40122.362 | AI175: Non-ratio average | AK175: 209934.1751 | AT175: 72440.89887
E176: 0.03 | F176: =Q185 -> 0.09686609687 | G176: =R185 -> 0.0548245614 | Q176: =Q175+Q185 -> 0.1054131054 | R176: 0.05701754386
E177: 0.06 | F177: 0.2307692308 | G177: 0.173245614 | Q177: 0.3361823362 | R177: 0.2302631579 | W177: Crop Acres1000-2000None | AI177: 10-Year
E178: 0.09 | F178: 0.3247863248 | G178: 0.3092105263 | Q178: 0.660968661 | R178: 0.5394736842 | W178: Current Ratio | X178: Working Capital Ratio | Y178: Debt to Asset Ratio | Z178: Operating Profit Margin | AA178: ROA | AB178: ROE | AC178: Asset Turnover | AD178: Operating Expense Ratio | AE178: Depr Expense Ratio | AF178: Interest Expense Ratio | AG178: NFI Ratio | AJ178: Current Ratio | AK178: Working Capital Ratio | AL178: Debt to Asset Ratio | AM178: Operating Profit Margin | AN178: ROA | AO178: ROE | AP178: Asset Turnover | AQ178: Operating Expense Ratio | AR178: Depr Expense Ratio | AS178: Interest Expense Ratio | AT178: NFI Ratio
E179: 0.12 | F179: 0.1652421652 | G179: 0.2807017544 | Q179: 0.8262108262 | R179: 0.8201754386 | W179: 0 | X179: 5 | Y179: 18 | Z179: 0 | AA179: 5 | AB179: 8 | AC179: 0 | AD179: 1 | AE179: 1 | AF179: 20 | AG179: 1 | AJ179: 0 | AK179: 0 | AL179: 8 | AM179: 0 | AN179: 2 | AO179: 10 | AP179: 0 | AQ179: 0 | AR179: 1 | AS179: 4 | AT179: 0
E180: 0.15 | F180: 0.08262108262 | G180: 0.1074561404 | Q180: 0.9088319088 | R180: 0.9276315789 | W180: 5 | X180: 1 | Y180: 37 | Z180: 1 | AA180: 1 | AB180: 6 | AC180: 8 | AD180: 13 | AE180: 13 | AF180: 52 | AG180: 0 | AJ180: 4 | AK180: 2 | AL180: 50 | AM180: 0 | AN180: 5 | AO180: 8 | AP180: 6 | AQ180: 3 | AR180: 5 | AS180: 85 | AT180: 0
E181: 0.18 | F181: 0.05128205128 | G181: 0.03947368421 | Q181: 0.9601139601 | R181: 0.9671052632 | S181: Your Farm Line-Depreciation Expense Ratio | W181: 10 | X181: 9 | Y181: 22 | Z181: 5 | AA181: 16 | AB181: 40 | AC181: 42 | AD181: 15 | AE181: 23 | AF181: 30 | AG181: 3 | AJ181: 15 | AK181: 17 | AL181: 25 | AM181: 2 | AN181: 10 | AO181: 27 | AP181: 34 | AQ181: 33 | AR181: 19 | AS181: 40 | AT181: 1
E182: 0.21 | F182: 0.01994301994 | G182: 0.02192982456 | Q182: 0.9800569801 | R182: 0.9890350877 | S182: X's | T182: =IF(B30>0.24,0.24,B30) -> 0.08266392517 | U182: =T182 -> 0.08266392517 | W182: 13 | X182: 23 | Y182: 10 | Z182: 12 | AA182: 47 | AB182: 33 | AC182: 25 | AD182: 34 | AE182: 29 | AF182: 11 | AG182: 9 | AJ182: 13 | AK182: 22 | AL182: 16 | AM182: 10 | AN182: 55 | AO182: 69 | AP182: 43 | AQ182: 51 | AR182: 31 | AS182: 9 | AT182: 7
E183: More | F183: 0.01994301994 | G183: 0.01096491228 | Q183: 1 | R183: 1 | S183: Y's | T183: 0 | U183: 1 | W183: 16 | X183: 27 | Y183: 10 | Z183: 29 | AA183: 24 | AB183: 14 | AC183: 11 | AD183: 27 | AE183: 28 | AF183: 2 | AG183: 39 | AJ183: 19 | AK183: 34 | AL183: 17 | AM183: 25 | AN183: 52 | AO183: 23 | AP183: 15 | AQ183: 41 | AR183: 32 | AS183: 4 | AT183: 40
E184: Count | F184: =F163 -> 351 | G184: =G163 -> 456 | Q184: =IF($T$6=$W$1,AE3/$F$143,IF($T$6=$W$17,AE19/$F$143,IF($T$6=$W$33,AE35/$F$143,IF($T$6=$W$49,AE51/$F$143,IF($T$6=$W$65,AE67/$F$143,IF($T$6=$W$81,AE83/$F$143,IF($T$6=$W$97,AE99/$F$143,IF($T$6=$W$113,AE115/$F$143,IF($T$6=$W$129,AE131/$F$143,IF($T$6=$W$145,AE147/$F$143,IF($T$6=$W$161,AE163/$F$143,IF($T$6=$W$177,AE179/$F$58,IF($T$6=$W$193,AE195/$F$58,IF($T$6=$W$209,AE211/$F$58,IF($T$6=$W$225,AE227/$F$58,IF($T$6=$W$241,AE243/$F$58,IF($T$6=$W$257,AE259/$F$58,IF($T$6=$W$273,AE275/$F$58,IF($T$6=$W$289,AE291/$F$58,IF($T$6=$W$305,AE307/$F$58,"N/A")))))))))))))))))))) -> 0.008547008547 | R184: =IF($T$6=$W$1,AR3/$G$38,IF($T$6=$W$17,AR19/$G$38,IF($T$6=$W$33,AR35/$G$38,IF($T$6=$W$49,AR51/$G$38,IF($T$6=$W$65,AR67/$G$38,IF($T$6=$W$81,AR83/$G$38,IF($T$6=$W$97,AR99/$G$38,IF($T$6=$W$113,AR115/$G$38,IF($T$6=$W$129,AR131/$G$38,IF($T$6=$W$145,AR147/$G$38,IF($T$6=$W$161,AR163/$G$38,IF($T$6=$W$177,AR179/$G$38,IF($T$6=$W$193,AR195/$G$38,IF($T$6=$W$209,AR211/$G$38,IF($T$6=$W$225,AR227/$G$38,IF($T$6=$W$241,AR243/$G$38,IF($T$6=$W$257,AR259/$G$38,IF($T$6=$W$273,AR275/$G$38,IF($T$6=$W$289,AR291/$G$38,IF($T$6=$W$305,AR307/$G$38,"N/A")))))))))))))))))))) -> 0.002192982456 | S184: =IF(B30=F185,U1 &" Average","Your Farm") -> 2019 Average | W184: 9 | X184: 15 | Y184: 7 | Z184: 42 | AA184: 15 | AB184: 7 | AC184: 7 | AD184: 25 | AE184: 14 | AF184: 3 | AG184: 40 | AJ184: 11 | AK184: 16 | AL184: 11 | AM184: 73 | AN184: 16 | AO184: 5 | AP184: 20 | AQ184: 11 | AR184: 30 | AS184: 2 | AT184: 76
E185: Average | F185: =IF($T$6=$W$1,$AE$14,IF($T$6=$W$17,$AE$30,IF($T$6=$W$33,$AE$46,IF($T$6=$W$49,$AE$62,IF($T$6=$W$65,$AE$78,IF($T$6=$W$81,$AE$94,IF($T$6=$W$97,$AE$110,IF($T$6=$W$113,$AE$126,IF($T$6=$W$129,$AE$142,IF($T$6=$W$145,$AE$158,IF($T$6=$W$161,AE174,IF($T$6=$W$177,$AE$190,IF($T$6=$W$193,$AE$206,IF($T$6=$W$209,$AE$222,IF($T$6=$W$225,$AE$238,IF($T$6=$W$241,$AE$254,IF($T$6=$W$257,$AE$270,IF($T$6=$W$273,$AE$286,IF($T$6=$W$289,$AE$302,IF($T$6=$W$305,$AE$318,"N/A")))))))))))))))))))) -> 0.08266392517 | G185: =IF($T$6=$W$1,$AR$14,IF($T$6=$W$17,$AR$30,IF($T$6=$W$33,$AR$46,IF($T$6=$W$49,$AR$62,IF($T$6=$W$65,$AR$78,IF($T$6=$W$81,$AR$94,IF($T$6=$W$97,$AR$110,IF($T$6=$W$113,$AR$126,IF($T$6=$W$129,$AR$142,IF($T$6=$W$145,$AR$158,IF($T$6=$W$161,$AR$174,IF($T$6=$W$177,$AR$190,IF($T$6=$W$193,$AR$206,IF($T$6=$W$209,$AR$222,IF($T$6=$W$225,$AR$238,IF($T$6=$W$241,$AR$254,IF($T$6=$W$257,$AR$270,IF($T$6=$W$273,$AR$286,IF($T$6=$W$289,$AR$302,IF($T$6=$W$305,$AR$318,"N/A")))))))))))))))))))) -> 0.0887493277 | Q185: 0.09686609687 | R185: 0.0548245614 | W185: 6 | X185: 12 | Y185: 8 | Z185: 24 | AA185: 4 | AB185: 5 | AC185: 16 | AD185: 3 | AE185: 8 | AF185: 1 | AG185: 25 | AJ185: 7 | AK185: 24 | AL185: 4 | AM185: 35 | AN185: 5 | AO185: 0 | AP185: 14 | AQ185: 5 | AR185: 15 | AS185: 1 | AT185: 21
Q186: 0.2307692308 | R186: 0.173245614 | W186: 2 | X186: 18 | Y186: 5 | Z186: 8 | AA186: 2 | AB186: 0 | AC186: 4 | AD186: 1 | AE186: 1 | AF186: 1 | AG186: 4 | AJ186: 6 | AK186: 13 | AL186: 10 | AM186: 0 | AN186: 0 | AO186: 1 | AP186: 4 | AQ186: 1 | AR186: 7 | AS186: 0 | AT186: 0
Q187: 0.3247863248 | R187: 0.3092105263 | W187: 3 | X187: 4 | Y187: 4 | Z187: 0 | AA187: 4 | AB187: 0 | AC187: 1 | AD187: 2 | AE187: 4 | AF187: 1 | AG187: 0 | AJ187: 6 | AK187: 9 | AL187: 4 | AM187: 0 | AN187: 0 | AO187: 2 | AP187: 5 | AQ187: 0 | AR187: 5 | AS187: 0 | AT187: 0
Q188: 0.1652421652 | R188: 0.2807017544 | W188: 57 | X188: 7 | Z188: 0 | AA188: 3 | AB188: 8 | AC188: 7 | AG188: 0 | AJ188: 64 | AK188: 8 | AM188: 0 | AN188: 0 | AO188: 0 | AP188: 4 | AT188: 0
F189: =IF(B30=F185,"","Your Farm") ->  | G189: =IF(B30=F185,"",B30) ->  | Q189: 0.08262108262 | R189: 0.1074561404 | V189: Count | W189: 121 | X189: 121 | Y189: 121 | Z189: 121 | AA189: 121 | AB189: 121 | AC189: 121 | AD189: 121 | AE189: 121 | AF189: 121 | AG189: 121 | AI189: Count | AJ189: 145 | AK189: 145 | AL189: 145 | AM189: 145 | AN189: 145 | AO189: 145 | AP189: 145 | AQ189: 145 | AR189: 145 | AS189: 145 | AT189: 145
Q190: 0.05128205128 | R190: 0.03947368421 | V190: Average | W190: 3.038692765 | X190: 0.5676364551 | Y190: 0.1621034082 | Z190: 0.08103025981 | AA190: 0.01824817593 | AB190: 0.01337239261 | AC190: 0.2252019921 | AD190: 0.6836731492 | AE190: 0.09045142987 | AF190: 0.03063533282 | AG190: 0.1952400881 | AI190: Average | AJ190: 3.495039439 | AK190: 0.6195337763 | AL190: 0.1727926813 | AM190: 0.08095474326 | AN190: 0.02104362175 | AO190: 0.01682015696 | AP190: 0.2599430362 | AQ190: 0.6804049936 | AR190: 0.105899889 | AS190: 0.02714758583 | AT190: 0.1865475315
Q191: 0.01994301994 | R191: 0.02192982456 | V191: Non-ratio average | X191: 309885.7534 | AG191: 106586.0398 | AI191: Non-ratio average | AK191: 316119.2398 | AT191: 95186.51945
Q192: 0.01994301994 | R192: 0.01096491228
W193: Crop Acres1000-2000No Cows-Feedlot
E194: Interest Expense Ratio | W194: Current Ratio | X194: Working Capital Ratio | Y194: Debt to Asset Ratio | Z194: Operating Profit Margin | AA194: ROA | AB194: ROE | AC194: Asset Turnover | AD194: Operating Expense Ratio | AE194: Depr Expense Ratio | AF194: Interest Expense Ratio | AG194: NFI Ratio | AJ194: Current Ratio | AK194: Working Capital Ratio | AL194: Debt to Asset Ratio | AM194: Operating Profit Margin | AN194: ROA | AO194: ROE | AP194: Asset Turnover | AQ194: Operating Expense Ratio | AR194: Depr Expense Ratio | AS194: Interest Expense Ratio | AT194: NFI Ratio
F195: =U1 -> 2019 | G195: 10-Year | W195: 0 | X195: 0 | Y195: 1 | Z195: 1 | AA195: 2 | AB195: 3 | AC195: 0 | AD195: 0 | AE195: 0 | AF195: 2 | AG195: 1 | AJ195: 0 | AK195: 2 | AL195: 1 | AM195: 0 | AN195: 0 | AO195: 3 | AP195: 0 | AQ195: 0 | AR195: 0 | AS195: 1 | AT195: 0
E196: 0 | F196: =Q205 -> 0.09116809117 | G196: =R205 -> 0.01535087719 | Q196: =Q205 -> 0.09116809117 | R196: =R205 -> 0.01535087719 | W196: 0 | X196: 0 | Y196: 8 | Z196: 0 | AA196: 0 | AB196: 3 | AC196: 4 | AD196: 2 | AE196: 1 | AF196: 8 | AG196: 0 | AJ196: 2 | AK196: 0 | AL196: 9 | AM196: 0 | AN196: 0 | AO196: 5 | AP196: 0 | AQ196: 1 | AR196: 0 | AS196: 10 | AT196: 0
E197: 0.03 | F197: =Q206 -> 0.2991452991 | G197: =R206 -> 0.4057017544 | Q197: =Q196+Q206 -> 0.3903133903 | R197: 0.4210526316 | W197: 2 | X197: 2 | Y197: 3 | Z197: 2 | AA197: 3 | AB197: 7 | AC197: 7 | AD197: 3 | AE197: 7 | AF197: 7 | AG197: 2 | AJ197: 1 | AK197: 1 | AL197: 1 | AM197: 0 | AN197: 3 | AO197: 3 | AP197: 14 | AQ197: 2 | AR197: 12 | AS197: 8 | AT197: 0
E198: 0.06 | F198: 0.2792022792 | G198: 0.3662280702 | Q198: 0.6695156695 | R198: 0.7872807018 | W198: 5 | X198: 2 | Y198: 2 | Z198: 3 | AA198: 9 | AB198: 5 | AC198: 3 | AD198: 4 | AE198: 9 | AF198: 2 | AG198: 2 | AJ198: 13 | AK198: 11 | AL198: 2 | AM198: 0 | AN198: 12 | AO198: 16 | AP198: 9 | AQ198: 10 | AR198: 6 | AS198: 5 | AT198: 3
E199: 0.09 | F199: 0.1481481481 | G199: 0.1206140351 | Q199: 0.8176638177 | R199: 0.9078947368 | W199: 2 | X199: 3 | Y199: 3 | Z199: 3 | AA199: 4 | AB199: 2 | AC199: 4 | AD199: 4 | AE199: 1 | AF199: 2 | AG199: 7 | AJ199: 4 | AK199: 6 | AL199: 5 | AM199: 10 | AN199: 13 | AO199: 2 | AP199: 5 | AQ199: 10 | AR199: 8 | AS199: 4 | AT199: 14
E200: 0.12 | F200: 0.05413105413 | G200: 0.05263157895 | Q200: 0.8717948718 | R200: 0.9605263158 | W200: 2 | X200: 4 | Y200: 2 | Z200: 6 | AA200: 3 | AB200: 2 | AC200: 3 | AD200: 6 | AE200: 1 | AF200: 1 | AG200: 6 | AJ200: 0 | AK200: 0 | AL200: 4 | AM200: 13 | AN200: 3 | AO200: 2 | AP200: 2 | AQ200: 8 | AR200: 4 | AS200: 2 | AT200: 10
... 114 more rows

Sheet NorthWest
E1: KSU FARM FINANCIAL BENCHMARKING TOOL-Northwest Kansas | S1: Acres | T1: Lookup | U1: 2019 | W1: Less than 2000No | AI1: 10-Year
S2: Less than 2000 | T2: LT | U2: 2019 KFMA Farms | W2: Current Ratio | X2: Working Capital Ratio | Y2: Debt to Asset Ratio | Z2: Operating Profit Margin | AA2: ROA | AB2: ROE | AC2: Asset Turnover | AD2: Operating Expense Ratio | AE2: Depr Expense Ratio | AF2: Interest Expense Ratio | AG2: NFI Ratio | AJ2: Current Ratio | AK2: Working Capital Ratio | AL2: Debt to Asset Ratio | AM2: Operating Profit Margin | AN2: ROA | AO2: ROE | AP2: Asset Turnover | AQ2: Operating Expense Ratio | AR2: Depr Expense Ratio | AS2: Interest Expense Ratio | AT2: NFI Ratio
E3: Tillable Crop Acres: | G3: =B16 -> All Farms | I3: =A17 ->  | K3: =IF(B17="","",B17) ->  | P3: =IF(B18="","",B18) ->  | S3: Greater than 2000 | T3: GT | W3: 0 | X3: 0 | Y3: 5 | Z3: 0 | AA3: 2 | AB3: 2 | AC3: 0 | AD3: 0 | AE3: 0 | AF3: 4 | AG3: 0 | AJ3: 0 | AK3: 2 | AL3: 1 | AM3: 0 | AN3: 0 | AO3: 1 | AP3: 0 | AQ3: 0 | AR3: 0 | AS3: 0 | AT3: 0
S4: All Farms | T4: All | W4: 0 | X4: 1 | Y4: 5 | Z4: 0 | AA4: 0 | AB4: 0 | AC4: 3 | AD4: 1 | AE4: 3 | AF4: 11 | AG4: 0 | AJ4: 2 | AK4: 0 | AL4: 10 | AM4: 0 | AN4: 0 | AO4: 1 | AP4: 2 | AQ4: 0 | AR4: 0 | AS4: 13 | AT4: 0
E5: Current Ratio | W5: 2 | X5: 1 | Y5: 2 | Z5: 1 | AA5: 3 | AB5: 8 | AC5: 4 | AD5: 0 | AE5: 2 | AF5: 2 | AG5: 1 | AJ5: 1 | AK5: 1 | AL5: 1 | AM5: 0 | AN5: 2 | AO5: 4 | AP5: 8 | AQ5: 2 | AR5: 4 | AS5: 3 | AT5: 0
F6: =U1 -> 2019 | G6: 10-Year | S6: LTList | T6: =B16&B17&B18 -> All Farms | W6: 1 | X6: 3 | Y6: 1 | Z6: 2 | AA6: 10 | AB6: 5 | AC6: 4 | AD6: 5 | AE6: 5 | AF6: 0 | AG6: 3 | AJ6: 2 | AK6: 2 | AL6: 2 | AM6: 2 | AN6: 10 | AO6: 9 | AP6: 3 | AQ6: 7 | AR6: 5 | AS6: 0 | AT6: 2
E7: 0 | F7: =Q17 -> 0 | G7: =R17 -> 0 | S7: Yes | W7: 3 | X7: 3 | Y7: 0 | Z7: 7 | AA7: 2 | AB7: 1 | AC7: 1 | AD7: 5 | AE7: 6 | AF7: 0 | AG7: 5 | AJ7: 2 | AK7: 5 | AL7: 0 | AM7: 4 | AN7: 4 | AO7: 2 | AP7: 2 | AQ7: 8 | AR7: 3 | AS7: 1 | AT7: 4
E8: 0.5 | F8: =Q18 -> 0.04918032787 | G8: =R18 -> 0.03418803419 | Q8: =Q7+Q18 -> 0.04918032787 | R8: =R7+R18 -> 0.03418803419 | S8: No | W8: 1 | X8: 4 | Y8: 1 | Z8: 7 | AA8: 0 | AB8: 0 | AC8: 0 | AD8: 4 | AE8: 1 | AF8: 0 | AG8: 7 | AJ8: 0 | AK8: 1 | AL8: 2 | AM8: 8 | AN8: 2 | AO8: 0 | AP8: 0 | AQ8: 1 | AR8: 6 | AS8: 0 | AT8: 9
E9: 1 | F9: 0.1557377049 | G9: 0.05982905983 | Q9: 0.2049180328 | R9: 0.09401709402 | W9: 0 | X9: 1 | Y9: 1 | Z9: 1 | AA9: 0 | AB9: 0 | AC9: 1 | AD9: 1 | AE9: 0 | AF9: 1 | AG9: 2 | AJ9: 1 | AK9: 2 | AL9: 0 | AM9: 4 | AN9: 0 | AO9: 0 | AP9: 1 | AQ9: 0 | AR9: 0 | AS9: 0 | AT9: 3
E10: 1.5 | F10: 0.1967213115 | G10: 0.2393162393 | Q10: 0.4016393443 | R10: 0.3333333333 | W10: 0 | X10: 1 | Y10: 0 | Z10: 0 | AA10: 0 | AB10: 1 | AC10: 2 | AD10: 2 | AE10: 0 | AF10: 0 | AG10: 0 | AJ10: 0 | AK10: 0 | AL10: 0 | AM10: 0 | AN10: 0 | AO10: 0 | AP10: 0 | AQ10: 0 | AR10: 0 | AS10: 1 | AT10: 0
E11: 2 | F11: 0.131147541 | G11: 0.09401709402 | Q11: 0.5327868852 | R11: 0.4273504274 | S11: BTWList | T11: Lookup | W11: 0 | X11: 2 | Y11: 3 | Z11: 0 | AA11: 1 | AB11: 0 | AC11: 1 | AD11: 0 | AE11: 1 | AF11: 0 | AG11: 0 | AJ11: 1 | AK11: 3 | AL11: 2 | AM11: 0 | AN11: 0 | AO11: 1 | AP11: 1 | AQ11: 0 | AR11: 0 | AS11: 0 | AT11: 0
E12: 2.5 | F12: 0.06557377049 | G12: 0.05982905983 | Q12: 0.5983606557 | R12: 0.4871794872 | S12: Yes | T12: LL | W12: 11 | X12: 2 | Z12: 0 | AA12: 0 | AB12: 1 | AC12: 2 | AG12: 0 | AJ12: 9 | AK12: 2 | AM12: 0 | AN12: 0 | AO12: 0 | AP12: 1 | AT12: 0
E13: 3 | F13: 0.05737704918 | G13: 0.02564102564 | Q13: 0.6557377049 | R13: 0.5128205128 | S13: No | T13: GG | V13: Count | W13: 18 | X13: 18 | Y13: 18 | Z13: 18 | AA13: 18 | AB13: 18 | AC13: 18 | AD13: 18 | AE13: 18 | AF13: 18 | AG13: 18 | AI13: Count | AJ13: 18 | AK13: 18 | AL13: 18 | AM13: 18 | AN13: 18 | AO13: 18 | AP13: 18 | AQ13: 18 | AR13: 18 | AS13: 18 | AT13: 18
E14: 3.5 | F14: 0.02459016393 | G14: 0.04273504274 | Q14: 0.6803278689 | R14: 0.5555555556 | V14: Average | W14: 3.956572738 | X14: 0.55217003 | Y14: 0.1038543727 | Z14: -0.01215733294 | AA14: -0.002627477368 | AB14: -0.00959888345 | AC14: 0.2161228438 | AD14: 0.7588137983 | AE14: 0.07582152766 | AF14: 0.03006989785 | AG14: 0.1352947762 | AI14: Average | AJ14: 2.346656844 | AK14: 0.4910826292 | AL14: 0.1709899322 | AM14: 0.08527366912 | AN14: 0.01739006098 | AO14: 0.01167960069 | AP14: 0.2039323646 | AQ14: 0.6987338794 | AR14: 0.09430278754 | AS14: 0.03446124437 | AT14: 0.1725020887
A15: BENCHMARK CATEGORY | E15: 4 | F15: 0.01639344262 | G15: 0.05982905983 | Q15: 0.6967213115 | R15: 0.6153846154 | V15: Non-ratio average | X15: 180036.9383 | AG15: 44113.32733 | AI15: Non-ratio average | AK15: 167094.4322 | AT15: 58695.08887
A16: Tillable Crop Acres: | B16: All Farms | E16: More | F16: 0.3032786885 | G16: 0.3846153846 | Q16: 1 | R16: 1 | S16: GTList
A17: =IF(B16="All Farms","","Cow Herd:") ->  | E17: Count | F17: =IF($T$6=$W$1,$W$13,IF($T$6=$W$17,$W$29,IF($T$6=$W$33,$W$45,IF($T$6=$W$49,$W$61,IF($T$6=$W$65,$W$77,IF($T$6=$W$81,$W$93,IF($T$6=$W$97,$W$109,IF($T$6=$W$113,$W$125,IF($T$6=$W$129,$W$141,IF($T$6=$W$145,$W$157,IF(T6=$W$161,$W$173,"N/A"))))))))))) -> 122 | G17: =IF($T$6=$W$1,$AJ$13,IF($T$6=$W$17,$AJ$29,IF($T$6=$W$33,$AJ$45,IF($T$6=$W$49,$AJ$61,IF($T$6=$W$65,$AJ$77,IF($T$6=$W$81,$AJ$93,IF($T$6=$W$97,$AJ$109,IF($T$6=$W$113,$AJ$125,IF($T$6=$W$129,$AJ$141,IF($T$6=$W$145,$AJ$157, IF($T$6=$W$161,$AJ$173,"N/A"))))))))))) -> 117 | Q17: =IF($T$6=$W$1,W3/$W$13,IF($T$6=$W$17,W19/$W$29,IF($T$6=$W$33,W35/$W$45,IF($T$6=$W$49,W51/$W$61,IF($T$6=$W$65,W67/$W$77,IF($T$6=$W$81,W83/$W$93,IF($T$6=$W$97,W99/$W$109,IF($T$6=$W$113,W115/$W$125,IF($T$6=$W$129,W131/$W$141,IF($T$6=$W$145,W147/$W$157,IF($T$6=$W$161,W163/$W$173,"N/A"))))))))))) -> 0 | R17: =IF($T$6=$W$1,AJ3/$AJ$13,IF($T$6=$W$17,AJ19/$AJ$29,IF($T$6=$W$33,AJ35/$AJ$45,IF($T$6=$W$49,AJ51/$AJ$61,IF($T$6=$W$65,AJ67/$AJ$77,IF($T$6=$W$81,AJ83/$AJ$93,IF($T$6=$W$97,AJ99/$AJ$109,IF($T$6=$W$113,AJ115/$AJ$125,IF($T$6=$W$129,AJ131/$AJ$141,IF($T$6=$W$145,AJ147/$AJ$157,IF($T$6=$W$161,AJ163/$AJ$173,"N/A"))))))))))) -> 0 | S17: Yes | W17: Less than 2000Yes
E18: Average | F18: =IF($T$6=$W$1,$W$14,IF($T$6=$W$17,$W$30,IF($T$6=$W$33,$W$46,IF($T$6=$W$49,$W$62,IF($T$6=$W$65,$W$78,IF($T$6=$W$81,$W$94,IF($T$6=$W$97,$W$110,IF($T$6=$W$113,$W$126,IF($T$6=$W$129,$W$142,IF($T$6=$W$145,$W$158, IF($T$6=$W$161,$W$174,"N/A"))))))))))) -> 1.994261666 | G18: =IF($T$6=$W$1,$AJ$14,IF($T$6=$W$17,$AJ$30,IF($T$6=$W$33,$AJ$46,IF($T$6=$W$49,$AJ$62,IF($T$6=$W$65,$AJ$78,IF($T$6=$W$81,$AJ$94,IF($T$6=$W$97,$AJ$110,IF($T$6=$W$113,$AJ$126,IF($T$6=$W$129,$AJ$142,IF($T$6=$W$145,$AJ$158, IF($T$6=$W$161,$AJ$174,"N/A"))))))))))) -> 2.582622526 | Q18: 0.04918032787 | R18: 0.03418803419 | S18: No | W18: Current Ratio | X18: Working Capital Ratio | Y18: Debt to Asset Ratio | Z18: Operating Profit Margin | AA18: ROA | AB18: ROE | AC18: Asset Turnover | AD18: Operating Expense Ratio | AE18: Depr Expense Ratio | AF18: Interest Expense Ratio | AG18: NFI Ratio | AJ18: Current Ratio | AK18: Working Capital Ratio | AL18: Debt to Asset Ratio | AM18: Operating Profit Margin | AN18: ROA | AO18: ROE | AP18: Asset Turnover | AQ18: Operating Expense Ratio | AR18: Depr Expense Ratio | AS18: Interest Expense Ratio | AT18: NFI Ratio
Q19: 0.1557377049 | R19: 0.05982905983 | W19: 0 | X19: 0 | Y19: 3 | Z19: 2 | AA19: 4 | AB19: 4 | AC19: 0 | AD19: 0 | AE19: 0 | AF19: 5 | AG19: 0 | AJ19: 0 | AK19: 1 | AL19: 0 | AM19: 0 | AN19: 0 | AO19: 4 | AP19: 0 | AQ19: 0 | AR19: 0 | AS19: 0 | AT19: 0
F20: =IF(B22=F18,"","Your Farm") ->  | G20: =IF(B22=F18,"",B22) ->  | Q20: 0.1967213115 | R20: 0.2393162393 | W20: 1 | X20: 2 | Y20: 8 | Z20: 2 | AA20: 0 | AB20: 2 | AC20: 3 | AD20: 1 | AE20: 6 | AF20: 7 | AG20: 0 | AJ20: 1 | AK20: 1 | AL20: 9 | AM20: 0 | AN20: 3 | AO20: 5 | AP20: 2 | AQ20: 0 | AR20: 1 | AS20: 12 | AT20: 0
A21: YOUR FARM VALUES* | Q21: 0.131147541 | R21: 0.09401709402 | W21: 4 | X21: 3 | Y21: 5 | Z21: 3 | AA21: 7 | AB21: 14 | AC21: 11 | AD21: 4 | AE21: 10 | AF21: 9 | AG21: 1 | AJ21: 5 | AK21: 4 | AL21: 7 | AM21: 1 | AN21: 6 | AO21: 13 | AP21: 18 | AQ21: 3 | AR21: 14 | AS21: 17 | AT21: 1
A22: Current Ratio: | B22: =S37 -> 1.994261666 | Q22: 0.06557377049 | R22: 0.05982905983 | S22: LLList | W22: 5 | X22: 4 | Y22: 2 | Z22: 2 | AA22: 14 | AB22: 5 | AC22: 9 | AD22: 4 | AE22: 8 | AF22: 3 | AG22: 4 | AJ22: 9 | AK22: 10 | AL22: 6 | AM22: 5 | AN22: 19 | AO22: 12 | AP22: 7 | AQ22: 14 | AR22: 8 | AS22: 3 | AT22: 1
A23: Working Capital Ratio: | B23: 0.4073592609 | Q23: 0.05737704918 | R23: 0.02564102564 | S23: Yes | W23: 3 | X23: 8 | Y23: 4 | Z23: 11 | AA23: 2 | AB23: 1 | AC23: 1 | AD23: 6 | AE23: 5 | AF23: 5 | AG23: 13 | AJ23: 1 | AK23: 8 | AL23: 6 | AM23: 9 | AN23: 7 | AO23: 1 | AP23: 4 | AQ23: 11 | AR23: 7 | AS23: 2 | AT23: 20
A24: Debt to Asset Ratio: | B24: 0.2897166677 | Q24: 0.02459016393 | R24: 0.04273504274 | S24: No | W24: 3 | X24: 5 | Y24: 1 | Z24: 6 | AA24: 1 | AB24: 0 | AC24: 4 | AD24: 9 | AE24: 0 | AF24: 1 | AG24: 7 | AJ24: 3 | AK24: 4 | AL24: 4 | AM24: 16 | AN24: 2 | AO24: 1 | AP24: 3 | AQ24: 7 | AR24: 5 | AS24: 3 | AT24: 14
A25: Operating Profit Margin | B25: 0.09241849837 | Q25: 0.01639344262 | R25: 0.05982905983 | W25: 1 | X25: 2 | Y25: 2 | Z25: 3 | AA25: 0 | AB25: 0 | AC25: 1 | AD25: 5 | AE25: 1 | AF25: 0 | AG25: 5 | AJ25: 1 | AK25: 2 | AL25: 3 | AM25: 6 | AN25: 0 | AO25: 1 | AP25: 2 | AQ25: 1 | AR25: 1 | AS25: 0 | AT25: 1
A26: Rate of Return on Farm Assets | B26: 0.02191647673 | E26: Working Captial Ratio | Q26: 0.3032786885 | R26: 0.3846153846 | W26: 2 | X26: 1 | Y26: 0 | Z26: 1 | AA26: 2 | AB26: 0 | AC26: 0 | AD26: 0 | AE26: 0 | AF26: 0 | AG26: 0 | AJ26: 2 | AK26: 1 | AL26: 1 | AM26: 0 | AN26: 0 | AO26: 0 | AP26: 1 | AQ26: 1 | AR26: 1 | AS26: 0 | AT26: 0
A27: Rate of Return on Farm Equity | B27: 0.01030953749 | F27: =U1 -> 2019 | G27: 10-Year | S27: Your Farm Line-Current Ratio | W27: 0 | X27: 2 | Y27: 5 | Z27: 0 | AA27: 0 | AB27: 0 | AC27: 1 | AD27: 1 | AE27: 0 | AF27: 0 | AG27: 0 | AJ27: 2 | AK27: 5 | AL27: 1 | AM27: 0 | AN27: 0 | AO27: 0 | AP27: 0 | AQ27: 0 | AR27: 0 | AS27: 0 | AT27: 0
A28: Asset Turnover Rate | B28: 0.2371438306 | E28: -0.5 | F28: =Q38 -> 0.008196721311 | G28: =R38 -> 0.02564102564 | Q28: =Q38 -> 0.008196721311 | R28: =R38 -> 0.02564102564 | S28: X's | T28: =IF(B22<4.5,B22,4.5) -> 1.994261666 | U28: =IF(B22<4.5,B22,4.5) -> 1.994261666 | W28: 11 | X28: 3 | Z28: 0 | AA28: 0 | AB28: 4 | AC28: 0 | AG28: 0 | AJ28: 13 | AK28: 1 | AM28: 0 | AN28: 0 | AO28: 0 | AP28: 0 | AT28: 0
A29: Operating Expense Ratio | B29: 0.7482484362 | E29: =E28+0.25 -> -0.25 | F29: =Q39 -> 0.06557377049 | G29: =R39 -> 0.008547008547 | Q29: =Q28+Q39 -> 0.0737704918 | R29: =R28+R39 -> 0.03418803419 | S29: Y's | T29: 0 | U29: 1 | V29: Count | W29: 30 | X29: 30 | Y29: 30 | Z29: 30 | AA29: 30 | AB29: 30 | AC29: 30 | AD29: 30 | AE29: 30 | AF29: 30 | AG29: 30 | AI29: Count | AJ29: 37 | AK29: 37 | AL29: 37 | AM29: 37 | AN29: 37 | AO29: 37 | AP29: 37 | AQ29: 37 | AR29: 37 | AS29: 37 | AT29: 37
A30: Depreciation Expense Ratio | B30: 0.07978642229 | E30: =E29+0.25 -> 0 | F30: 0.131147541 | G30: 0.05982905983 | Q30: 0.2049180328 | R30: 0.09401709402 | S30: =IF(B22=F18,U1 &" Average","Your Farm") -> 2019 Average | V30: Average | W30: 2.083931362 | X30: 0.4178125167 | Y30: 0.2044762939 | Z30: -0.04403960388 | AA30: -0.008236771273 | AB30: -0.02172756901 | AC30: 0.1870310027 | AD30: 0.7859498228 | AE30: 0.05705237396 | AF30: 0.04568419635 | AG30: 0.1113136069 | AI30: Average | AJ30: 2.073153453 | AK30: 0.4282682638 | AL30: 0.2118030153 | AM30: 0.04587080407 | AN30: 0.008970859758 | AO30: -0.001282997927 | AP30: 0.195567964 | AQ30: 0.7287095226 | AR30: 0.08016211391 | AS30: 0.04742396599 | AT30: 0.1437043975
A31: Interest Expense Ratio | B31: 0.05643561191 | E31: 0.25 | F31: 0.2295081967 | G31: 0.2478632479 | Q31: 0.4344262295 | R31: 0.3418803419 | S31: Your Farm Line-Working Capital Ratio | V31: Non-ratio average | X31: 164969.9119 | AG31: 43951.2824 | AI31: Non-ratio average | AK31: 172524.585 | AT31: 57890.21425
A32: Net Farm Income Ratio: | B32: 0.1155295296 | E32: 0.5 | F32: 0.1803278689 | G32: 0.2136752137 | Q32: 0.6147540984 | R32: 0.5555555556 | S32: X's | T32: =IF(B23>1.75,1.75,B23) -> 0.4073592609 | U32: =IF(B23>1.75,1.75,B23) -> 0.4073592609
A33: *Defaults to Averages for 2019 if not entered | E33: 0.75 | F33: 0.1885245902 | G33: 0.1538461538 | Q33: 0.8032786885 | R33: 0.7094017094 | S33: Y's | T33: 0 | U33: 1 | W33: Greater than 2000No
E34: 1 | F34: 0.04098360656 | G34: 0.09401709402 | Q34: 0.8442622951 | R34: 0.8034188034 | S34: =IF(B23=F39,U1 &" Average","Your Farm") -> 2019 Average | W34: Current Ratio | X34: Working Capital Ratio | Y34: Debt to Asset Ratio | Z34: Operating Profit Margin | AA34: ROA | AB34: ROE | AC34: Asset Turnover | AD34: Operating Expense Ratio | AE34: Depr Expense Ratio | AF34: Interest Expense Ratio | AG34: NFI Ratio | AJ34: Current Ratio | AK34: Working Capital Ratio | AL34: Debt to Asset Ratio | AM34: Operating Profit Margin | AN34: ROA | AO34: ROE | AP34: Asset Turnover | AQ34: Operating Expense Ratio | AR34: Depr Expense Ratio | AS34: Interest Expense Ratio | AT34: NFI Ratio
E35: 1.25 | F35: 0.03278688525 | G35: 0.1025641026 | Q35: 0.8770491803 | R35: 0.905982906 | W35: 0 | X35: 1 | Y35: 0 | Z35: 0 | AA35: 0 | AB35: 2 | AC35: 0 | AD35: 1 | AE35: 0 | AF35: 0 | AG35: 0 | AJ35: 0 | AK35: 0 | AL35: 0 | AM35: 0 | AN35: 0 | AO35: 1 | AP35: 0 | AQ35: 0 | AR35: 0 | AS35: 0 | AT35: 0
E36: 1.5 | F36: 0.06557377049 | G36: 0.05982905983 | Q36: 0.9426229508 | R36: 0.9658119658 | W36: 3 | X36: 2 | Y36: 3 | Z36: 0 | AA36: 0 | AB36: 1 | AC36: 0 | AD36: 0 | AE36: 3 | AF36: 6 | AG36: 0 | AJ36: 0 | AK36: 0 | AL36: 8 | AM36: 0 | AN36: 0 | AO36: 0 | AP36: 0 | AQ36: 1 | AR36: 1 | AS36: 16 | AT36: 0
E37: More | F37: 0.05737704918 | G37: 0.03418803419 | Q37: 1 | R37: 1 | S37: =$F$18 -> 1.994261666 | W37: 6 | X37: 6 | Y37: 5 | Z37: 0 | AA37: 1 | AB37: 7 | AC37: 9 | AD37: 4 | AE37: 2 | AF37: 9 | AG37: 1 | AJ37: 2 | AK37: 2 | AL37: 5 | AM37: 0 | AN37: 0 | AO37: 3 | AP37: 3 | AQ37: 4 | AR37: 2 | AS37: 7 | AT37: 0
E38: Count | F38: =F17 -> 122 | G38: =G17 -> 117 | Q38: =IF($T$6=$W$1,X3/$F$38,IF($T$6=$W$17,X19/$F$38,IF($T$6=$W$33,X35/$F$38,IF($T$6=$W$49,X51/$F$38,IF($T$6=$W$65,X67/$F$38,IF($T$6=$W$81,X83/$F$38,IF($T$6=$W$97,X99/$F$38,IF($T$6=$W$113,X115/$F$38,IF($T$6=$W$129,X131/$F$38,IF($T$6=$W$145,X147/$F$38,IF($T$6=$W$161,X163/$F$38,"N/A"))))))))))) -> 0.008196721311 | R38: =IF($T$6=$W$1,AK3/$G$38,IF($T$6=$W$17,AK19/$G$38,IF($T$6=$W$33,AK35/$G$38,IF($T$6=$W$49,AK51/$G$38,IF($T$6=$W$65,AK67/$G$38,IF($T$6=$W$81,AK83/$G$38,IF($T$6=$W$97,AK99/$G$38,IF($T$6=$W$113,AK115/$G$38,IF($T$6=$W$129,AK131/$G$38,IF($T$6=$W$145,AK147/$G$38,IF($T$6=$W$161,AK163/$G$38,"N/A"))))))))))) -> 0.02564102564 | S38: =$F$39 -> 0.4073592609 | W38: 3 | X38: 4 | Y38: 3 | Z38: 0 | AA38: 9 | AB38: 7 | AC38: 6 | AD38: 7 | AE38: 8 | AF38: 4 | AG38: 3 | AJ38: 4 | AK38: 4 | AL38: 5 | AM38: 0 | AN38: 6 | AO38: 9 | AP38: 9 | AQ38: 11 | AR38: 4 | AS38: 1 | AT38: 1
E39: Average | F39: =IF($T$6=$W$1,$X$14,IF($T$6=$W$17,$X$30,IF($T$6=$W$33,$X$46,IF($T$6=$W$49,$X$62,IF($T$6=$W$65,$X$78,IF($T$6=$W$81,$X$94,IF($T$6=$W$97,$X$110,IF($T$6=$W$113,$X$126,IF($T$6=$W$129,$X$142,IF($T$6=$W$145,$X$158,IF($T$6=$W$161,$X$174,"N/A"))))))))))) -> 0.4073592609 | G39: =IF($T$6=$W$1,$AK$14,IF($T$6=$W$17,$AK$30,IF($T$6=$W$33,$AK$46,IF($T$6=$W$49,$AK$62,IF($T$6=$W$65,$AK$78,IF($T$6=$W$81,$AK$94,IF($T$6=$W$97,$AK$110,IF($T$6=$W$113,$AK$126,IF($T$6=$W$129,$AK$142,IF($T$6=$W$145,$AK$158,IF($T$6=$W$161,$AK$174,"N/A"))))))))))) -> 0.5479518209 | Q39: 0.06557377049 | R39: 0.008547008547 | S39: =$F$59 -> 0.2897166677 | W39: 3 | X39: 2 | Y39: 2 | Z39: 5 | AA39: 8 | AB39: 4 | AC39: 4 | AD39: 5 | AE39: 8 | AF39: 2 | AG39: 9 | AJ39: 0 | AK39: 2 | AL39: 2 | AM39: 2 | AN39: 9 | AO39: 7 | AP39: 7 | AQ39: 6 | AR39: 14 | AS39: 0 | AT39: 4
E40: Working Capital Avg. | Q40: 0.131147541 | R40: 0.05982905983 | S40: =$F$81 -> 0.09241849837 | W40: 1 | X40: 7 | Y40: 3 | Z40: 10 | AA40: 4 | AB40: 2 | AC40: 2 | AD40: 5 | AE40: 3 | AF40: 2 | AG40: 8 | AJ40: 1 | AK40: 7 | AL40: 3 | AM40: 8 | AN40: 8 | AO40: 4 | AP40: 2 | AQ40: 3 | AR40: 4 | AS40: 1 | AT40: 17
F41: =IF($T$6=$W$1,$X$15,IF($T$6=$W$17,$X$31,IF($T$6=$W$33,$X$47,IF($T$6=$W$49,$X$63,IF($T$6=$W$65,$X$79,IF($T$6=$W$81,$X$95,IF($T$6=$W$97,$X$111,IF($T$6=$W$113,$X$127,IF($T$6=$W$129,$X$143,IF($T$6=$W$145,$X$159,IF($T$6=$W$161,$X$175,"N/A"))))))))))) -> 451996.4768 | G41: =IF($T$6=$W$1,$AK$15,IF($T$6=$W$17,$AK$31,IF($T$6=$W$33,$AK$47,IF($T$6=$W$49,$AK$63,IF($T$6=$W$65,$AK$79,IF($T$6=$W$81,$AK$95,IF($T$6=$W$97,$AK$111,IF($T$6=$W$113,$AK$127,IF($T$6=$W$129,$AK$143,IF($T$6=$W$145,$AK$159,IF($T$6=$W$161,$AK$175,"N/A"))))))))))) -> 504804.9333 | Q41: 0.2295081967 | R41: 0.2478632479 | S41: =$F$102 -> 0.02191647673 | W41: 4 | X41: 0 | Y41: 4 | Z41: 6 | AA41: 1 | AB41: 0 | AC41: 1 | AD41: 3 | AE41: 0 | AF41: 0 | AG41: 4 | AJ41: 2 | AK41: 2 | AL41: 0 | AM41: 13 | AN41: 2 | AO41: 1 | AP41: 3 | AQ41: 0 | AR41: 0 | AS41: 0 | AT41: 3
Q42: 0.1803278689 | R42: 0.2136752137 | S42: =$F$123 -> 0.01030953749 | W42: 0 | X42: 2 | Y42: 1 | Z42: 4 | AA42: 0 | AB42: 0 | AC42: 2 | AD42: 0 | AE42: 1 | AF42: 1 | AG42: 0 | AJ42: 2 | AK42: 5 | AL42: 1 | AM42: 2 | AN42: 0 | AO42: 0 | AP42: 0 | AQ42: 0 | AR42: 0 | AS42: 0 | AT42: 0
F43: =IF(B23=F39,"","Your Farm") ->  | G43: =IF(B23=F39,"",B23) ->  | Q43: 0.1885245902 | R43: 0.1538461538 | S43: =$F$144 -> 0.2371438306 | W43: 1 | X43: 1 | Y43: 4 | Z43: 0 | AA43: 1 | AB43: 0 | AC43: 1 | AD43: 0 | AE43: 0 | AF43: 1 | AG43: 0 | AJ43: 0 | AK43: 3 | AL43: 1 | AM43: 0 | AN43: 0 | AO43: 0 | AP43: 0 | AQ43: 0 | AR43: 0 | AS43: 0 | AT43: 0
Q44: 0.04098360656 | R44: 0.09401709402 | S44: =$F$164 -> 0.7482484362 | W44: 4 | X44: 0 | Z44: 0 | AA44: 1 | AB44: 2 | AC44: 0 | AG44: 0 | AJ44: 14 | AK44: 0 | AM44: 0 | AN44: 0 | AO44: 0 | AP44: 1 | AT44: 0
Q45: 0.03278688525 | R45: 0.1025641026 | S45: =$F$185 -> 0.07978642229 | V45: Count | W45: 25 | X45: 25 | Y45: 25 | Z45: 25 | AA45: 25 | AB45: 25 | AC45: 25 | AD45: 25 | AE45: 25 | AF45: 25 | AG45: 25 | AI45: Count | AJ45: 25 | AK45: 25 | AL45: 25 | AM45: 25 | AN45: 25 | AO45: 25 | AP45: 25 | AQ45: 25 | AR45: 25 | AS45: 25 | AT45: 25
Q46: 0.06557377049 | R46: 0.05982905983 | S46: =$F$206 -> 0.05643561191 | V46: Average | W46: 2.417223755 | X46: 0.4921613434 | Y46: 0.3074518601 | Z46: 0.1572647803 | AA46: 0.04453259757 | AB46: 0.04322042459 | AC46: 0.2831695532 | AD46: 0.7030414913 | AE46: 0.09818893249 | AF46: 0.04958742097 | AG46: 0.1491821552 | AI46: Average | AJ46: 3.98591157 | AK46: 0.689202712 | AL46: 0.1878248772 | AM46: 0.1839446192 | AN46: 0.05487846461 | AO46: 0.05890570154 | AP46: 0.2983423209 | AQ46: 0.6760600273 | AR46: 0.09513626659 | AS46: 0.02297974992 | AT46: 0.2058239562
E47: Debt to Asset Ratio | Q47: 0.05737704918 | R47: 0.03418803419 | S47: =$F$228 -> 0.1155295296 | V47: Non-ratio average | X47: 1107585.053 | AG47: 335727.1503 | AI47: Non-ratio average | AK47: 1119959.567 | AT47: 334465.4698
F48: =U1 -> 2019 | G48: 10-Year
E49: 0 | F49: =Q58 -> 0.0737704918 | G49: =R58 -> 0 | Q49: =Q58 -> 0.0737704918 | R49: =R58 -> 0 | S49: Your Farm Line-Debt to Asset | W49: Greater than 2000Yes
E50: 0.1 | F50: =Q59 -> 0.2131147541 | G50: =R59 -> 0.2735042735 | Q50: =Q49+Q59 -> 0.2868852459 | R50: 0.2735042735 | S50: X's | T50: =IF(B24>0.8,0.8,B24) -> 0.2897166677 | U50: =IF(B24>0.8,0.8,B24) -> 0.2897166677 | W50: Current Ratio | X50: Working Capital Ratio | Y50: Debt to Asset Ratio | Z50: Operating Profit Margin | AA50: ROA | AB50: ROE | AC50: Asset Turnover | AD50: Operating Expense Ratio | AE50: Depr Expense Ratio | AF50: Interest Expense Ratio | AG50: NFI Ratio | AJ50: Current Ratio | AK50: Working Capital Ratio | AL50: Debt to Asset Ratio | AM50: Operating Profit Margin | AN50: ROA | AO50: ROE | AP50: Asset Turnover | AQ50: Operating Expense Ratio | AR50: Depr Expense Ratio | AS50: Interest Expense Ratio | AT50: NFI Ratio
E51: 0.2 | F51: 0.1557377049 | G51: 0.2051282051 | Q51: 0.4426229508 | R51: 0.4786324786 | S51: Y's | T51: 0 | U51: 1 | W51: 0 | X51: 0 | Y51: 1 | Z51: 0 | AA51: 1 | AB51: 5 | AC51: 0 | AD51: 0 | AE51: 0 | AF51: 2 | AG51: 0 | AJ51: 0 | AK51: 0 | AL51: 0 | AM51: 0 | AN51: 0 | AO51: 1 | AP51: 0 | AQ51: 0 | AR51: 0 | AS51: 0 | AT51: 0
E52: 0.3 | F52: 0.106557377 | G52: 0.1538461538 | Q52: 0.5491803279 | R52: 0.6324786325 | S52: =IF(B24=F59,U1 &" Average","Your Farm") -> 2019 Average | W52: 2 | X52: 3 | Y52: 9 | Z52: 1 | AA52: 1 | AB52: 5 | AC52: 5 | AD52: 2 | AE52: 3 | AF52: 11 | AG52: 3 | AJ52: 0 | AK52: 0 | AL52: 4 | AM52: 0 | AN52: 0 | AO52: 1 | AP52: 0 | AQ52: 0 | AR52: 0 | AS52: 15 | AT52: 0
E53: 0.4 | F53: 0.08196721311 | G53: 0.1025641026 | Q53: 0.631147541 | R53: 0.735042735 | W53: 7 | X53: 6 | Y53: 5 | Z53: 1 | AA53: 3 | AB53: 11 | AC53: 9 | AD53: 7 | AE53: 15 | AF53: 16 | AG53: 0 | AJ53: 2 | AK53: 2 | AL53: 10 | AM53: 0 | AN53: 2 | AO53: 8 | AP53: 9 | AQ53: 4 | AR53: 5 | AS53: 13 | AT53: 0
E54: 0.5 | F54: 0.08196721311 | G54: 0.1111111111 | Q54: 0.7131147541 | R54: 0.8461538462 | W54: 13 | X54: 15 | Y54: 7 | Z54: 1 | AA54: 20 | AB54: 13 | AC54: 10 | AD54: 7 | AE54: 15 | AF54: 7 | AG54: 6 | AJ54: 10 | AK54: 10 | AL54: 7 | AM54: 0 | AN54: 12 | AO54: 14 | AP54: 10 | AQ54: 9 | AR54: 19 | AS54: 2 | AT54: 3
E55: 0.6 | F55: 0.09836065574 | G55: 0.08547008547 | Q55: 0.8114754098 | R55: 0.9316239316 | W55: 6 | X55: 9 | Y55: 4 | Z55: 11 | AA55: 11 | AB55: 4 | AC55: 7 | AD55: 10 | AE55: 6 | AF55: 1 | AG55: 18 | AJ55: 6 | AK55: 7 | AL55: 4 | AM55: 7 | AN55: 12 | AO55: 6 | AP55: 5 | AQ55: 9 | AR55: 5 | AS55: 1 | AT55: 14
E56: 0.7 | F56: 0.02459016393 | G56: 0.02564102564 | Q56: 0.8360655738 | R56: 0.9572649573 | W56: 3 | X56: 6 | Y56: 5 | Z56: 17 | AA56: 5 | AB56: 0 | AC56: 5 | AD56: 12 | AE56: 3 | AF56: 2 | AG56: 12 | AJ56: 1 | AK56: 7 | AL56: 1 | AM56: 17 | AN56: 5 | AO56: 1 | AP56: 2 | AQ56: 8 | AR56: 2 | AS56: 1 | AT56: 12
E57: More | F57: 0.1639344262 | G57: 0.04273504274 | Q57: 1 | R57: 1 | W57: 2 | X57: 2 | Y57: 4 | Z57: 10 | AA57: 1 | AB57: 1 | AC57: 4 | AD57: 4 | AE57: 1 | AF57: 1 | AG57: 3 | AJ57: 0 | AK57: 4 | AL57: 4 | AM57: 7 | AN57: 0 | AO57: 0 | AP57: 3 | AQ57: 2 | AR57: 1 | AS57: 0 | AT57: 3
E58: Count | F58: =F38 -> 122 | G58: =G38 -> 117 | Q58: =IF($T$6=$W$1,Y3/$F$58,IF($T$6=$W$17,Y19/$F$58,IF($T$6=$W$33,Y35/$F$58,IF($T$6=$W$49,Y51/$F$58,IF($T$6=$W$65,Y67/$F$58,IF($T$6=$W$81,Y83/$F$58,IF($T$6=$W$97,Y99/$F$58,IF($T$6=$W$113,Y115/$F$58,IF($T$6=$W$129,Y131/$F$58,IF($T$6=$W$145,Y147/$F$58,IF($T$6=$W$161,Y163/$F$58,"N/A"))))))))))) -> 0.0737704918 | R58: =IF($T$6=$W$1,AL3/$G$38,IF($T$6=$W$17,AL19/$G$38,IF($T$6=$W$33,AL35/$G$38,IF($T$6=$W$49,AL51/$G$38,IF($T$6=$W$65,AL67/$G$38,IF($T$6=$W$81,AL83/$G$38,IF($T$6=$W$97,AL99/$G$38,IF($T$6=$W$113,AL115/$G$38,IF($T$6=$W$129,AL131/$G$38,IF($T$6=$W$145,AL147/$G$38,IF($T$6=$W$161,AL163/$G$38,"N/A"))))))))))) -> 0 | W58: 1 | X58: 0 | Y58: 2 | Z58: 3 | AA58: 0 | AB58: 1 | AC58: 0 | AD58: 1 | AE58: 1 | AF58: 1 | AG58: 2 | AJ58: 3 | AK58: 1 | AL58: 0 | AM58: 1 | AN58: 0 | AO58: 1 | AP58: 2 | AQ58: 0 | AR58: 0 | AS58: 0 | AT58: 0
E59: Average | F59: =IF($T$6=$W$1,$Y$14,IF($T$6=$W$17,$Y$30,IF($T$6=$W$33,$Y$46,IF($T$6=$W$49,$Y$62,IF($T$6=$W$65,$Y$78,IF($T$6=$W$81,$Y$94,IF($T$6=$W$97,$Y$110,IF($T$6=$W$113,$Y$126,IF($T$6=$W$129,$Y$142,IF($T$6=$W$145,$Y$158,IF($T$6=$W$161,$Y$174,"N/A"))))))))))) -> 0.2897166677 | G59: =IF($T$6=$W$1,$AL$14,IF($T$6=$W$17,$AL$30,IF($T$6=$W$33,$AL$46,IF($T$6=$W$49,$AL$62,IF($T$6=$W$65,$AL$78,IF($T$6=$W$81,$AL$94,IF($T$6=$W$97,$AL$110,IF($T$6=$W$113,$AL$126,IF($T$6=$W$129,$AL$142,IF($T$6=$W$145,$AL$158,IF($T$6=$W$161,$AL$174,"N/A"))))))))))) -> 0.237974834 | Q59: 0.2131147541 | R59: 0.2735042735 | W59: 1 | X59: 2 | Y59: 7 | Z59: 0 | AA59: 1 | AB59: 0 | AC59: 1 | AD59: 1 | AE59: 0 | AF59: 3 | AG59: 0 | AJ59: 2 | AK59: 1 | AL59: 2 | AM59: 0 | AN59: 1 | AO59: 0 | AP59: 1 | AQ59: 0 | AR59: 0 | AS59: 0 | AT59: 0
Q60: 0.1557377049 | R60: 0.2051282051 | W60: 9 | X60: 1 | Z60: 0 | AA60: 1 | AB60: 4 | AC60: 3 | AG60: 0 | AJ60: 8 | AK60: 0 | AM60: 0 | AN60: 0 | AO60: 0 | AP60: 0 | AT60: 0
Q61: 0.106557377 | R61: 0.1538461538 | V61: Count | W61: 44 | X61: 44 | Y61: 44 | Z61: 44 | AA61: 44 | AB61: 44 | AC61: 44 | AD61: 44 | AE61: 44 | AF61: 44 | AG61: 44 | AI61: Count | AJ61: 32 | AK61: 32 | AL61: 32 | AM61: 32 | AN61: 32 | AO61: 32 | AP61: 32 | AQ61: 32 | AR61: 32 | AS61: 32 | AT61: 32
Q62: 0.08196721311 | R62: 0.1025641026 | V62: Average | W62: 1.676393892 | X62: 0.3007975524 | Y62: 0.2960543475 | Z62: 0.05568629905 | AA62: 0.01212255104 | AB62: -0.003884851388 | AC62: 0.2176936024 | AD62: 0.7802832179 | AE62: 0.07120869178 | AF62: 0.06451750851 | AG62: 0.0839905818 | AI62: Average | AJ62: 2.058481648 | AK62: 0.4156126924 | AL62: 0.2644799758 | AM62: 0.09556836538 | AN62: 0.0229576588 | AO62: 0.01686451638 | AP62: 0.2402223655 | AQ62: 0.7533233004 | AR62: 0.08443846078 | AS62: 0.0404839677 | AT62: 0.1217542711
F63: =IF(B24=F59,"","Your Farm") ->  | G63: =IF(B24=F59,"",B24) ->  | Q63: 0.08196721311 | R63: 0.1111111111 | V63: Non-ratio average | X63: 380865.6267 | AG63: 106347.6924 | AI63: Non-ratio average | AK63: 497402.7516 | AT63: 145714.7738
Q64: 0.09836065574 | R64: 0.08547008547
Q65: 0.02459016393 | R65: 0.02564102564 | W65: All Farms
Q66: 0.1639344262 | R66: 0.04273504274 | W66: Current Ratio | X66: Working Capital Ratio | Y66: Debt to Asset Ratio | Z66: Operating Profit Margin | AA66: ROA | AB66: ROE | AC66: Asset Turnover | AD66: Operating Expense Ratio | AE66: Depr Expense Ratio | AF66: Interest Expense Ratio | AG66: NFI Ratio | AJ66: Current Ratio | AK66: Working Capital Ratio | AL66: Debt to Asset Ratio | AM66: Operating Profit Margin | AN66: ROA | AO66: ROE | AP66: Asset Turnover | AQ66: Operating Expense Ratio | AR66: Depr Expense Ratio | AS66: Interest Expense Ratio | AT66: NFI Ratio
W67: 0 | X67: 1 | Y67: 9 | Z67: 3 | AA67: 8 | AB67: 15 | AC67: 0 | AD67: 1 | AE67: 0 | AF67: 11 | AG67: 0 | AJ67: 0 | AK67: 3 | AL67: 0 | AM67: 0 | AN67: 0 | AO67: 7 | AP67: 0 | AQ67: 0 | AR67: 0 | AS67: 0 | AT67: 0
E68: Operating Profit Margin Ratio | W68: 6 | X68: 8 | Y68: 26 | Z68: 3 | AA68: 1 | AB68: 8 | AC68: 12 | AD68: 4 | AE68: 17 | AF68: 37 | AG68: 3 | AJ68: 4 | AK68: 1 | AL68: 32 | AM68: 0 | AN68: 3 | AO68: 8 | AP68: 3 | AQ68: 2 | AR68: 2 | AS68: 56 | AT68: 0
F69: =U1 -> 2019 | G69: 10-Year | W69: 19 | X69: 16 | Y69: 19 | Z69: 5 | AA69: 14 | AB69: 40 | AC69: 36 | AD69: 15 | AE69: 31 | AF69: 37 | AG69: 3 | AJ69: 7 | AK69: 7 | AL69: 24 | AM69: 0 | AN69: 9 | AO69: 25 | AP69: 37 | AQ69: 12 | AR69: 31 | AS69: 39 | AT69: 1
E70: -0.6 | F70: =Q80 -> 0.02459016393 | G70: =R80 -> 0 | Q70: =Q80 -> 0.02459016393 | R70: =R80 -> 0 | W70: 24 | X70: 28 | Y70: 13 | Z70: 5 | AA70: 55 | AB70: 32 | AC70: 29 | AD70: 25 | AE70: 36 | AF70: 14 | AG70: 17 | AJ70: 28 | AK70: 29 | AL70: 18 | AM70: 7 | AN70: 45 | AO70: 48 | AP70: 31 | AQ70: 42 | AR70: 40 | AS70: 11 | AT70: 7
E71: -0.45 | F71: =Q81 -> 0.02459016393 | G71: =R81 -> 0 | Q71: =Q70+Q81 -> 0.04918032787 | R71: =R70+R81 -> 0 | S71: Your Farm Line-Operating Profit Margin Ratio | W71: 16 | X71: 22 | Y71: 10 | Z71: 34 | AA71: 24 | AB71: 10 | AC71: 13 | AD71: 27 | AE71: 25 | AF71: 8 | AG71: 48 | AJ71: 11 | AK71: 25 | AL71: 12 | AM71: 16 | AN71: 38 | AO71: 17 | AP71: 21 | AQ71: 41 | AR71: 25 | AS71: 7 | AT71: 42
E72: -0.3 | F72: 0.04098360656 | G72: 0 | Q72: 0.09016393443 | R72: 0 | S72: X's | T72: =IF(B25>0.75,0.75,B25) -> 0.09241849837 | U72: =T72 -> 0.09241849837 | W72: 8 | X72: 23 | Y72: 10 | Z72: 42 | AA72: 10 | AB72: 3 | AC72: 11 | AD72: 31 | AE72: 7 | AF72: 6 | AG72: 35 | AJ72: 7 | AK72: 18 | AL72: 13 | AM72: 55 | AN72: 16 | AO72: 7 | AP72: 10 | AQ72: 16 | AR72: 16 | AS72: 3 | AT72: 54
E73: -0.15 | F73: 0.04098360656 | G73: 0.05982905983 | Q73: 0.131147541 | R73: 0.05982905983 | S73: Y's | T73: 0 | U73: 1 | W73: 7 | X73: 5 | Y73: 12 | Z73: 22 | AA73: 3 | AB73: 1 | AC73: 8 | AD73: 14 | AE73: 3 | AF73: 3 | AG73: 14 | AJ73: 3 | AK73: 11 | AL73: 10 | AM73: 36 | AN73: 3 | AO73: 1 | AP73: 7 | AQ73: 3 | AR73: 2 | AS73: 1 | AT73: 13
E74: 0 | F74: 0.2786885246 | G74: 0.1367521368 | Q74: 0.4098360656 | R74: 0.1965811966 | S74: =IF(B25=F81,U1 &" Average","Your Farm") -> 2019 Average | W74: 3 | X74: 4 | Y74: 3 | Z74: 8 | AA74: 2 | AB74: 2 | AC74: 4 | AD74: 3 | AE74: 2 | AF74: 2 | AG74: 2 | AJ74: 5 | AK74: 12 | AL74: 3 | AM74: 3 | AN74: 2 | AO74: 3 | AP74: 3 | AQ74: 1 | AR74: 1 | AS74: 0 | AT74: 0
E75: 0.15 | F75: 0.3442622951 | G75: 0.4700854701 | Q75: 0.7540983607 | R75: 0.6666666667 | W75: 2 | X75: 8 | Y75: 20 | Z75: 0 | AA75: 3 | AB75: 0 | AC75: 4 | AD75: 2 | AE75: 1 | AF75: 4 | AG75: 0 | AJ75: 7 | AK75: 7 | AL75: 5 | AM75: 0 | AN75: 1 | AO75: 1 | AP75: 3 | AQ75: 0 | AR75: 0 | AS75: 0 | AT75: 0
E76: 0.3 | F76: 0.1803278689 | G76: 0.3076923077 | Q76: 0.9344262295 | R76: 0.9743589744 | W76: 37 | X76: 7 | Z76: 0 | AA76: 2 | AB76: 11 | AC76: 5 | AG76: 0 | AJ76: 45 | AK76: 4 | AM76: 0 | AN76: 0 | AO76: 0 | AP76: 2 | AT76: 0
E77: 0.45 | F77: 0.06557377049 | G77: 0.02564102564 | Q77: 1 | R77: 1 | V77: Count | W77: 122 | X77: 122 | Y77: 122 | Z77: 122 | AA77: 122 | AB77: 122 | AC77: 122 | AD77: 122 | AE77: 122 | AF77: 122 | AG77: 122 | AI77: Count | AJ77: 117 | AK77: 117 | AL77: 117 | AM77: 117 | AN77: 117 | AO77: 117 | AP77: 117 | AQ77: 117 | AR77: 117 | AS77: 117 | AT77: 117
E78: 0.6 | F78: 0 | G78: 0 | Q78: 1 | R78: 1 | V78: Average | W78: 1.994261666 | X78: 0.4073592609 | Y78: 0.2897166677 | Z78: 0.09241849837 | AA78: 0.02191647673 | AB78: 0.01030953749 | AC78: 0.2371438306 | AD78: 0.7482484362 | AE78: 0.07978642229 | AF78: 0.05643561191 | AG78: 0.1155295296 | AI78: Average | AJ78: 2.582622526 | AK78: 0.5479518209 | AL78: 0.237974834 | AM78: 0.1424916384 | AN78: 0.03694819589 | AO78: 0.03537729534 | AP78: 0.2593008004 | AQ78: 0.7078761666 | AR78: 0.08537159528 | AS78: 0.03551297027 | AT78: 0.1712392678
E79: More | F79: 0 | G79: 0 | Q79: 1 | R79: 1 | V79: Non-ratio average | X79: 451996.4768 | AG79: 128188.9118 | AI79: Non-ratio average | AK79: 504804.9333 | AT79: 157755.525
E80: Count | F80: =F58 -> 122 | G80: =G58 -> 117 | Q80: =IF($T$6=$W$1,Z3/$F$80,IF($T$6=$W$17,Z19/$F$80,IF($T$6=$W$33,Z35/$F$80,IF($T$6=$W$49,Z51/$F$80,IF($T$6=$W$65,Z67/$F$80,IF($T$6=$W$81,Z83/$F$80,IF($T$6=$W$97,Z99/$F$80,IF($T$6=$W$113,Z115/$F$80,IF($T$6=$W$129,Z131/$F$80,IF($T$6=$W$145,Z147/$F$80,IF($T$6=$W$161,Z163/$F$80,"N/A"))))))))))) -> 0.02459016393 | R80: =IF($T$6=$W$1,AM3/$G$38,IF($T$6=$W$17,AM19/$G$38,IF($T$6=$W$33,AM35/$G$38,IF($T$6=$W$49,AM51/$G$38,IF($T$6=$W$65,AM67/$G$38,IF($T$6=$W$81,AM83/$G$38,IF($T$6=$W$97,AM99/$G$38,IF($T$6=$W$113,AM115/$G$38,IF($T$6=$W$129,AM131/$G$38,IF($T$6=$W$145,AM147/$G$38,IF($T$6=$W$161,AM163/$G$38,"N/A"))))))))))) -> 0
E81: Average | F81: =IF($T$6=$W$1,$Z$14,IF($T$6=$W$17,$Z$30,IF($T$6=$W$33,$Z$46,IF($T$6=$W$49,$Z$62,IF($T$6=$W$65,$Z$78,IF($T$6=$W$81,$Z$94,IF($T$6=$W$97,$Z$110,IF($T$6=$W$113,$Z$126,IF($T$6=$W$129,$Z$142,IF($T$6=$W$145,$Z$158,IF($T$6=W161,Z174,"N/A"))))))))))) -> 0.09241849837 | G81: =IF($T$6=$W$1,$AM$14,IF($T$6=$W$17,$AM$30,IF($T$6=$W$33,$AM$46,IF($T$6=$W$49,$AM$62,IF($T$6=$W$65,$AM$78,IF($T$6=$W$81,$AM$94,IF($T$6=$W$97,$AM$110,IF($T$6=$W$113,$AM$126,IF($T$6=$W$129,$AM$142,IF($T$6=$W$145,$AM$158,IF($T$6=$W$161,$AM$174,"N/A"))))))))))) -> 0.1424916384 | Q81: 0.02459016393 | R81: 0 | W81: Blank
Q82: 0.04098360656 | R82: 0
Q83: 0.04098360656 | R83: 0.05982905983
Q84: 0.2786885246 | R84: 0.1367521368
F85: =IF(B25=F81,"","Your Farm") ->  | G85: =IF(B25=F81,"",B25) ->  | Q85: 0.3442622951 | R85: 0.4700854701
Q86: 0.1803278689 | R86: 0.3076923077
Q87: 0.06557377049 | R87: 0.02564102564
Q88: 0 | R88: 0
E89: Rate of Return on Farm Assets | Q89: 0 | R89: 0
F90: =U1 -> 2019 | G90: 10-Year
E91: -0.1 | F91: =Q101 -> 0.06557377049 | G91: =R101 -> 0 | Q91: =Q101 -> 0.06557377049 | R91: =R101 -> 0
E92: -0.06 | F92: =Q102 -> 0.008196721311 | G92: =R102 -> 0.02564102564 | Q92: =Q91+Q102 -> 0.0737704918 | R92: =R91+R102 -> 0.02564102564
E93: -0.02 | F93: 0.1147540984 | G93: 0.07692307692 | Q93: 0.1885245902 | R93: 0.1025641026 | S93: Your Farm Line-Return on Assets | V93: Count
E94: 0.02 | F94: 0.4508196721 | G94: 0.3846153846 | Q94: 0.6393442623 | R94: 0.4871794872 | S94: X's | T94: =IF(B26>0.24,0.24,B26) -> 0.02191647673 | U94: =T94 -> 0.02191647673 | V94: Average
E95: 0.06 | F95: 0.1967213115 | G95: 0.3247863248 | Q95: 0.8360655738 | R95: 0.811965812 | S95: Y's | T95: 0 | U95: 1 | V95: Non-ratio average
E96: 0.1 | F96: 0.08196721311 | G96: 0.1367521368 | Q96: 0.9180327869 | R96: 0.9487179487 | S96: =IF(B26=F102,U1 &" Average","Your Farm") -> 2019 Average
E97: 0.14 | F97: 0.02459016393 | G97: 0.02564102564 | Q97: 0.9426229508 | R97: 0.9743589744 | W97: Blank
E98: 0.18 | F98: 0.01639344262 | G98: 0.01709401709 | Q98: 0.9590163934 | R98: 0.9914529915
E99: 0.22 | F99: 0.02459016393 | G99: 0.008547008547 | Q99: 0.9836065574 | R99: 1
E100: More | F100: 0.01639344262 | G100: 0 | Q100: 1 | R100: 1
E101: Count | F101: =F80 -> 122 | G101: =G80 -> 117 | Q101: =IF($T$6=$W$1,AA3/$F$101,IF($T$6=$W$17,AA19/$F$101,IF($T$6=$W$33,AA35/$F$101,IF($T$6=$W$49,AA51/$F$101,IF($T$6=$W$65,AA67/$F$101,IF($T$6=$W$81,AA83/$F$101,IF($T$6=$W$97,AA99/$F$101,IF($T$6=$W$113,AA115/$F$101,IF($T$6=$W$129,AA131/$F$101,IF($T$6=$W$145,AA147/$F$101,IF($T$6=$W$161,AA163/$F$101,"N/A"))))))))))) -> 0.06557377049 | R101: =IF($T$6=$W$1,AN3/$G$38,IF($T$6=$W$17,AN19/$G$38,IF($T$6=$W$33,AN35/$G$38,IF($T$6=$W$49,AN51/$G$38,IF($T$6=$W$65,AN67/$G$38,IF($T$6=$W$81,AN83/$G$38,IF($T$6=$W$97,AN99/$G$38,IF($T$6=$W$113,AN115/$G$38,IF($T$6=$W$129,AN131/$G$38,IF($T$6=$W$145,AN147/$G$38,IF($T$6=$W$161,AN163/$G$38,"N/A"))))))))))) -> 0
E102: Average | F102: =IF($T$6=$W$1,$AA$14,IF($T$6=$W$17,$AA$30,IF($T$6=$W$33,$AA$46,IF($T$6=$W$49,$AA$62,IF($T$6=$W$65,$AA$78,IF($T$6=$W$81,$AA$94,IF($T$6=$W$97,$AA$110,IF($T$6=$W$113,$AA$126,IF($T$6=$W$129,$AA$142,IF($T$6=$W$145,$AA$158,IF($T$6=$W$161,AA174,"N/A"))))))))))) -> 0.02191647673 | G102: =IF($T$6=$W$1,$AN$14,IF($T$6=$W$17,$AN$30,IF($T$6=$W$33,$AN$46,IF($T$6=$W$49,$AN$62,IF($T$6=$W$65,$AN$78,IF($T$6=$W$81,$AN$94,IF($T$6=$W$97,$AN$110,IF($T$6=$W$113,$AN$126,IF($T$6=$W$129,$AN$142,IF($T$6=$W$145,$AN$158,IF($T$6=$W$161,$AN$174,"N/A"))))))))))) -> 0.03694819589 | Q102: 0.008196721311 | R102: 0.02564102564
Q103: 0.1147540984 | R103: 0.07692307692
Q104: 0.4508196721 | R104: 0.3846153846
Q105: 0.1967213115 | R105: 0.3247863248
F106: =IF(B26=F102,"","Your Farm") ->  | G106: =IF(B26=F102,"",B26) ->  | Q106: 0.08196721311 | R106: 0.1367521368
Q107: 0.02459016393 | R107: 0.02564102564
Q108: 0.01639344262 | R108: 0.01709401709
Q109: 0.02459016393 | R109: 0.008547008547 | V109: Count
E110: Rate of Return on Farm Equity | Q110: 0.01639344262 | R110: 0 | V110: Average
F111: =U1 -> 2019 | G111: 10-Year | V111: Non-ratio average
E112: -0.1 | F112: =Q122 -> 0.1229508197 | G112: =R122 -> 0.05982905983 | Q112: =Q122 -> 0.1229508197 | R112: =R122 -> 0.05982905983
E113: -0.05 | F113: =Q123 -> 0.06557377049 | G113: =R123 -> 0.06837606838 | Q113: =Q112+Q123 -> 0.1885245902 | R113: =R112+R123 -> 0.1282051282 | W113: Blank
E114: 0 | F114: 0.3278688525 | G114: 0.2136752137 | Q114: 0.5163934426 | R114: 0.3418803419 | W114: Current Ratio | X114: Working Capital Ratio | Y114: Debt to Asset Ratio | Z114: Operating Profit Margin | AA114: ROA | AB114: ROE | AC114: Asset Turnover | AD114: Operating Expense Ratio | AE114: Depr Expense Ratio | AF114: Interest Expense Ratio | AG114: NFI Ratio | AJ114: Current Ratio | AK114: Working Capital Ratio | AL114: Debt to Asset Ratio | AM114: Operating Profit Margin | AN114: ROA | AO114: ROE | AP114: Asset Turnover | AQ114: Operating Expense Ratio | AR114: Depr Expense Ratio | AS114: Interest Expense Ratio | AT114: NFI Ratio
E115: 0.05 | F115: 0.262295082 | G115: 0.4102564103 | Q115: 0.7786885246 | R115: 0.7521367521 | S115: Your Farm Line-Return on Equity
E116: 0.1 | F116: 0.08196721311 | G116: 0.1452991453 | Q116: 0.8606557377 | R116: 0.8974358974 | S116: X's | T116: =IF(B27>0.35,0.35,B27) -> 0.01030953749 | U116: =T116 -> 0.01030953749
E117: 0.15 | F117: 0.02459016393 | G117: 0.05982905983 | Q117: 0.8852459016 | R117: 0.9572649573 | S117: Y's | T117: 0 | U117: 1
E118: 0.2 | F118: 0.008196721311 | G118: 0.008547008547 | Q118: 0.893442623 | R118: 0.9658119658 | S118: =IF(B27=F123,U1 &" Average","Your Farm") -> 2019 Average
E119: 0.25 | F119: 0.01639344262 | G119: 0.02564102564 | Q119: 0.9098360656 | R119: 0.9914529915
E120: 0.3 | F120: 0 | G120: 0.008547008547 | Q120: 0.9098360656 | R120: 1
E121: More | F121: 0.09016393443 | G121: 0 | Q121: 1 | R121: 1
E122: Count | F122: =F101 -> 122 | G122: =G101 -> 117 | Q122: =IF($T$6=$W$1,AB3/$F$122,IF($T$6=$W$17,AB19/$F$122,IF($T$6=$W$33,AB35/$F$122,IF($T$6=$W$49,AB51/$F$122,IF($T$6=$W$65,AB67/$F$122,IF($T$6=$W$81,AB83/$F$122,IF($T$6=$W$97,AB99/$F$122,IF($T$6=$W$113,AB115/$F$122,IF($T$6=$W$129,AB131/$F$122,IF($T$6=$W$145,AB147/$F$122,IF($T$6=$W$161,AB163/$F$122,"N/A"))))))))))) -> 0.1229508197 | R122: =IF($T$6=$W$1,AO3/$G$38,IF($T$6=$W$17,AO19/$G$38,IF($T$6=$W$33,AO35/$G$38,IF($T$6=$W$49,AO51/$G$38,IF($T$6=$W$65,AO67/$G$38,IF($T$6=$W$81,AO83/$G$38,IF($T$6=$W$97,AO99/$G$38,IF($T$6=$W$113,AO115/$G$38,IF($T$6=$W$129,AO131/$G$38,IF($T$6=$W$145,AO147/$G$38,IF($T$6=$W$161,AO163/$G$38,"N/A"))))))))))) -> 0.05982905983
E123: Average | F123: =IF($T$6=$W$1,$AB$14,IF($T$6=$W$17,$AB$30,IF($T$6=$W$33,$AB$46,IF($T$6=$W$49,$AB$62,IF($T$6=$W$65,$AB$78,IF($T$6=$W$81,$AB$94,IF($T$6=$W$97,$AB$110,IF($T$6=$W$113,$AB$126,IF($T$6=$W$129,$AB$142,IF($T$6=$W$145,$AB$158,IF($T$6=W161,AB174,"N/A"))))))))))) -> 0.01030953749 | G123: =IF($T$6=$W$1,$AO$14,IF($T$6=$W$17,$AO$30,IF($T$6=$W$33,$AO$46,IF($T$6=$W$49,$AO$62,IF($T$6=$W$65,$AO$78,IF($T$6=$W$81,$AO$94,IF($T$6=$W$97,$AO$110,IF($T$6=$W$113,$AO$126,IF($T$6=$W$129,$AO$142,IF($T$6=$W$145,$AO$158,IF($T$6=$W$161,$AO$174,"N/A"))))))))))) -> 0.03537729534 | Q123: 0.06557377049 | R123: 0.06837606838
Q124: 0.3278688525 | R124: 0.2136752137
Q125: 0.262295082 | R125: 0.4102564103 | V125: Count | AI125: Count
Q126: 0.08196721311 | R126: 0.1452991453 | V126: Average | AI126: Average
F127: =IF(B27=F123,"","Your Farm") ->  | G127: =IF(B27=F123,"",B27) ->  | Q127: 0.02459016393 | R127: 0.05982905983 | V127: Non-ratio average | AI127: Non-ratio average
Q128: 0.008196721311 | R128: 0.008547008547
Q129: 0.01639344262 | R129: 0.02564102564 | W129: Blank
Q130: 0 | R130: 0.008547008547 | W130: Current Ratio | X130: Working Capital Ratio | Y130: Debt to Asset Ratio | Z130: Operating Profit Margin | AA130: ROA | AB130: ROE | AC130: Asset Turnover | AD130: Operating Expense Ratio | AE130: Depr Expense Ratio | AF130: Interest Expense Ratio | AG130: NFI Ratio | AJ130: Current Ratio | AK130: Working Capital Ratio | AL130: Debt to Asset Ratio | AM130: Operating Profit Margin | AN130: ROA | AO130: ROE | AP130: Asset Turnover | AQ130: Operating Expense Ratio | AR130: Depr Expense Ratio | AS130: Interest Expense Ratio | AT130: NFI Ratio
E131: Asset Turnover Rate | Q131: 0.09016393443 | R131: 0
F132: =U1 -> 2019 | G132: 10-Year
E133: 0 | F133: =Q143 -> 0 | G133: =R143 -> 0 | Q133: =Q143 -> 0 | R133: =R143 -> 0
E134: 0.1 | F134: =Q144 -> 0.09836065574 | G134: =R144 -> 0.02564102564 | Q134: =Q133+Q144 -> 0.09836065574 | R134: =R133+R144 -> 0.02564102564
E135: 0.2 | F135: 0.2950819672 | G135: 0.3162393162 | Q135: 0.393442623 | R135: 0.3418803419
E136: 0.3 | F136: 0.237704918 | G136: 0.264957265 | Q136: 0.631147541 | R136: 0.6068376068
E137: 0.4 | F137: 0.106557377 | G137: 0.1794871795 | Q137: 0.737704918 | R137: 0.7863247863 | S137: Your Farm Line-Asset Turnover Rate
E138: 0.5 | F138: 0.09016393443 | G138: 0.08547008547 | Q138: 0.8278688525 | R138: 0.8717948718 | S138: X's | T138: =IF(B28>0.9,0.9,B28) -> 0.2371438306 | U138: =T138 -> 0.2371438306
E139: 0.6 | F139: 0.06557377049 | G139: 0.05982905983 | Q139: 0.893442623 | R139: 0.9316239316 | S139: Y's | T139: 0 | U139: 1
E140: 0.7 | F140: 0.03278688525 | G140: 0.02564102564 | Q140: 0.9262295082 | R140: 0.9572649573 | S140: =IF(B28=F144,U1 &" Average","Your Farm") -> 2019 Average
E141: 0.8 | F141: 0.03278688525 | G141: 0.02564102564 | Q141: 0.9590163934 | R141: 0.9829059829 | V141: Count | AI141: Count
E142: More | F142: 0.04098360656 | G142: =R152 -> 0.01709401709 | Q142: 1 | R142: 1 | V142: Average | AI142: Average
E143: Count | F143: =F122 -> 122 | G143: =G122 -> 117 | Q143: =IF($T$6=$W$1,AC3/$F$143,IF($T$6=$W$17,AC19/$F$143,IF($T$6=$W$33,AC35/$F$143,IF($T$6=$W$49,AC51/$F$143,IF($T$6=$W$65,AC67/$F$143,IF($T$6=$W$81,AC83/$F$143,IF($T$6=$W$97,AC99/$F$143,IF($T$6=$W$113,AC115/$F$143,IF($T$6=$W$129,AC131/$F$143,IF($T$6=$W$145,AC147/$F$143,IF($T$6=$W$161,AC163/$F$143,"N/A"))))))))))) -> 0 | R143: =IF($T$6=$W$1,AP3/$G$38,IF($T$6=$W$17,AP19/$G$38,IF($T$6=$W$33,AP35/$G$38,IF($T$6=$W$49,AP51/$G$38,IF($T$6=$W$65,AP67/$G$38,IF($T$6=$W$81,AP83/$G$38,IF($T$6=$W$97,AP99/$G$38,IF($T$6=$W$113,AP115/$G$38,IF($T$6=$W$129,AP131/$G$38,IF($T$6=$W$145,AP147/$G$38,IF($T$6=$W$161,AP163/$G$38,"N/A"))))))))))) -> 0 | V143: Non-ratio average | AI143: Non-ratio average
E144: Average | F144: =IF($T$6=$W$1,$AC$14,IF($T$6=$W$17,$AC$30,IF($T$6=$W$33,$AC$46,IF($T$6=$W$49,$AC$62,IF($T$6=$W$65,$AC$78,IF($T$6=$W$81,$AC$94,IF($T$6=$W$97,$AC$110,IF($T$6=$W$113,$AC$126,IF($T$6=$W$129,$AC$142,IF($T$6=$W$145,$AC$158,IF($T$6=W161,AC174,"N/A"))))))))))) -> 0.2371438306 | G144: =IF($T$6=$W$1,$AP$14,IF($T$6=$W$17,$AP$30,IF($T$6=$W$33,$AP$46,IF($T$6=$W$49,$AP$62,IF($T$6=$W$65,$AP$78,IF($T$6=$W$81,$AP$94,IF($T$6=$W$97,$AP$110,IF($T$6=$W$113,$AP$126,IF($T$6=$W$129,$AP$142,IF($T$6=$W$145,$AP$158,IF($T$6=$W$161,$AP$174,"N/A"))))))))))) -> 0.2593008004 | Q144: 0.09836065574 | R144: 0.02564102564
Q145: 0.2950819672 | R145: 0.3162393162 | W145: Blank
Q146: 0.237704918 | R146: 0.264957265 | W146: Current Ratio | X146: Working Capital Ratio | Y146: Debt to Asset Ratio | Z146: Operating Profit Margin | AA146: ROA | AB146: ROE | AC146: Asset Turnover | AD146: Operating Expense Ratio | AE146: Depr Expense Ratio | AF146: Interest Expense Ratio | AG146: NFI Ratio | AJ146: Current Ratio | AK146: Working Capital Ratio | AL146: Debt to Asset Ratio | AM146: Operating Profit Margin | AN146: ROA | AO146: ROE | AP146: Asset Turnover | AQ146: Operating Expense Ratio | AR146: Depr Expense Ratio | AS146: Interest Expense Ratio | AT146: NFI Ratio
Q147: 0.106557377 | R147: 0.1794871795
F148: =IF(B28=F144,"","Your Farm") ->  | G148: =IF(B28=F144,"",B28) ->  | Q148: 0.09016393443 | R148: 0.08547008547
Q149: 0.06557377049 | R149: 0.05982905983
Q150: 0.03278688525 | R150: 0.02564102564
Q151: 0.03278688525 | R151: 0.02564102564
E152: Operating Expense Ratio | Q152: 0.04098360656 | R152: 0.01709401709
F153: =U1 -> 2019 | G153: 10-Year
E154: 0.4 | F154: =Q163 -> 0.008196721311 | G154: =R163 -> 0 | Q154: =Q163 -> 0.008196721311 | R154: =R163 -> 0
E155: 0.5 | F155: =Q164 -> 0.03278688525 | G155: =R164 -> 0.01709401709 | Q155: =Q154+Q164 -> 0.04098360656 | R155: 0.01709401709
E156: 0.6 | F156: 0.1229508197 | G156: 0.1025641026 | Q156: 0.1639344262 | R156: 0.1196581197
E157: 0.7 | F157: 0.2049180328 | G157: 0.358974359 | Q157: 0.368852459 | R157: 0.4786324786 | V157: Count | AI157: Count
E158: 0.8 | F158: 0.2213114754 | G158: 0.3504273504 | Q158: 0.5901639344 | R158: 0.8290598291 | V158: Average | AI158: Average
E159: 0.9 | F159: 0.2540983607 | G159: 0.1367521368 | Q159: 0.8442622951 | R159: 0.9658119658 | S159: Your Farm Line-Operating Expense Ratio | V159: Non-ratio average | AI159: Non-ratio average
E160: 1 | F160: 0.1147540984 | G160: 0.02564102564 | Q160: 0.9590163934 | R160: 0.9914529915 | S160: X's | T160: =IF(B29>1.2,1.2,B29) -> 0.7482484362 | U160: =T160 -> 0.7482484362
E161: 1.1 | F161: 0.02459016393 | G161: 0.008547008547 | Q161: 0.9836065574 | R161: 1 | S161: Y's | T161: 0 | U161: 1 | W161: Blank
E162: More | F162: 0.01639344262 | G162: 0 | Q162: 1 | R162: 1 | S162: =IF(B29=F164,U1 &" Average","Your Farm") -> 2019 Average | W162: Current Ratio | X162: Working Capital Ratio | Y162: Debt to Asset Ratio | Z162: Operating Profit Margin | AA162: ROA | AB162: ROE | AC162: Asset Turnover | AD162: Operating Expense Ratio | AE162: Depr Expense Ratio | AF162: Interest Expense Ratio | AG162: NFI Ratio | AJ162: Current Ratio | AK162: Working Capital Ratio | AL162: Debt to Asset Ratio | AM162: Operating Profit Margin | AN162: ROA | AO162: ROE | AP162: Asset Turnover | AQ162: Operating Expense Ratio | AR162: Depr Expense Ratio | AS162: Interest Expense Ratio | AT162: NFI Ratio
E163: Count | F163: =F143 -> 122 | G163: =G143 -> 117 | Q163: =IF($T$6=$W$1,AD3/$F$143,IF($T$6=$W$17,AD19/$F$143,IF($T$6=$W$33,AD35/$F$143,IF($T$6=$W$49,AD51/$F$143,IF($T$6=$W$65,AD67/$F$143,IF($T$6=$W$81,AD83/$F$143,IF($T$6=$W$97,AD99/$F$143,IF($T$6=$W$113,AD115/$F$143,IF($T$6=$W$129,AD131/$F$143,IF($T$6=$W$145,AD147/$F$143,IF($T$6=$W$161,AD163/$F$143,"N/A"))))))))))) -> 0.008196721311 | R163: =IF($T$6=$W$1,AQ3/$G$38,IF($T$6=$W$17,AQ19/$G$38,IF($T$6=$W$33,AQ35/$G$38,IF($T$6=$W$49,AQ51/$G$38,IF($T$6=$W$65,AQ67/$G$38,IF($T$6=$W$81,AQ83/$G$38,IF($T$6=$W$97,AQ99/$G$38,IF($T$6=$W$113,AQ115/$G$38,IF($T$6=$W$129,AQ131/$G$38,IF($T$6=$W$145,AQ147/$G$38,IF($T$6=$W$161,AQ163/$G$38,"N/A"))))))))))) -> 0
E164: Average | F164: =IF($T$6=$W$1,$AD$14,IF($T$6=$W$17,$AD$30,IF($T$6=$W$33,$AD$46,IF($T$6=$W$49,$AD$62,IF($T$6=$W$65,$AD$78,IF($T$6=$W$81,$AD$94,IF($T$6=$W$97,$AD$110,IF($T$6=$W$113,$AD$126,IF($T$6=$W$129,$AD$142,IF($T$6=$W$145,$AD$158,IF($T$6=W161,AD174,"N/A"))))))))))) -> 0.7482484362 | G164: =IF($T$6=$W$1,$AQ$14,IF($T$6=$W$17,$AQ$30,IF($T$6=$W$33,$AQ$46,IF($T$6=$W$49,$AQ$62,IF($T$6=$W$65,$AQ$78,IF($T$6=$W$81,$AQ$94,IF($T$6=$W$97,$AQ$110,IF($T$6=$W$113,$AQ$126,IF($T$6=$W$129,$AQ$142,IF($T$6=$W$145,$AQ$158,IF($T$6=$W$161,$AQ$174,"N/A"))))))))))) -> 0.7078761666 | Q164: 0.03278688525 | R164: 0.01709401709
Q165: 0.1229508197 | R165: 0.1025641026
Q166: 0.2049180328 | R166: 0.358974359
Q167: 0.2213114754 | R167: 0.3504273504
F168: =IF(B29=F164,"","Your Farm") ->  | G168: =IF(B29=F164,"",B29) ->  | Q168: 0.2540983607 | R168: 0.1367521368
Q169: 0.1147540984 | R169: 0.02564102564
Q170: 0.02459016393 | R170: 0.008547008547
Q171: 0.01639344262 | R171: 0
E173: Depreciation Expense Ratio | V173: Count | AI173: Count
F174: =U1 -> 2019 | G174: 10-Year | V174: Average | AI174: Average
E175: 0 | F175: =Q184 -> 0 | G175: =R184 -> 0 | Q175: =Q184 -> 0 | R175: =R184 -> 0 | V175: Non-ratio average | AI175: Non-ratio average
E176: 0.03 | F176: =Q185 -> 0.1393442623 | G176: =R185 -> 0.01709401709 | Q176: =Q175+Q185 -> 0.1393442623 | R176: 0.01709401709
E177: 0.06 | F177: 0.2540983607 | G177: 0.264957265 | Q177: 0.393442623 | R177: 0.2820512821
E178: 0.09 | F178: 0.2950819672 | G178: 0.3418803419 | Q178: 0.6885245902 | R178: 0.6239316239
E179: 0.12 | F179: 0.2049180328 | G179: 0.2136752137 | Q179: 0.893442623 | R179: 0.8376068376
E180: 0.15 | F180: 0.05737704918 | G180: 0.1367521368 | Q180: 0.9508196721 | R180: 0.9743589744
E181: 0.18 | F181: 0.02459016393 | G181: 0.01709401709 | Q181: 0.9754098361 | R181: 0.9914529915 | S181: Your Farm Line-Depreciation Expense Ratio
E182: 0.21 | F182: 0.01639344262 | G182: 0.008547008547 | Q182: 0.9918032787 | R182: 1 | S182: X's | T182: =IF(B30>0.24,0.24,B30) -> 0.07978642229 | U182: =T182 -> 0.07978642229
E183: More | F183: 0.008196721311 | G183: 0 | Q183: 1 | R183: 1 | S183: Y's | T183: 0 | U183: 1
E184: Count | F184: =F163 -> 122 | G184: =G163 -> 117 | Q184: =IF($T$6=$W$1,AE3/$F$143,IF($T$6=$W$17,AE19/$F$143,IF($T$6=$W$33,AE35/$F$143,IF($T$6=$W$49,AE51/$F$143,IF($T$6=$W$65,AE67/$F$143,IF($T$6=$W$81,AE83/$F$143,IF($T$6=$W$97,AE99/$F$143,IF($T$6=$W$113,AE115/$F$143,IF($T$6=$W$129,AE131/$F$143,IF($T$6=$W$145,AE147/$F$143,IF($T$6=$W$161,AE163/$F$143,"N/A"))))))))))) -> 0 | R184: =IF($T$6=$W$1,AR3/$G$38,IF($T$6=$W$17,AR19/$G$38,IF($T$6=$W$33,AR35/$G$38,IF($T$6=$W$49,AR51/$G$38,IF($T$6=$W$65,AR67/$G$38,IF($T$6=$W$81,AR83/$G$38,IF($T$6=$W$97,AR99/$G$38,IF($T$6=$W$113,AR115/$G$38,IF($T$6=$W$129,AR131/$G$38,IF($T$6=$W$145,AR147/$G$38,IF($T$6=$W$161,AR163/$G$38,"N/A"))))))))))) -> 0 | S184: =IF(B30=F185,U1 &" Average","Your Farm") -> 2019 Average
E185: Average | F185: =IF($T$6=$W$1,$AE$14,IF($T$6=$W$17,$AE$30,IF($T$6=$W$33,$AE$46,IF($T$6=$W$49,$AE$62,IF($T$6=$W$65,$AE$78,IF($T$6=$W$81,$AE$94,IF($T$6=$W$97,$AE$110,IF($T$6=$W$113,$AE$126,IF($T$6=$W$129,$AE$142,IF($T$6=$W$145,$AE$158,IF($T$6=$W$161,AE174,"N/A"))))))))))) -> 0.07978642229 | G185: =IF($T$6=$W$1,$AR$14,IF($T$6=$W$17,$AR$30,IF($T$6=$W$33,$AR$46,IF($T$6=$W$49,$AR$62,IF($T$6=$W$65,$AR$78,IF($T$6=$W$81,$AR$94,IF($T$6=$W$97,$AR$110,IF($T$6=$W$113,$AR$126,IF($T$6=$W$129,$AR$142,IF($T$6=$W$145,$AR$158,IF($T$6=$W$161,$AR$174,"N/A"))))))))))) -> 0.08537159528 | Q185: 0.1393442623 | R185: 0.01709401709
Q186: 0.2540983607 | R186: 0.264957265
Q187: 0.2950819672 | R187: 0.3418803419
Q188: 0.2049180328 | R188: 0.2136752137
F189: =IF(B30=F185,"","Your Farm") ->  | G189: =IF(B30=F185,"",B30) ->  | Q189: 0.05737704918 | R189: 0.1367521368
Q190: 0.02459016393 | R190: 0.01709401709
Q191: 0.01639344262 | R191: 0.008547008547
Q192: 0.008196721311 | R192: 0
E194: Interest Expense Ratio
F195: =U1 -> 2019 | G195: 10-Year
E196: 0 | F196: =Q205 -> 0.09016393443 | G196: =R205 -> 0 | Q196: =Q205 -> 0.09016393443 | R196: =R205 -> 0
E197: 0.03 | F197: =Q206 -> 0.3032786885 | G197: =R206 -> 0.4786324786 | Q197: =Q196+Q206 -> 0.393442623 | R197: 0.4786324786
E198: 0.06 | F198: 0.3032786885 | G198: 0.3333333333 | Q198: 0.6967213115 | R198: 0.811965812
E199: 0.09 | F199: 0.1147540984 | G199: 0.09401709402 | Q199: 0.8114754098 | R199: 0.905982906
E200: 0.12 | F200: 0.06557377049 | G200: 0.05982905983 | Q200: 0.8770491803 | R200: 0.9658119658
E201: 0.15 | F201: 0.04918032787 | G201: 0.02564102564 | Q201: 0.9262295082 | R201: 0.9914529915
E202: 0.18 | F202: 0.02459016393 | G202: 0.008547008547 | Q202: 0.9508196721 | R202: 1
... 33 more rows

Sheet NorthCentral
E1: KSU FARM FINANCIAL BENCHMARKING TOOL-North Central Kansas | S1: Acres | T1: Lookup | U1: 2019 | W1: Less than 1000No | AI1: 10-Year
S2: Less than 1000 | T2: LT | U2: 2019 KFMA Farms | W2: Current Ratio | X2: Working Capital Ratio | Y2: Debt to Asset Ratio | Z2: Operating Profit Margin | AA2: ROA | AB2: ROE | AC2: Asset Turnover | AD2: Operating Expense Ratio | AE2: Depr Expense Ratio | AF2: Interest Expense Ratio | AG2: NFI Ratio | AJ2: Current Ratio | AK2: Working Capital Ratio | AL2: Debt to Asset Ratio | AM2: Operating Profit Margin | AN2: ROA | AO2: ROE | AP2: Asset Turnover | AQ2: Operating Expense Ratio | AR2: Depr Expense Ratio | AS2: Interest Expense Ratio | AT2: NFI Ratio
E3: Tillable Crop Acres: | G3: =B16 -> All Farms | I3: =A17 ->  | K3: =IF(B17="","",B17) ->  | S3: Greater than 1000 | T3: GT | W3: 0 | X3: 1 | Y3: 6 | Z3: 1 | AA3: 3 | AB3: 4 | AC3: 0 | AD3: 0 | AE3: 0 | AF3: 11 | AG3: 2 | AJ3: 0 | AK3: 0 | AL3: 3 | AM3: 1 | AN3: 0 | AO3: 3 | AP3: 0 | AQ3: 0 | AR3: 0 | AS3: 1 | AT3: 0
S4: All Farms | T4: All | W4: 3 | X4: 1 | Y4: 13 | Z4: 2 | AA4: 0 | AB4: 4 | AC4: 5 | AD4: 5 | AE4: 6 | AF4: 15 | AG4: 0 | AJ4: 1 | AK4: 2 | AL4: 10 | AM4: 0 | AN4: 2 | AO4: 2 | AP4: 5 | AQ4: 2 | AR4: 2 | AS4: 14 | AT4: 1
E5: Current Ratio | W5: 1 | X5: 2 | Y5: 6 | Z5: 3 | AA5: 6 | AB5: 7 | AC5: 15 | AD5: 8 | AE5: 6 | AF5: 4 | AG5: 2 | AJ5: 5 | AK5: 4 | AL5: 1 | AM5: 0 | AN5: 3 | AO5: 9 | AP5: 9 | AQ5: 5 | AR5: 5 | AS5: 5 | AT5: 0
F6: =U1 -> 2019 | G6: 10-Year | S6: LTList | T6: =B16&B17&B18 -> All Farms | W6: 1 | X6: 8 | Y6: 1 | Z6: 2 | AA6: 12 | AB6: 10 | AC6: 5 | AD6: 5 | AE6: 9 | AF6: 1 | AG6: 1 | AJ6: 0 | AK6: 3 | AL6: 4 | AM6: 4 | AN6: 13 | AO6: 10 | AP6: 6 | AQ6: 5 | AR6: 9 | AS6: 3 | AT6: 1
E7: 0 | F7: =Q17 -> 0 | G7: =R17 -> 0 | S7: Yes | W7: 2 | X7: 3 | Y7: 5 | Z7: 5 | AA7: 7 | AB7: 5 | AC7: 2 | AD7: 7 | AE7: 5 | AF7: 1 | AG7: 7 | AJ7: 2 | AK7: 3 | AL7: 4 | AM7: 9 | AN7: 7 | AO7: 1 | AP7: 3 | AQ7: 6 | AR7: 4 | AS7: 0 | AT7: 9
E8: 0.5 | F8: =Q18 -> 0.04366812227 | G8: =R18 -> 0.02790697674 | Q8: =Q7+Q18 -> 0.04366812227 | R8: =R7+R18 -> 0.02790697674 | S8: No | W8: 3 | X8: 4 | Y8: 0 | Z8: 9 | AA8: 2 | AB8: 1 | AC8: 2 | AD8: 3 | AE8: 3 | AF8: 0 | AG8: 10 | AJ8: 3 | AK8: 2 | AL8: 0 | AM8: 6 | AN8: 0 | AO8: 0 | AP8: 0 | AQ8: 4 | AR8: 2 | AS8: 1 | AT8: 9
E9: 1 | F9: 0.1441048035 | G9: 0.0976744186 | Q9: 0.1877729258 | R9: 0.1255813953 | W9: 3 | X9: 5 | Y9: 1 | Z9: 7 | AA9: 1 | AB9: 0 | AC9: 1 | AD9: 2 | AE9: 2 | AF9: 0 | AG9: 7 | AJ9: 0 | AK9: 4 | AL9: 1 | AM9: 3 | AN9: 0 | AO9: 0 | AP9: 0 | AQ9: 2 | AR9: 3 | AS9: 0 | AT9: 4
E10: 1.5 | F10: 0.1659388646 | G10: 0.1627906977 | Q10: 0.3537117904 | R10: 0.288372093 | W10: 1 | X10: 3 | Y10: 0 | Z10: 4 | AA10: 0 | AB10: 0 | AC10: 0 | AD10: 1 | AE10: 1 | AF10: 0 | AG10: 4 | AJ10: 1 | AK10: 2 | AL10: 1 | AM10: 2 | AN10: 0 | AO10: 0 | AP10: 0 | AQ10: 0 | AR10: 0 | AS10: 1 | AT10: 1
E11: 2 | F11: 0.096069869 | G11: 0.1069767442 | Q11: 0.4497816594 | R11: 0.3953488372 | S11: BTWList | W11: 1 | X11: 1 | Y11: 1 | Z11: 0 | AA11: 0 | AB11: 0 | AC11: 0 | AD11: 2 | AE11: 1 | AF11: 1 | AG11: 0 | AJ11: 0 | AK11: 2 | AL11: 1 | AM11: 0 | AN11: 0 | AO11: 0 | AP11: 0 | AQ11: 1 | AR11: 0 | AS11: 0 | AT11: 0
E12: 2.5 | F12: 0.06986899563 | G12: 0.08837209302 | Q12: 0.519650655 | R12: 0.4837209302 | S12: None | W12: 18 | X12: 5 | Z12: 0 | AA12: 2 | AB12: 2 | AC12: 3 | AG12: 0 | AJ12: 13 | AK12: 3 | AM12: 0 | AN12: 0 | AO12: 0 | AP12: 2 | AT12: 0
E13: 3 | F13: 0.03493449782 | G13: 0.04186046512 | Q13: 0.5545851528 | R13: 0.5255813953 | S13: <100 | V13: Count | W13: 33 | X13: 33 | Y13: 33 | Z13: 33 | AA13: 33 | AB13: 33 | AC13: 33 | AD13: 33 | AE13: 33 | AF13: 33 | AG13: 33 | AI13: Count | AJ13: 25 | AK13: 25 | AL13: 25 | AM13: 25 | AN13: 25 | AO13: 25 | AP13: 25 | AQ13: 25 | AR13: 25 | AS13: 25 | AT13: 25
E14: 3.5 | F14: 0.05240174672 | G14: 0.03255813953 | Q14: 0.6069868996 | R14: 0.5581395349 | S14: 100+ | V14: Average | W14: 4.95114147 | X14: 0.7039072553 | Y14: 0.1082256342 | Z14: 0.08825146261 | AA14: 0.01635030876 | AB14: 0.0135606707 | AC14: 0.1852695499 | AD14: 0.6442759716 | AE14: 0.0828643034 | AF14: 0.02269588491 | AG14: 0.2501638401 | AI14: Average | AJ14: 4.661322284 | AK14: 0.7150884012 | AL14: 0.1162281942 | AM14: 0.05154522421 | AN14: 0.008990174191 | AO14: 0.00388778234 | AP14: 0.1744133298 | AQ14: 0.6827681939 | AR14: 0.08301421612 | AS14: 0.03106043791 | AT14: 0.2031571521
A15: BENCHMARK CATEGORY | E15: 4 | F15: 0.01746724891 | G15: 0.0511627907 | Q15: 0.6244541485 | R15: 0.6093023256 | V15: Non-ratio average | X15: 163453.2724 | AG15: 58090.17879 | AI15: Non-ratio average | AK15: 141947.6371 | AT15: 40327.43035
A16: Tillable Crop Acres: | B16: All Farms | E16: More | F16: 0.3755458515 | G16: 0.3906976744 | Q16: 1 | R16: 1 | S16: GTList
A17: =IF(B16="Less than 1000", "Beef Cows:", IF(B16="All Farms","", "Head of Beef Cows:")) ->  | E17: Count | F17: =IF($T$6=$W$1,$W$13,IF($T$6=$W$17,$W$29,IF($T$6=$W$33,$W$45,IF($T$6=$W$49,$W$61,IF($T$6=$W$65,$W$77,IF($T$6=$W$81,$W$93,IF($T$6=$W$97,$W$109,IF($T$6=$W$113,$W$125,IF($T$6=$W$129,$W$141,IF($T$6=$W$145,$W$157,IF(T6=$W$161,$W$173,"N/A"))))))))))) -> 229 | G17: =IF($T$6=$W$1,$AJ$13,IF($T$6=$W$17,$AJ$29,IF($T$6=$W$33,$AJ$45,IF($T$6=$W$49,$AJ$61,IF($T$6=$W$65,$AJ$77,IF($T$6=$W$81,$AJ$93,IF($T$6=$W$97,$AJ$109,IF($T$6=$W$113,$AJ$125,IF($T$6=$W$129,$AJ$141,IF($T$6=$W$145,$AJ$157, IF($T$6=$W$161,$AJ$173,"N/A"))))))))))) -> 215 | Q17: =IF($T$6=$W$1,W3/$W$13,IF($T$6=$W$17,W19/$W$29,IF($T$6=$W$33,W35/$W$45,IF($T$6=$W$49,W51/$W$61,IF($T$6=$W$65,W67/$W$77,IF($T$6=$W$81,W83/$W$93,IF($T$6=$W$97,W99/$W$109,IF($T$6=$W$113,W115/$W$125,IF($T$6=$W$129,W131/$W$141,IF($T$6=$W$145,W147/$W$157,IF($T$6=$W$161,W163/$W$173,"N/A"))))))))))) -> 0 | R17: =IF($T$6=$W$1,AJ3/$AJ$13,IF($T$6=$W$17,AJ19/$AJ$29,IF($T$6=$W$33,AJ35/$AJ$45,IF($T$6=$W$49,AJ51/$AJ$61,IF($T$6=$W$65,AJ67/$AJ$77,IF($T$6=$W$81,AJ83/$AJ$93,IF($T$6=$W$97,AJ99/$AJ$109,IF($T$6=$W$113,AJ115/$AJ$125,IF($T$6=$W$129,AJ131/$AJ$141,IF($T$6=$W$145,AJ147/$AJ$157,IF($T$6=$W$161,AJ163/$AJ$173,"N/A"))))))))))) -> 0 | S17: None | W17: Less than 1000Yes
E18: Average | F18: =IF($T$6=$W$1,$W$14,IF($T$6=$W$17,$W$30,IF($T$6=$W$33,$W$46,IF($T$6=$W$49,$W$62,IF($T$6=$W$65,$W$78,IF($T$6=$W$81,$W$94,IF($T$6=$W$97,$W$110,IF($T$6=$W$113,$W$126,IF($T$6=$W$129,$W$142,IF($T$6=$W$145,$W$158, IF($T$6=$W$161,$W$174,"N/A"))))))))))) -> 1.843471551 | G18: =IF($T$6=$W$1,$AJ$14,IF($T$6=$W$17,$AJ$30,IF($T$6=$W$33,$AJ$46,IF($T$6=$W$49,$AJ$62,IF($T$6=$W$65,$AJ$78,IF($T$6=$W$81,$AJ$94,IF($T$6=$W$97,$AJ$110,IF($T$6=$W$113,$AJ$126,IF($T$6=$W$129,$AJ$142,IF($T$6=$W$145,$AJ$158, IF($T$6=$W$161,$AJ$174,"N/A"))))))))))) -> 2.217908686 | Q18: 0.04366812227 | R18: 0.02790697674 | S18: <100 | W18: Current Ratio | X18: Working Capital Ratio | Y18: Debt to Asset Ratio | Z18: Operating Profit Margin | AA18: ROA | AB18: ROE | AC18: Asset Turnover | AD18: Operating Expense Ratio | AE18: Depr Expense Ratio | AF18: Interest Expense Ratio | AG18: NFI Ratio | AJ18: Current Ratio | AK18: Working Capital Ratio | AL18: Debt to Asset Ratio | AM18: Operating Profit Margin | AN18: ROA | AO18: ROE | AP18: Asset Turnover | AQ18: Operating Expense Ratio | AR18: Depr Expense Ratio | AS18: Interest Expense Ratio | AT18: NFI Ratio
Q19: 0.1441048035 | R19: 0.0976744186 | S19: 100+ | W19: 0 | X19: 1 | Y19: 6 | Z19: 5 | AA19: 3 | AB19: 8 | AC19: 0 | AD19: 2 | AE19: 1 | AF19: 9 | AG19: 2 | AJ19: 0 | AK19: 3 | AL19: 1 | AM19: 0 | AN19: 2 | AO19: 4 | AP19: 0 | AQ19: 0 | AR19: 0 | AS19: 1 | AT19: 0
F20: =IF(B22=F18,"","Your Farm") ->  | G20: =IF(B22=F18,"",B22) ->  | Q20: 0.1659388646 | R20: 0.1627906977 | W20: 1 | X20: 1 | Y20: 14 | Z20: 2 | AA20: 3 | AB20: 3 | AC20: 12 | AD20: 3 | AE20: 8 | AF20: 11 | AG20: 0 | AJ20: 3 | AK20: 0 | AL20: 15 | AM20: 1 | AN20: 0 | AO20: 8 | AP20: 7 | AQ20: 2 | AR20: 4 | AS20: 24 | AT20: 0
A21: YOUR FARM VALUES* | Q21: 0.096069869 | R21: 0.1069767442 | W21: 6 | X21: 5 | Y21: 10 | Z21: 3 | AA21: 12 | AB21: 19 | AC21: 20 | AD21: 8 | AE21: 11 | AF21: 15 | AG21: 3 | AJ21: 1 | AK21: 1 | AL21: 13 | AM21: 1 | AN21: 11 | AO21: 17 | AP21: 19 | AQ21: 9 | AR21: 17 | AS21: 13 | AT21: 1
A22: Current Ratio: | B22: =S37 -> 1.843471551 | Q22: 0.06986899563 | R22: 0.08837209302 | S22: None | W22: 5 | X22: 7 | Y22: 5 | Z22: 4 | AA22: 21 | AB22: 13 | AC22: 8 | AD22: 16 | AE22: 15 | AF22: 9 | AG22: 4 | AJ22: 5 | AK22: 6 | AL22: 8 | AM22: 6 | AN22: 27 | AO22: 16 | AP22: 13 | AQ22: 13 | AR22: 19 | AS22: 10 | AT22: 3
A23: Working Capital Ratio: | B23: 0.4241955101 | Q23: 0.03493449782 | R23: 0.04186046512 | S23: Yes | W23: 7 | X23: 11 | Y23: 4 | Z23: 12 | AA23: 6 | AB23: 2 | AC23: 5 | AD23: 7 | AE23: 12 | AF23: 3 | AG23: 10 | AJ23: 6 | AK23: 17 | AL23: 4 | AM23: 15 | AN23: 6 | AO23: 5 | AP23: 4 | AQ23: 17 | AR23: 10 | AS23: 3 | AT23: 18
A24: Debt to Asset Ratio: | B24: 0.2515329738 | Q24: 0.05240174672 | R24: 0.03255813953 | S24: No | W24: 3 | X24: 8 | Y24: 3 | Z24: 17 | AA24: 5 | AB24: 0 | AC24: 2 | AD24: 8 | AE24: 1 | AF24: 4 | AG24: 18 | AJ24: 4 | AK24: 9 | AL24: 5 | AM24: 21 | AN24: 5 | AO24: 1 | AP24: 3 | AQ24: 8 | AR24: 1 | AS24: 0 | AT24: 20
A25: Operating Profit Margin | B25: 0.1031758393 | Q25: 0.01746724891 | R25: 0.0511627907 | W25: 1 | X25: 5 | Y25: 5 | Z25: 6 | AA25: 0 | AB25: 4 | AC25: 0 | AD25: 2 | AE25: 0 | AF25: 0 | AG25: 12 | AJ25: 3 | AK25: 5 | AL25: 3 | AM25: 7 | AN25: 1 | AO25: 1 | AP25: 2 | AQ25: 2 | AR25: 1 | AS25: 1 | AT25: 9
A26: Rate of Return on Farm Assets | B26: 0.02319068136 | E26: Working Captial Ratio | Q26: 0.3755458515 | R26: 0.3906976744 | W26: 1 | X26: 6 | Y26: 0 | Z26: 0 | AA26: 0 | AB26: 0 | AC26: 2 | AD26: 2 | AE26: 1 | AF26: 0 | AG26: 1 | AJ26: 2 | AK26: 5 | AL26: 0 | AM26: 1 | AN26: 0 | AO26: 0 | AP26: 0 | AQ26: 1 | AR26: 0 | AS26: 0 | AT26: 1
A27: Rate of Return on Farm Equity | B27: 0.01666741781 | F27: =U1 -> 2019 | G27: 10-Year | S27: Your Farm Line-Current Ratio | W27: 0 | X27: 2 | Y27: 4 | Z27: 2 | AA27: 0 | AB27: 0 | AC27: 0 | AD27: 3 | AE27: 2 | AF27: 0 | AG27: 1 | AJ27: 3 | AK27: 3 | AL27: 3 | AM27: 0 | AN27: 0 | AO27: 0 | AP27: 2 | AQ27: 0 | AR27: 0 | AS27: 0 | AT27: 0
A28: Asset Turnover Rate | B28: 0.2247685264 | E28: -0.5 | F28: =Q38 -> 0.02183406114 | G28: =R38 -> 0.01395348837 | Q28: =Q38 -> 0.02183406114 | R28: =R38 -> 0.01395348837 | S28: X's | T28: =IF(B22<4.5,B22,4.5) -> 1.843471551 | U28: =IF(B22<4.5,B22,4.5) -> 1.843471551 | W28: 27 | X28: 5 | Z28: 0 | AA28: 1 | AB28: 2 | AC28: 2 | AG28: 0 | AJ28: 25 | AK28: 3 | AM28: 0 | AN28: 0 | AO28: 0 | AP28: 2 | AT28: 0
A29: Operating Expense Ratio | B29: 0.7032465533 | E29: =E28+0.25 -> -0.25 | F29: =Q39 -> 0.04366812227 | G29: =R39 -> 0.01860465116 | Q29: =Q28+Q39 -> 0.06550218341 | R29: =R28+R39 -> 0.03255813953 | S29: Y's | T29: 0 | U29: 1 | V29: Count | W29: 51 | X29: 51 | Y29: 51 | Z29: 51 | AA29: 51 | AB29: 51 | AC29: 51 | AD29: 51 | AE29: 51 | AF29: 51 | AG29: 51 | AI29: Count | AJ29: 52 | AK29: 52 | AL29: 52 | AM29: 52 | AN29: 52 | AO29: 52 | AP29: 52 | AQ29: 52 | AR29: 52 | AS29: 52 | AT29: 52
A30: Depreciation Expense Ratio | B30: 0.07609163901 | E30: =E29+0.25 -> 0 | F30: 0.1222707424 | G30: 0.09302325581 | Q30: 0.1877729258 | R30: 0.1255813953 | S30: =IF(B22=F18,U1 &" Average","Your Farm") -> 2019 Average | V30: Average | W30: 2.979430437 | X30: 0.6760342514 | Y30: 0.1961859332 | Z30: -0.01738523654 | AA30: -0.002704473252 | AB30: -0.01291400601 | AC30: 0.1555614873 | AD30: 0.70199126 | AE30: 0.07645745208 | AF30: 0.0470409633 | AG30: 0.1745103246 | AI30: Average | AJ30: 3.565841158 | AK30: 0.7032525682 | AL30: 0.1784939837 | AM30: 0.0273002726 | AN30: 0.005157043546 | AO30: -0.003079377077 | AP30: 0.1889008077 | AQ30: 0.692881434 | AR30: 0.06892974185 | AS30: 0.03796033099 | AT30: 0.2002284931
A31: Interest Expense Ratio | B31: 0.04241778282 | E31: 0.25 | F31: 0.2008733624 | G31: 0.1813953488 | Q31: 0.3886462882 | R31: 0.3069767442 | S31: Your Farm Line-Working Capital Ratio | V31: Non-ratio average | X31: 169292.7031 | AG31: 43700.92863 | AI31: Non-ratio average | AK31: 169187.4725 | AT31: 48170.67752
A32: Net Farm Income Ratio: | B32: 0.1782440249 | E32: 0.5 | F32: 0.1965065502 | G32: 0.2325581395 | Q32: 0.5851528384 | R32: 0.5395348837 | S32: X's | T32: =IF(B23>1.75,1.75,B23) -> 0.4241955101 | U32: =IF(B23>1.75,1.75,B23) -> 0.4241955101
A33: *Defaults to Averages for 2019 if not entered | E33: 0.75 | F33: 0.1266375546 | G33: 0.1488372093 | Q33: 0.711790393 | R33: 0.688372093 | S33: Y's | T33: 0 | U33: 1 | W33: Greater than 1000None
E34: 1 | F34: 0.096069869 | G34: 0.1395348837 | Q34: 0.807860262 | R34: 0.8279069767 | S34: =IF(B23=F39,U1 &" Average","Your Farm") -> 2019 Average | W34: Current Ratio | X34: Working Capital Ratio | Y34: Debt to Asset Ratio | Z34: Operating Profit Margin | AA34: ROA | AB34: ROE | AC34: Asset Turnover | AD34: Operating Expense Ratio | AE34: Depr Expense Ratio | AF34: Interest Expense Ratio | AG34: NFI Ratio | AJ34: Current Ratio | AK34: Working Capital Ratio | AL34: Debt to Asset Ratio | AM34: Operating Profit Margin | AN34: ROA | AO34: ROE | AP34: Asset Turnover | AQ34: Operating Expense Ratio | AR34: Depr Expense Ratio | AS34: Interest Expense Ratio | AT34: NFI Ratio
E35: 1.25 | F35: 0.09170305677 | G35: 0.08372093023 | Q35: 0.8995633188 | R35: 0.911627907 | W35: 0 | X35: 1 | Y35: 4 | Z35: 0 | AA35: 0 | AB35: 3 | AC35: 0 | AD35: 0 | AE35: 1 | AF35: 5 | AG35: 0 | AJ35: 0 | AK35: 0 | AL35: 1 | AM35: 0 | AN35: 0 | AO35: 0 | AP35: 0 | AQ35: 0 | AR35: 0 | AS35: 0 | AT35: 0
E36: 1.5 | F36: 0.03930131004 | G36: 0.0511627907 | Q36: 0.9388646288 | R36: 0.9627906977 | W36: 2 | X36: 1 | Y36: 12 | Z36: 0 | AA36: 0 | AB36: 2 | AC36: 2 | AD36: 5 | AE36: 2 | AF36: 20 | AG36: 0 | AJ36: 2 | AK36: 1 | AL36: 10 | AM36: 0 | AN36: 0 | AO36: 2 | AP36: 1 | AQ36: 1 | AR36: 1 | AS36: 18 | AT36: 0
E37: More | F37: 0.06113537118 | G37: 0.03720930233 | Q37: 1 | R37: 1 | S37: =$F$18 -> 1.843471551 | W37: 4 | X37: 4 | Y37: 11 | Z37: 0 | AA37: 4 | AB37: 9 | AC37: 9 | AD37: 8 | AE37: 10 | AF37: 8 | AG37: 0 | AJ37: 4 | AK37: 5 | AL37: 8 | AM37: 0 | AN37: 3 | AO37: 8 | AP37: 8 | AQ37: 9 | AR37: 3 | AS37: 14 | AT37: 1
E38: Count | F38: =F17 -> 229 | G38: =G17 -> 215 | Q38: =IF($T$6=$W$1,X3/$F$38,IF($T$6=$W$17,X19/$F$38,IF($T$6=$W$33,X35/$F$38,IF($T$6=$W$49,X51/$F$38,IF($T$6=$W$65,X67/$F$38,IF($T$6=$W$81,X83/$F$38,IF($T$6=$W$97,X99/$F$38,IF($T$6=$W$113,X115/$F$38,IF($T$6=$W$129,X131/$F$38,IF($T$6=$W$145,X147/$F$38,IF($T$6=$W$161,X163/$F$38,"N/A"))))))))))) -> 0.02183406114 | R38: =IF($T$6=$W$1,AK3/$G$38,IF($T$6=$W$17,AK19/$G$38,IF($T$6=$W$33,AK35/$G$38,IF($T$6=$W$49,AK51/$G$38,IF($T$6=$W$65,AK67/$G$38,IF($T$6=$W$81,AK83/$G$38,IF($T$6=$W$97,AK99/$G$38,IF($T$6=$W$113,AK115/$G$38,IF($T$6=$W$129,AK131/$G$38,IF($T$6=$W$145,AK147/$G$38,IF($T$6=$W$161,AK163/$G$38,"N/A"))))))))))) -> 0.01395348837 | S38: =$F$39 -> 0.4241955101 | W38: 5 | X38: 8 | Y38: 4 | Z38: 1 | AA38: 10 | AB38: 9 | AC38: 13 | AD38: 12 | AE38: 12 | AF38: 3 | AG38: 3 | AJ38: 2 | AK38: 5 | AL38: 7 | AM38: 2 | AN38: 15 | AO38: 19 | AP38: 14 | AQ38: 15 | AR38: 9 | AS38: 3 | AT38: 2
E39: Average | F39: =IF($T$6=$W$1,$X$14,IF($T$6=$W$17,$X$30,IF($T$6=$W$33,$X$46,IF($T$6=$W$49,$X$62,IF($T$6=$W$65,$X$78,IF($T$6=$W$81,$X$94,IF($T$6=$W$97,$X$110,IF($T$6=$W$113,$X$126,IF($T$6=$W$129,$X$142,IF($T$6=$W$145,$X$158,IF($T$6=$W$161,$X$174,"N/A"))))))))))) -> 0.4241955101 | G39: =IF($T$6=$W$1,$AK$14,IF($T$6=$W$17,$AK$30,IF($T$6=$W$33,$AK$46,IF($T$6=$W$49,$AK$62,IF($T$6=$W$65,$AK$78,IF($T$6=$W$81,$AK$94,IF($T$6=$W$97,$AK$110,IF($T$6=$W$113,$AK$126,IF($T$6=$W$129,$AK$142,IF($T$6=$W$145,$AK$158,IF($T$6=$W$161,$AK$174,"N/A"))))))))))) -> 0.5109725003 | Q39: 0.04366812227 | R39: 0.01860465116 | S39: =$F$59 -> 0.2515329738 | W39: 2 | X39: 8 | Y39: 3 | Z39: 11 | AA39: 12 | AB39: 9 | AC39: 1 | AD39: 8 | AE39: 8 | AF39: 1 | AG39: 10 | AJ39: 4 | AK39: 10 | AL39: 6 | AM39: 4 | AN39: 15 | AO39: 5 | AP39: 3 | AQ39: 8 | AR39: 7 | AS39: 1 | AT39: 9
E40: Working Capital Avg. | Q40: 0.1222707424 | R40: 0.09302325581 | S40: =$F$81 -> 0.1031758393 | W40: 0 | X40: 5 | Y40: 1 | Z40: 10 | AA40: 8 | AB40: 3 | AC40: 4 | AD40: 4 | AE40: 4 | AF40: 2 | AG40: 11 | AJ40: 2 | AK40: 4 | AL40: 2 | AM40: 20 | AN40: 3 | AO40: 3 | AP40: 3 | AQ40: 3 | AR40: 9 | AS40: 1 | AT40: 19
F41: =IF($T$6=$W$1,$X$15,IF($T$6=$W$17,$X$31,IF($T$6=$W$33,$X$47,IF($T$6=$W$49,$X$63,IF($T$6=$W$65,$X$79,IF($T$6=$W$81,$X$95,IF($T$6=$W$97,$X$111,IF($T$6=$W$113,$X$127,IF($T$6=$W$129,$X$143,IF($T$6=$W$145,$X$159,IF($T$6=$W$161,$X$175,"N/A"))))))))))) -> 263860.2606 | G41: =IF($T$6=$W$1,$AK$15,IF($T$6=$W$17,$AK$31,IF($T$6=$W$33,$AK$47,IF($T$6=$W$49,$AK$63,IF($T$6=$W$65,$AK$79,IF($T$6=$W$81,$AK$95,IF($T$6=$W$97,$AK$111,IF($T$6=$W$113,$AK$127,IF($T$6=$W$129,$AK$143,IF($T$6=$W$145,$AK$159,IF($T$6=$W$161,$AK$175,"N/A"))))))))))) -> 273994.4081 | Q41: 0.2008733624 | R41: 0.1813953488 | S41: =$F$102 -> 0.02319068136 | W41: 1 | X41: 2 | Y41: 0 | Z41: 10 | AA41: 1 | AB41: 1 | AC41: 5 | AD41: 2 | AE41: 2 | AF41: 0 | AG41: 14 | AJ41: 1 | AK41: 7 | AL41: 1 | AM41: 11 | AN41: 1 | AO41: 0 | AP41: 6 | AQ41: 1 | AR41: 6 | AS41: 0 | AT41: 6
Q42: 0.1965065502 | R42: 0.2325581395 | S42: =$F$123 -> 0.01666741781 | W42: 3 | X42: 7 | Y42: 1 | Z42: 7 | AA42: 1 | AB42: 1 | AC42: 2 | AD42: 0 | AE42: 0 | AF42: 0 | AG42: 1 | AJ42: 2 | AK42: 2 | AL42: 0 | AM42: 0 | AN42: 0 | AO42: 0 | AP42: 1 | AQ42: 0 | AR42: 1 | AS42: 0 | AT42: 0
F43: =IF(B23=F39,"","Your Farm") ->  | G43: =IF(B23=F39,"",B23) ->  | Q43: 0.1266375546 | R43: 0.1488372093 | S43: =$F$144 -> 0.2247685264 | W43: 2 | X43: 2 | Y43: 3 | Z43: 0 | AA43: 2 | AB43: 0 | AC43: 1 | AD43: 0 | AE43: 0 | AF43: 0 | AG43: 0 | AJ43: 4 | AK43: 2 | AL43: 2 | AM43: 0 | AN43: 0 | AO43: 0 | AP43: 0 | AQ43: 0 | AR43: 1 | AS43: 0 | AT43: 0
Q44: 0.096069869 | R44: 0.1395348837 | S44: =$F$164 -> 0.7032465533 | W44: 20 | X44: 1 | Z44: 0 | AA44: 1 | AB44: 2 | AC44: 2 | AG44: 0 | AJ44: 16 | AK44: 1 | AM44: 0 | AN44: 0 | AO44: 0 | AP44: 1 | AT44: 0
Q45: 0.09170305677 | R45: 0.08372093023 | S45: =$F$185 -> 0.07609163901 | V45: Count | W45: 39 | X45: 39 | Y45: 39 | Z45: 39 | AA45: 39 | AB45: 39 | AC45: 39 | AD45: 39 | AE45: 39 | AF45: 39 | AG45: 39 | AI45: Count | AJ45: 37 | AK45: 37 | AL45: 37 | AM45: 37 | AN45: 37 | AO45: 37 | AP45: 37 | AQ45: 37 | AR45: 37 | AS45: 37 | AT45: 37
Q46: 0.03930131004 | R46: 0.0511627907 | S46: =$F$206 -> 0.04241778282 | V46: Average | W46: 3.834971668 | X46: 0.5421695604 | Y46: 0.1775557623 | Z46: 0.1415379653 | AA46: 0.03747143856 | AB46: 0.03622911799 | AC46: 0.2647447876 | AD46: 0.6643166891 | AE46: 0.07870553724 | AF46: 0.02537061719 | AG46: 0.2316071565 | AI46: Average | AJ46: 3.781545557 | AK46: 0.5813384426 | AL46: 0.183467303 | AM46: 0.09608195915 | AN46: 0.02632157085 | AO46: 0.02200552285 | AP46: 0.2739491481 | AQ46: 0.6758253528 | AR46: 0.109249728 | AS46: 0.02811313384 | AT46: 0.1868117854
E47: Debt to Asset Ratio | Q47: 0.06113537118 | R47: 0.03720930233 | S47: =$F$228 -> 0.1782440249 | V47: Non-ratio average | X47: 387640.4354 | AG47: 165594.5032 | AI47: Non-ratio average | AK47: 334466.4311 | AT47: 107480.0264
F48: =U1 -> 2019 | G48: 10-Year
E49: 0 | F49: =Q58 -> 0.1048034934 | G49: =R58 -> 0.02790697674 | Q49: =Q58 -> 0.1048034934 | R49: =R58 -> 0.02790697674 | S49: Your Farm Line-Debt to Asset | W49: Greater than 1000<100
E50: 0.1 | F50: =Q59 -> 0.2183406114 | G50: =R59 -> 0.2604651163 | Q50: =Q49+Q59 -> 0.3231441048 | R50: 0.288372093 | S50: X's | T50: =IF(B24>0.8,0.8,B24) -> 0.2515329738 | U50: =T50 -> 0.2515329738 | W50: Current Ratio | X50: Working Capital Ratio | Y50: Debt to Asset Ratio | Z50: Operating Profit Margin | AA50: ROA | AB50: ROE | AC50: Asset Turnover | AD50: Operating Expense Ratio | AE50: Depr Expense Ratio | AF50: Interest Expense Ratio | AG50: NFI Ratio | AJ50: Current Ratio | AK50: Working Capital Ratio | AL50: Debt to Asset Ratio | AM50: Operating Profit Margin | AN50: ROA | AO50: ROE | AP50: Asset Turnover | AQ50: Operating Expense Ratio | AR50: Depr Expense Ratio | AS50: Interest Expense Ratio | AT50: NFI Ratio
E51: 0.2 | F51: 0.1790393013 | G51: 0.1534883721 | Q51: 0.5021834061 | R51: 0.4418604651 | S51: Y's | T51: 0 | U51: 1 | W51: 0 | X51: 0 | Y51: 3 | Z51: 1 | AA51: 2 | AB51: 1 | AC51: 0 | AD51: 0 | AE51: 0 | AF51: 2 | AG51: 0 | AJ51: 0 | AK51: 0 | AL51: 0 | AM51: 0 | AN51: 0 | AO51: 1 | AP51: 0 | AQ51: 0 | AR51: 0 | AS51: 0 | AT51: 0
E52: 0.3 | F52: 0.1266375546 | G52: 0.1720930233 | Q52: 0.6288209607 | R52: 0.6139534884 | S52: =IF(B24=F59,U1 &" Average","Your Farm") -> 2019 Average | W52: 1 | X52: 3 | Y52: 5 | Z52: 0 | AA52: 1 | AB52: 1 | AC52: 2 | AD52: 0 | AE52: 0 | AF52: 12 | AG52: 1 | AJ52: 0 | AK52: 0 | AL52: 8 | AM52: 0 | AN52: 0 | AO52: 3 | AP52: 1 | AQ52: 1 | AR52: 0 | AS52: 16 | AT52: 0
E53: 0.4 | F53: 0.1441048035 | G53: 0.1674418605 | Q53: 0.7729257642 | R53: 0.7813953488 | W53: 10 | X53: 8 | Y53: 7 | Z53: 1 | AA53: 2 | AB53: 11 | AC53: 13 | AD53: 11 | AE53: 14 | AF53: 10 | AG53: 0 | AJ53: 4 | AK53: 4 | AL53: 7 | AM53: 0 | AN53: 5 | AO53: 8 | AP53: 8 | AQ53: 7 | AR53: 4 | AS53: 16 | AT53: 0
E54: 0.5 | F54: 0.07860262009 | G54: 0.1023255814 | Q54: 0.8515283843 | R54: 0.8837209302 | W54: 8 | X54: 7 | Y54: 6 | Z54: 0 | AA54: 14 | AB54: 17 | AC54: 12 | AD54: 16 | AE54: 11 | AF54: 9 | AG54: 0 | AJ54: 8 | AK54: 8 | AL54: 9 | AM54: 3 | AN54: 12 | AO54: 19 | AP54: 17 | AQ54: 16 | AR54: 18 | AS54: 5 | AT54: 2
E55: 0.6 | F55: 0.05676855895 | G55: 0.05581395349 | Q55: 0.9082969432 | R55: 0.9395348837 | W55: 4 | X55: 6 | Y55: 9 | Z55: 5 | AA55: 12 | AB55: 5 | AC55: 2 | AD55: 9 | AE55: 3 | AF55: 3 | AG55: 12 | AJ55: 6 | AK55: 10 | AL55: 7 | AM55: 4 | AN55: 19 | AO55: 7 | AP55: 9 | AQ55: 10 | AR55: 8 | AS55: 1 | AT55: 9
E56: 0.7 | F56: 0.02620087336 | G56: 0.009302325581 | Q56: 0.9344978166 | R56: 0.9488372093 | W56: 3 | X56: 5 | Y56: 3 | Z56: 20 | AA56: 5 | AB56: 1 | AC56: 4 | AD56: 2 | AE56: 5 | AF56: 3 | AG56: 17 | AJ56: 3 | AK56: 4 | AL56: 5 | AM56: 19 | AN56: 3 | AO56: 1 | AP56: 2 | AQ56: 5 | AR56: 5 | AS56: 1 | AT56: 22
E57: More | F57: 0.06550218341 | G57: 0.0511627907 | Q57: 1 | R57: 1 | W57: 0 | X57: 5 | Y57: 2 | Z57: 10 | AA57: 2 | AB57: 1 | AC57: 0 | AD57: 0 | AE57: 6 | AF57: 0 | AG57: 9 | AJ57: 1 | AK57: 9 | AL57: 2 | AM57: 13 | AN57: 0 | AO57: 0 | AP57: 0 | AQ57: 0 | AR57: 2 | AS57: 0 | AT57: 6
E58: Count | F58: =F38 -> 229 | G58: =G38 -> 215 | Q58: =IF($T$6=$W$1,Y3/$F$58,IF($T$6=$W$17,Y19/$F$58,IF($T$6=$W$33,Y35/$F$58,IF($T$6=$W$49,Y51/$F$58,IF($T$6=$W$65,Y67/$F$58,IF($T$6=$W$81,Y83/$F$58,IF($T$6=$W$97,Y99/$F$58,IF($T$6=$W$113,Y115/$F$58,IF($T$6=$W$129,Y131/$F$58,IF($T$6=$W$145,Y147/$F$58,IF($T$6=$W$161,Y163/$F$58,"N/A"))))))))))) -> 0.1048034934 | R58: =IF($T$6=$W$1,AL3/$G$38,IF($T$6=$W$17,AL19/$G$38,IF($T$6=$W$33,AL35/$G$38,IF($T$6=$W$49,AL51/$G$38,IF($T$6=$W$65,AL67/$G$38,IF($T$6=$W$81,AL83/$G$38,IF($T$6=$W$97,AL99/$G$38,IF($T$6=$W$113,AL115/$G$38,IF($T$6=$W$129,AL131/$G$38,IF($T$6=$W$145,AL147/$G$38,IF($T$6=$W$161,AL163/$G$38,"N/A"))))))))))) -> 0.02790697674 | W58: 4 | X58: 2 | Y58: 1 | Z58: 2 | AA58: 1 | AB58: 1 | AC58: 2 | AD58: 0 | AE58: 0 | AF58: 0 | AG58: 0 | AJ58: 0 | AK58: 1 | AL58: 0 | AM58: 0 | AN58: 0 | AO58: 0 | AP58: 1 | AQ58: 0 | AR58: 2 | AS58: 0 | AT58: 0
E59: Average | F59: =IF($T$6=$W$1,$Y$14,IF($T$6=$W$17,$Y$30,IF($T$6=$W$33,$Y$46,IF($T$6=$W$49,$Y$62,IF($T$6=$W$65,$Y$78,IF($T$6=$W$81,$Y$94,IF($T$6=$W$97,$Y$110,IF($T$6=$W$113,$Y$126,IF($T$6=$W$129,$Y$142,IF($T$6=$W$145,$Y$158,IF($T$6=$W$161,$Y$174,"N/A"))))))))))) -> 0.2515329738 | G59: =IF($T$6=$W$1,$AL$14,IF($T$6=$W$17,$AL$30,IF($T$6=$W$33,$AL$46,IF($T$6=$W$49,$AL$62,IF($T$6=$W$65,$AL$78,IF($T$6=$W$81,$AL$94,IF($T$6=$W$97,$AL$110,IF($T$6=$W$113,$AL$126,IF($T$6=$W$129,$AL$142,IF($T$6=$W$145,$AL$158,IF($T$6=$W$161,$AL$174,"N/A"))))))))))) -> 0.241794875 | Q59: 0.2183406114 | R59: 0.2604651163 | W59: 1 | X59: 2 | Y59: 3 | Z59: 0 | AA59: 0 | AB59: 0 | AC59: 2 | AD59: 1 | AE59: 0 | AF59: 0 | AG59: 0 | AJ59: 2 | AK59: 3 | AL59: 1 | AM59: 0 | AN59: 0 | AO59: 0 | AP59: 1 | AQ59: 0 | AR59: 0 | AS59: 0 | AT59: 0
Q60: 0.1790393013 | R60: 0.1534883721 | W60: 8 | X60: 1 | Z60: 0 | AA60: 0 | AB60: 1 | AC60: 2 | AG60: 0 | AJ60: 15 | AK60: 0 | AM60: 0 | AN60: 0 | AO60: 0 | AP60: 0 | AT60: 0
Q61: 0.1266375546 | R61: 0.1720930233 | V61: Count | W61: 39 | X61: 39 | Y61: 39 | Z61: 39 | AA61: 39 | AB61: 39 | AC61: 39 | AD61: 39 | AE61: 39 | AF61: 39 | AG61: 39 | AI61: Count | AJ61: 39 | AK61: 39 | AL61: 39 | AM61: 39 | AN61: 39 | AO61: 39 | AP61: 39 | AQ61: 39 | AR61: 39 | AS61: 39 | AT61: 39
Q62: 0.1441048035 | R62: 0.1674418605 | V62: Average | W62: 1.838769724 | X62: 0.3713558045 | Y62: 0.2420771086 | Z62: 0.110625616 | AA62: 0.02461630608 | AB62: 0.01663412003 | AC62: 0.2225190419 | AD62: 0.6549400881 | AE62: 0.08781365088 | AF62: 0.0511220473 | AG62: 0.2061242137 | AI62: Average | AJ62: 2.422657413 | AK62: 0.4851115405 | AL62: 0.2211570459 | AM62: 0.1090452728 | AN62: 0.0277396952 | AO62: 0.02370349477 | AP62: 0.2543869577 | AQ62: 0.6699465407 | AR62: 0.09514725768 | AS62: 0.03526475556 | AT62: 0.1996414461
F63: =IF(B24=F59,"","Your Farm") ->  | G63: =IF(B24=F59,"",B24) ->  | Q63: 0.07860262009 | R63: 0.1023255814 | V63: Non-ratio average | X63: 212221.5777 | AG63: 117795.4008 | AI63: Non-ratio average | AK63: 264103.3465 | AT63: 108688.3523
Q64: 0.05676855895 | R64: 0.05581395349
Q65: 0.02620087336 | R65: 0.009302325581 | W65: Greater than 1000100+
Q66: 0.06550218341 | R66: 0.0511627907 | W66: Current Ratio | X66: Working Capital Ratio | Y66: Debt to Asset Ratio | Z66: Operating Profit Margin | AA66: ROA | AB66: ROE | AC66: Asset Turnover | AD66: Operating Expense Ratio | AE66: Depr Expense Ratio | AF66: Interest Expense Ratio | AG66: NFI Ratio | AJ66: Current Ratio | AK66: Working Capital Ratio | AL66: Debt to Asset Ratio | AM66: Operating Profit Margin | AN66: ROA | AO66: ROE | AP66: Asset Turnover | AQ66: Operating Expense Ratio | AR66: Depr Expense Ratio | AS66: Interest Expense Ratio | AT66: NFI Ratio
W67: 0 | X67: 0 | Y67: 5 | Z67: 0 | AA67: 0 | AB67: 5 | AC67: 0 | AD67: 0 | AE67: 0 | AF67: 5 | AG67: 1 | AJ67: 0 | AK67: 0 | AL67: 1 | AM67: 0 | AN67: 0 | AO67: 1 | AP67: 0 | AQ67: 0 | AR67: 0 | AS67: 1 | AT67: 0
E68: Operating Profit Margin Ratio | W68: 2 | X68: 3 | Y68: 3 | Z68: 1 | AA68: 2 | AB68: 1 | AC68: 0 | AD68: 0 | AE68: 1 | AF68: 8 | AG68: 0 | AJ68: 0 | AK68: 0 | AL68: 10 | AM68: 0 | AN68: 0 | AO68: 2 | AP68: 1 | AQ68: 0 | AR68: 0 | AS68: 14 | AT68: 0
F69: =U1 -> 2019 | G69: 10-Year | W69: 8 | X69: 7 | Y69: 5 | Z69: 0 | AA69: 4 | AB69: 10 | AC69: 18 | AD69: 7 | AE69: 14 | AF69: 16 | AG69: 0 | AJ69: 6 | AK69: 6 | AL69: 3 | AM69: 0 | AN69: 1 | AO69: 12 | AP69: 14 | AQ69: 3 | AR69: 7 | AS69: 13 | AT69: 0
E70: -0.6 | F70: =Q80 -> 0.03493449782 | G70: =R80 -> 0.004651162791 | Q70: =Q80 -> 0.03493449782 | R70: =R80 -> 0.004651162791 | W70: 10 | X70: 12 | Y70: 10 | Z70: 1 | AA70: 13 | AB70: 18 | AC70: 14 | AD70: 13 | AE70: 15 | AF70: 9 | AG70: 1 | AJ70: 10 | AK70: 10 | AL70: 4 | AM70: 0 | AN70: 17 | AO70: 19 | AP70: 15 | AQ70: 15 | AR70: 15 | AS70: 8 | AT70: 1
E71: -0.45 | F71: =Q81 -> 0.02183406114 | G71: =R81 -> 0.004651162791 | Q71: =Q70+Q81 -> 0.05676855895 | R71: =R70+R81 -> 0.009302325581 | S71: Your Farm Line-Operating Profit Margin Ratio | W71: 5 | X71: 10 | Y71: 9 | Z71: 9 | AA71: 17 | AB71: 7 | AC71: 1 | AD71: 16 | AE71: 9 | AF71: 4 | AG71: 20 | AJ71: 1 | AK71: 5 | AL71: 10 | AM71: 8 | AN71: 19 | AO71: 3 | AP71: 5 | AQ71: 16 | AR71: 13 | AS71: 1 | AT71: 17
E72: -0.3 | F72: 0.03056768559 | G72: 0.004651162791 | Q72: 0.08733624454 | R72: 0.01395348837 | S72: X's | T72: =IF(B25>0.75,0.75,B25) -> 0.1031758393 | U72: =T72 -> 0.1031758393 | W72: 5 | X72: 4 | Y72: 5 | Z72: 18 | AA72: 7 | AB72: 1 | AC72: 2 | AD72: 5 | AE72: 5 | AF72: 1 | AG72: 17 | AJ72: 5 | AK72: 9 | AL72: 7 | AM72: 25 | AN72: 0 | AO72: 1 | AP72: 0 | AQ72: 5 | AR72: 3 | AS72: 2 | AT72: 19
E73: -0.15 | F73: 0.03930131004 | G73: 0.07441860465 | Q73: 0.1266375546 | R73: 0.08837209302 | S73: Y's | T73: 0 | U73: 1 | W73: 2 | X73: 3 | Y73: 2 | Z73: 13 | AA73: 0 | AB73: 1 | AC73: 2 | AD73: 2 | AE73: 0 | AF73: 1 | AG73: 5 | AJ73: 1 | AK73: 3 | AL73: 2 | AM73: 5 | AN73: 2 | AO73: 0 | AP73: 1 | AQ73: 0 | AR73: 1 | AS73: 0 | AT73: 2
E74: 0 | F74: 0.1877729258 | G74: 0.223255814 | Q74: 0.3144104803 | R74: 0.311627907 | S74: =IF(B25=F81,U1 &" Average","Your Farm") -> 2019 Average | W74: 3 | X74: 2 | Y74: 3 | Z74: 2 | AA74: 1 | AB74: 1 | AC74: 2 | AD74: 0 | AE74: 0 | AF74: 0 | AG74: 0 | AJ74: 2 | AK74: 5 | AL74: 0 | AM74: 1 | AN74: 0 | AO74: 0 | AP74: 1 | AQ74: 0 | AR74: 0 | AS74: 0 | AT74: 0
E75: 0.15 | F75: 0.3755458515 | G75: 0.4697674419 | Q75: 0.6899563319 | R75: 0.7813953488 | W75: 0 | X75: 2 | Y75: 2 | Z75: 0 | AA75: 0 | AB75: 0 | AC75: 3 | AD75: 1 | AE75: 0 | AF75: 0 | AG75: 0 | AJ75: 2 | AK75: 1 | AL75: 2 | AM75: 0 | AN75: 0 | AO75: 0 | AP75: 2 | AQ75: 0 | AR75: 0 | AS75: 0 | AT75: 0
E76: 0.3 | F76: 0.2270742358 | G76: 0.1906976744 | Q76: 0.9170305677 | R76: 0.9720930233 | W76: 9 | X76: 1 | Z76: 0 | AA76: 0 | AB76: 0 | AC76: 2 | AG76: 0 | AJ76: 12 | AK76: 0 | AM76: 0 | AN76: 0 | AO76: 1 | AP76: 0 | AT76: 0
E77: 0.45 | F77: 0.07423580786 | G77: 0.02790697674 | Q77: 0.9912663755 | R77: 1 | V77: Count | W77: 44 | X77: 44 | Y77: 44 | Z77: 44 | AA77: 44 | AB77: 44 | AC77: 44 | AD77: 44 | AE77: 44 | AF77: 44 | AG77: 44 | AI77: Count | AJ77: 39 | AK77: 39 | AL77: 39 | AM77: 39 | AN77: 39 | AO77: 39 | AP77: 39 | AQ77: 39 | AR77: 39 | AS77: 39 | AT77: 39
E78: 0.6 | F78: 0.008733624454 | G78: 0 | Q78: 1 | R78: 1 | V78: Average | W78: 1.677807909 | X78: 0.2968061215 | Y78: 0.2787645831 | Z78: 0.09444895782 | AA78: 0.02563181442 | AB78: 0.01755003131 | AC78: 0.271382713 | AD78: 0.7283498582 | AE78: 0.07686516028 | AF78: 0.04604294158 | AG78: 0.1487420399 | AI78: Average | AJ78: 1.877797244 | AK78: 0.386091319 | AL78: 0.2868662368 | AM78: 0.09586957846 | AN78: 0.02510111582 | AO78: 0.01797408705 | AP78: 0.2618256618 | AQ78: 0.7282328237 | AR78: 0.08313317248 | AS78: 0.04301688628 | AT78: 0.1456171175
E79: More | F79: 0 | G79: 0 | Q79: 1 | R79: 1 | V79: Non-ratio average | X79: 305907.6638 | AG79: 153303.2058 | AI79: Non-ratio average | AK79: 334184.4554 | AT79: 126040.0706
E80: Count | F80: =F58 -> 229 | G80: =G58 -> 215 | Q80: =IF($T$6=$W$1,Z3/$F$80,IF($T$6=$W$17,Z19/$F$80,IF($T$6=$W$33,Z35/$F$80,IF($T$6=$W$49,Z51/$F$80,IF($T$6=$W$65,Z67/$F$80,IF($T$6=$W$81,Z83/$F$80,IF($T$6=$W$97,Z99/$F$80,IF($T$6=$W$113,Z115/$F$80,IF($T$6=$W$129,Z131/$F$80,IF($T$6=$W$145,Z147/$F$80,IF($T$6=$W$161,Z163/$F$80,"N/A"))))))))))) -> 0.03493449782 | R80: =IF($T$6=$W$1,AM3/$G$38,IF($T$6=$W$17,AM19/$G$38,IF($T$6=$W$33,AM35/$G$38,IF($T$6=$W$49,AM51/$G$38,IF($T$6=$W$65,AM67/$G$38,IF($T$6=$W$81,AM83/$G$38,IF($T$6=$W$97,AM99/$G$38,IF($T$6=$W$113,AM115/$G$38,IF($T$6=$W$129,AM131/$G$38,IF($T$6=$W$145,AM147/$G$38,IF($T$6=$W$161,AM163/$G$38,"N/A"))))))))))) -> 0.004651162791
E81: Average | F81: =IF($T$6=$W$1,$Z$14,IF($T$6=$W$17,$Z$30,IF($T$6=$W$33,$Z$46,IF($T$6=$W$49,$Z$62,IF($T$6=$W$65,$Z$78,IF($T$6=$W$81,$Z$94,IF($T$6=$W$97,$Z$110,IF($T$6=$W$113,$Z$126,IF($T$6=$W$129,$Z$142,IF($T$6=$W$145,$Z$158,IF($T$6=W161,Z174,"N/A"))))))))))) -> 0.1031758393 | G81: =IF($T$6=$W$1,$AM$14,IF($T$6=$W$17,$AM$30,IF($T$6=$W$33,$AM$46,IF($T$6=$W$49,$AM$62,IF($T$6=$W$65,$AM$78,IF($T$6=$W$81,$AM$94,IF($T$6=$W$97,$AM$110,IF($T$6=$W$113,$AM$126,IF($T$6=$W$129,$AM$142,IF($T$6=$W$145,$AM$158,IF($T$6=$W$161,$AM$174,"N/A"))))))))))) -> 0.0919740069 | Q81: 0.02183406114 | R81: 0.004651162791 | W81: All Farms
Q82: 0.03056768559 | R82: 0.004651162791 | W82: Current Ratio | X82: Working Capital Ratio | Y82: Debt to Asset Ratio | Z82: Operating Profit Margin | AA82: ROA | AB82: ROE | AC82: Asset Turnover | AD82: Operating Expense Ratio | AE82: Depr Expense Ratio | AF82: Interest Expense Ratio | AG82: NFI Ratio | AJ82: Current Ratio | AK82: Working Capital Ratio | AL82: Debt to Asset Ratio | AM82: Operating Profit Margin | AN82: ROA | AO82: ROE | AP82: Asset Turnover | AQ82: Operating Expense Ratio | AR82: Depr Expense Ratio | AS82: Interest Expense Ratio | AT82: NFI Ratio
Q83: 0.03930131004 | R83: 0.07441860465 | W83: 0 | X83: 5 | Y83: 24 | Z83: 8 | AA83: 9 | AB83: 22 | AC83: 0 | AD83: 2 | AE83: 2 | AF83: 32 | AG83: 6 | AJ83: 0 | AK83: 3 | AL83: 6 | AM83: 1 | AN83: 2 | AO83: 12 | AP83: 0 | AQ83: 0 | AR83: 0 | AS83: 3 | AT83: 0
Q84: 0.1877729258 | R84: 0.223255814 | W84: 10 | X84: 10 | Y84: 50 | Z84: 5 | AA84: 6 | AB84: 15 | AC84: 23 | AD84: 15 | AE84: 19 | AF84: 71 | AG84: 1 | AJ84: 6 | AK84: 4 | AL84: 56 | AM84: 1 | AN84: 3 | AO84: 22 | AP84: 17 | AQ84: 6 | AR84: 10 | AS84: 94 | AT84: 1
F85: =IF(B25=F81,"","Your Farm") ->  | G85: =IF(B25=F81,"",B25) ->  | Q85: 0.3755458515 | R85: 0.4697674419 | W85: 33 | X85: 28 | Y85: 41 | Z85: 7 | AA85: 29 | AB85: 60 | AC85: 82 | AD85: 44 | AE85: 65 | AF85: 60 | AG85: 5 | AJ85: 21 | AK85: 20 | AL85: 33 | AM85: 1 | AN85: 24 | AO85: 58 | AP85: 65 | AQ85: 33 | AR85: 42 | AS85: 69 | AT85: 2
Q86: 0.2270742358 | R86: 0.1906976744 | W86: 38 | X86: 46 | Y86: 29 | Z86: 9 | AA86: 80 | AB86: 76 | AC86: 59 | AD86: 70 | AE86: 66 | AF86: 37 | AG86: 10 | AJ86: 35 | AK86: 39 | AL86: 37 | AM86: 16 | AN86: 94 | AO86: 90 | AP86: 72 | AQ86: 69 | AR86: 77 | AS86: 32 | AT86: 12
Q87: 0.07423580786 | R87: 0.02790697674 | W87: 22 | X87: 45 | Y87: 33 | Z87: 43 | AA87: 61 | AB87: 31 | AC87: 15 | AD87: 53 | AE87: 41 | AF87: 14 | AG87: 66 | AJ87: 23 | AK87: 50 | AL87: 36 | AM87: 48 | AN87: 75 | AO87: 25 | AP87: 28 | AQ87: 67 | AR87: 46 | AS87: 8 | AT87: 73
Q88: 0.008733624454 | R88: 0 | W88: 16 | X88: 29 | Y88: 18 | Z88: 86 | AA88: 31 | AB88: 7 | AC88: 16 | AD88: 24 | AE88: 20 | AF88: 11 | AG88: 85 | AJ88: 19 | AK88: 32 | AL88: 22 | AM88: 101 | AN88: 13 | AO88: 6 | AP88: 10 | AQ88: 33 | AR88: 20 | AS88: 6 | AT88: 98
E89: Rate of Return on Farm Assets | Q89: 0 | R89: 0 | W89: 8 | X89: 22 | Y89: 13 | Z89: 52 | AA89: 4 | AB89: 7 | AC89: 9 | AD89: 10 | AE89: 11 | AF89: 2 | AG89: 49 | AJ89: 9 | AK89: 30 | AL89: 12 | AM89: 41 | AN89: 4 | AO89: 1 | AP89: 9 | AQ89: 5 | AR89: 16 | AS89: 1 | AT89: 27
F90: =U1 -> 2019 | G90: 10-Year | W90: 12 | X90: 21 | Y90: 6 | Z90: 17 | AA90: 3 | AB90: 4 | AC90: 8 | AD90: 3 | AE90: 2 | AF90: 0 | AG90: 6 | AJ90: 7 | AK90: 18 | AL90: 2 | AM90: 6 | AN90: 0 | AO90: 0 | AP90: 4 | AQ90: 1 | AR90: 3 | AS90: 2 | AT90: 2
E91: -0.1 | F91: =Q101 -> 0.03930131004 | G91: =R101 -> 0.009302325581 | Q91: =Q101 -> 0.03930131004 | R91: =R101 -> 0.009302325581 | W91: 4 | X91: 9 | Y91: 15 | Z91: 2 | AA91: 2 | AB91: 0 | AC91: 6 | AD91: 8 | AE91: 3 | AF91: 2 | AG91: 1 | AJ91: 11 | AK91: 11 | AL91: 11 | AM91: 0 | AN91: 0 | AO91: 0 | AP91: 5 | AQ91: 1 | AR91: 1 | AS91: 0 | AT91: 0
E92: -0.06 | F92: =Q102 -> 0.02620087336 | G92: =R102 -> 0.01395348837 | Q92: =Q91+Q102 -> 0.06550218341 | R92: =R91+R102 -> 0.02325581395 | W92: 86 | X92: 14 | Z92: 0 | AA92: 4 | AB92: 7 | AC92: 11 | AG92: 0 | AJ92: 84 | AK92: 8 | AM92: 0 | AN92: 0 | AO92: 1 | AP92: 5 | AT92: 0
E93: -0.02 | F93: 0.1266375546 | G93: 0.111627907 | Q93: 0.192139738 | R93: 0.1348837209 | S93: Your Farm Line-Return on Assets | V93: Count | W93: 229 | X93: 229 | Y93: 229 | Z93: 229 | AA93: 229 | AB93: 229 | AC93: 229 | AD93: 229 | AE93: 229 | AF93: 229 | AG93: 229 | AI93: Count | AJ93: 215 | AK93: 215 | AL93: 215 | AM93: 215 | AN93: 215 | AO93: 215 | AP93: 215 | AQ93: 215 | AR93: 215 | AS93: 215 | AT93: 215
E94: 0.02 | F94: 0.3493449782 | G94: 0.4372093023 | Q94: 0.5414847162 | R94: 0.5720930233 | S94: X's | T94: =IF(B26>0.24,0.24,B26) -> 0.02319068136 | U94: =T94 -> 0.02319068136 | V94: Average | W94: 1.843471551 | X94: 0.4241955101 | Y94: 0.2515329738 | Z94: 0.1031758393 | AA94: 0.02319068136 | AB94: 0.01666741781 | AC94: 0.2247685264 | AD94: 0.7032465533 | AE94: 0.07609163901 | AF94: 0.04241778282 | AG94: 0.1782440249 | AI94: Average | AJ94: 2.217908686 | AK94: 0.5109725003 | AL94: 0.241794875 | AM94: 0.0919740069 | AN94: 0.02193057058 | AO94: 0.01577952652 | AP94: 0.2384431354 | AQ94: 0.7121809781 | AR94: 0.08450349259 | AS94: 0.03729555374 | AT94: 0.1660199756
E95: 0.06 | F95: 0.2663755459 | G95: 0.3488372093 | Q95: 0.807860262 | R95: 0.9209302326 | S95: Y's | T95: 0 | U95: 1 | V95: Non-ratio average | X95: 263860.2606 | AG95: 110872.2599 | AI95: Non-ratio average | AK95: 273994.4081 | AT95: 89023.46982
E96: 0.1 | F96: 0.135371179 | G96: 0.06046511628 | Q96: 0.943231441 | R96: 0.9813953488 | S96: =IF(B26=F102,U1 &" Average","Your Farm") -> 2019 Average
E97: 0.14 | F97: 0.01746724891 | G97: 0.01860465116 | Q97: 0.96069869 | R97: 1 | W97: Blank
E98: 0.18 | F98: 0.01310043668 | G98: 0 | Q98: 0.9737991266 | R98: 1 | W98: Current Ratio | X98: Working Capital Ratio | Y98: Debt to Asset Ratio | Z98: Operating Profit Margin | AA98: ROA | AB98: ROE | AC98: Asset Turnover | AD98: Operating Expense Ratio | AE98: Depr Expense Ratio | AF98: Interest Expense Ratio | AG98: NFI Ratio | AJ98: Current Ratio | AK98: Working Capital Ratio | AL98: Debt to Asset Ratio | AM98: Operating Profit Margin | AN98: ROA | AO98: ROE | AP98: Asset Turnover | AQ98: Operating Expense Ratio | AR98: Depr Expense Ratio | AS98: Interest Expense Ratio | AT98: NFI Ratio
E99: 0.22 | F99: 0.008733624454 | G99: 0 | Q99: 0.9825327511 | R99: 1
E100: More | F100: 0.01746724891 | G100: 0 | Q100: 1 | R100: 1
E101: Count | F101: =F80 -> 229 | G101: =G80 -> 215 | Q101: =IF($T$6=$W$1,AA3/$F$101,IF($T$6=$W$17,AA19/$F$101,IF($T$6=$W$33,AA35/$F$101,IF($T$6=$W$49,AA51/$F$101,IF($T$6=$W$65,AA67/$F$101,IF($T$6=$W$81,AA83/$F$101,IF($T$6=$W$97,AA99/$F$101,IF($T$6=$W$113,AA115/$F$101,IF($T$6=$W$129,AA131/$F$101,IF($T$6=$W$145,AA147/$F$101,IF($T$6=$W$161,AA163/$F$101,"N/A"))))))))))) -> 0.03930131004 | R101: =IF($T$6=$W$1,AN3/$G$38,IF($T$6=$W$17,AN19/$G$38,IF($T$6=$W$33,AN35/$G$38,IF($T$6=$W$49,AN51/$G$38,IF($T$6=$W$65,AN67/$G$38,IF($T$6=$W$81,AN83/$G$38,IF($T$6=$W$97,AN99/$G$38,IF($T$6=$W$113,AN115/$G$38,IF($T$6=$W$129,AN131/$G$38,IF($T$6=$W$145,AN147/$G$38,IF($T$6=$W$161,AN163/$G$38,"N/A"))))))))))) -> 0.009302325581
E102: Average | F102: =IF($T$6=$W$1,$AA$14,IF($T$6=$W$17,$AA$30,IF($T$6=$W$33,$AA$46,IF($T$6=$W$49,$AA$62,IF($T$6=$W$65,$AA$78,IF($T$6=$W$81,$AA$94,IF($T$6=$W$97,$AA$110,IF($T$6=$W$113,$AA$126,IF($T$6=$W$129,$AA$142,IF($T$6=$W$145,$AA$158,IF($T$6=$W$161,AA174,"N/A"))))))))))) -> 0.02319068136 | G102: =IF($T$6=$W$1,$AN$14,IF($T$6=$W$17,$AN$30,IF($T$6=$W$33,$AN$46,IF($T$6=$W$49,$AN$62,IF($T$6=$W$65,$AN$78,IF($T$6=$W$81,$AN$94,IF($T$6=$W$97,$AN$110,IF($T$6=$W$113,$AN$126,IF($T$6=$W$129,$AN$142,IF($T$6=$W$145,$AN$158,IF($T$6=$W$161,$AN$174,"N/A"))))))))))) -> 0.02193057058 | Q102: 0.02620087336 | R102: 0.01395348837
Q103: 0.1266375546 | R103: 0.111627907
Q104: 0.3493449782 | R104: 0.4372093023
Q105: 0.2663755459 | R105: 0.3488372093
F106: =IF(B26=F102,"","Your Farm") ->  | G106: =IF(B26=F102,"",B26) ->  | Q106: 0.135371179 | R106: 0.06046511628
Q107: 0.01746724891 | R107: 0.01860465116
Q108: 0.01310043668 | R108: 0
Q109: 0.008733624454 | R109: 0 | V109: Count | AI109: Count
E110: Rate of Return on Farm Equity | Q110: 0.01746724891 | R110: 0 | V110: Average | AI110: Average
F111: =U1 -> 2019 | G111: 10-Year | V111: Non-ratio average | AI111: Non-ratio average
E112: -0.1 | F112: =Q122 -> 0.096069869 | G112: =R122 -> 0.05581395349 | Q112: =Q122 -> 0.096069869 | R112: =R122 -> 0.05581395349
E113: -0.05 | F113: =Q123 -> 0.06550218341 | G113: =R123 -> 0.1023255814 | Q113: =Q112+Q123 -> 0.1615720524 | R113: =R112+R123 -> 0.1581395349 | W113: Blank
E114: 0 | F114: 0.2620087336 | G114: 0.2697674419 | Q114: 0.423580786 | R114: 0.4279069767 | W114: Current Ratio | X114: Working Capital Ratio | Y114: Debt to Asset Ratio | Z114: Operating Profit Margin | AA114: ROA | AB114: ROE | AC114: Asset Turnover | AD114: Operating Expense Ratio | AE114: Depr Expense Ratio | AF114: Interest Expense Ratio | AG114: NFI Ratio | AJ114: Current Ratio | AK114: Working Capital Ratio | AL114: Debt to Asset Ratio | AM114: Operating Profit Margin | AN114: ROA | AO114: ROE | AP114: Asset Turnover | AQ114: Operating Expense Ratio | AR114: Depr Expense Ratio | AS114: Interest Expense Ratio | AT114: NFI Ratio
E115: 0.05 | F115: 0.3318777293 | G115: 0.4186046512 | Q115: 0.7554585153 | R115: 0.8465116279 | S115: Your Farm Line-Return on Equity
E116: 0.1 | F116: 0.135371179 | G116: 0.1162790698 | Q116: 0.8908296943 | R116: 0.9627906977 | S116: X's | T116: =IF(B27>0.35,0.35,B27) -> 0.01666741781 | U116: =T116 -> 0.01666741781
E117: 0.15 | F117: 0.03056768559 | G117: 0.02790697674 | Q117: 0.9213973799 | R117: 0.9906976744 | S117: Y's | T117: 0 | U117: 1
E118: 0.2 | F118: 0.03056768559 | G118: 0.004651162791 | Q118: 0.9519650655 | R118: 0.9953488372 | S118: =IF(B27=F123,U1 &" Average","Your Farm") -> 2019 Average
E119: 0.25 | F119: 0.01746724891 | G119: 0 | Q119: 0.9694323144 | R119: 0.9953488372
E120: 0.3 | F120: 0 | G120: 0 | Q120: 0.9694323144 | R120: 0.9953488372
E121: More | F121: 0.03056768559 | G121: 0.004651162791 | Q121: 1 | R121: 1
E122: Count | F122: =F101 -> 229 | G122: =G101 -> 215 | Q122: =IF($T$6=$W$1,AB3/$F$122,IF($T$6=$W$17,AB19/$F$122,IF($T$6=$W$33,AB35/$F$122,IF($T$6=$W$49,AB51/$F$122,IF($T$6=$W$65,AB67/$F$122,IF($T$6=$W$81,AB83/$F$122,IF($T$6=$W$97,AB99/$F$122,IF($T$6=$W$113,AB115/$F$122,IF($T$6=$W$129,AB131/$F$122,IF($T$6=$W$145,AB147/$F$122,IF($T$6=$W$161,AB163/$F$122,"N/A"))))))))))) -> 0.096069869 | R122: =IF($T$6=$W$1,AO3/$G$38,IF($T$6=$W$17,AO19/$G$38,IF($T$6=$W$33,AO35/$G$38,IF($T$6=$W$49,AO51/$G$38,IF($T$6=$W$65,AO67/$G$38,IF($T$6=$W$81,AO83/$G$38,IF($T$6=$W$97,AO99/$G$38,IF($T$6=$W$113,AO115/$G$38,IF($T$6=$W$129,AO131/$G$38,IF($T$6=$W$145,AO147/$G$38,IF($T$6=$W$161,AO163/$G$38,"N/A"))))))))))) -> 0.05581395349
E123: Average | F123: =IF($T$6=$W$1,$AB$14,IF($T$6=$W$17,$AB$30,IF($T$6=$W$33,$AB$46,IF($T$6=$W$49,$AB$62,IF($T$6=$W$65,$AB$78,IF($T$6=$W$81,$AB$94,IF($T$6=$W$97,$AB$110,IF($T$6=$W$113,$AB$126,IF($T$6=$W$129,$AB$142,IF($T$6=$W$145,$AB$158,IF($T$6=W161,AB174,"N/A"))))))))))) -> 0.01666741781 | G123: =IF($T$6=$W$1,$AO$14,IF($T$6=$W$17,$AO$30,IF($T$6=$W$33,$AO$46,IF($T$6=$W$49,$AO$62,IF($T$6=$W$65,$AO$78,IF($T$6=$W$81,$AO$94,IF($T$6=$W$97,$AO$110,IF($T$6=$W$113,$AO$126,IF($T$6=$W$129,$AO$142,IF($T$6=$W$145,$AO$158,IF($T$6=$W$161,$AO$174,"N/A"))))))))))) -> 0.01577952652 | Q123: 0.06550218341 | R123: 0.1023255814
Q124: 0.2620087336 | R124: 0.2697674419
Q125: 0.3318777293 | R125: 0.4186046512 | V125: Count | AI125: Count
Q126: 0.135371179 | R126: 0.1162790698 | V126: Average | AI126: Average
F127: =IF(B27=F123,"","Your Farm") ->  | G127: =IF(B27=F123,"",B27) ->  | Q127: 0.03056768559 | R127: 0.02790697674 | V127: Non-ratio average | AI127: Non-ratio average
Q128: 0.03056768559 | R128: 0.004651162791
Q129: 0.01746724891 | R129: 0 | W129: Blank
Q130: 0 | R130: 0 | W130: Current Ratio | X130: Working Capital Ratio | Y130: Debt to Asset Ratio | Z130: Operating Profit Margin | AA130: ROA | AB130: ROE | AC130: Asset Turnover | AD130: Operating Expense Ratio | AE130: Depr Expense Ratio | AF130: Interest Expense Ratio | AG130: NFI Ratio | AJ130: Current Ratio | AK130: Working Capital Ratio | AL130: Debt to Asset Ratio | AM130: Operating Profit Margin | AN130: ROA | AO130: ROE | AP130: Asset Turnover | AQ130: Operating Expense Ratio | AR130: Depr Expense Ratio | AS130: Interest Expense Ratio | AT130: NFI Ratio
E131: Asset Turnover Rate | Q131: 0.03056768559 | R131: 0.004651162791
F132: =U1 -> 2019 | G132: 10-Year
E133: 0 | F133: =Q143 -> 0 | G133: =R143 -> 0 | Q133: =Q143 -> 0 | R133: =R143 -> 0
E134: 0.1 | F134: =Q144 -> 0.1004366812 | G134: =R144 -> 0.07906976744 | Q134: =Q133+Q144 -> 0.1004366812 | R134: =R133+R144 -> 0.07906976744
E135: 0.2 | F135: 0.3580786026 | G135: 0.3023255814 | Q135: 0.4585152838 | R135: 0.3813953488
E136: 0.3 | F136: 0.2576419214 | G136: 0.3348837209 | Q136: 0.7161572052 | R136: 0.7162790698
E137: 0.4 | F137: 0.06550218341 | G137: 0.1302325581 | Q137: 0.7816593886 | R137: 0.8465116279 | S137: Your Farm Line-Asset Turnover Rate
E138: 0.5 | F138: 0.06986899563 | G138: 0.04651162791 | Q138: 0.8515283843 | R138: 0.8930232558 | S138: X's | T138: =IF(B28>0.9,0.9,B28) -> 0.2247685264 | U138: =T138 -> 0.2247685264
E139: 0.6 | F139: 0.03930131004 | G139: 0.04186046512 | Q139: 0.8908296943 | R139: 0.9348837209 | S139: Y's | T139: 0 | U139: 1
E140: 0.7 | F140: 0.03493449782 | G140: 0.01860465116 | Q140: 0.9257641921 | R140: 0.9534883721 | S140: =IF(B28=F144,U1 &" Average","Your Farm") -> 2019 Average
E141: 0.8 | F141: 0.02620087336 | G141: 0.02325581395 | Q141: 0.9519650655 | R141: 0.976744186 | V141: Count | AI141: Count
E142: More | F142: 0.0480349345 | G142: =R152 -> 0.02325581395 | Q142: 1 | R142: 1 | V142: Average | AI142: Average
E143: Count | F143: =F122 -> 229 | G143: =G122 -> 215 | Q143: =IF($T$6=$W$1,AC3/$F$143,IF($T$6=$W$17,AC19/$F$143,IF($T$6=$W$33,AC35/$F$143,IF($T$6=$W$49,AC51/$F$143,IF($T$6=$W$65,AC67/$F$143,IF($T$6=$W$81,AC83/$F$143,IF($T$6=$W$97,AC99/$F$143,IF($T$6=$W$113,AC115/$F$143,IF($T$6=$W$129,AC131/$F$143,IF($T$6=$W$145,AC147/$F$143,IF($T$6=$W$161,AC163/$F$143,"N/A"))))))))))) -> 0 | R143: =IF($T$6=$W$1,AP3/$G$38,IF($T$6=$W$17,AP19/$G$38,IF($T$6=$W$33,AP35/$G$38,IF($T$6=$W$49,AP51/$G$38,IF($T$6=$W$65,AP67/$G$38,IF($T$6=$W$81,AP83/$G$38,IF($T$6=$W$97,AP99/$G$38,IF($T$6=$W$113,AP115/$G$38,IF($T$6=$W$129,AP131/$G$38,IF($T$6=$W$145,AP147/$G$38,IF($T$6=$W$161,AP163/$G$38,"N/A"))))))))))) -> 0 | V143: Non-ratio average | AI143: Non-ratio average
E144: Average | F144: =IF($T$6=$W$1,$AC$14,IF($T$6=$W$17,$AC$30,IF($T$6=$W$33,$AC$46,IF($T$6=$W$49,$AC$62,IF($T$6=$W$65,$AC$78,IF($T$6=$W$81,$AC$94,IF($T$6=$W$97,$AC$110,IF($T$6=$W$113,$AC$126,IF($T$6=$W$129,$AC$142,IF($T$6=$W$145,$AC$158,IF($T$6=W161,AC174,"N/A"))))))))))) -> 0.2247685264 | G144: =IF($T$6=$W$1,$AP$14,IF($T$6=$W$17,$AP$30,IF($T$6=$W$33,$AP$46,IF($T$6=$W$49,$AP$62,IF($T$6=$W$65,$AP$78,IF($T$6=$W$81,$AP$94,IF($T$6=$W$97,$AP$110,IF($T$6=$W$113,$AP$126,IF($T$6=$W$129,$AP$142,IF($T$6=$W$145,$AP$158,IF($T$6=$W$161,$AP$174,"N/A"))))))))))) -> 0.2384431354 | Q144: 0.1004366812 | R144: 0.07906976744
Q145: 0.3580786026 | R145: 0.3023255814 | W145: Blank
Q146: 0.2576419214 | R146: 0.3348837209 | W146: Current Ratio | X146: Working Capital Ratio | Y146: Debt to Asset Ratio | Z146: Operating Profit Margin | AA146: ROA | AB146: ROE | AC146: Asset Turnover | AD146: Operating Expense Ratio | AE146: Depr Expense Ratio | AF146: Interest Expense Ratio | AG146: NFI Ratio | AJ146: Current Ratio | AK146: Working Capital Ratio | AL146: Debt to Asset Ratio | AM146: Operating Profit Margin | AN146: ROA | AO146: ROE | AP146: Asset Turnover | AQ146: Operating Expense Ratio | AR146: Depr Expense Ratio | AS146: Interest Expense Ratio | AT146: NFI Ratio
Q147: 0.06550218341 | R147: 0.1302325581
F148: =IF(B28=F144,"","Your Farm") ->  | G148: =IF(B28=F144,"",B28) ->  | Q148: 0.06986899563 | R148: 0.04651162791
Q149: 0.03930131004 | R149: 0.04186046512
Q150: 0.03493449782 | R150: 0.01860465116
Q151: 0.02620087336 | R151: 0.02325581395
E152: Operating Expense Ratio | Q152: 0.0480349345 | R152: 0.02325581395
F153: =U1 -> 2019 | G153: 10-Year
E154: 0.4 | F154: =Q163 -> 0.008733624454 | G154: =R163 -> 0 | Q154: =Q163 -> 0.008733624454 | R154: =R163 -> 0
E155: 0.5 | F155: =Q164 -> 0.06550218341 | G155: =R164 -> 0.02790697674 | Q155: =Q154+Q164 -> 0.07423580786 | R155: 0.02790697674
E156: 0.6 | F156: 0.192139738 | G156: 0.1534883721 | Q156: 0.2663755459 | R156: 0.1813953488
E157: 0.7 | F157: 0.3056768559 | G157: 0.3209302326 | Q157: 0.5720524017 | R157: 0.5023255814 | V157: Count | AI157: Count
E158: 0.8 | F158: 0.231441048 | G158: 0.311627907 | Q158: 0.8034934498 | R158: 0.8139534884 | V158: Average | AI158: Average
E159: 0.9 | F159: 0.1048034934 | G159: 0.1534883721 | Q159: 0.9082969432 | R159: 0.9674418605 | S159: Your Farm Line-Operating Expense Ratio | V159: Non-ratio average | AI159: Non-ratio average
E160: 1 | F160: 0.04366812227 | G160: 0.02325581395 | Q160: 0.9519650655 | R160: 0.9906976744 | S160: X's | T160: =IF(B29>1.2,1.2,B29) -> 0.7032465533 | U160: =T160 -> 0.7032465533
E161: 1.1 | F161: 0.01310043668 | G161: 0.004651162791 | Q161: 0.9650655022 | R161: 0.9953488372 | S161: Y's | T161: 0 | U161: 1 | W161: Blank
E162: More | F162: 0.03493449782 | G162: 0.004651162791 | Q162: 1 | R162: 1 | S162: =IF(B29=F164,U1 &" Average","Your Farm") -> 2019 Average | W162: Current Ratio | X162: Working Capital Ratio | Y162: Debt to Asset Ratio | Z162: Operating Profit Margin | AA162: ROA | AB162: ROE | AC162: Asset Turnover | AD162: Operating Expense Ratio | AE162: Depr Expense Ratio | AF162: Interest Expense Ratio | AG162: NFI Ratio | AJ162: Current Ratio | AK162: Working Capital Ratio | AL162: Debt to Asset Ratio | AM162: Operating Profit Margin | AN162: ROA | AO162: ROE | AP162: Asset Turnover | AQ162: Operating Expense Ratio | AR162: Depr Expense Ratio | AS162: Interest Expense Ratio | AT162: NFI Ratio
E163: Count | F163: =F143 -> 229 | G163: =G143 -> 215 | Q163: =IF($T$6=$W$1,AD3/$F$143,IF($T$6=$W$17,AD19/$F$143,IF($T$6=$W$33,AD35/$F$143,IF($T$6=$W$49,AD51/$F$143,IF($T$6=$W$65,AD67/$F$143,IF($T$6=$W$81,AD83/$F$143,IF($T$6=$W$97,AD99/$F$143,IF($T$6=$W$113,AD115/$F$143,IF($T$6=$W$129,AD131/$F$143,IF($T$6=$W$145,AD147/$F$143,IF($T$6=$W$161,AD163/$F$143,"N/A"))))))))))) -> 0.008733624454 | R163: =IF($T$6=$W$1,AQ3/$G$38,IF($T$6=$W$17,AQ19/$G$38,IF($T$6=$W$33,AQ35/$G$38,IF($T$6=$W$49,AQ51/$G$38,IF($T$6=$W$65,AQ67/$G$38,IF($T$6=$W$81,AQ83/$G$38,IF($T$6=$W$97,AQ99/$G$38,IF($T$6=$W$113,AQ115/$G$38,IF($T$6=$W$129,AQ131/$G$38,IF($T$6=$W$145,AQ147/$G$38,IF($T$6=$W$161,AQ163/$G$38,"N/A"))))))))))) -> 0
E164: Average | F164: =IF($T$6=$W$1,$AD$14,IF($T$6=$W$17,$AD$30,IF($T$6=$W$33,$AD$46,IF($T$6=$W$49,$AD$62,IF($T$6=$W$65,$AD$78,IF($T$6=$W$81,$AD$94,IF($T$6=$W$97,$AD$110,IF($T$6=$W$113,$AD$126,IF($T$6=$W$129,$AD$142,IF($T$6=$W$145,$AD$158,IF($T$6=W161,AD174,"N/A"))))))))))) -> 0.7032465533 | G164: =IF($T$6=$W$1,$AQ$14,IF($T$6=$W$17,$AQ$30,IF($T$6=$W$33,$AQ$46,IF($T$6=$W$49,$AQ$62,IF($T$6=$W$65,$AQ$78,IF($T$6=$W$81,$AQ$94,IF($T$6=$W$97,$AQ$110,IF($T$6=$W$113,$AQ$126,IF($T$6=$W$129,$AQ$142,IF($T$6=$W$145,$AQ$158,IF($T$6=$W$161,$AQ$174,"N/A"))))))))))) -> 0.7121809781 | Q164: 0.06550218341 | R164: 0.02790697674
Q165: 0.192139738 | R165: 0.1534883721
Q166: 0.3056768559 | R166: 0.3209302326
Q167: 0.231441048 | R167: 0.311627907
F168: =IF(B29=F164,"","Your Farm") ->  | G168: =IF(B29=F164,"",B29) ->  | Q168: 0.1048034934 | R168: 0.1534883721
Q169: 0.04366812227 | R169: 0.02325581395
Q170: 0.01310043668 | R170: 0.004651162791
Q171: 0.03493449782 | R171: 0.004651162791
E173: Depreciation Expense Ratio | V173: Count | AI173: Count
F174: =U1 -> 2019 | G174: 10-Year | V174: Average | AI174: Average
E175: 0 | F175: =Q184 -> 0.008733624454 | G175: =R184 -> 0 | Q175: =Q184 -> 0.008733624454 | R175: =R184 -> 0 | V175: Non-ratio average | AI175: Non-ratio average
E176: 0.03 | F176: =Q185 -> 0.08296943231 | G176: =R185 -> 0.04651162791 | Q176: =Q175+Q185 -> 0.09170305677 | R176: 0.04651162791
E177: 0.06 | F177: 0.2838427948 | G177: 0.1953488372 | Q177: 0.3755458515 | R177: 0.2418604651
E178: 0.09 | F178: 0.288209607 | G178: 0.3581395349 | Q178: 0.6637554585 | R178: 0.6
E179: 0.12 | F179: 0.1790393013 | G179: 0.2139534884 | Q179: 0.8427947598 | R179: 0.8139534884
E180: 0.15 | F180: 0.08733624454 | G180: 0.09302325581 | Q180: 0.9301310044 | R180: 0.9069767442
E181: 0.18 | F181: 0.0480349345 | G181: 0.07441860465 | Q181: 0.9781659389 | R181: 0.9813953488 | S181: Your Farm Line-Depreciation Expense Ratio
E182: 0.21 | F182: 0.008733624454 | G182: 0.01395348837 | Q182: 0.9868995633 | R182: 0.9953488372 | S182: X's | T182: =IF(B30>0.24,0.24,B30) -> 0.07609163901 | U182: =T182 -> 0.07609163901
E183: More | F183: 0.01310043668 | G183: 0.004651162791 | Q183: 1 | R183: 1 | S183: Y's | T183: 0 | U183: 1
E184: Count | F184: =F163 -> 229 | G184: =G163 -> 215 | Q184: =IF($T$6=$W$1,AE3/$F$143,IF($T$6=$W$17,AE19/$F$143,IF($T$6=$W$33,AE35/$F$143,IF($T$6=$W$49,AE51/$F$143,IF($T$6=$W$65,AE67/$F$143,IF($T$6=$W$81,AE83/$F$143,IF($T$6=$W$97,AE99/$F$143,IF($T$6=$W$113,AE115/$F$143,IF($T$6=$W$129,AE131/$F$143,IF($T$6=$W$145,AE147/$F$143,IF($T$6=$W$161,AE163/$F$143,"N/A"))))))))))) -> 0.008733624454 | R184: =IF($T$6=$W$1,AR3/$G$38,IF($T$6=$W$17,AR19/$G$38,IF($T$6=$W$33,AR35/$G$38,IF($T$6=$W$49,AR51/$G$38,IF($T$6=$W$65,AR67/$G$38,IF($T$6=$W$81,AR83/$G$38,IF($T$6=$W$97,AR99/$G$38,IF($T$6=$W$113,AR115/$G$38,IF($T$6=$W$129,AR131/$G$38,IF($T$6=$W$145,AR147/$G$38,IF($T$6=$W$161,AR163/$G$38,"N/A"))))))))))) -> 0 | S184: =IF(B30=F185,U1 &" Average","Your Farm") -> 2019 Average
E185: Average | F185: =IF($T$6=$W$1,$AE$14,IF($T$6=$W$17,$AE$30,IF($T$6=$W$33,$AE$46,IF($T$6=$W$49,$AE$62,IF($T$6=$W$65,$AE$78,IF($T$6=$W$81,$AE$94,IF($T$6=$W$97,$AE$110,IF($T$6=$W$113,$AE$126,IF($T$6=$W$129,$AE$142,IF($T$6=$W$145,$AE$158,IF($T$6=$W$161,AE174,"N/A"))))))))))) -> 0.07609163901 | G185: =IF($T$6=$W$1,$AR$14,IF($T$6=$W$17,$AR$30,IF($T$6=$W$33,$AR$46,IF($T$6=$W$49,$AR$62,IF($T$6=$W$65,$AR$78,IF($T$6=$W$81,$AR$94,IF($T$6=$W$97,$AR$110,IF($T$6=$W$113,$AR$126,IF($T$6=$W$129,$AR$142,IF($T$6=$W$145,$AR$158,IF($T$6=$W$161,$AR$174,"N/A"))))))))))) -> 0.08450349259 | Q185: 0.08296943231 | R185: 0.04651162791
Q186: 0.2838427948 | R186: 0.1953488372
Q187: 0.288209607 | R187: 0.3581395349
Q188: 0.1790393013 | R188: 0.2139534884
F189: =IF(B30=F185,"","Your Farm") ->  | G189: =IF(B30=F185,"",B30) ->  | Q189: 0.08733624454 | R189: 0.09302325581
Q190: 0.0480349345 | R190: 0.07441860465
Q191: 0.008733624454 | R191: 0.01395348837
Q192: 0.01310043668 | R192: 0.004651162791
E194: Interest Expense Ratio
F195: =U1 -> 2019 | G195: 10-Year
E196: 0 | F196: =Q205 -> 0.1397379913 | G196: =R205 -> 0.01395348837 | Q196: =Q205 -> 0.1397379913 | R196: =R205 -> 0.01395348837
E197: 0.03 | F197: =Q206 -> 0.3100436681 | G197: =R206 -> 0.4372093023 | Q197: =Q196+Q206 -> 0.4497816594 | R197: 0.4511627907
E198: 0.06 | F198: 0.2620087336 | G198: 0.3209302326 | Q198: 0.711790393 | R198: 0.7720930233
E199: 0.09 | F199: 0.1615720524 | G199: 0.1488372093 | Q199: 0.8733624454 | R199: 0.9209302326
E200: 0.12 | F200: 0.06113537118 | G200: 0.03720930233 | Q200: 0.9344978166 | R200: 0.9581395349
E201: 0.15 | F201: 0.0480349345 | G201: 0.02790697674 | Q201: 0.9825327511 | R201: 0.9860465116
E202: 0.18 | F202: 0.008733624454 | G202: 0.004651162791 | Q202: 0.9912663755 | R202: 0.9906976744
... 33 more rows

Sheet NorthEast
E1: KSU FARM FINANCIAL BENCHMARKING TOOL-Northeast Kansas | S1: Acres | T1: Lookup | U1: 2019 | W1: Less than 500No | AI1: 10-Year
S2: Less than 500 | T2: LT | U2: 2019 KFMA Farms | W2: Current Ratio | X2: Working Capital Ratio | Y2: Debt to Asset Ratio | Z2: Operating Profit Margin | AA2: ROA | AB2: ROE | AC2: Asset Turnover | AD2: Operating Expense Ratio | AE2: Depr Expense Ratio | AF2: Interest Expense Ratio | AG2: NFI Ratio | AJ2: Current Ratio | AK2: Working Capital Ratio | AL2: Debt to Asset Ratio | AM2: Operating Profit Margin | AN2: ROA | AO2: ROE | AP2: Asset Turnover | AQ2: Operating Expense Ratio | AR2: Depr Expense Ratio | AS2: Interest Expense Ratio | AT2: NFI Ratio
E3: Tillable Crop Acres: | G3: =B16 -> All Farms | I3: =A17 ->  | K3: =IF(B17="","",B17) ->  | P3: =IF(B18="","",B18) ->  | S3: 500-1000 | T3: BTW | U3: =J3 -> 0 | W3: 0 | X3: 1 | Y3: 5 | Z3: 4 | AA3: 2 | AB3: 4 | AC3: 0 | AD3: 0 | AE3: 1 | AF3: 8 | AG3: 2 | AJ3: 0 | AK3: 0 | AL3: 2 | AM3: 1 | AN3: 1 | AO3: 0 | AP3: 0 | AQ3: 0 | AR3: 0 | AS3: 4 | AT3: 0
S4: Greater than 1000 | T4: GT | W4: 1 | X4: 0 | Y4: 5 | Z4: 1 | AA4: 3 | AB4: 2 | AC4: 6 | AD4: 2 | AE4: 3 | AF4: 4 | AG4: 2 | AJ4: 0 | AK4: 0 | AL4: 5 | AM4: 0 | AN4: 0 | AO4: 1 | AP4: 5 | AQ4: 0 | AR4: 2 | AS4: 3 | AT4: 0
E5: Current Ratio | S5: All Farms | T5: All | W5: 3 | X5: 3 | Y5: 1 | Z5: 2 | AA5: 3 | AB5: 8 | AC5: 4 | AD5: 3 | AE5: 4 | AF5: 2 | AG5: 2 | AJ5: 0 | AK5: 0 | AL5: 1 | AM5: 1 | AN5: 3 | AO5: 5 | AP5: 2 | AQ5: 2 | AR5: 2 | AS5: 2 | AT5: 1
F6: =U1 -> 2019 | G6: 10-Year | S6: LTList | T6: =B16&B17&B18 -> All Farms | W6: 1 | X6: 1 | Y6: 1 | Z6: 1 | AA6: 6 | AB6: 2 | AC6: 3 | AD6: 6 | AE6: 5 | AF6: 0 | AG6: 0 | AJ6: 1 | AK6: 1 | AL6: 1 | AM6: 1 | AN6: 6 | AO6: 3 | AP6: 2 | AQ6: 4 | AR6: 2 | AS6: 1 | AT6: 0
E7: 0 | F7: =Q17 -> 0 | G7: =R17 -> 0 | S7: Yes | W7: 0 | X7: 2 | Y7: 0 | Z7: 4 | AA7: 2 | AB7: 0 | AC7: 1 | AD7: 2 | AE7: 3 | AF7: 1 | AG7: 2 | AJ7: 0 | AK7: 1 | AL7: 1 | AM7: 4 | AN7: 0 | AO7: 0 | AP7: 1 | AQ7: 4 | AR7: 1 | AS7: 0 | AT7: 4
E8: 0.5 | F8: =Q18 -> 0.02127659574 | G8: =R18 -> 0.005434782609 | Q8: =Q7+Q18 -> 0.02127659574 | R8: =R7+R18 -> 0.005434782609 | S8: No | W8: 0 | X8: 1 | Y8: 1 | Z8: 2 | AA8: 0 | AB8: 1 | AC8: 0 | AD8: 0 | AE8: 0 | AF8: 0 | AG8: 4 | AJ8: 1 | AK8: 3 | AL8: 0 | AM8: 3 | AN8: 0 | AO8: 0 | AP8: 0 | AQ8: 1 | AR8: 2 | AS8: 0 | AT8: 5
E9: 1 | F9: 0.164893617 | G9: 0.08152173913 | Q9: 0.1861702128 | R9: 0.08695652174 | W9: 0 | X9: 2 | Y9: 2 | Z9: 4 | AA9: 0 | AB9: 0 | AC9: 2 | AD9: 1 | AE9: 0 | AF9: 1 | AG9: 5 | AJ9: 0 | AK9: 1 | AL9: 0 | AM9: 1 | AN9: 0 | AO9: 0 | AP9: 0 | AQ9: 0 | AR9: 2 | AS9: 0 | AT9: 1
E10: 1.5 | F10: 0.1542553191 | G10: 0.152173913 | Q10: 0.3404255319 | R10: 0.2391304348 | W10: 1 | X10: 1 | Y10: 0 | Z10: 0 | AA10: 2 | AB10: 0 | AC10: 0 | AD10: 0 | AE10: 0 | AF10: 0 | AG10: 1 | AJ10: 0 | AK10: 0 | AL10: 0 | AM10: 0 | AN10: 0 | AO10: 1 | AP10: 0 | AQ10: 0 | AR10: 0 | AS10: 0 | AT10: 0
E11: 2 | F11: 0.06382978723 | G11: 0.08695652174 | Q11: 0.4042553191 | R11: 0.3260869565 | S11: BTWList | T11: Lookup | W11: 0 | X11: 4 | Y11: 3 | Z11: 0 | AA11: 0 | AB11: 1 | AC11: 0 | AD11: 4 | AE11: 2 | AF11: 2 | AG11: 0 | AJ11: 0 | AK11: 1 | AL11: 1 | AM11: 0 | AN11: 1 | AO11: 0 | AP11: 0 | AQ11: 0 | AR11: 0 | AS11: 1 | AT11: 0
E12: 2.5 | F12: 0.04255319149 | G12: 0.09239130435 | Q12: 0.4468085106 | R12: 0.4184782609 | S12: Yes | T12: LL | W12: 12 | X12: 3 | Z12: 0 | AA12: 0 | AB12: 0 | AC12: 2 | AG12: 0 | AJ12: 9 | AK12: 4 | AM12: 0 | AN12: 0 | AO12: 1 | AP12: 1 | AT12: 0
E13: 3 | F13: 0.03191489362 | G13: 0.04891304348 | Q13: 0.4787234043 | R13: 0.4673913043 | S13: No | T13: GG | V13: Count | W13: 18 | X13: 18 | Y13: 18 | Z13: 18 | AA13: 18 | AB13: 18 | AC13: 18 | AD13: 18 | AE13: 18 | AF13: 18 | AG13: 18 | AI13: Count | AJ13: 11 | AK13: 11 | AL13: 11 | AM13: 11 | AN13: 11 | AO13: 11 | AP13: 11 | AQ13: 11 | AR13: 11 | AS13: 11 | AT13: 11
E14: 3.5 | F14: 0.03191489362 | G14: 0.0597826087 | Q14: 0.5106382979 | R14: 0.527173913 | V14: Average | W14: 4.01857496 | X14: 0.7308581109 | Y14: 0.1623487693 | Z14: -0.09297136931 | AA14: -0.01278202826 | AB14: -0.02445745811 | AC14: 0.1374834894 | AD14: 0.7112306645 | AE14: 0.08013293235 | AF14: 0.06307993177 | AG14: 0.1455564713 | AI14: Average | AJ14: 6.994067416 | AK14: 1.212653341 | AL14: 0.07541215075 | AM14: -0.05594331014 | AN14: -0.007204128158 | AO14: -0.01099169303 | AP14: 0.1287755076 | AQ14: 0.6943005625 | AR14: 0.08430991416 | AS14: 0.02998516534 | AT14: 0.191404358
A15: BENCHMARK CATEGORY | E15: 4 | F15: 0.01063829787 | G15: 0.02173913043 | Q15: 0.5212765957 | R15: 0.5489130435 | V15: Non-ratio average | X15: 93005.98556 | AG15: 18522.91556 | AI15: Non-ratio average | AK15: 147850.332 | AT15: 23336.59333
A16: Tillable Crop Acres: | B16: All Farms | E16: More | F16: 0.4787234043 | G16: 0.4510869565 | Q16: 1 | R16: 1 | S16: GTList
A17: =IF(B16="All Farms", "", "Beef Cows:") ->  | E17: Count | F17: =IF($T$6=$W$1,$W$13,IF($T$6=$W$17,$W$29,IF($T$6=$W$33,$W$45,IF($T$6=$W$49,$W$61,IF($T$6=$W$65,$W$77,IF($T$6=$W$81,$W$93,IF($T$6=$W$97,$W$109,IF($T$6=$W$113,$W$125,IF($T$6=$W$129,$W$141,IF($T$6=$W$145,$W$157,IF(T6=$W$161,$W$173,"N/A"))))))))))) -> 188 | G17: =IF($T$6=$W$1,$AJ$13,IF($T$6=$W$17,$AJ$29,IF($T$6=$W$33,$AJ$45,IF($T$6=$W$49,$AJ$61,IF($T$6=$W$65,$AJ$77,IF($T$6=$W$81,$AJ$93,IF($T$6=$W$97,$AJ$109,IF($T$6=$W$113,$AJ$125,IF($T$6=$W$129,$AJ$141,IF($T$6=$W$145,$AJ$157, IF($T$6=$W$161,$AJ$173,"N/A"))))))))))) -> 184 | Q17: =IF($T$6=$W$1,W3/$W$13,IF($T$6=$W$17,W19/$W$29,IF($T$6=$W$33,W35/$W$45,IF($T$6=$W$49,W51/$W$61,IF($T$6=$W$65,W67/$W$77,IF($T$6=$W$81,W83/$W$93,IF($T$6=$W$97,W99/$W$109,IF($T$6=$W$113,W115/$W$125,IF($T$6=$W$129,W131/$W$141,IF($T$6=$W$145,W147/$W$157,IF($T$6=$W$161,W163/$W$173,"N/A"))))))))))) -> 0 | R17: =IF($T$6=$W$1,AJ3/$AJ$13,IF($T$6=$W$17,AJ19/$AJ$29,IF($T$6=$W$33,AJ35/$AJ$45,IF($T$6=$W$49,AJ51/$AJ$61,IF($T$6=$W$65,AJ67/$AJ$77,IF($T$6=$W$81,AJ83/$AJ$93,IF($T$6=$W$97,AJ99/$AJ$109,IF($T$6=$W$113,AJ115/$AJ$125,IF($T$6=$W$129,AJ131/$AJ$141,IF($T$6=$W$145,AJ147/$AJ$157,IF($T$6=$W$161,AJ163/$AJ$173,"N/A"))))))))))) -> 0 | S17: Yes | W17: Less than 500Yes
E18: Average | F18: =IF($T$6=$W$1,$W$14,IF($T$6=$W$17,$W$30,IF($T$6=$W$33,$W$46,IF($T$6=$W$49,$W$62,IF($T$6=$W$65,$W$78,IF($T$6=$W$81,$W$94,IF($T$6=$W$97,$W$110,IF($T$6=$W$113,$W$126,IF($T$6=$W$129,$W$142,IF($T$6=$W$145,$W$158, IF($T$6=$W$161,$W$174,"N/A"))))))))))) -> 2.439582847 | G18: =IF($T$6=$W$1,$AJ$14,IF($T$6=$W$17,$AJ$30,IF($T$6=$W$33,$AJ$46,IF($T$6=$W$49,$AJ$62,IF($T$6=$W$65,$AJ$78,IF($T$6=$W$81,$AJ$94,IF($T$6=$W$97,$AJ$110,IF($T$6=$W$113,$AJ$126,IF($T$6=$W$129,$AJ$142,IF($T$6=$W$145,$AJ$158, IF($T$6=$W$161,$AJ$174,"N/A"))))))))))) -> 2.915608593 | Q18: 0.02127659574 | R18: 0.005434782609 | S18: No | W18: Current Ratio | X18: Working Capital Ratio | Y18: Debt to Asset Ratio | Z18: Operating Profit Margin | AA18: ROA | AB18: ROE | AC18: Asset Turnover | AD18: Operating Expense Ratio | AE18: Depr Expense Ratio | AF18: Interest Expense Ratio | AG18: NFI Ratio | AJ18: Current Ratio | AK18: Working Capital Ratio | AL18: Debt to Asset Ratio | AM18: Operating Profit Margin | AN18: ROA | AO18: ROE | AP18: Asset Turnover | AQ18: Operating Expense Ratio | AR18: Depr Expense Ratio | AS18: Interest Expense Ratio | AT18: NFI Ratio
Q19: 0.164893617 | R19: 0.08152173913 | S19: 100+ | W19: 0 | X19: 3 | Y19: 10 | Z19: 15 | AA19: 7 | AB19: 14 | AC19: 0 | AD19: 3 | AE19: 1 | AF19: 11 | AG19: 10 | AJ19: 0 | AK19: 1 | AL19: 5 | AM19: 5 | AN19: 3 | AO19: 8 | AP19: 0 | AQ19: 0 | AR19: 0 | AS19: 4 | AT19: 1
F20: =IF(B22=F18,"","Your Farm") ->  | G20: =IF(B22=F18,"",B22) ->  | Q20: 0.1542553191 | R20: 0.152173913 | W20: 2 | X20: 0 | Y20: 5 | Z20: 2 | AA20: 6 | AB20: 7 | AC20: 18 | AD20: 0 | AE20: 6 | AF20: 6 | AG20: 3 | AJ20: 1 | AK20: 1 | AL20: 8 | AM20: 1 | AN20: 2 | AO20: 4 | AP20: 11 | AQ20: 1 | AR20: 3 | AS20: 6 | AT20: 1
A21: YOUR FARM VALUES* | Q21: 0.06382978723 | R21: 0.08695652174 | W21: 6 | X21: 5 | Y21: 3 | Z21: 2 | AA21: 10 | AB21: 8 | AC21: 11 | AD21: 2 | AE21: 6 | AF21: 3 | AG21: 3 | AJ21: 3 | AK21: 2 | AL21: 1 | AM21: 7 | AN21: 11 | AO21: 9 | AP21: 11 | AQ21: 3 | AR21: 7 | AS21: 7 | AT21: 5
A22: Current Ratio: | B22: =S37 -> 2.439582847 | Q22: 0.04255319149 | R22: 0.09239130435 | S22: AllList | W22: 5 | X22: 5 | Y22: 4 | Z22: 5 | AA22: 7 | AB22: 3 | AC22: 1 | AD22: 2 | AE22: 5 | AF22: 3 | AG22: 4 | AJ22: 7 | AK22: 6 | AL22: 2 | AM22: 3 | AN22: 8 | AO22: 4 | AP22: 3 | AQ22: 3 | AR22: 6 | AS22: 1 | AT22: 6
A23: Working Capital Ratio: | B23: =S38 -> 0.5162269766 | Q23: 0.03191489362 | R23: 0.04891304348 | S23: Yes | W23: 2 | X23: 3 | Y23: 3 | Z23: 2 | AA23: 1 | AB23: 0 | AC23: 1 | AD23: 7 | AE23: 1 | AF23: 1 | AG23: 2 | AJ23: 0 | AK23: 3 | AL23: 2 | AM23: 6 | AN23: 3 | AO23: 1 | AP23: 2 | AQ23: 2 | AR23: 5 | AS23: 5 | AT23: 8
A24: Debt to Asset Ratio: | B24: =S39 -> 0.2174850771 | Q24: 0.03191489362 | R24: 0.0597826087 | S24: No | W24: 1 | X24: 1 | Y24: 4 | Z24: 3 | AA24: 0 | AB24: 0 | AC24: 1 | AD24: 3 | AE24: 4 | AF24: 1 | AG24: 7 | AJ24: 0 | AK24: 3 | AL24: 5 | AM24: 1 | AN24: 0 | AO24: 0 | AP24: 0 | AQ24: 8 | AR24: 1 | AS24: 2 | AT24: 2
A25: Operating Profit Margin | B25: =S40 -> 0.08702921141 | Q25: 0.01063829787 | R25: 0.02173913043 | W25: 0 | X25: 5 | Y25: 0 | Z25: 1 | AA25: 2 | AB25: 1 | AC25: 1 | AD25: 4 | AE25: 2 | AF25: 2 | AG25: 1 | AJ25: 1 | AK25: 3 | AL25: 2 | AM25: 3 | AN25: 0 | AO25: 0 | AP25: 0 | AQ25: 6 | AR25: 2 | AS25: 1 | AT25: 3
A26: Rate of Return on Farm Assets | B26: =S41 -> 0.01820305216 | E26: Working Captial Ratio | Q26: 0.4787234043 | R26: 0.4510869565 | W26: 0 | X26: 3 | Y26: 2 | Z26: 2 | AA26: 0 | AB26: 0 | AC26: 0 | AD26: 2 | AE26: 2 | AF26: 0 | AG26: 4 | AJ26: 3 | AK26: 1 | AL26: 1 | AM26: 1 | AN26: 0 | AO26: 0 | AP26: 0 | AQ26: 1 | AR26: 2 | AS26: 0 | AT26: 1
A27: Rate of Return on Farm Equity | B27: =S42 -> 0.0092522646 | F27: =U1 -> 2019 | G27: 10-Year | S27: Your Farm Line-Current Ratio | W27: 0 | X27: 2 | Y27: 3 | Z27: 1 | AA27: 1 | AB27: 0 | AC27: 1 | AD27: 11 | AE27: 7 | AF27: 7 | AG27: 0 | AJ27: 2 | AK27: 3 | AL27: 1 | AM27: 0 | AN27: 0 | AO27: 0 | AP27: 0 | AQ27: 3 | AR27: 1 | AS27: 1 | AT27: 0
A28: Asset Turnover Rate | B28: =S43 -> 0.2091602563 | E28: -0.5 | F28: =Q38 -> 0.03191489362 | G28: =R38 -> 0.005434782609 | Q28: =Q38 -> 0.03191489362 | R28: =R38 -> 0.005434782609 | S28: X's | T28: =IF(B22<4.5,B22,4.5) -> 2.439582847 | U28: =IF(B22<4.5,B22,4.5) -> 2.439582847 | W28: 18 | X28: 7 | Z28: 1 | AA28: 0 | AB28: 1 | AC28: 0 | AG28: 0 | AJ28: 10 | AK28: 4 | AM28: 0 | AN28: 0 | AO28: 1 | AP28: 0 | AT28: 0
A29: Operating Expense Ratio | B29: =S44 -> 0.6872399753 | E29: =E28+0.25 -> -0.25 | F29: =Q39 -> 0.02659574468 | G29: =R39 -> 0.01086956522 | Q29: =Q28+Q39 -> 0.0585106383 | R29: =R28+R39 -> 0.01630434783 | S29: Y's | T29: 0 | U29: 1 | V29: Count | W29: 34 | X29: 34 | Y29: 34 | Z29: 34 | AA29: 34 | AB29: 34 | AC29: 34 | AD29: 34 | AE29: 34 | AF29: 34 | AG29: 34 | AI29: Count | AJ29: 27 | AK29: 27 | AL29: 27 | AM29: 27 | AN29: 27 | AO29: 27 | AP29: 27 | AQ29: 27 | AR29: 27 | AS29: 27 | AT29: 27
A30: Depreciation Expense Ratio | B30: =S45 -> 0.08818208209 | E30: =E29+0.25 -> 0 | F30: 0.1276595745 | G30: 0.07065217391 | Q30: 0.1861702128 | R30: 0.08695652174 | S30: =IF(B22=F18,U1 &" Average","Your Farm") -> 2019 Average | V30: Average | W30: 2.370604618 | X30: 0.5265604447 | Y30: 0.1586913942 | Z30: -0.3043584021 | AA30: -0.02884250261 | AB30: -0.04488117117 | AC30: 0.09476492982 | AD30: 0.8452104975 | AE30: 0.0936231835 | AF30: 0.07388868249 | AG30: -0.01272236347 | AI30: Average | AJ30: 1.854253622 | AK30: 0.4641375528 | AL30: 0.2151605608 | AM30: -0.1058168777 | AN30: -0.01376949553 | AO30: -0.02944083896 | AP30: 0.1301257023 | AQ30: 0.8075550766 | AR30: 0.05940322117 | AS30: 0.05515536978 | AT30: 0.07788633245
A31: Interest Expense Ratio | B31: =S46 -> 0.04763159422 | E31: 0.25 | F31: 0.1276595745 | G31: 0.1739130435 | Q31: 0.3138297872 | R31: 0.2608695652 | S31: Your Farm Line-Working Capital Ratio | V31: Non-ratio average | X31: 96887.54926 | AG31: -2340.925206 | AI31: Non-ratio average | AK31: 99061.62007 | AT31: 16623.40448
A32: Net Farm Income Ratio: | B32: =S47 -> 0.1769463484 | E32: 0.5 | F32: 0.1861702128 | G32: 0.2173913043 | Q32: 0.5 | R32: 0.4782608696 | S32: X's | T32: =IF(B23>1.75,1.75,B23) -> 0.5162269766 | U32: =IF(B23>1.75,1.75,B23) -> 0.5162269766
A33: *Defaults to Averages for 2019 if not entered | E33: 0.75 | F33: 0.1329787234 | G33: 0.1739130435 | Q33: 0.6329787234 | R33: 0.652173913 | S33: Y's | T33: 0 | U33: 1 | W33: 500-1000No
E34: 1 | F34: 0.1276595745 | G34: 0.125 | Q34: 0.7606382979 | R34: 0.777173913 | S34: =IF(B23=F39,U1 &" Average","Your Farm") -> 2019 Average | W34: Current Ratio | X34: Working Capital Ratio | Y34: Debt to Asset Ratio | Z34: Operating Profit Margin | AA34: ROA | AB34: ROE | AC34: Asset Turnover | AD34: Operating Expense Ratio | AE34: Depr Expense Ratio | AF34: Interest Expense Ratio | AG34: NFI Ratio | AJ34: Current Ratio | AK34: Working Capital Ratio | AL34: Debt to Asset Ratio | AM34: Operating Profit Margin | AN34: ROA | AO34: ROE | AP34: Asset Turnover | AQ34: Operating Expense Ratio | AR34: Depr Expense Ratio | AS34: Interest Expense Ratio | AT34: NFI Ratio
E35: 1.25 | F35: 0.08510638298 | G35: 0.0597826087 | Q35: 0.8457446809 | R35: 0.8369565217 | W35: 0 | X35: 0 | Y35: 3 | Z35: 0 | AA35: 0 | AB35: 0 | AC35: 0 | AD35: 0 | AE35: 0 | AF35: 3 | AG35: 0 | AJ35: 0 | AK35: 0 | AL35: 1 | AM35: 0 | AN35: 0 | AO35: 0 | AP35: 0 | AQ35: 0 | AR35: 0 | AS35: 0 | AT35: 0
E36: 1.5 | F36: 0.04787234043 | G36: 0.05434782609 | Q36: 0.8936170213 | R36: 0.8913043478 | W36: 0 | X36: 0 | Y36: 4 | Z36: 0 | AA36: 0 | AB36: 1 | AC36: 2 | AD36: 1 | AE36: 1 | AF36: 3 | AG36: 0 | AJ36: 0 | AK36: 0 | AL36: 8 | AM36: 0 | AN36: 0 | AO36: 0 | AP36: 1 | AQ36: 0 | AR36: 1 | AS36: 10 | AT36: 0
E37: More | F37: 0.1063829787 | G37: 0.1086956522 | Q37: 1 | R37: 1 | S37: =$F$18 -> 2.439582847 | W37: 4 | X37: 4 | Y37: 3 | Z37: 0 | AA37: 2 | AB37: 4 | AC37: 6 | AD37: 3 | AE37: 2 | AF37: 4 | AG37: 0 | AJ37: 2 | AK37: 2 | AL37: 1 | AM37: 1 | AN37: 2 | AO37: 7 | AP37: 7 | AQ37: 5 | AR37: 3 | AS37: 6 | AT37: 0
E38: Count | F38: =F17 -> 188 | G38: =G17 -> 184 | Q38: =IF($T$6=$W$1,X3/$F$38,IF($T$6=$W$17,X19/$F$38,IF($T$6=$W$33,X35/$F$38,IF($T$6=$W$49,X51/$F$38,IF($T$6=$W$65,X67/$F$38,IF($T$6=$W$81,X83/$F$38,IF($T$6=$W$97,X99/$F$38,IF($T$6=$W$113,X115/$F$38,IF($T$6=$W$129,X131/$F$38,IF($T$6=$W$145,X147/$F$38,IF($T$6=$W$161,X163/$F$38,"N/A"))))))))))) -> 0.03191489362 | R38: =IF($T$6=$W$1,AK3/$G$38,IF($T$6=$W$17,AK19/$G$38,IF($T$6=$W$33,AK35/$G$38,IF($T$6=$W$49,AK51/$G$38,IF($T$6=$W$65,AK67/$G$38,IF($T$6=$W$81,AK83/$G$38,IF($T$6=$W$97,AK99/$G$38,IF($T$6=$W$113,AK115/$G$38,IF($T$6=$W$129,AK131/$G$38,IF($T$6=$W$145,AK147/$G$38,IF($T$6=$W$161,AK163/$G$38,"N/A"))))))))))) -> 0.005434782609 | S38: =$F$39 -> 0.5162269766 | W38: 1 | X38: 1 | Y38: 0 | Z38: 2 | AA38: 8 | AB38: 7 | AC38: 0 | AD38: 8 | AE38: 8 | AF38: 5 | AG38: 0 | AJ38: 1 | AK38: 3 | AL38: 5 | AM38: 1 | AN38: 9 | AO38: 7 | AP38: 2 | AQ38: 5 | AR38: 3 | AS38: 0 | AT38: 0
E39: Average | F39: =IF($T$6=$W$1,$X$14,IF($T$6=$W$17,$X$30,IF($T$6=$W$33,$X$46,IF($T$6=$W$49,$X$62,IF($T$6=$W$65,$X$78,IF($T$6=$W$81,$X$94,IF($T$6=$W$97,$X$110,IF($T$6=$W$113,$X$126,IF($T$6=$W$129,$X$142,IF($T$6=$W$145,$X$158,IF($T$6=$W$161,$X$174,"N/A"))))))))))) -> 0.5162269766 | G39: =IF($T$6=$W$1,$AK$14,IF($T$6=$W$17,$AK$30,IF($T$6=$W$33,$AK$46,IF($T$6=$W$49,$AK$62,IF($T$6=$W$65,$AK$78,IF($T$6=$W$81,$AK$94,IF($T$6=$W$97,$AK$110,IF($T$6=$W$113,$AK$126,IF($T$6=$W$129,$AK$142,IF($T$6=$W$145,$AK$158,IF($T$6=$W$161,$AK$174,"N/A"))))))))))) -> 0.57955699 | Q39: 0.02659574468 | R39: 0.01086956522 | S39: =$F$59 -> 0.2174850771 | W39: 1 | X39: 4 | Y39: 1 | Z39: 0 | AA39: 2 | AB39: 0 | AC39: 3 | AD39: 3 | AE39: 4 | AF39: 0 | AG39: 6 | AJ39: 1 | AK39: 3 | AL39: 0 | AM39: 2 | AN39: 3 | AO39: 1 | AP39: 3 | AQ39: 5 | AR39: 7 | AS39: 1 | AT39: 5
E40: Working Capital Avg. | Q40: 0.1276595745 | R40: 0.07065217391 | S40: =$F$81 -> 0.08702921141 | W40: 0 | X40: 3 | Y40: 2 | Z40: 10 | AA40: 1 | AB40: 1 | AC40: 2 | AD40: 0 | AE40: 0 | AF40: 0 | AG40: 9 | AJ40: 0 | AK40: 2 | AL40: 1 | AM40: 9 | AN40: 1 | AO40: 1 | AP40: 2 | AQ40: 2 | AR40: 2 | AS40: 0 | AT40: 10
F41: =IF($T$6=$W$1,$X$15,IF($T$6=$W$17,$X$31,IF($T$6=$W$33,$X$47,IF($T$6=$W$49,$X$63,IF($T$6=$W$65,$X$79,IF($T$6=$W$81,$X$95,IF($T$6=$W$97,$X$111,IF($T$6=$W$113,$X$127,IF($T$6=$W$129,$X$143,IF($T$6=$W$145,$X$159,IF($T$6=$W$161,$X$175,"N/A"))))))))))) -> 314035.6542 | G41: =IF($T$6=$W$1,$AK$15,IF($T$6=$W$17,$AK$31,IF($T$6=$W$33,$AK$47,IF($T$6=$W$49,$AK$63,IF($T$6=$W$65,$AK$79,IF($T$6=$W$81,$AK$95,IF($T$6=$W$97,$AK$111,IF($T$6=$W$113,$AK$127,IF($T$6=$W$129,$AK$143,IF($T$6=$W$145,$AK$159,IF($T$6=$W$161,$AK$175,"N/A"))))))))))) -> 345101.9957 | Q41: 0.1276595745 | R41: 0.1739130435 | S41: =$F$102 -> 0.01820305216 | W41: 0 | X41: 2 | Y41: 0 | Z41: 3 | AA41: 3 | AB41: 1 | AC41: 2 | AD41: 1 | AE41: 1 | AF41: 1 | AG41: 0 | AJ41: 0 | AK41: 1 | AL41: 1 | AM41: 4 | AN41: 2 | AO41: 1 | AP41: 1 | AQ41: 0 | AR41: 1 | AS41: 0 | AT41: 2
Q42: 0.1861702128 | R42: 0.2173913043 | S42: =$F$123 -> 0.0092522646 | W42: 0 | X42: 1 | Y42: 1 | Z42: 1 | AA42: 0 | AB42: 0 | AC42: 0 | AD42: 0 | AE42: 0 | AF42: 0 | AG42: 1 | AJ42: 2 | AK42: 1 | AL42: 0 | AM42: 0 | AN42: 0 | AO42: 0 | AP42: 0 | AQ42: 0 | AR42: 0 | AS42: 0 | AT42: 0
F43: =IF(B23=F39,"","Your Farm") ->  | G43: =IF(B23=F39,"",B23) ->  | Q43: 0.1329787234 | R43: 0.1739130435 | S43: =$F$144 -> 0.2091602563 | W43: 1 | X43: 0 | Y43: 2 | Z43: 0 | AA43: 0 | AB43: 0 | AC43: 0 | AD43: 0 | AE43: 0 | AF43: 0 | AG43: 0 | AJ43: 1 | AK43: 2 | AL43: 0 | AM43: 0 | AN43: 0 | AO43: 0 | AP43: 0 | AQ43: 0 | AR43: 0 | AS43: 0 | AT43: 0
Q44: 0.1276595745 | R44: 0.125 | S44: =$F$164 -> 0.6872399753 | W44: 9 | X44: 1 | Z44: 0 | AA44: 0 | AB44: 2 | AC44: 1 | AG44: 0 | AJ44: 10 | AK44: 3 | AM44: 0 | AN44: 0 | AO44: 0 | AP44: 1 | AT44: 0
Q45: 0.08510638298 | R45: 0.0597826087 | S45: =$F$185 -> 0.08818208209 | V45: Count | W45: 16 | X45: 16 | Y45: 16 | Z45: 16 | AA45: 16 | AB45: 16 | AC45: 16 | AD45: 16 | AE45: 16 | AF45: 16 | AG45: 16 | AI45: Count | AJ45: 17 | AK45: 17 | AL45: 17 | AM45: 17 | AN45: 17 | AO45: 17 | AP45: 17 | AQ45: 17 | AR45: 17 | AS45: 17 | AT45: 17
Q46: 0.04787234043 | R46: 0.05434782609 | S46: =$F$206 -> 0.04763159422 | V46: Average | W46: 3.067438811 | X46: 0.505750113 | Y46: 0.1292396061 | Z46: 0.1221526548 | AA46: 0.02189995978 | AB46: 0.01561304804 | AC46: 0.1792835351 | AD46: 0.6495064003 | AE46: 0.07822314014 | AF46: 0.04631021495 | AG46: 0.2259602446 | AI46: Average | AJ46: 7.239131832 | AK46: 0.8449050916 | AL46: 0.09271219471 | AM46: 0.05739071341 | AN46: 0.01184893565 | AO46: 0.007225771897 | AP46: 0.2064608531 | AQ46: 0.6818991086 | AR46: 0.0902112844 | AS46: 0.02544444181 | AT46: 0.2024451652
E47: Debt to Asset Ratio | Q47: 0.1063829787 | R47: 0.1086956522 | S47: =$F$228 -> 0.1769463484 | V47: Non-ratio average | X47: 234364.279 | AG47: 104709.8329 | AI47: Non-ratio average | AK47: 291246.8022 | AT47: 69784.7694
F48: =U1 -> 2019 | G48: 10-Year
E49: 0 | F49: =Q58 -> 0.1489361702 | G49: =R58 -> 0.0597826087 | Q49: =Q58 -> 0.1489361702 | R49: =R58 -> 0.0597826087 | S49: Your Farm Line-Debt to Asset | W49: 500-1000Yes
E50: 0.1 | F50: =Q59 -> 0.2021276596 | G50: =R59 -> 0.2663043478 | Q50: =Q49+Q59 -> 0.3510638298 | R50: 0.3260869565 | S50: X's | T50: =IF(B24>0.8,0.8,B24) -> 0.2174850771 | U50: =T50 -> 0.2174850771 | W50: Current Ratio | X50: Working Capital Ratio | Y50: Debt to Asset Ratio | Z50: Operating Profit Margin | AA50: ROA | AB50: ROE | AC50: Asset Turnover | AD50: Operating Expense Ratio | AE50: Depr Expense Ratio | AF50: Interest Expense Ratio | AG50: NFI Ratio | AJ50: Current Ratio | AK50: Working Capital Ratio | AL50: Debt to Asset Ratio | AM50: Operating Profit Margin | AN50: ROA | AO50: ROE | AP50: Asset Turnover | AQ50: Operating Expense Ratio | AR50: Depr Expense Ratio | AS50: Interest Expense Ratio | AT50: NFI Ratio
E51: 0.2 | F51: 0.1489361702 | G51: 0.1467391304 | Q51: 0.5 | R51: 0.472826087 | S51: Y's | T51: 0 | U51: 1 | W51: 0 | X51: 0 | Y51: 4 | Z51: 1 | AA51: 0 | AB51: 2 | AC51: 0 | AD51: 0 | AE51: 0 | AF51: 3 | AG51: 0 | AJ51: 0 | AK51: 0 | AL51: 2 | AM51: 0 | AN51: 0 | AO51: 3 | AP51: 0 | AQ51: 0 | AR51: 0 | AS51: 2 | AT51: 0
E52: 0.3 | F52: 0.1276595745 | G52: 0.1902173913 | Q52: 0.6276595745 | R52: 0.6630434783 | S52: =IF(B24=F59,U1 &" Average","Your Farm") -> 2019 Average | W52: 0 | X52: 1 | Y52: 4 | Z52: 1 | AA52: 2 | AB52: 5 | AC52: 5 | AD52: 0 | AE52: 1 | AF52: 9 | AG52: 2 | AJ52: 0 | AK52: 1 | AL52: 9 | AM52: 0 | AN52: 1 | AO52: 4 | AP52: 3 | AQ52: 1 | AR52: 3 | AS52: 11 | AT52: 0
E53: 0.4 | F53: 0.08510638298 | G53: 0.1086956522 | Q53: 0.7127659574 | R53: 0.7717391304 | W53: 4 | X53: 3 | Y53: 2 | Z53: 1 | AA53: 6 | AB53: 11 | AC53: 10 | AD53: 2 | AE53: 7 | AF53: 0 | AG53: 0 | AJ53: 2 | AK53: 1 | AL53: 4 | AM53: 2 | AN53: 5 | AO53: 12 | AP53: 11 | AQ53: 4 | AR53: 4 | AS53: 7 | AT53: 0
E54: 0.5 | F54: 0.1010638298 | G54: 0.1032608696 | Q54: 0.8138297872 | R54: 0.875 | W54: 4 | X54: 4 | Y54: 7 | Z54: 6 | AA54: 11 | AB54: 5 | AC54: 6 | AD54: 8 | AE54: 7 | AF54: 6 | AG54: 2 | AJ54: 3 | AK54: 4 | AL54: 5 | AM54: 3 | AN54: 17 | AO54: 8 | AP54: 9 | AQ54: 14 | AR54: 7 | AS54: 6 | AT54: 3
E55: 0.6 | F55: 0.04787234043 | G55: 0.04891304348 | Q55: 0.8617021277 | R55: 0.9239130435 | W55: 2 | X55: 5 | Y55: 3 | Z55: 5 | AA55: 4 | AB55: 1 | AC55: 1 | AD55: 7 | AE55: 4 | AF55: 3 | AG55: 9 | AJ55: 3 | AK55: 9 | AL55: 4 | AM55: 10 | AN55: 5 | AO55: 1 | AP55: 2 | AQ55: 4 | AR55: 6 | AS55: 1 | AT55: 9
E56: 0.7 | F56: 0.05319148936 | G56: 0.04891304348 | Q56: 0.914893617 | R56: 0.972826087 | W56: 2 | X56: 4 | Y56: 2 | Z56: 8 | AA56: 1 | AB56: 0 | AC56: 1 | AD56: 3 | AE56: 3 | AF56: 1 | AG56: 8 | AJ56: 4 | AK56: 4 | AL56: 2 | AM56: 11 | AN56: 1 | AO56: 1 | AP56: 3 | AQ56: 5 | AR56: 3 | AS56: 1 | AT56: 14
E57: More | F57: 0.08510638298 | G57: 0.02717391304 | Q57: 1 | R57: 1 | W57: 0 | X57: 1 | Y57: 1 | Z57: 2 | AA57: 0 | AB57: 0 | AC57: 0 | AD57: 3 | AE57: 1 | AF57: 1 | AG57: 3 | AJ57: 1 | AK57: 2 | AL57: 1 | AM57: 3 | AN57: 0 | AO57: 0 | AP57: 1 | AQ57: 1 | AR57: 5 | AS57: 1 | AT57: 3
E58: Count | F58: =F38 -> 188 | G58: =G38 -> 184 | Q58: =IF($T$6=$W$1,Y3/$F$58,IF($T$6=$W$17,Y19/$F$58,IF($T$6=$W$33,Y35/$F$58,IF($T$6=$W$49,Y51/$F$58,IF($T$6=$W$65,Y67/$F$58,IF($T$6=$W$81,Y83/$F$58,IF($T$6=$W$97,Y99/$F$58,IF($T$6=$W$113,Y115/$F$58,IF($T$6=$W$129,Y131/$F$58,IF($T$6=$W$145,Y147/$F$58,IF($T$6=$W$161,Y163/$F$58,"N/A"))))))))))) -> 0.1489361702 | R58: =IF($T$6=$W$1,AL3/$G$38,IF($T$6=$W$17,AL19/$G$38,IF($T$6=$W$33,AL35/$G$38,IF($T$6=$W$49,AL51/$G$38,IF($T$6=$W$65,AL67/$G$38,IF($T$6=$W$81,AL83/$G$38,IF($T$6=$W$97,AL99/$G$38,IF($T$6=$W$113,AL115/$G$38,IF($T$6=$W$129,AL131/$G$38,IF($T$6=$W$145,AL147/$G$38,IF($T$6=$W$161,AL163/$G$38,"N/A"))))))))))) -> 0.0597826087 | W58: 2 | X58: 1 | Y58: 1 | Z58: 0 | AA58: 0 | AB58: 0 | AC58: 0 | AD58: 1 | AE58: 1 | AF58: 0 | AG58: 0 | AJ58: 1 | AK58: 2 | AL58: 1 | AM58: 0 | AN58: 0 | AO58: 0 | AP58: 0 | AQ58: 0 | AR58: 0 | AS58: 0 | AT58: 0
E59: Average | F59: =IF($T$6=$W$1,$Y$14,IF($T$6=$W$17,$Y$30,IF($T$6=$W$33,$Y$46,IF($T$6=$W$49,$Y$62,IF($T$6=$W$65,$Y$78,IF($T$6=$W$81,$Y$94,IF($T$6=$W$97,$Y$110,IF($T$6=$W$113,$Y$126,IF($T$6=$W$129,$Y$142,IF($T$6=$W$145,$Y$158,IF($T$6=$W$161,$Y$174,"N/A"))))))))))) -> 0.2174850771 | G59: =IF($T$6=$W$1,$AL$14,IF($T$6=$W$17,$AL$30,IF($T$6=$W$33,$AL$46,IF($T$6=$W$49,$AL$62,IF($T$6=$W$65,$AL$78,IF($T$6=$W$81,$AL$94,IF($T$6=$W$97,$AL$110,IF($T$6=$W$113,$AL$126,IF($T$6=$W$129,$AL$142,IF($T$6=$W$145,$AL$158,IF($T$6=$W$161,$AL$174,"N/A"))))))))))) -> 0.2089414598 | Q59: 0.2021276596 | R59: 0.2663043478 | W59: 0 | X59: 2 | Y59: 0 | Z59: 0 | AA59: 0 | AB59: 0 | AC59: 1 | AD59: 0 | AE59: 0 | AF59: 1 | AG59: 0 | AJ59: 0 | AK59: 1 | AL59: 1 | AM59: 0 | AN59: 0 | AO59: 0 | AP59: 0 | AQ59: 0 | AR59: 1 | AS59: 0 | AT59: 0
Q60: 0.1489361702 | R60: 0.1467391304 | W60: 10 | X60: 3 | Z60: 0 | AA60: 0 | AB60: 0 | AC60: 0 | AG60: 0 | AJ60: 15 | AK60: 5 | AM60: 0 | AN60: 0 | AO60: 0 | AP60: 0 | AT60: 0
Q61: 0.1276595745 | R61: 0.1902173913 | V61: Count | W61: 24 | X61: 24 | Y61: 24 | Z61: 24 | AA61: 24 | AB61: 24 | AC61: 24 | AD61: 24 | AE61: 24 | AF61: 24 | AG61: 24 | AI61: Count | AJ61: 29 | AK61: 29 | AL61: 29 | AM61: 29 | AN61: 29 | AO61: 29 | AP61: 29 | AQ61: 29 | AR61: 29 | AS61: 29 | AT61: 29
Q62: 0.08510638298 | R62: 0.1086956522 | V62: Average | W62: 2.478326611 | X62: 0.5746893011 | Y62: 0.2074281982 | Z62: -0.01682308918 | AA62: -0.002827857371 | AB62: -0.01514469686 | AC62: 0.1680938227 | AD62: 0.7281947026 | AE62: 0.09253477829 | AF62: 0.05015218177 | AG62: 0.1291183374 | AI62: Average | AJ62: 3.229690573 | AK62: 0.6670941746 | AL62: 0.1846601534 | AM62: 0.01269436084 | AN62: 0.002280934434 | AO62: -0.007211999954 | AP62: 0.1796809199 | AQ62: 0.683226732 | AR62: 0.1028116553 | AS62: 0.04270148287 | AT62: 0.1712601299
F63: =IF(B24=F59,"","Your Farm") ->  | G63: =IF(B24=F59,"",B24) ->  | Q63: 0.1010638298 | R63: 0.1032608696 | V63: Non-ratio average | X63: 235434.329 | AG63: 52896.2155 | AI63: Non-ratio average | AK63: 237029.2803 | AT63: 60851.47625
Q64: 0.04787234043 | R64: 0.04891304348
Q65: 0.05319148936 | R65: 0.04891304348 | W65: Blank
Q66: 0.08510638298 | R66: 0.02717391304 | W66: Current Ratio | X66: Working Capital Ratio | Y66: Debt to Asset Ratio | Z66: Operating Profit Margin | AA66: ROA | AB66: ROE | AC66: Asset Turnover | AD66: Operating Expense Ratio | AE66: Depr Expense Ratio | AF66: Interest Expense Ratio | AG66: NFI Ratio | AJ66: Current Ratio | AK66: Working Capital Ratio | AL66: Debt to Asset Ratio | AM66: Operating Profit Margin | AN66: ROA | AO66: ROE | AP66: Asset Turnover | AQ66: Operating Expense Ratio | AR66: Depr Expense Ratio | AS66: Interest Expense Ratio | AT66: NFI Ratio
E68: Operating Profit Margin Ratio
F69: =U1 -> 2019 | G69: 10-Year
E70: -0.6 | F70: =Q80 -> 0.1276595745 | G70: =R80 -> 0.03260869565 | Q70: =Q80 -> 0.1276595745 | R70: =R80 -> 0.03260869565
E71: -0.45 | F71: =Q81 -> 0.02659574468 | G71: =R81 -> 0.01086956522 | Q71: =Q70+Q81 -> 0.1542553191 | R71: =R70+R81 -> 0.04347826087 | S71: Your Farm Line-Operating Profit Margin Ratio
E72: -0.3 | F72: 0.04787234043 | G72: 0.0597826087 | Q72: 0.2021276596 | R72: 0.1032608696 | S72: X's | T72: =IF(B25>0.75,0.75,B25) -> 0.08702921141 | U72: =T72 -> 0.08702921141
E73: -0.15 | F73: 0.1010638298 | G73: 0.05434782609 | Q73: 0.3031914894 | R73: 0.1576086957 | S73: Y's | T73: 0 | U73: 1
E74: 0 | F74: 0.1276595745 | G74: 0.1793478261 | Q74: 0.4308510638 | R74: 0.3369565217 | S74: =IF(B25=F81,U1 &" Average","Your Farm") -> 2019 Average
E75: 0.15 | F75: 0.2872340426 | G75: 0.4293478261 | Q75: 0.7180851064 | R75: 0.7663043478
E76: 0.3 | F76: 0.2074468085 | G76: 0.2282608696 | Q76: 0.9255319149 | R76: 0.9945652174
E77: 0.45 | F77: 0.06382978723 | G77: 0.005434782609 | Q77: 0.9893617021 | R77: 1 | V77: Count | AI77: Count
E78: 0.6 | F78: 0.005319148936 | G78: 0 | Q78: 0.9946808511 | R78: 1 | V78: Average | AI78: Average
E79: More | F79: 0.005319148936 | G79: 0 | Q79: 1 | R79: 1 | V79: Non-ratio average | AI79: Non-ratio average
E80: Count | F80: =F58 -> 188 | G80: =G58 -> 184 | Q80: =IF($T$6=$W$1,Z3/$F$80,IF($T$6=$W$17,Z19/$F$80,IF($T$6=$W$33,Z35/$F$80,IF($T$6=$W$49,Z51/$F$80,IF($T$6=$W$65,Z67/$F$80,IF($T$6=$W$81,Z83/$F$80,IF($T$6=$W$97,Z99/$F$80,IF($T$6=$W$113,Z115/$F$80,IF($T$6=$W$129,Z131/$F$80,IF($T$6=$W$145,Z147/$F$80,IF($T$6=$W$161,Z163/$F$80,"N/A"))))))))))) -> 0.1276595745 | R80: =IF($T$6=$W$1,AM3/$G$38,IF($T$6=$W$17,AM19/$G$38,IF($T$6=$W$33,AM35/$G$38,IF($T$6=$W$49,AM51/$G$38,IF($T$6=$W$65,AM67/$G$38,IF($T$6=$W$81,AM83/$G$38,IF($T$6=$W$97,AM99/$G$38,IF($T$6=$W$113,AM115/$G$38,IF($T$6=$W$129,AM131/$G$38,IF($T$6=$W$145,AM147/$G$38,IF($T$6=$W$161,AM163/$G$38,"N/A"))))))))))) -> 0.03260869565
E81: Average | F81: =IF($T$6=$W$1,$Z$14,IF($T$6=$W$17,$Z$30,IF($T$6=$W$33,$Z$46,IF($T$6=$W$49,$Z$62,IF($T$6=$W$65,$Z$78,IF($T$6=$W$81,$Z$94,IF($T$6=$W$97,$Z$110,IF($T$6=$W$113,$Z$126,IF($T$6=$W$129,$Z$142,IF($T$6=$W$145,$Z$158,IF($T$6=W161,Z174,"N/A"))))))))))) -> 0.08702921141 | G81: =IF($T$6=$W$1,$AM$14,IF($T$6=$W$17,$AM$30,IF($T$6=$W$33,$AM$46,IF($T$6=$W$49,$AM$62,IF($T$6=$W$65,$AM$78,IF($T$6=$W$81,$AM$94,IF($T$6=$W$97,$AM$110,IF($T$6=$W$113,$AM$126,IF($T$6=$W$129,$AM$142,IF($T$6=$W$145,$AM$158,IF($T$6=$W$161,$AM$174,"N/A"))))))))))) -> 0.08460349028 | Q81: 0.02659574468 | R81: 0.01086956522 | W81: Greater than 1000No
Q82: 0.04787234043 | R82: 0.0597826087 | W82: Current Ratio | X82: Working Capital Ratio | Y82: Debt to Asset Ratio | Z82: Operating Profit Margin | AA82: ROA | AB82: ROE | AC82: Asset Turnover | AD82: Operating Expense Ratio | AE82: Depr Expense Ratio | AF82: Interest Expense Ratio | AG82: NFI Ratio | AJ82: Current Ratio | AK82: Working Capital Ratio | AL82: Debt to Asset Ratio | AM82: Operating Profit Margin | AN82: ROA | AO82: ROE | AP82: Asset Turnover | AQ82: Operating Expense Ratio | AR82: Depr Expense Ratio | AS82: Interest Expense Ratio | AT82: NFI Ratio
Q83: 0.1010638298 | R83: 0.05434782609 | W83: 0 | X83: 0 | Y83: 0 | Z83: 0 | AA83: 0 | AB83: 0 | AC83: 0 | AD83: 1 | AE83: 0 | AF83: 2 | AG83: 0 | AJ83: 0 | AK83: 0 | AL83: 0 | AM83: 0 | AN83: 1 | AO83: 1 | AP83: 0 | AQ83: 0 | AR83: 0 | AS83: 0 | AT83: 0
Q84: 0.1276595745 | R84: 0.1793478261 | W84: 0 | X84: 0 | Y84: 10 | Z84: 0 | AA84: 0 | AB84: 1 | AC84: 0 | AD84: 5 | AE84: 3 | AF84: 19 | AG84: 0 | AJ84: 0 | AK84: 0 | AL84: 6 | AM84: 0 | AN84: 0 | AO84: 2 | AP84: 0 | AQ84: 0 | AR84: 0 | AS84: 24 | AT84: 0
F85: =IF(B25=F81,"","Your Farm") ->  | G85: =IF(B25=F81,"",B25) ->  | Q85: 0.2872340426 | R85: 0.4293478261 | W85: 3 | X85: 3 | Y85: 8 | Z85: 0 | AA85: 2 | AB85: 5 | AC85: 8 | AD85: 6 | AE85: 6 | AF85: 10 | AG85: 0 | AJ85: 4 | AK85: 4 | AL85: 10 | AM85: 0 | AN85: 1 | AO85: 1 | AP85: 4 | AQ85: 9 | AR85: 4 | AS85: 9 | AT85: 0
Q86: 0.2074468085 | R86: 0.2282608696 | W86: 4 | X86: 5 | Y86: 2 | Z86: 1 | AA86: 6 | AB86: 7 | AC86: 4 | AD86: 13 | AE86: 13 | AF86: 2 | AG86: 1 | AJ86: 7 | AK86: 9 | AL86: 5 | AM86: 1 | AN86: 6 | AO86: 18 | AP86: 7 | AQ86: 11 | AR86: 11 | AS86: 2 | AT86: 1
Q87: 0.06382978723 | R87: 0.005434782609 | W87: 4 | X87: 10 | Y87: 3 | Z87: 4 | AA87: 5 | AB87: 6 | AC87: 3 | AD87: 5 | AE87: 6 | AF87: 0 | AG87: 5 | AJ87: 3 | AK87: 8 | AL87: 4 | AM87: 2 | AN87: 15 | AO87: 5 | AP87: 3 | AQ87: 12 | AR87: 13 | AS87: 0 | AT87: 10
Q88: 0.005319148936 | R88: 0 | W88: 3 | X88: 6 | Y88: 3 | Z88: 10 | AA88: 8 | AB88: 3 | AC88: 0 | AD88: 3 | AE88: 1 | AF88: 0 | AG88: 16 | AJ88: 4 | AK88: 5 | AL88: 6 | AM88: 23 | AN88: 9 | AO88: 7 | AP88: 5 | AQ88: 4 | AR88: 4 | AS88: 1 | AT88: 23
E89: Rate of Return on Farm Assets | Q89: 0.005319148936 | R89: 0 | W89: 2 | X89: 4 | Y89: 4 | Z89: 15 | AA89: 1 | AB89: 3 | AC89: 8 | AD89: 0 | AE89: 2 | AF89: 0 | AG89: 8 | AJ89: 2 | AK89: 6 | AL89: 1 | AM89: 10 | AN89: 4 | AO89: 0 | AP89: 7 | AQ89: 0 | AR89: 2 | AS89: 0 | AT89: 2
F90: =U1 -> 2019 | G90: 10-Year | W90: 1 | X90: 5 | Y90: 1 | Z90: 3 | AA90: 4 | AB90: 2 | AC90: 1 | AD90: 0 | AE90: 1 | AF90: 0 | AG90: 3 | AJ90: 1 | AK90: 4 | AL90: 3 | AM90: 0 | AN90: 0 | AO90: 0 | AP90: 4 | AQ90: 0 | AR90: 2 | AS90: 0 | AT90: 0
E91: -0.1 | F91: =Q101 -> 0.06382978723 | G91: =R101 -> 0.02717391304 | Q91: =Q101 -> 0.06382978723 | R91: =R101 -> 0.02717391304 | W91: 1 | X91: 0 | Y91: 2 | Z91: 0 | AA91: 4 | AB91: 1 | AC91: 2 | AD91: 0 | AE91: 1 | AF91: 0 | AG91: 0 | AJ91: 0 | AK91: 0 | AL91: 1 | AM91: 0 | AN91: 0 | AO91: 2 | AP91: 0 | AQ91: 0 | AR91: 0 | AS91: 0 | AT91: 0
E92: -0.06 | F92: =Q102 -> 0.07446808511 | G92: =R102 -> 0.02173913043 | Q92: =Q91+Q102 -> 0.1382978723 | R92: =R91+R102 -> 0.04891304348 | W92: 15 | X92: 0 | Z92: 0 | AA92: 3 | AB92: 5 | AC92: 7 | AG92: 0 | AJ92: 15 | AK92: 0 | AM92: 0 | AN92: 0 | AO92: 0 | AP92: 6 | AT92: 0
E93: -0.02 | F93: 0.1542553191 | G93: 0.1358695652 | Q93: 0.2925531915 | R93: 0.1847826087 | S93: Your Farm Line-Return on Assets | V93: Count | W93: 33 | X93: 33 | Y93: 33 | Z93: 33 | AA93: 33 | AB93: 33 | AC93: 33 | AD93: 33 | AE93: 33 | AF93: 33 | AG93: 33 | AI93: Count | AJ93: 36 | AK93: 36 | AL93: 36 | AM93: 36 | AN93: 36 | AO93: 36 | AP93: 36 | AQ93: 36 | AR93: 36 | AS93: 36 | AT93: 36
E94: 0.02 | F94: 0.335106383 | G94: 0.3858695652 | Q94: 0.6276595745 | R94: 0.5706521739 | S94: X's | T94: =IF(B26>0.24,0.24,B26) -> 0.01820305216 | U94: =T94 -> 0.01820305216 | V94: Average | W94: 2.842262698 | X94: 0.4557985275 | Y94: 0.2272966828 | Z94: 0.1769098002 | AA94: 0.0638622144 | AB94: 0.06574736535 | AC94: 0.3609874316 | AD94: 0.627858251 | AE94: 0.08522144558 | AF94: 0.02696109052 | AG94: 0.2599592129 | AI94: Average | AJ94: 2.654876904 | AK94: 0.4033852215 | AL94: 0.2382024006 | AM94: 0.09884031755 | AN94: 0.03864232996 | AO94: 0.03536953898 | AP94: 0.3909571612 | AQ94: 0.6951860051 | AR94: 0.1006931326 | AS94: 0.027635263 | AT94: 0.1764855994
E95: 0.06 | F95: 0.1595744681 | G95: 0.3097826087 | Q95: 0.7872340426 | R95: 0.8804347826 | S95: Y's | T95: 0 | U95: 1 | V95: Non-ratio average | X95: 452551.6823 | AG95: 258107.4138 | AI95: Non-ratio average | AK95: 356856.094 | AT95: 156128.5795
E96: 0.1 | F96: 0.07978723404 | G96: 0.07065217391 | Q96: 0.8670212766 | R96: 0.9510869565 | S96: =IF(B26=F102,U1 &" Average","Your Farm") -> 2019 Average
E97: 0.14 | F97: 0.05319148936 | G97: 0.04347826087 | Q97: 0.920212766 | R97: 0.9945652174 | W97: Greater than 1000Yes
E98: 0.18 | F98: 0.03191489362 | G98: 0 | Q98: 0.9521276596 | R98: 0.9945652174 | W98: Current Ratio | X98: Working Capital Ratio | Y98: Debt to Asset Ratio | Z98: Operating Profit Margin | AA98: ROA | AB98: ROE | AC98: Asset Turnover | AD98: Operating Expense Ratio | AE98: Depr Expense Ratio | AF98: Interest Expense Ratio | AG98: NFI Ratio | AJ98: Current Ratio | AK98: Working Capital Ratio | AL98: Debt to Asset Ratio | AM98: Operating Profit Margin | AN98: ROA | AO98: ROE | AP98: Asset Turnover | AQ98: Operating Expense Ratio | AR98: Depr Expense Ratio | AS98: Interest Expense Ratio | AT98: NFI Ratio
E99: 0.22 | F99: 0.03191489362 | G99: 0.005434782609 | Q99: 0.9840425532 | R99: 1 | W99: 0 | X99: 0 | Y99: 4 | Z99: 0 | AA99: 1 | AB99: 1 | AC99: 0 | AD99: 0 | AE99: 0 | AF99: 3 | AG99: 0 | AJ99: 0 | AK99: 0 | AL99: 0 | AM99: 0 | AN99: 0 | AO99: 0 | AP99: 0 | AQ99: 0 | AR99: 0 | AS99: 0 | AT99: 0
E100: More | F100: 0.01595744681 | G100: 0 | Q100: 1 | R100: 1 | W100: 0 | X100: 0 | Y100: 8 | Z100: 0 | AA100: 1 | AB100: 1 | AC100: 5 | AD100: 4 | AE100: 0 | AF100: 11 | AG100: 0 | AJ100: 0 | AK100: 0 | AL100: 11 | AM100: 0 | AN100: 0 | AO100: 3 | AP100: 2 | AQ100: 1 | AR100: 0 | AS100: 16 | AT100: 0
E101: Count | F101: =F80 -> 188 | G101: =G80 -> 184 | Q101: =IF($T$6=$W$1,AA3/$F$101,IF($T$6=$W$17,AA19/$F$101,IF($T$6=$W$33,AA35/$F$101,IF($T$6=$W$49,AA51/$F$101,IF($T$6=$W$65,AA67/$F$101,IF($T$6=$W$81,AA83/$F$101,IF($T$6=$W$97,AA99/$F$101,IF($T$6=$W$113,AA115/$F$101,IF($T$6=$W$129,AA131/$F$101,IF($T$6=$W$145,AA147/$F$101,IF($T$6=$W$161,AA163/$F$101,"N/A"))))))))))) -> 0.06382978723 | R101: =IF($T$6=$W$1,AN3/$G$38,IF($T$6=$W$17,AN19/$G$38,IF($T$6=$W$33,AN35/$G$38,IF($T$6=$W$49,AN51/$G$38,IF($T$6=$W$65,AN67/$G$38,IF($T$6=$W$81,AN83/$G$38,IF($T$6=$W$97,AN99/$G$38,IF($T$6=$W$113,AN115/$G$38,IF($T$6=$W$129,AN131/$G$38,IF($T$6=$W$145,AN147/$G$38,IF($T$6=$W$161,AN163/$G$38,"N/A"))))))))))) -> 0.02717391304 | W101: 5 | X101: 5 | Y101: 7 | Z101: 1 | AA101: 2 | AB101: 17 | AC101: 18 | AD101: 5 | AE101: 6 | AF101: 11 | AG101: 1 | AJ101: 1 | AK101: 1 | AL101: 7 | AM101: 0 | AN101: 1 | AO101: 5 | AP101: 15 | AQ101: 3 | AR101: 7 | AS101: 20 | AT101: 0
E102: Average | F102: =IF($T$6=$W$1,$AA$14,IF($T$6=$W$17,$AA$30,IF($T$6=$W$33,$AA$46,IF($T$6=$W$49,$AA$62,IF($T$6=$W$65,$AA$78,IF($T$6=$W$81,$AA$94,IF($T$6=$W$97,$AA$110,IF($T$6=$W$113,$AA$126,IF($T$6=$W$129,$AA$142,IF($T$6=$W$145,$AA$158,IF($T$6=$W$161,AA174,"N/A"))))))))))) -> 0.01820305216 | G102: =IF($T$6=$W$1,$AN$14,IF($T$6=$W$17,$AN$30,IF($T$6=$W$33,$AN$46,IF($T$6=$W$49,$AN$62,IF($T$6=$W$65,$AN$78,IF($T$6=$W$81,$AN$94,IF($T$6=$W$97,$AN$110,IF($T$6=$W$113,$AN$126,IF($T$6=$W$129,$AN$142,IF($T$6=$W$145,$AN$158,IF($T$6=$W$161,$AN$174,"N/A"))))))))))) -> 0.02022476523 | Q102: 0.07446808511 | R102: 0.02173913043 | W102: 8 | X102: 6 | Y102: 8 | Z102: 3 | AA102: 17 | AB102: 8 | AC102: 4 | AD102: 13 | AE102: 9 | AF102: 5 | AG102: 6 | AJ102: 4 | AK102: 6 | AL102: 12 | AM102: 0 | AN102: 14 | AO102: 31 | AP102: 11 | AQ102: 23 | AR102: 13 | AS102: 4 | AT102: 1
Q103: 0.1542553191 | R103: 0.1358695652 | W103: 3 | X103: 7 | Y103: 4 | Z103: 6 | AA103: 9 | AB103: 5 | AC103: 4 | AD103: 11 | AE103: 13 | AF103: 5 | AG103: 11 | AJ103: 6 | AK103: 12 | AL103: 8 | AM103: 5 | AN103: 26 | AO103: 3 | AP103: 8 | AQ103: 15 | AR103: 16 | AS103: 4 | AT103: 11
Q104: 0.335106383 | R104: 0.3858695652 | W104: 0 | X104: 6 | Y104: 2 | Z104: 16 | AA104: 5 | AB104: 4 | AC104: 3 | AD104: 2 | AE104: 7 | AF104: 1 | AG104: 15 | AJ104: 6 | AK104: 11 | AL104: 3 | AM104: 24 | AN104: 1 | AO104: 2 | AP104: 5 | AQ104: 2 | AR104: 6 | AS104: 0 | AT104: 28
Q105: 0.1595744681 | R105: 0.3097826087 | W105: 4 | X105: 8 | Y105: 2 | Z105: 10 | AA105: 3 | AB105: 1 | AC105: 2 | AD105: 2 | AE105: 2 | AF105: 1 | AG105: 5 | AJ105: 5 | AK105: 7 | AL105: 1 | AM105: 15 | AN105: 2 | AO105: 0 | AP105: 3 | AQ105: 0 | AR105: 1 | AS105: 0 | AT105: 4
F106: =IF(B26=F102,"","Your Farm") ->  | G106: =IF(B26=F102,"",B26) ->  | Q106: 0.07978723404 | R106: 0.07065217391 | W106: 1 | X106: 3 | Y106: 3 | Z106: 3 | AA106: 0 | AB106: 0 | AC106: 2 | AD106: 2 | AE106: 1 | AF106: 1 | AG106: 1 | AJ106: 3 | AK106: 3 | AL106: 1 | AM106: 0 | AN106: 0 | AO106: 0 | AP106: 0 | AQ106: 0 | AR106: 1 | AS106: 0 | AT106: 0
Q107: 0.05319148936 | R107: 0.04347826087 | W107: 0 | X107: 1 | Y107: 1 | Z107: 0 | AA107: 1 | AB107: 2 | AC107: 0 | AD107: 0 | AE107: 1 | AF107: 1 | AG107: 0 | AJ107: 1 | AK107: 3 | AL107: 1 | AM107: 0 | AN107: 0 | AO107: 0 | AP107: 0 | AQ107: 0 | AR107: 0 | AS107: 0 | AT107: 0
Q108: 0.03191489362 | R108: 0 | W108: 18 | X108: 3 | Z108: 0 | AA108: 0 | AB108: 0 | AC108: 1 | AG108: 0 | AJ108: 18 | AK108: 1 | AM108: 0 | AN108: 0 | AO108: 0 | AP108: 0 | AT108: 0
Q109: 0.03191489362 | R109: 0.005434782609 | V109: Count | W109: 39 | X109: 39 | Y109: 39 | Z109: 39 | AA109: 39 | AB109: 39 | AC109: 39 | AD109: 39 | AE109: 39 | AF109: 39 | AG109: 39 | AI109: Count | AJ109: 44 | AK109: 44 | AL109: 44 | AM109: 44 | AN109: 44 | AO109: 44 | AP109: 44 | AQ109: 44 | AR109: 44 | AS109: 44 | AT109: 44
E110: Rate of Return on Farm Equity | Q110: 0.01595744681 | R110: 0 | V110: Average | W110: 2.662457681 | X110: 0.5749404752 | Y110: 0.2248812536 | Z110: 0.08498762848 | AA110: 0.01674890236 | AB110: 0.007401939103 | AC110: 0.1970745938 | AD110: 0.6887583478 | AE110: 0.09801757903 | AF110: 0.05370562788 | AG110: 0.1595184453 | AI110: Average | AJ110: 3.435709329 | AK110: 0.5957623106 | AL110: 0.2164512237 | AM110: 0.1179373693 | AN110: 0.0277988874 | AO110: 0.02330592738 | AP110: 0.2357088985 | AQ110: 0.6821646253 | AR110: 0.09320708021 | AS110: 0.03835366946 | AT110: 0.186274625
F111: =U1 -> 2019 | G111: 10-Year | V111: Non-ratio average | X111: 511841.8259 | AG111: 142011.5922 | AI111: Non-ratio average | AK111: 550598.5416 | AT111: 172153.4495
E112: -0.1 | F112: =Q122 -> 0.1436170213 | G112: =R122 -> 0.08695652174 | Q112: =Q122 -> 0.1436170213 | R112: =R122 -> 0.08695652174
E113: -0.05 | F113: =Q123 -> 0.1063829787 | G113: =R123 -> 0.07608695652 | Q113: =Q112+Q123 -> 0.25 | R113: =R112+R123 -> 0.1630434783 | W113: Blank
E114: 0 | F114: 0.3191489362 | G114: 0.2445652174 | Q114: 0.5691489362 | R114: 0.4076086957 | W114: Current Ratio | X114: Working Capital Ratio | Y114: Debt to Asset Ratio | Z114: Operating Profit Margin | AA114: ROA | AB114: ROE | AC114: Asset Turnover | AD114: Operating Expense Ratio | AE114: Depr Expense Ratio | AF114: Interest Expense Ratio | AG114: NFI Ratio | AJ114: Current Ratio | AK114: Working Capital Ratio | AL114: Debt to Asset Ratio | AM114: Operating Profit Margin | AN114: ROA | AO114: ROE | AP114: Asset Turnover | AQ114: Operating Expense Ratio | AR114: Depr Expense Ratio | AS114: Interest Expense Ratio | AT114: NFI Ratio
E115: 0.05 | F115: 0.2021276596 | G115: 0.4347826087 | Q115: 0.7712765957 | R115: 0.8423913043 | S115: Your Farm Line-Return on Equity
E116: 0.1 | F116: 0.06914893617 | G116: 0.0652173913 | Q116: 0.8404255319 | R116: 0.9076086957 | S116: X's | T116: =IF(B27>0.35,0.35,B27) -> 0.0092522646 | U116: =T116 -> 0.0092522646
E117: 0.15 | F117: 0.05319148936 | G117: 0.0597826087 | Q117: 0.8936170213 | R117: 0.9673913043 | S117: Y's | T117: 0 | U117: 1
E118: 0.2 | F118: 0.03191489362 | G118: 0.005434782609 | Q118: 0.9255319149 | R118: 0.972826087 | S118: =IF(B27=F123,U1 &" Average","Your Farm") -> 2019 Average
E119: 0.25 | F119: 0.01063829787 | G119: 0.005434782609 | Q119: 0.9361702128 | R119: 0.9782608696
E120: 0.3 | F120: 0.02127659574 | G120: 0.01086956522 | Q120: 0.9574468085 | R120: 0.9891304348
E121: More | F121: 0.04255319149 | G121: 0.01086956522 | Q121: 1 | R121: 1
E122: Count | F122: =F101 -> 188 | G122: =G101 -> 184 | Q122: =IF($T$6=$W$1,AB3/$F$122,IF($T$6=$W$17,AB19/$F$122,IF($T$6=$W$33,AB35/$F$122,IF($T$6=$W$49,AB51/$F$122,IF($T$6=$W$65,AB67/$F$122,IF($T$6=$W$81,AB83/$F$122,IF($T$6=$W$97,AB99/$F$122,IF($T$6=$W$113,AB115/$F$122,IF($T$6=$W$129,AB131/$F$122,IF($T$6=$W$145,AB147/$F$122,IF($T$6=$W$161,AB163/$F$122,"N/A"))))))))))) -> 0.1436170213 | R122: =IF($T$6=$W$1,AO3/$G$38,IF($T$6=$W$17,AO19/$G$38,IF($T$6=$W$33,AO35/$G$38,IF($T$6=$W$49,AO51/$G$38,IF($T$6=$W$65,AO67/$G$38,IF($T$6=$W$81,AO83/$G$38,IF($T$6=$W$97,AO99/$G$38,IF($T$6=$W$113,AO115/$G$38,IF($T$6=$W$129,AO131/$G$38,IF($T$6=$W$145,AO147/$G$38,IF($T$6=$W$161,AO163/$G$38,"N/A"))))))))))) -> 0.08695652174
E123: Average | F123: =IF($T$6=$W$1,$AB$14,IF($T$6=$W$17,$AB$30,IF($T$6=$W$33,$AB$46,IF($T$6=$W$49,$AB$62,IF($T$6=$W$65,$AB$78,IF($T$6=$W$81,$AB$94,IF($T$6=$W$97,$AB$110,IF($T$6=$W$113,$AB$126,IF($T$6=$W$129,$AB$142,IF($T$6=$W$145,$AB$158,IF($T$6=W161,AB174,"N/A"))))))))))) -> 0.0092522646 | G123: =IF($T$6=$W$1,$AO$14,IF($T$6=$W$17,$AO$30,IF($T$6=$W$33,$AO$46,IF($T$6=$W$49,$AO$62,IF($T$6=$W$65,$AO$78,IF($T$6=$W$81,$AO$94,IF($T$6=$W$97,$AO$110,IF($T$6=$W$113,$AO$126,IF($T$6=$W$129,$AO$142,IF($T$6=$W$145,$AO$158,IF($T$6=$W$161,$AO$174,"N/A"))))))))))) -> 0.01341421902 | Q123: 0.1063829787 | R123: 0.07608695652
Q124: 0.3191489362 | R124: 0.2445652174
Q125: 0.2021276596 | R125: 0.4347826087 | V125: Count | AI125: Count
Q126: 0.06914893617 | R126: 0.0652173913 | V126: Average | AI126: Average
F127: =IF(B27=F123,"","Your Farm") ->  | G127: =IF(B27=F123,"",B27) ->  | Q127: 0.05319148936 | R127: 0.0597826087 | V127: Non-ratio average | AI127: Non-ratio average
Q128: 0.03191489362 | R128: 0.005434782609
Q129: 0.01063829787 | R129: 0.005434782609 | W129: All Farms
Q130: 0.02127659574 | R130: 0.01086956522 | W130: Current Ratio | X130: Working Capital Ratio | Y130: Debt to Asset Ratio | Z130: Operating Profit Margin | AA130: ROA | AB130: ROE | AC130: Asset Turnover | AD130: Operating Expense Ratio | AE130: Depr Expense Ratio | AF130: Interest Expense Ratio | AG130: NFI Ratio | AJ130: Current Ratio | AK130: Working Capital Ratio | AL130: Debt to Asset Ratio | AM130: Operating Profit Margin | AN130: ROA | AO130: ROE | AP130: Asset Turnover | AQ130: Operating Expense Ratio | AR130: Depr Expense Ratio | AS130: Interest Expense Ratio | AT130: NFI Ratio
E131: Asset Turnover Rate | Q131: 0.04255319149 | R131: 0.01086956522 | W131: 0 | X131: 6 | Y131: 28 | Z131: 24 | AA131: 12 | AB131: 27 | AC131: 0 | AD131: 5 | AE131: 2 | AF131: 34 | AG131: 13 | AJ131: 0 | AK131: 1 | AL131: 11 | AM131: 6 | AN131: 5 | AO131: 16 | AP131: 0 | AQ131: 0 | AR131: 0 | AS131: 11 | AT131: 1
F132: =U1 -> 2019 | G132: 10-Year | W132: 4 | X132: 5 | Y132: 38 | Z132: 5 | AA132: 14 | AB132: 20 | AC132: 42 | AD132: 14 | AE132: 17 | AF132: 54 | AG132: 9 | AJ132: 1 | AK132: 2 | AL132: 49 | AM132: 2 | AN132: 4 | AO132: 14 | AP132: 25 | AQ132: 3 | AR132: 11 | AS132: 74 | AT132: 1
E133: 0 | F133: =Q143 -> 0 | G133: =R143 -> 0 | Q133: =Q143 -> 0 | R133: =R143 -> 0 | W133: 31 | X133: 24 | Y133: 28 | Z133: 9 | AA133: 29 | AB133: 60 | AC133: 63 | AD133: 24 | AE133: 35 | AF133: 35 | AG133: 8 | AJ133: 15 | AK133: 13 | AL133: 27 | AM133: 11 | AN133: 25 | AO133: 45 | AP133: 58 | AQ133: 26 | AR133: 33 | AS133: 58 | AT133: 7
E134: 0.1 | F134: =Q144 -> 0.2234042553 | G134: =R144 -> 0.1358695652 | Q134: =Q133+Q144 -> 0.2234042553 | R134: =R133+R144 -> 0.1358695652 | W134: 29 | X134: 24 | Y134: 24 | Z134: 19 | AA134: 63 | AB134: 38 | AC134: 25 | AD134: 55 | AE134: 56 | AF134: 28 | AG134: 15 | AJ134: 28 | AK134: 32 | AL134: 35 | AM134: 10 | AN134: 71 | AO134: 80 | AP134: 39 | AQ134: 69 | AR134: 51 | AS134: 18 | AT134: 13
E135: 0.2 | F135: 0.335106383 | G135: 0.3152173913 | Q135: 0.5585106383 | R135: 0.4510869565 | W135: 12 | X135: 35 | Y135: 16 | Z135: 24 | AA135: 30 | AB135: 13 | AC135: 16 | AD135: 36 | AE135: 38 | AF135: 10 | AG135: 40 | AJ135: 16 | AK135: 40 | AL135: 20 | AM135: 33 | AN135: 57 | AO135: 12 | AP135: 21 | AQ135: 48 | AR135: 51 | AS135: 14 | AT135: 54
E136: 0.3 | F136: 0.1329787234 | G136: 0.2119565217 | Q136: 0.6914893617 | R136: 0.6630434783 | W136: 8 | X136: 25 | Y136: 19 | Z136: 54 | AA136: 15 | AB136: 10 | AC136: 9 | AD136: 17 | AE136: 15 | AF136: 6 | AG136: 63 | AJ136: 17 | AK136: 32 | AL136: 19 | AM136: 79 | AN136: 13 | AO136: 11 | AP136: 17 | AQ136: 26 | AR136: 18 | AS136: 4 | AT136: 90
E137: 0.4 | F137: 0.08510638298 | G137: 0.1141304348 | Q137: 0.7765957447 | R137: 0.777173913 | S137: Your Farm Line-Asset Turnover Rate | W137: 6 | X137: 24 | Y137: 9 | Z137: 39 | AA137: 10 | AB137: 6 | AC137: 15 | AD137: 12 | AE137: 8 | AF137: 7 | AG137: 29 | AJ137: 9 | AK137: 23 | AL137: 9 | AM137: 42 | AN137: 8 | AO137: 1 | AP137: 12 | AQ137: 7 | AR137: 13 | AS137: 3 | AT137: 17
E138: 0.5 | F138: 0.04787234043 | G138: 0.09239130435 | Q138: 0.8244680851 | R138: 0.8695652174 | S138: X's | T138: =IF(B28>0.9,0.9,B28) -> 0.2091602563 | U138: =T138 -> 0.2091602563 | W138: 6 | X138: 16 | Y138: 10 | Z138: 12 | AA138: 6 | AB138: 2 | AC138: 3 | AD138: 9 | AE138: 6 | AF138: 2 | AG138: 11 | AJ138: 11 | AK138: 11 | AL138: 9 | AM138: 1 | AN138: 0 | AO138: 1 | AP138: 4 | AQ138: 2 | AR138: 5 | AS138: 0 | AT138: 1
E139: 0.6 | F139: 0.07978723404 | G139: 0.0652173913 | Q139: 0.9042553191 | R139: 0.9347826087 | S139: Y's | T139: 0 | U139: 1 | W139: 2 | X139: 9 | Y139: 16 | Z139: 1 | AA139: 6 | AB139: 4 | AC139: 4 | AD139: 16 | AE139: 11 | AF139: 12 | AG139: 0 | AJ139: 4 | AK139: 10 | AL139: 5 | AM139: 0 | AN139: 1 | AO139: 2 | AP139: 0 | AQ139: 3 | AR139: 2 | AS139: 2 | AT139: 0
E140: 0.7 | F140: 0.01595744681 | G140: 0.02173913043 | Q140: 0.920212766 | R140: 0.9565217391 | S140: =IF(B28=F144,U1 &" Average","Your Farm") -> 2019 Average | W140: 90 | X140: 20 | Z140: 1 | AA140: 3 | AB140: 8 | AC140: 11 | AG140: 0 | AJ140: 83 | AK140: 20 | AM140: 0 | AN140: 0 | AO140: 2 | AP140: 8 | AT140: 0
E141: 0.8 | F141: 0.02127659574 | G141: 0 | Q141: 0.9414893617 | R141: 0.9565217391 | V141: Count | W141: 188 | X141: 188 | Y141: 188 | Z141: 188 | AA141: 188 | AB141: 188 | AC141: 188 | AD141: 188 | AE141: 188 | AF141: 188 | AG141: 188 | AI141: Count | AJ141: 184 | AK141: 184 | AL141: 184 | AM141: 184 | AN141: 184 | AO141: 184 | AP141: 184 | AQ141: 184 | AR141: 184 | AS141: 184 | AT141: 184
E142: More | F142: 0.0585106383 | G142: =R152 -> 0.04347826087 | Q142: 1 | R142: 1 | V142: Average | W142: 2.439582847 | X142: 0.5162269766 | Y142: 0.2174850771 | Z142: 0.08702921141 | AA142: 0.01820305216 | AB142: 0.0092522646 | AC142: 0.2091602563 | AD142: 0.6872399753 | AE142: 0.08818208209 | AF142: 0.04763159422 | AG142: 0.1769463484 | AI142: Average | AJ142: 2.915608593 | AK142: 0.57955699 | AL142: 0.2089414598 | AM142: 0.08460349028 | AN142: 0.02022476523 | AO142: 0.01341421902 | AP142: 0.2390535564 | AQ142: 0.6995659825 | AR142: 0.09135597068 | AS142: 0.03680249705 | AT142: 0.1722755498
E143: Count | F143: =F122 -> 188 | G143: =G122 -> 184 | Q143: =IF($T$6=$W$1,AC3/$F$143,IF($T$6=$W$17,AC19/$F$143,IF($T$6=$W$33,AC35/$F$143,IF($T$6=$W$49,AC51/$F$143,IF($T$6=$W$65,AC67/$F$143,IF($T$6=$W$81,AC83/$F$143,IF($T$6=$W$97,AC99/$F$143,IF($T$6=$W$113,AC115/$F$143,IF($T$6=$W$129,AC131/$F$143,IF($T$6=$W$145,AC147/$F$143,IF($T$6=$W$161,AC163/$F$143,"N/A"))))))))))) -> 0 | R143: =IF($T$6=$W$1,AP3/$G$38,IF($T$6=$W$17,AP19/$G$38,IF($T$6=$W$33,AP35/$G$38,IF($T$6=$W$49,AP51/$G$38,IF($T$6=$W$65,AP67/$G$38,IF($T$6=$W$81,AP83/$G$38,IF($T$6=$W$97,AP99/$G$38,IF($T$6=$W$113,AP115/$G$38,IF($T$6=$W$129,AP131/$G$38,IF($T$6=$W$145,AP147/$G$38,IF($T$6=$W$161,AP163/$G$38,"N/A"))))))))))) -> 0 | V143: Non-ratio average | X143: 314035.6542 | AG143: 107641.5314 | AI143: Non-ratio average | AK143: 345101.9957 | AT143: 102582.8988
E144: Average | F144: =IF($T$6=$W$1,$AC$14,IF($T$6=$W$17,$AC$30,IF($T$6=$W$33,$AC$46,IF($T$6=$W$49,$AC$62,IF($T$6=$W$65,$AC$78,IF($T$6=$W$81,$AC$94,IF($T$6=$W$97,$AC$110,IF($T$6=$W$113,$AC$126,IF($T$6=$W$129,$AC$142,IF($T$6=$W$145,$AC$158,IF($T$6=W161,AC174,"N/A"))))))))))) -> 0.2091602563 | G144: =IF($T$6=$W$1,$AP$14,IF($T$6=$W$17,$AP$30,IF($T$6=$W$33,$AP$46,IF($T$6=$W$49,$AP$62,IF($T$6=$W$65,$AP$78,IF($T$6=$W$81,$AP$94,IF($T$6=$W$97,$AP$110,IF($T$6=$W$113,$AP$126,IF($T$6=$W$129,$AP$142,IF($T$6=$W$145,$AP$158,IF($T$6=$W$161,$AP$174,"N/A"))))))))))) -> 0.2390535564 | Q144: 0.2234042553 | R144: 0.1358695652
Q145: 0.335106383 | R145: 0.3152173913 | W145: Blank
Q146: 0.1329787234 | R146: 0.2119565217 | W146: Current Ratio | X146: Working Capital Ratio | Y146: Debt to Asset Ratio | Z146: Operating Profit Margin | AA146: ROA | AB146: ROE | AC146: Asset Turnover | AD146: Operating Expense Ratio | AE146: Depr Expense Ratio | AF146: Interest Expense Ratio | AG146: NFI Ratio | AJ146: Current Ratio | AK146: Working Capital Ratio | AL146: Debt to Asset Ratio | AM146: Operating Profit Margin | AN146: ROA | AO146: ROE | AP146: Asset Turnover | AQ146: Operating Expense Ratio | AR146: Depr Expense Ratio | AS146: Interest Expense Ratio | AT146: NFI Ratio
Q147: 0.08510638298 | R147: 0.1141304348
F148: =IF(B28=F144,"","Your Farm") ->  | G148: =IF(B28=F144,"",B28) ->  | Q148: 0.04787234043 | R148: 0.09239130435
Q149: 0.07978723404 | R149: 0.0652173913
Q150: 0.01595744681 | R150: 0.02173913043
Q151: 0.02127659574 | R151: 0
E152: Operating Expense Ratio | Q152: 0.0585106383 | R152: 0.04347826087
F153: =U1 -> 2019 | G153: 10-Year
E154: 0.4 | F154: =Q163 -> 0.02659574468 | G154: =R163 -> 0 | Q154: =Q163 -> 0.02659574468 | R154: =R163 -> 0
E155: 0.5 | F155: =Q164 -> 0.07446808511 | G155: =R164 -> 0.01630434783 | Q155: =Q154+Q164 -> 0.1010638298 | R155: 0.01630434783
E156: 0.6 | F156: 0.1276595745 | G156: 0.1413043478 | Q156: 0.2287234043 | R156: 0.1576086957
E157: 0.7 | F157: 0.2925531915 | G157: 0.375 | Q157: 0.5212765957 | R157: 0.5326086957 | V157: Count | AI157: Count
E158: 0.8 | F158: 0.1914893617 | G158: 0.2608695652 | Q158: 0.7127659574 | R158: 0.7934782609 | V158: Average | AI158: Average
E159: 0.9 | F159: 0.09042553191 | G159: 0.1413043478 | Q159: 0.8031914894 | R159: 0.9347826087 | S159: Your Farm Line-Operating Expense Ratio | V159: Non-ratio average | AI159: Non-ratio average
E160: 1 | F160: 0.06382978723 | G160: 0.03804347826 | Q160: 0.8670212766 | R160: 0.972826087 | S160: X's | T160: =IF(B29>1.2,1.2,B29) -> 0.6872399753 | U160: =T160 -> 0.6872399753
E161: 1.1 | F161: 0.04787234043 | G161: 0.01086956522 | Q161: 0.914893617 | R161: 0.9836956522 | S161: Y's | T161: 0 | U161: 1 | W161: Blank
E162: More | F162: 0.08510638298 | G162: 0.01630434783 | Q162: 1 | R162: 1 | S162: =IF(B29=F164,U1 &" Average","Your Farm") -> 2019 Average | W162: Current Ratio | X162: Working Capital Ratio | Y162: Debt to Asset Ratio | Z162: Operating Profit Margin | AA162: ROA | AB162: ROE | AC162: Asset Turnover | AD162: Operating Expense Ratio | AE162: Depr Expense Ratio | AF162: Interest Expense Ratio | AG162: NFI Ratio | AJ162: Current Ratio | AK162: Working Capital Ratio | AL162: Debt to Asset Ratio | AM162: Operating Profit Margin | AN162: ROA | AO162: ROE | AP162: Asset Turnover | AQ162: Operating Expense Ratio | AR162: Depr Expense Ratio | AS162: Interest Expense Ratio | AT162: NFI Ratio
E163: Count | F163: =F143 -> 188 | G163: =G143 -> 184 | Q163: =IF($T$6=$W$1,AD3/$F$143,IF($T$6=$W$17,AD19/$F$143,IF($T$6=$W$33,AD35/$F$143,IF($T$6=$W$49,AD51/$F$143,IF($T$6=$W$65,AD67/$F$143,IF($T$6=$W$81,AD83/$F$143,IF($T$6=$W$97,AD99/$F$143,IF($T$6=$W$113,AD115/$F$143,IF($T$6=$W$129,AD131/$F$143,IF($T$6=$W$145,AD147/$F$143,IF($T$6=$W$161,AD163/$F$143,"N/A"))))))))))) -> 0.02659574468 | R163: =IF($T$6=$W$1,AQ3/$G$38,IF($T$6=$W$17,AQ19/$G$38,IF($T$6=$W$33,AQ35/$G$38,IF($T$6=$W$49,AQ51/$G$38,IF($T$6=$W$65,AQ67/$G$38,IF($T$6=$W$81,AQ83/$G$38,IF($T$6=$W$97,AQ99/$G$38,IF($T$6=$W$113,AQ115/$G$38,IF($T$6=$W$129,AQ131/$G$38,IF($T$6=$W$145,AQ147/$G$38,IF($T$6=$W$161,AQ163/$G$38,"N/A"))))))))))) -> 0
E164: Average | F164: =IF($T$6=$W$1,$AD$14,IF($T$6=$W$17,$AD$30,IF($T$6=$W$33,$AD$46,IF($T$6=$W$49,$AD$62,IF($T$6=$W$65,$AD$78,IF($T$6=$W$81,$AD$94,IF($T$6=$W$97,$AD$110,IF($T$6=$W$113,$AD$126,IF($T$6=$W$129,$AD$142,IF($T$6=$W$145,$AD$158,IF($T$6=W161,AD174,"N/A"))))))))))) -> 0.6872399753 | G164: =IF($T$6=$W$1,$AQ$14,IF($T$6=$W$17,$AQ$30,IF($T$6=$W$33,$AQ$46,IF($T$6=$W$49,$AQ$62,IF($T$6=$W$65,$AQ$78,IF($T$6=$W$81,$AQ$94,IF($T$6=$W$97,$AQ$110,IF($T$6=$W$113,$AQ$126,IF($T$6=$W$129,$AQ$142,IF($T$6=$W$145,$AQ$158,IF($T$6=$W$161,$AQ$174,"N/A"))))))))))) -> 0.6995659825 | Q164: 0.07446808511 | R164: 0.01630434783
Q165: 0.1276595745 | R165: 0.1413043478
Q166: 0.2925531915 | R166: 0.375
Q167: 0.1914893617 | R167: 0.2608695652
F168: =IF(B29=F164,"","Your Farm") ->  | G168: =IF(B29=F164,"",B29) ->  | Q168: 0.09042553191 | R168: 0.1413043478
Q169: 0.06382978723 | R169: 0.03804347826
Q170: 0.04787234043 | R170: 0.01086956522
Q171: 0.08510638298 | R171: 0.01630434783
E173: Depreciation Expense Ratio | V173: Count | AI173: Count
F174: =U1 -> 2019 | G174: 10-Year | V174: Average | AI174: Average
E175: 0 | F175: =Q184 -> 0.01063829787 | G175: =R184 -> 0 | Q175: =Q184 -> 0.01063829787 | R175: =R184 -> 0 | V175: Non-ratio average | AI175: Non-ratio average
E176: 0.03 | F176: =Q185 -> 0.09042553191 | G176: =R185 -> 0.0597826087 | Q176: =Q175+Q185 -> 0.1010638298 | R176: 0.0597826087
E177: 0.06 | F177: 0.1861702128 | G177: 0.1793478261 | Q177: 0.2872340426 | R177: 0.2391304348
E178: 0.09 | F178: 0.2978723404 | G178: 0.277173913 | Q178: 0.585106383 | R178: 0.5163043478
E179: 0.12 | F179: 0.2021276596 | G179: 0.277173913 | Q179: 0.7872340426 | R179: 0.7934782609
E180: 0.15 | F180: 0.07978723404 | G180: 0.09782608696 | Q180: 0.8670212766 | R180: 0.8913043478
E181: 0.18 | F181: 0.04255319149 | G181: 0.07065217391 | Q181: 0.9095744681 | R181: 0.9619565217 | S181: Your Farm Line-Depreciation Expense Ratio
E182: 0.21 | F182: 0.03191489362 | G182: 0.02717391304 | Q182: 0.9414893617 | R182: 0.9891304348 | S182: X's | T182: =IF(B30>0.24,0.24,B30) -> 0.08818208209 | U182: =T182 -> 0.08818208209
E183: More | F183: 0.0585106383 | G183: 0.01086956522 | Q183: 1 | R183: 1 | S183: Y's | T183: 0 | U183: 1
E184: Count | F184: =F163 -> 188 | G184: =G163 -> 184 | Q184: =IF($T$6=$W$1,AE3/$F$143,IF($T$6=$W$17,AE19/$F$143,IF($T$6=$W$33,AE35/$F$143,IF($T$6=$W$49,AE51/$F$143,IF($T$6=$W$65,AE67/$F$143,IF($T$6=$W$81,AE83/$F$143,IF($T$6=$W$97,AE99/$F$143,IF($T$6=$W$113,AE115/$F$143,IF($T$6=$W$129,AE131/$F$143,IF($T$6=$W$145,AE147/$F$143,IF($T$6=$W$161,AE163/$F$143,"N/A"))))))))))) -> 0.01063829787 | R184: =IF($T$6=$W$1,AR3/$G$38,IF($T$6=$W$17,AR19/$G$38,IF($T$6=$W$33,AR35/$G$38,IF($T$6=$W$49,AR51/$G$38,IF($T$6=$W$65,AR67/$G$38,IF($T$6=$W$81,AR83/$G$38,IF($T$6=$W$97,AR99/$G$38,IF($T$6=$W$113,AR115/$G$38,IF($T$6=$W$129,AR131/$G$38,IF($T$6=$W$145,AR147/$G$38,IF($T$6=$W$161,AR163/$G$38,"N/A"))))))))))) -> 0 | S184: =IF(B30=F185,U1 &" Average","Your Farm") -> 2019 Average
E185: Average | F185: =IF($T$6=$W$1,$AE$14,IF($T$6=$W$17,$AE$30,IF($T$6=$W$33,$AE$46,IF($T$6=$W$49,$AE$62,IF($T$6=$W$65,$AE$78,IF($T$6=$W$81,$AE$94,IF($T$6=$W$97,$AE$110,IF($T$6=$W$113,$AE$126,IF($T$6=$W$129,$AE$142,IF($T$6=$W$145,$AE$158,IF($T$6=$W$161,AE174,"N/A"))))))))))) -> 0.08818208209 | G185: =IF($T$6=$W$1,$AR$14,IF($T$6=$W$17,$AR$30,IF($T$6=$W$33,$AR$46,IF($T$6=$W$49,$AR$62,IF($T$6=$W$65,$AR$78,IF($T$6=$W$81,$AR$94,IF($T$6=$W$97,$AR$110,IF($T$6=$W$113,$AR$126,IF($T$6=$W$129,$AR$142,IF($T$6=$W$145,$AR$158,IF($T$6=$W$161,$AR$174,"N/A"))))))))))) -> 0.09135597068 | Q185: 0.09042553191 | R185: 0.0597826087
Q186: 0.1861702128 | R186: 0.1793478261
Q187: 0.2978723404 | R187: 0.277173913
Q188: 0.2021276596 | R188: 0.277173913
F189: =IF(B30=F185,"","Your Farm") ->  | G189: =IF(B30=F185,"",B30) ->  | Q189: 0.07978723404 | R189: 0.09782608696
Q190: 0.04255319149 | R190: 0.07065217391
Q191: 0.03191489362 | R191: 0.02717391304
Q192: 0.0585106383 | R192: 0.01086956522
E194: Interest Expense Ratio
F195: =U1 -> 2019 | G195: 10-Year
E196: 0 | F196: =Q205 -> 0.1808510638 | G196: =R205 -> 0.0597826087 | Q196: =Q205 -> 0.1808510638 | R196: =R205 -> 0.0597826087
E197: 0.03 | F197: =Q206 -> 0.2872340426 | G197: =R206 -> 0.402173913 | Q197: =Q196+Q206 -> 0.4680851064 | R197: 0.4619565217
E198: 0.06 | F198: 0.1861702128 | G198: 0.3152173913 | Q198: 0.6542553191 | R198: 0.777173913
E199: 0.09 | F199: 0.1489361702 | G199: 0.09782608696 | Q199: 0.8031914894 | R199: 0.875
E200: 0.12 | F200: 0.05319148936 | G200: 0.07608695652 | Q200: 0.8563829787 | R200: 0.9510869565
E201: 0.15 | F201: 0.03191489362 | G201: 0.02173913043 | Q201: 0.8882978723 | R201: 0.972826087
E202: 0.18 | F202: 0.03723404255 | G202: 0.01630434783 | Q202: 0.9255319149 | R202: 0.9891304348
E203: 0.21 | F203: 0.01063829787 | G203: 0 | Q203: 0.9361702128 | R203: 0.9891304348 | S203: Your Farm Line-Interest Expense Ratio
... 32 more rows

Sheet SouthEast
E1: KSU FARM FINANCIAL BENCHMARKING TOOL-Southeast Kansas | S1: Acres | T1: Lookup | U1: 2019 | W1: Less than 500No | AI1: 10-Year
S2: Less than 500 | T2: LT | U2: 2019 KFMA Farms | W2: Current Ratio | X2: Working Capital Ratio | Y2: Debt to Asset Ratio | Z2: Operating Profit Margin | AA2: ROA | AB2: ROE | AC2: Asset Turnover | AD2: Operating Expense Ratio | AE2: Depr Expense Ratio | AF2: Interest Expense Ratio | AG2: NFI Ratio | AJ2: Current Ratio | AK2: Working Capital Ratio | AL2: Debt to Asset Ratio | AM2: Operating Profit Margin | AN2: ROA | AO2: ROE | AP2: Asset Turnover | AQ2: Operating Expense Ratio | AR2: Depr Expense Ratio | AS2: Interest Expense Ratio | AT2: NFI Ratio
E3: Tillable Crop Acres: | G3: =B16 -> All Farms | I3: =A17 ->  | K3: =IF(B17="","",B17) ->  | P3: =IF(B18="","",B18) ->  | S3: 500-1500 | T3: BTW | U3: =J3 -> 0 | W3: 0 | X3: 1 | Y3: 5 | Z3: 1 | AA3: 2 | AB3: 3 | AC3: 0 | AD3: 1 | AE3: 1 | AF3: 3 | AG3: 0 | AJ3: 0 | AK3: 0 | AL3: 2 | AM3: 0 | AN3: 1 | AO3: 0 | AP3: 0 | AQ3: 2 | AR3: 0 | AS3: 2 | AT3: 0
S4: Greater than 1500 | T4: GT | W4: 1 | X4: 0 | Y4: 4 | Z4: 2 | AA4: 1 | AB4: 2 | AC4: 4 | AD4: 1 | AE4: 4 | AF4: 7 | AG4: 1 | AJ4: 1 | AK4: 1 | AL4: 5 | AM4: 0 | AN4: 0 | AO4: 1 | AP4: 4 | AQ4: 0 | AR4: 2 | AS4: 6 | AT4: 0
E5: Current Ratio | S5: All Farms | T5: All | W5: 1 | X5: 1 | Y5: 0 | Z5: 0 | AA5: 1 | AB5: 4 | AC5: 6 | AD5: 5 | AE5: 4 | AF5: 1 | AG5: 0 | AJ5: 1 | AK5: 1 | AL5: 1 | AM5: 1 | AN5: 2 | AO5: 3 | AP5: 3 | AQ5: 4 | AR5: 2 | AS5: 1 | AT5: 1
F6: =U1 -> 2019 | G6: 10-Year | S6: LTList | T6: =B16&B17&B18 -> All Farms | W6: 0 | X6: 3 | Y6: 1 | Z6: 1 | AA6: 6 | AB6: 5 | AC6: 1 | AD6: 3 | AE6: 3 | AF6: 1 | AG6: 4 | AJ6: 1 | AK6: 2 | AL6: 0 | AM6: 1 | AN6: 5 | AO6: 4 | AP6: 2 | AQ6: 0 | AR6: 4 | AS6: 2 | AT6: 1
E7: 0 | F7: =Q17 -> 0 | G7: =R17 -> 0 | S7: No | W7: 1 | X7: 6 | Y7: 2 | Z7: 3 | AA7: 4 | AB7: 0 | AC7: 2 | AD7: 3 | AE7: 2 | AF7: 2 | AG7: 1 | AJ7: 0 | AK7: 2 | AL7: 2 | AM7: 4 | AN7: 2 | AO7: 1 | AP7: 0 | AQ7: 3 | AR7: 2 | AS7: 1 | AT7: 3
E8: 0.5 | F8: =Q18 -> 0.03174603175 | G8: =R18 -> 0.02181818182 | Q8: =Q7+Q18 -> 0.03174603175 | R8: =R7+R18 -> 0.02181818182 | S8: Yes | W8: 2 | X8: 0 | Y8: 1 | Z8: 3 | AA8: 0 | AB8: 0 | AC8: 0 | AD8: 2 | AE8: 0 | AF8: 0 | AG8: 6 | AJ8: 1 | AK8: 3 | AL8: 0 | AM8: 1 | AN8: 1 | AO8: 0 | AP8: 1 | AQ8: 2 | AR8: 0 | AS8: 0 | AT8: 1
E9: 1 | F9: 0.09126984127 | G9: 0.06909090909 | Q9: 0.123015873 | R9: 0.09090909091 | W9: 0 | X9: 0 | Y9: 0 | Z9: 5 | AA9: 0 | AB9: 0 | AC9: 1 | AD9: 0 | AE9: 1 | AF9: 2 | AG9: 3 | AJ9: 0 | AK9: 1 | AL9: 0 | AM9: 3 | AN9: 0 | AO9: 1 | AP9: 0 | AQ9: 0 | AR9: 2 | AS9: 0 | AT9: 4
E10: 1.5 | F10: 0.1428571429 | G10: 0.1454545455 | Q10: 0.2658730159 | R10: 0.2363636364 | W10: 0 | X10: 2 | Y10: 2 | Z10: 1 | AA10: 0 | AB10: 0 | AC10: 0 | AD10: 1 | AE10: 2 | AF10: 0 | AG10: 1 | AJ10: 0 | AK10: 0 | AL10: 0 | AM10: 1 | AN10: 1 | AO10: 0 | AP10: 0 | AQ10: 0 | AR10: 0 | AS10: 0 | AT10: 2
E11: 2 | F11: 0.08333333333 | G11: 0.08363636364 | Q11: 0.3492063492 | R11: 0.32 | S11: BTWList | W11: 0 | X11: 0 | Y11: 2 | Z11: 1 | AA11: 1 | AB11: 0 | AC11: 0 | AD11: 1 | AE11: 0 | AF11: 1 | AG11: 1 | AJ11: 0 | AK11: 0 | AL11: 2 | AM11: 1 | AN11: 0 | AO11: 0 | AP11: 1 | AQ11: 1 | AR11: 0 | AS11: 0 | AT11: 0
E12: 2.5 | F12: 0.0873015873 | G12: 0.08363636364 | Q12: 0.4365079365 | R12: 0.4036363636 | S12: No | W12: 12 | X12: 4 | Z12: 0 | AA12: 2 | AB12: 3 | AC12: 3 | AG12: 0 | AJ12: 8 | AK12: 2 | AM12: 0 | AN12: 0 | AO12: 2 | AP12: 1 | AT12: 0
E13: 3 | F13: 0.06349206349 | G13: 0.08 | Q13: 0.5 | R13: 0.4836363636 | S13: Yes | V13: Count | W13: 17 | X13: 17 | Y13: 17 | Z13: 17 | AA13: 17 | AB13: 17 | AC13: 17 | AD13: 17 | AE13: 17 | AF13: 17 | AG13: 17 | AI13: Count | AJ13: 12 | AK13: 12 | AL13: 12 | AM13: 12 | AN13: 12 | AO13: 12 | AP13: 12 | AQ13: 12 | AR13: 12 | AS13: 12 | AT13: 12
E14: 3.5 | F14: 0.03174603175 | G14: 0.03636363636 | Q14: 0.5317460317 | R14: 0.52 | V14: Average | W14: 8.275534761 | X14: 0.8507447976 | Y14: 0.1123389776 | Z14: 0.007421366295 | AA14: 0.001115709055 | AB14: -0.006030450794 | AC14: 0.1503374191 | AD14: 0.6765247794 | AE14: 0.0794997881 | AF14: 0.04223976411 | AG14: 0.2017356684 | AI14: Average | AJ14: 5.535122714 | AK14: 0.6001045551 | AL14: 0.09852314534 | AM14: 0.1515690676 | AN14: 0.0226954762 | AO14: 0.0167920115 | AP14: 0.1497368597 | AQ14: 0.5728281635 | AR14: 0.09379650847 | AS14: 0.02990441263 | AT14: 0.3034709154
A15: BENCHMARK CATEGORY | E15: 4 | F15: 0.02380952381 | G15: 0.01818181818 | Q15: 0.5555555556 | R15: 0.5381818182 | V15: Non-ratio average | X15: 144329.3624 | AG15: 34224.57647 | AI15: Non-ratio average | AK15: 91735.87028 | AT15: 46390.53027
A16: Tillable Crop Acres: | B16: All Farms | E16: More | F16: 0.4444444444 | G16: 0.4618181818 | Q16: 1 | R16: 1 | S16: GTList
A17: =IF(B16="All Farms","","Beef Cows:") ->  | E17: Count | F17: =IF($T$6=$W$1,$W$13,IF($T$6=$W$17,$W$29,IF($T$6=$W$33,$W$45,IF($T$6=$W$49,$W$61,IF($T$6=$W$65,$W$77,IF($T$6=$W$81,$W$93,IF($T$6=$W$97,$W$109,IF($T$6=$W$113,$W$125,IF($T$6=$W$129,$W$141,IF($T$6=$W$145,$W$157,IF(T6=$W$161,$W$173,"N/A"))))))))))) -> 252 | G17: =IF($T$6=$W$1,$AJ$13,IF($T$6=$W$17,$AJ$29,IF($T$6=$W$33,$AJ$45,IF($T$6=$W$49,$AJ$61,IF($T$6=$W$65,$AJ$77,IF($T$6=$W$81,$AJ$93,IF($T$6=$W$97,$AJ$109,IF($T$6=$W$113,$AJ$125,IF($T$6=$W$129,$AJ$141,IF($T$6=$W$145,$AJ$157, IF($T$6=$W$161,$AJ$173,"N/A"))))))))))) -> 275 | Q17: =IF($T$6=$W$1,W3/$W$13,IF($T$6=$W$17,W19/$W$29,IF($T$6=$W$33,W35/$W$45,IF($T$6=$W$49,W51/$W$61,IF($T$6=$W$65,W67/$W$77,IF($T$6=$W$81,W83/$W$93,IF($T$6=$W$97,W99/$W$109,IF($T$6=$W$113,W115/$W$125,IF($T$6=$W$129,W131/$W$141,IF($T$6=$W$145,W147/$W$157,IF($T$6=$W$161,W163/$W$173,"N/A"))))))))))) -> 0 | R17: =IF($T$6=$W$1,AJ3/$AJ$13,IF($T$6=$W$17,AJ19/$AJ$29,IF($T$6=$W$33,AJ35/$AJ$45,IF($T$6=$W$49,AJ51/$AJ$61,IF($T$6=$W$65,AJ67/$AJ$77,IF($T$6=$W$81,AJ83/$AJ$93,IF($T$6=$W$97,AJ99/$AJ$109,IF($T$6=$W$113,AJ115/$AJ$125,IF($T$6=$W$129,AJ131/$AJ$141,IF($T$6=$W$145,AJ147/$AJ$157,IF($T$6=$W$161,AJ163/$AJ$173,"N/A"))))))))))) -> 0 | S17: No | W17: Less than 500Yes
E18: Average | F18: =IF($T$6=$W$1,$W$14,IF($T$6=$W$17,$W$30,IF($T$6=$W$33,$W$46,IF($T$6=$W$49,$W$62,IF($T$6=$W$65,$W$78,IF($T$6=$W$81,$W$94,IF($T$6=$W$97,$W$110,IF($T$6=$W$113,$W$126,IF($T$6=$W$129,$W$142,IF($T$6=$W$145,$W$158, IF($T$6=$W$161,$W$174,"N/A"))))))))))) -> 2.536069975 | G18: =IF($T$6=$W$1,$AJ$14,IF($T$6=$W$17,$AJ$30,IF($T$6=$W$33,$AJ$46,IF($T$6=$W$49,$AJ$62,IF($T$6=$W$65,$AJ$78,IF($T$6=$W$81,$AJ$94,IF($T$6=$W$97,$AJ$110,IF($T$6=$W$113,$AJ$126,IF($T$6=$W$129,$AJ$142,IF($T$6=$W$145,$AJ$158, IF($T$6=$W$161,$AJ$174,"N/A"))))))))))) -> 2.857782351 | Q18: 0.03174603175 | R18: 0.02181818182 | S18: Yes | W18: Current Ratio | X18: Working Capital Ratio | Y18: Debt to Asset Ratio | Z18: Operating Profit Margin | AA18: ROA | AB18: ROE | AC18: Asset Turnover | AD18: Operating Expense Ratio | AE18: Depr Expense Ratio | AF18: Interest Expense Ratio | AG18: NFI Ratio | AJ18: Current Ratio | AK18: Working Capital Ratio | AL18: Debt to Asset Ratio | AM18: Operating Profit Margin | AN18: ROA | AO18: ROE | AP18: Asset Turnover | AQ18: Operating Expense Ratio | AR18: Depr Expense Ratio | AS18: Interest Expense Ratio | AT18: NFI Ratio
Q19: 0.09126984127 | R19: 0.06909090909 | W19: 0 | X19: 2 | Y19: 7 | Z19: 17 | AA19: 6 | AB19: 7 | AC19: 0 | AD19: 1 | AE19: 1 | AF19: 5 | AG19: 10 | AJ19: 0 | AK19: 3 | AL19: 2 | AM19: 2 | AN19: 0 | AO19: 4 | AP19: 0 | AQ19: 0 | AR19: 0 | AS19: 0 | AT19: 0
F20: =IF(B22=F18,"","Your Farm") ->  | G20: =IF(B22=F18,"",B22) ->  | Q20: 0.1428571429 | R20: 0.1454545455 | W20: 2 | X20: 1 | Y20: 11 | Z20: 1 | AA20: 3 | AB20: 10 | AC20: 22 | AD20: 5 | AE20: 8 | AF20: 10 | AG20: 1 | AJ20: 2 | AK20: 0 | AL20: 18 | AM20: 3 | AN20: 4 | AO20: 6 | AP20: 14 | AQ20: 6 | AR20: 5 | AS20: 22 | AT20: 0
A21: YOUR FARM VALUES* | Q21: 0.08333333333 | R21: 0.08363636364 | W21: 4 | X21: 3 | Y21: 7 | Z21: 3 | AA21: 14 | AB21: 18 | AC21: 14 | AD21: 3 | AE21: 9 | AF21: 9 | AG21: 4 | AJ21: 2 | AK21: 1 | AL21: 13 | AM21: 3 | AN21: 9 | AO21: 21 | AP21: 19 | AQ21: 6 | AR21: 9 | AS21: 9 | AT21: 2
A22: Current Ratio: | B22: =S37 -> 2.536069975 | Q22: 0.0873015873 | R22: 0.08363636364 | S22: None | W22: 7 | X22: 10 | Y22: 5 | Z22: 6 | AA22: 15 | AB22: 3 | AC22: 3 | AD22: 6 | AE22: 7 | AF22: 6 | AG22: 5 | AJ22: 5 | AK22: 6 | AL22: 4 | AM22: 7 | AN22: 19 | AO22: 9 | AP22: 5 | AQ22: 12 | AR22: 16 | AS22: 9 | AT22: 4
A23: Working Capital Ratio: | B23: 0.6649089334 | Q23: 0.06349206349 | R23: 0.08 | S23: Yes | W23: 5 | X23: 4 | Y23: 3 | Z23: 5 | AA23: 2 | AB23: 2 | AC23: 5 | AD23: 7 | AE23: 4 | AF23: 3 | AG23: 13 | AJ23: 1 | AK23: 11 | AL23: 5 | AM23: 12 | AN23: 11 | AO23: 5 | AP23: 1 | AQ23: 13 | AR23: 8 | AS23: 4 | AT23: 16
A24: Debt to Asset Ratio: | B24: 0.2177973595 | Q24: 0.03174603175 | R24: 0.03636363636 | S24: No | W24: 2 | X24: 7 | Y24: 5 | Z24: 6 | AA24: 3 | AB24: 4 | AC24: 3 | AD24: 7 | AE24: 5 | AF24: 4 | AG24: 8 | AJ24: 3 | AK24: 9 | AL24: 1 | AM24: 9 | AN24: 4 | AO24: 2 | AP24: 8 | AQ24: 9 | AR24: 8 | AS24: 2 | AT24: 15
A25: Operating Profit Margin | B25: 0.09604174021 | Q25: 0.02380952381 | R25: 0.01818181818 | W25: 2 | X25: 4 | Y25: 2 | Z25: 4 | AA25: 2 | AB25: 0 | AC25: 0 | AD25: 5 | AE25: 3 | AF25: 3 | AG25: 3 | AJ25: 7 | AK25: 9 | AL25: 1 | AM25: 8 | AN25: 1 | AO25: 0 | AP25: 1 | AQ25: 1 | AR25: 0 | AS25: 1 | AT25: 9
A26: Rate of Return on Farm Assets | B26: 0.02141479686 | E26: Working Captial Ratio | Q26: 0.4444444444 | R26: 0.4618181818 | W26: 1 | X26: 1 | Y26: 2 | Z26: 4 | AA26: 2 | AB26: 0 | AC26: 0 | AD26: 2 | AE26: 2 | AF26: 2 | AG26: 3 | AJ26: 1 | AK26: 2 | AL26: 0 | AM26: 4 | AN26: 0 | AO26: 0 | AP26: 0 | AQ26: 1 | AR26: 1 | AS26: 1 | AT26: 2
A27: Rate of Return on Farm Equity | B27: 0.01462246626 | F27: =U1 -> 2019 | G27: 10-Year | S27: Your Farm Line-Current Ratio | W27: 0 | X27: 3 | Y27: 5 | Z27: 1 | AA27: 0 | AB27: 0 | AC27: 0 | AD27: 11 | AE27: 8 | AF27: 5 | AG27: 0 | AJ27: 1 | AK27: 1 | AL27: 4 | AM27: 0 | AN27: 0 | AO27: 0 | AP27: 0 | AQ27: 0 | AR27: 1 | AS27: 0 | AT27: 0
A28: Asset Turnover Rate | B28: 0.222973853 | E28: -0.5 | F28: =Q38 -> 0.02380952381 | G28: =R38 -> 0.01090909091 | Q28: =Q38 -> 0.02380952381 | R28: =R38 -> 0.01090909091 | S28: X's | T28: =IF(B22<4.5,B22,4.5) -> 2.536069975 | U28: =IF(B22<4.5,B22,4.5) -> 2.536069975 | W28: 24 | X28: 12 | Z28: 0 | AA28: 0 | AB28: 3 | AC28: 0 | AG28: 0 | AJ28: 26 | AK28: 6 | AM28: 0 | AN28: 0 | AO28: 1 | AP28: 0 | AT28: 0
A29: Operating Expense Ratio | B29: 0.7051805616 | E29: =E28+0.25 -> -0.25 | F29: =Q39 -> 0.01587301587 | G29: =R39 -> 0.007272727273 | Q29: =Q28+Q39 -> 0.03968253968 | R29: =R28+R39 -> 0.01818181818 | S29: Y's | T29: 0 | U29: 1 | V29: Count | W29: 47 | X29: 47 | Y29: 47 | Z29: 47 | AA29: 47 | AB29: 47 | AC29: 47 | AD29: 47 | AE29: 47 | AF29: 47 | AG29: 47 | AI29: Count | AJ29: 48 | AK29: 48 | AL29: 48 | AM29: 48 | AN29: 48 | AO29: 48 | AP29: 48 | AQ29: 48 | AR29: 48 | AS29: 48 | AT29: 48
A30: Depreciation Expense Ratio | B30: 0.09930604112 | E30: =E29+0.25 -> 0 | F30: 0.08333333333 | G30: 0.07272727273 | Q30: 0.123015873 | R30: 0.09090909091 | S30: =IF(B22=F18,U1 &" Average","Your Farm") -> 2019 Average | V30: Average | W30: 1.635917525 | X30: 0.4974295234 | Y30: 0.2777679048 | Z30: 0.02138681414 | AA30: 0.003093385319 | AB30: -0.01536219094 | AC30: 0.1446398374 | AD30: 0.7982955838 | AE30: 0.04456919698 | AF30: 0.0674873668 | AG30: 0.08964785242 | AI30: Average | AJ30: 1.75103022 | AK30: 0.4518065893 | AL30: 0.2285522983 | AM30: 0.04814065973 | AN30: 0.007764863464 | AO30: -0.002950057292 | AP30: 0.1612953272 | AQ30: 0.7464770437 | AR30: 0.05319196032 | AS30: 0.04718164575 | AT30: 0.1531493502
A31: Interest Expense Ratio | B31: 0.03958677491 | E31: 0.25 | F31: 0.1666666667 | G31: 0.1672727273 | Q31: 0.2896825397 | R31: 0.2581818182 | S31: Your Farm Line-Working Capital Ratio | V31: Non-ratio average | X31: 153872.9292 | AG31: 27731.32072 | AI31: Non-ratio average | AK31: 111388.5147 | AT31: 37757.48086
A32: Net Farm Income Ratio: | B32: 0.1559266224 | E32: 0.5 | F32: 0.1666666667 | G32: 0.2181818182 | Q32: 0.4563492063 | R32: 0.4763636364 | S32: X's | T32: =IF(B23>1.75,1.75,B23) -> 0.6649089334 | U32: =IF(B23>1.75,1.75,B23) -> 0.6649089334
A33: *Defaults to Averages for 2019 if not entered | E33: 0.75 | F33: 0.1666666667 | G33: 0.1563636364 | Q33: 0.623015873 | R33: 0.6327272727 | S33: Y's | T33: 0 | U33: 1 | W33: Blank
E34: 1 | F34: 0.09920634921 | G34: 0.1709090909 | Q34: 0.7222222222 | R34: 0.8036363636 | S34: =IF(B23=F39,U1 &" Average","Your Farm") -> 2019 Average | W34: Current Ratio | X34: Working Capital Ratio | Y34: Debt to Asset Ratio | Z34: Operating Profit Margin | AA34: ROA | AB34: ROE | AC34: Asset Turnover | AD34: Operating Expense Ratio | AE34: Depr Expense Ratio | AF34: Interest Expense Ratio | AG34: NFI Ratio | AJ34: Current Ratio | AK34: Working Capital Ratio | AL34: Debt to Asset Ratio | AM34: Operating Profit Margin | AN34: ROA | AO34: ROE | AP34: Asset Turnover | AQ34: Operating Expense Ratio | AR34: Depr Expense Ratio | AS34: Interest Expense Ratio | AT34: NFI Ratio
E35: 1.25 | F35: 0.08333333333 | G35: 0.06909090909 | Q35: 0.8055555556 | R35: 0.8727272727
E36: 1.5 | F36: 0.06349206349 | G36: 0.04727272727 | Q36: 0.869047619 | R36: 0.92
E37: More | F37: 0.130952381 | G37: 0.08 | Q37: 1 | R37: 1 | S37: =$F$18 -> 2.536069975
E38: Count | F38: =F17 -> 252 | G38: =G17 -> 275 | Q38: =IF($T$6=$W$1,X3/$F$38,IF($T$6=$W$17,X19/$F$38,IF($T$6=$W$33,X35/$F$38,IF($T$6=$W$49,X51/$F$38,IF($T$6=$W$65,X67/$F$38,IF($T$6=$W$81,X83/$F$38,IF($T$6=$W$97,X99/$F$38,IF($T$6=$W$113,X115/$F$38,IF($T$6=$W$129,X131/$F$38,IF($T$6=$W$145,X147/$F$38,IF($T$6=$W$161,X163/$F$38,"N/A"))))))))))) -> 0.02380952381 | R38: =IF($T$6=$W$1,AK3/$G$38,IF($T$6=$W$17,AK19/$G$38,IF($T$6=$W$33,AK35/$G$38,IF($T$6=$W$49,AK51/$G$38,IF($T$6=$W$65,AK67/$G$38,IF($T$6=$W$81,AK83/$G$38,IF($T$6=$W$97,AK99/$G$38,IF($T$6=$W$113,AK115/$G$38,IF($T$6=$W$129,AK131/$G$38,IF($T$6=$W$145,AK147/$G$38,IF($T$6=$W$161,AK163/$G$38,"N/A"))))))))))) -> 0.01090909091 | S38: =$F$39 -> 0.6649089334
E39: Average | F39: =IF($T$6=$W$1,$X$14,IF($T$6=$W$17,$X$30,IF($T$6=$W$33,$X$46,IF($T$6=$W$49,$X$62,IF($T$6=$W$65,$X$78,IF($T$6=$W$81,$X$94,IF($T$6=$W$97,$X$110,IF($T$6=$W$113,$X$126,IF($T$6=$W$129,$X$142,IF($T$6=$W$145,$X$158,IF($T$6=$W$161,$X$174,"N/A"))))))))))) -> 0.6649089334 | G39: =IF($T$6=$W$1,$AK$14,IF($T$6=$W$17,$AK$30,IF($T$6=$W$33,$AK$46,IF($T$6=$W$49,$AK$62,IF($T$6=$W$65,$AK$78,IF($T$6=$W$81,$AK$94,IF($T$6=$W$97,$AK$110,IF($T$6=$W$113,$AK$126,IF($T$6=$W$129,$AK$142,IF($T$6=$W$145,$AK$158,IF($T$6=$W$161,$AK$174,"N/A"))))))))))) -> 0.6459470276 | Q39: 0.01587301587 | R39: 0.007272727273 | S39: =$F$59 -> 0.2177973595
E40: Working Capital Avg. | Q40: 0.08333333333 | R40: 0.07272727273 | S40: =$F$81 -> 0.09604174021
F41: =IF($T$6=$W$1,$X$15,IF($T$6=$W$17,$X$31,IF($T$6=$W$33,$X$47,IF($T$6=$W$49,$X$63,IF($T$6=$W$65,$X$79,IF($T$6=$W$81,$X$95,IF($T$6=$W$97,$X$111,IF($T$6=$W$113,$X$127,IF($T$6=$W$129,$X$143,IF($T$6=$W$145,$X$159,IF($T$6=$W$161,$X$175,"N/A"))))))))))) -> 483030.4842 | G41: =IF($T$6=$W$1,$AK$15,IF($T$6=$W$17,$AK$31,IF($T$6=$W$33,$AK$47,IF($T$6=$W$49,$AK$63,IF($T$6=$W$65,$AK$79,IF($T$6=$W$81,$AK$95,IF($T$6=$W$97,$AK$111,IF($T$6=$W$113,$AK$127,IF($T$6=$W$129,$AK$143,IF($T$6=$W$145,$AK$159,IF($T$6=$W$161,$AK$175,"N/A"))))))))))) -> 436711.283 | Q41: 0.1666666667 | R41: 0.1672727273 | S41: =$F$102 -> 0.02141479686
Q42: 0.1666666667 | R42: 0.2181818182 | S42: =$F$123 -> 0.01462246626
F43: =IF(B23=F39,"","Your Farm") ->  | G43: =IF(B23=F39,"",B23) ->  | Q43: 0.1666666667 | R43: 0.1563636364 | S43: =$F$144 -> 0.222973853
Q44: 0.09920634921 | R44: 0.1709090909 | S44: =$F$164 -> 0.7051805616
Q45: 0.08333333333 | R45: 0.06909090909 | S45: =$F$185 -> 0.09930604112 | V45: Count | AI45: Count
Q46: 0.06349206349 | R46: 0.04727272727 | S46: =$F$206 -> 0.03958677491 | V46: Average | AI46: Average
E47: Debt to Asset Ratio | Q47: 0.130952381 | R47: 0.08 | S47: =$F$228 -> 0.1559266224 | V47: Non-ratio average | AI47: Non-ratio average
F48: =U1 -> 2019 | G48: 10-Year
E49: 0 | F49: =Q58 -> 0.1150793651 | G49: =R58 -> 0.02909090909 | Q49: =Q58 -> 0.1150793651 | R49: =R58 -> 0.02909090909 | S49: Your Farm Line-Debt to Asset | W49: 500-1500No
E50: 0.1 | F50: =Q59 -> 0.2261904762 | G50: =R59 -> 0.2872727273 | Q50: =Q49+Q59 -> 0.3412698413 | R50: 0.3163636364 | S50: X's | T50: =IF(B24>0.8,0.8,B24) -> 0.2177973595 | U50: =T50 -> 0.2177973595 | W50: Current Ratio | X50: Working Capital Ratio | Y50: Debt to Asset Ratio | Z50: Operating Profit Margin | AA50: ROA | AB50: ROE | AC50: Asset Turnover | AD50: Operating Expense Ratio | AE50: Depr Expense Ratio | AF50: Interest Expense Ratio | AG50: NFI Ratio | AJ50: Current Ratio | AK50: Working Capital Ratio | AL50: Debt to Asset Ratio | AM50: Operating Profit Margin | AN50: ROA | AO50: ROE | AP50: Asset Turnover | AQ50: Operating Expense Ratio | AR50: Depr Expense Ratio | AS50: Interest Expense Ratio | AT50: NFI Ratio
E51: 0.2 | F51: 0.1428571429 | G51: 0.1781818182 | Q51: 0.4841269841 | R51: 0.4945454545 | S51: Y's | T51: 0 | U51: 1 | W51: 0 | X51: 1 | Y51: 6 | Z51: 0 | AA51: 2 | AB51: 4 | AC51: 0 | AD51: 0 | AE51: 1 | AF51: 5 | AG51: 0 | AJ51: 0 | AK51: 0 | AL51: 1 | AM51: 0 | AN51: 0 | AO51: 2 | AP51: 0 | AQ51: 0 | AR51: 0 | AS51: 1 | AT51: 0
E52: 0.3 | F52: 0.1626984127 | G52: 0.1381818182 | Q52: 0.6468253968 | R52: 0.6327272727 | S52: =IF(B24=F59,U1 &" Average","Your Farm") -> 2019 Average | W52: 2 | X52: 2 | Y52: 7 | Z52: 0 | AA52: 1 | AB52: 1 | AC52: 0 | AD52: 3 | AE52: 3 | AF52: 13 | AG52: 0 | AJ52: 1 | AK52: 0 | AL52: 16 | AM52: 0 | AN52: 1 | AO52: 3 | AP52: 1 | AQ52: 2 | AR52: 1 | AS52: 23 | AT52: 0
E53: 0.4 | F53: 0.119047619 | G53: 0.1381818182 | Q53: 0.7658730159 | R53: 0.7709090909 | W53: 3 | X53: 2 | Y53: 3 | Z53: 1 | AA53: 4 | AB53: 5 | AC53: 8 | AD53: 4 | AE53: 6 | AF53: 10 | AG53: 0 | AJ53: 5 | AK53: 6 | AL53: 4 | AM53: 1 | AN53: 2 | AO53: 4 | AP53: 8 | AQ53: 8 | AR53: 5 | AS53: 12 | AT53: 0
E54: 0.5 | F54: 0.0873015873 | G54: 0.08363636364 | Q54: 0.8531746032 | R54: 0.8545454545 | W54: 4 | X54: 6 | Y54: 6 | Z54: 4 | AA54: 9 | AB54: 14 | AC54: 8 | AD54: 16 | AE54: 6 | AF54: 3 | AG54: 1 | AJ54: 4 | AK54: 4 | AL54: 5 | AM54: 2 | AN54: 13 | AO54: 18 | AP54: 8 | AQ54: 19 | AR54: 8 | AS54: 3 | AT54: 1
E55: 0.6 | F55: 0.05555555556 | G55: 0.04363636364 | Q55: 0.9087301587 | R55: 0.8981818182 | W55: 3 | X55: 6 | Y55: 2 | Z55: 4 | AA55: 8 | AB55: 3 | AC55: 5 | AD55: 4 | AE55: 7 | AF55: 1 | AG55: 9 | AJ55: 2 | AK55: 10 | AL55: 3 | AM55: 5 | AN55: 17 | AO55: 7 | AP55: 8 | AQ55: 9 | AR55: 12 | AS55: 1 | AT55: 8
E56: 0.7 | F56: 0.03968253968 | G56: 0.04727272727 | Q56: 0.9484126984 | R56: 0.9454545455 | W56: 3 | X56: 3 | Y56: 1 | Z56: 16 | AA56: 6 | AB56: 1 | AC56: 2 | AD56: 4 | AE56: 6 | AF56: 0 | AG56: 15 | AJ56: 4 | AK56: 4 | AL56: 2 | AM56: 21 | AN56: 5 | AO56: 3 | AP56: 7 | AQ56: 2 | AR56: 7 | AS56: 0 | AT56: 24
E57: More | F57: 0.05158730159 | G57: 0.05454545455 | Q57: 1 | R57: 1 | W57: 2 | X57: 3 | Y57: 6 | Z57: 6 | AA57: 0 | AB57: 3 | AC57: 3 | AD57: 1 | AE57: 2 | AF57: 0 | AG57: 6 | AJ57: 2 | AK57: 8 | AL57: 1 | AM57: 11 | AN57: 2 | AO57: 1 | AP57: 3 | AQ57: 0 | AR57: 5 | AS57: 0 | AT57: 7
E58: Count | F58: =F38 -> 252 | G58: =G38 -> 275 | Q58: =IF($T$6=$W$1,Y3/$F$58,IF($T$6=$W$17,Y19/$F$58,IF($T$6=$W$33,Y35/$F$58,IF($T$6=$W$49,Y51/$F$58,IF($T$6=$W$65,Y67/$F$58,IF($T$6=$W$81,Y83/$F$58,IF($T$6=$W$97,Y99/$F$58,IF($T$6=$W$113,Y115/$F$58,IF($T$6=$W$129,Y131/$F$58,IF($T$6=$W$145,Y147/$F$58,IF($T$6=$W$161,Y163/$F$58,"N/A"))))))))))) -> 0.1150793651 | R58: =IF($T$6=$W$1,AL3/$G$38,IF($T$6=$W$17,AL19/$G$38,IF($T$6=$W$33,AL35/$G$38,IF($T$6=$W$49,AL51/$G$38,IF($T$6=$W$65,AL67/$G$38,IF($T$6=$W$81,AL83/$G$38,IF($T$6=$W$97,AL99/$G$38,IF($T$6=$W$113,AL115/$G$38,IF($T$6=$W$129,AL131/$G$38,IF($T$6=$W$145,AL147/$G$38,IF($T$6=$W$161,AL163/$G$38,"N/A"))))))))))) -> 0.02909090909 | W58: 0 | X58: 5 | Y58: 1 | Z58: 1 | AA58: 2 | AB58: 1 | AC58: 2 | AD58: 0 | AE58: 0 | AF58: 0 | AG58: 1 | AJ58: 1 | AK58: 3 | AL58: 5 | AM58: 0 | AN58: 0 | AO58: 1 | AP58: 2 | AQ58: 0 | AR58: 1 | AS58: 0 | AT58: 0
E59: Average | F59: =IF($T$6=$W$1,$Y$14,IF($T$6=$W$17,$Y$30,IF($T$6=$W$33,$Y$46,IF($T$6=$W$49,$Y$62,IF($T$6=$W$65,$Y$78,IF($T$6=$W$81,$Y$94,IF($T$6=$W$97,$Y$110,IF($T$6=$W$113,$Y$126,IF($T$6=$W$129,$Y$142,IF($T$6=$W$145,$Y$158,IF($T$6=$W$161,$Y$174,"N/A"))))))))))) -> 0.2177973595 | G59: =IF($T$6=$W$1,$AL$14,IF($T$6=$W$17,$AL$30,IF($T$6=$W$33,$AL$46,IF($T$6=$W$49,$AL$62,IF($T$6=$W$65,$AL$78,IF($T$6=$W$81,$AL$94,IF($T$6=$W$97,$AL$110,IF($T$6=$W$113,$AL$126,IF($T$6=$W$129,$AL$142,IF($T$6=$W$145,$AL$158,IF($T$6=$W$161,$AL$174,"N/A"))))))))))) -> 0.2197517263 | Q59: 0.2261904762 | R59: 0.2872727273 | W59: 0 | X59: 2 | Y59: 0 | Z59: 0 | AA59: 0 | AB59: 0 | AC59: 1 | AD59: 0 | AE59: 1 | AF59: 0 | AG59: 0 | AJ59: 0 | AK59: 3 | AL59: 3 | AM59: 0 | AN59: 0 | AO59: 0 | AP59: 2 | AQ59: 0 | AR59: 1 | AS59: 0 | AT59: 0
Q60: 0.1428571429 | R60: 0.1781818182 | W60: 15 | X60: 2 | Z60: 0 | AA60: 0 | AB60: 0 | AC60: 3 | AG60: 0 | AJ60: 21 | AK60: 2 | AM60: 0 | AN60: 0 | AO60: 1 | AP60: 1 | AT60: 0
Q61: 0.1626984127 | R61: 0.1381818182 | V61: Count | W61: 32 | X61: 32 | Y61: 32 | Z61: 32 | AA61: 32 | AB61: 32 | AC61: 32 | AD61: 32 | AE61: 32 | AF61: 32 | AG61: 32 | AI61: Count | AJ61: 40 | AK61: 40 | AL61: 40 | AM61: 40 | AN61: 40 | AO61: 40 | AP61: 40 | AQ61: 40 | AR61: 40 | AS61: 40 | AT61: 40
Q62: 0.119047619 | R62: 0.1381818182 | V62: Average | W62: 2.499390102 | X62: 0.5227990875 | Y62: 0.1957988534 | Z62: 0.07262372821 | AA62: 0.02139674965 | AB62: 0.01580376996 | AC62: 0.2946247759 | AD62: 0.6670334927 | AE62: 0.09297523918 | AF62: 0.02985446183 | AG62: 0.2101368063 | AI62: Average | AJ62: 3.619844698 | AK62: 0.5897464353 | AL62: 0.2046464282 | AM62: 0.08997596748 | AN62: 0.02647631614 | AO62: 0.02205510759 | AP62: 0.2942598661 | AQ62: 0.6604794295 | AR62: 0.1065135266 | AS62: 0.0264615968 | AT62: 0.2065454471
F63: =IF(B24=F59,"","Your Farm") ->  | G63: =IF(B24=F59,"",B24) ->  | Q63: 0.0873015873 | R63: 0.08363636364 | V63: Non-ratio average | X63: 209053.5909 | AG63: 84028.17641 | AI63: Non-ratio average | AK63: 237061.1631 | AT63: 83025.34953
Q64: 0.05555555556 | R64: 0.04363636364
Q65: 0.03968253968 | R65: 0.04727272727 | W65: Blank
Q66: 0.05158730159 | R66: 0.05454545455 | AJ66: Current Ratio | AK66: Working Capital Ratio | AL66: Debt to Asset Ratio | AM66: Operating Profit Margin | AN66: ROA | AO66: ROE | AP66: Asset Turnover | AQ66: Operating Expense Ratio | AR66: Depr Expense Ratio | AS66: Interest Expense Ratio | AT66: NFI Ratio
E68: Operating Profit Margin Ratio
F69: =U1 -> 2019 | G69: 10-Year
E70: -0.6 | F70: =Q80 -> 0.0873015873 | G70: =R80 -> 0.007272727273 | Q70: =Q80 -> 0.0873015873 | R70: =R80 -> 0.007272727273
E71: -0.45 | F71: =Q81 -> 0.01984126984 | G71: =R81 -> 0.01090909091 | Q71: =Q70+Q81 -> 0.1071428571 | R71: =R70+R81 -> 0.01818181818 | S71: Your Farm Line-Operating Profit Margin Ratio
E72: -0.3 | F72: 0.05555555556 | G72: 0.02181818182 | Q72: 0.1626984127 | R72: 0.04 | S72: X's | T72: =IF(B25>0.75,0.75,B25) -> 0.09604174021 | U72: =T72 -> 0.09604174021
E73: -0.15 | F73: 0.09920634921 | G73: 0.04363636364 | Q73: 0.2619047619 | R73: 0.08363636364 | S73: Y's | T73: 0 | U73: 1
E74: 0 | F74: 0.1388888889 | G74: 0.1854545455 | Q74: 0.4007936508 | R74: 0.2690909091 | S74: =IF(B25=F81,U1 &" Average","Your Farm") -> 2019 Average
E75: 0.15 | F75: 0.2857142857 | G75: 0.4218181818 | Q75: 0.6865079365 | R75: 0.6909090909
E76: 0.3 | F76: 0.2341269841 | G76: 0.2581818182 | Q76: 0.9206349206 | R76: 0.9490909091
E77: 0.45 | F77: 0.06349206349 | G77: 0.04727272727 | Q77: 0.9841269841 | R77: 0.9963636364 | AI77: Count
E78: 0.6 | F78: 0.01587301587 | G78: 0.003636363636 | Q78: 1 | R78: 1 | AI78: Average
E79: More | F79: 0 | G79: 0 | Q79: 1 | R79: 1 | AI79: Non-ratio average
E80: Count | F80: =F58 -> 252 | G80: =G58 -> 275 | Q80: =IF($T$6=$W$1,Z3/$F$80,IF($T$6=$W$17,Z19/$F$80,IF($T$6=$W$33,Z35/$F$80,IF($T$6=$W$49,Z51/$F$80,IF($T$6=$W$65,Z67/$F$80,IF($T$6=$W$81,Z83/$F$80,IF($T$6=$W$97,Z99/$F$80,IF($T$6=$W$113,Z115/$F$80,IF($T$6=$W$129,Z131/$F$80,IF($T$6=$W$145,Z147/$F$80,IF($T$6=$W$161,Z163/$F$80,"N/A"))))))))))) -> 0.0873015873 | R80: =IF($T$6=$W$1,AM3/$G$38,IF($T$6=$W$17,AM19/$G$38,IF($T$6=$W$33,AM35/$G$38,IF($T$6=$W$49,AM51/$G$38,IF($T$6=$W$65,AM67/$G$38,IF($T$6=$W$81,AM83/$G$38,IF($T$6=$W$97,AM99/$G$38,IF($T$6=$W$113,AM115/$G$38,IF($T$6=$W$129,AM131/$G$38,IF($T$6=$W$145,AM147/$G$38,IF($T$6=$W$161,AM163/$G$38,"N/A"))))))))))) -> 0.007272727273
E81: Average | F81: =IF($T$6=$W$1,$Z$14,IF($T$6=$W$17,$Z$30,IF($T$6=$W$33,$Z$46,IF($T$6=$W$49,$Z$62,IF($T$6=$W$65,$Z$78,IF($T$6=$W$81,$Z$94,IF($T$6=$W$97,$Z$110,IF($T$6=$W$113,$Z$126,IF($T$6=$W$129,$Z$142,IF($T$6=$W$145,$Z$158,IF($T$6=W161,Z174,"N/A"))))))))))) -> 0.09604174021 | G81: =IF($T$6=$W$1,$AM$14,IF($T$6=$W$17,$AM$30,IF($T$6=$W$33,$AM$46,IF($T$6=$W$49,$AM$62,IF($T$6=$W$65,$AM$78,IF($T$6=$W$81,$AM$94,IF($T$6=$W$97,$AM$110,IF($T$6=$W$113,$AM$126,IF($T$6=$W$129,$AM$142,IF($T$6=$W$145,$AM$158,IF($T$6=$W$161,$AM$174,"N/A"))))))))))) -> 0.1296806506 | Q81: 0.01984126984 | R81: 0.01090909091 | W81: 500-1500Yes
Q82: 0.05555555556 | R82: 0.02181818182 | W82: Current Ratio | X82: Working Capital Ratio | Y82: Debt to Asset Ratio | Z82: Operating Profit Margin | AA82: ROA | AB82: ROE | AC82: Asset Turnover | AD82: Operating Expense Ratio | AE82: Depr Expense Ratio | AF82: Interest Expense Ratio | AG82: NFI Ratio | AJ82: Current Ratio | AK82: Working Capital Ratio | AL82: Debt to Asset Ratio | AM82: Operating Profit Margin | AN82: ROA | AO82: ROE | AP82: Asset Turnover | AQ82: Operating Expense Ratio | AR82: Depr Expense Ratio | AS82: Interest Expense Ratio | AT82: NFI Ratio
Q83: 0.09920634921 | R83: 0.04363636364 | W83: 0 | X83: 1 | Y83: 4 | Z83: 2 | AA83: 2 | AB83: 3 | AC83: 0 | AD83: 2 | AE83: 0 | AF83: 5 | AG83: 0 | AJ83: 0 | AK83: 0 | AL83: 3 | AM83: 0 | AN83: 0 | AO83: 7 | AP83: 0 | AQ83: 0 | AR83: 0 | AS83: 3 | AT83: 0
Q84: 0.1388888889 | R84: 0.1854545455 | W84: 1 | X84: 0 | Y84: 14 | Z84: 2 | AA84: 2 | AB84: 12 | AC84: 11 | AD84: 2 | AE84: 3 | AF84: 13 | AG84: 2 | AJ84: 1 | AK84: 1 | AL84: 16 | AM84: 0 | AN84: 2 | AO84: 3 | AP84: 2 | AQ84: 4 | AR84: 3 | AS84: 24 | AT84: 0
F85: =IF(B25=F81,"","Your Farm") ->  | G85: =IF(B25=F81,"",B25) ->  | Q85: 0.2857142857 | R85: 0.4218181818 | W85: 4 | X85: 4 | Y85: 8 | Z85: 7 | AA85: 16 | AB85: 21 | AC85: 18 | AD85: 8 | AE85: 6 | AF85: 11 | AG85: 2 | AJ85: 6 | AK85: 6 | AL85: 11 | AM85: 0 | AN85: 5 | AO85: 24 | AP85: 25 | AQ85: 8 | AR85: 12 | AS85: 24 | AT85: 0
Q86: 0.2341269841 | R86: 0.2581818182 | W86: 8 | X86: 8 | Y86: 12 | Z86: 7 | AA86: 16 | AB86: 7 | AC86: 6 | AD86: 10 | AE86: 11 | AF86: 12 | AG86: 9 | AJ86: 7 | AK86: 11 | AL86: 14 | AM86: 2 | AN86: 40 | AO86: 24 | AP86: 18 | AQ86: 23 | AR86: 20 | AS86: 10 | AT86: 0
Q87: 0.06349206349 | R87: 0.04727272727 | W87: 1 | X87: 7 | Y87: 6 | Z87: 13 | AA87: 8 | AB87: 3 | AC87: 8 | AD87: 11 | AE87: 14 | AF87: 6 | AG87: 16 | AJ87: 9 | AK87: 16 | AL87: 10 | AM87: 18 | AN87: 13 | AO87: 4 | AP87: 7 | AQ87: 27 | AR87: 19 | AS87: 4 | AT87: 23
Q88: 0.01587301587 | R88: 0.003636363636 | W88: 4 | X88: 13 | Y88: 4 | Z88: 8 | AA88: 2 | AB88: 0 | AC88: 3 | AD88: 8 | AE88: 7 | AF88: 1 | AG88: 10 | AJ88: 3 | AK88: 9 | AL88: 8 | AM88: 35 | AN88: 3 | AO88: 1 | AP88: 10 | AQ88: 3 | AR88: 10 | AS88: 0 | AT88: 34
E89: Rate of Return on Farm Assets | Q89: 0 | R89: 0 | W89: 6 | X89: 3 | Y89: 0 | Z89: 7 | AA89: 0 | AB89: 0 | AC89: 1 | AD89: 4 | AE89: 4 | AF89: 1 | AG89: 6 | AJ89: 5 | AK89: 12 | AL89: 1 | AM89: 7 | AN89: 2 | AO89: 2 | AP89: 2 | AQ89: 0 | AR89: 1 | AS89: 0 | AT89: 5
F90: =U1 -> 2019 | G90: 10-Year | W90: 2 | X90: 5 | Y90: 1 | Z90: 2 | AA90: 1 | AB90: 2 | AC90: 0 | AD90: 3 | AE90: 2 | AF90: 0 | AG90: 4 | AJ90: 2 | AK90: 4 | AL90: 0 | AM90: 3 | AN90: 0 | AO90: 0 | AP90: 0 | AQ90: 0 | AR90: 0 | AS90: 0 | AT90: 3
E91: -0.1 | F91: =Q101 -> 0.06349206349 | G91: =R101 -> 0.003636363636 | Q91: =Q101 -> 0.06349206349 | R91: =R101 -> 0.003636363636 | W91: 5 | X91: 4 | Y91: 0 | Z91: 1 | AA91: 1 | AB91: 0 | AC91: 0 | AD91: 1 | AE91: 2 | AF91: 0 | AG91: 0 | AJ91: 1 | AK91: 2 | AL91: 2 | AM91: 0 | AN91: 0 | AO91: 0 | AP91: 0 | AQ91: 0 | AR91: 0 | AS91: 0 | AT91: 0
E92: -0.06 | F92: =Q102 -> 0.03174603175 | G92: =R102 -> 0.03272727273 | Q92: =Q91+Q102 -> 0.09523809524 | R92: =R91+R102 -> 0.03636363636 | W92: 18 | X92: 4 | Z92: 0 | AA92: 1 | AB92: 1 | AC92: 2 | AG92: 0 | AJ92: 31 | AK92: 4 | AM92: 0 | AN92: 0 | AO92: 0 | AP92: 1 | AT92: 0
E93: -0.02 | F93: 0.1706349206 | G93: 0.08 | Q93: 0.2658730159 | R93: 0.1163636364 | S93: Your Farm Line-Return on Assets | V93: Count | W93: 49 | X93: 49 | Y93: 49 | Z93: 49 | AA93: 49 | AB93: 49 | AC93: 49 | AD93: 49 | AE93: 49 | AF93: 49 | AG93: 49 | AI93: Count | AJ93: 65 | AK93: 65 | AL93: 65 | AM93: 65 | AN93: 65 | AO93: 65 | AP93: 65 | AQ93: 65 | AR93: 65 | AS93: 65 | AT93: 65
E94: 0.02 | F94: 0.2896825397 | G94: 0.3672727273 | Q94: 0.5555555556 | R94: 0.4836363636 | S94: X's | T94: =IF(B26>0.24,0.24,B26) -> 0.02141479686 | U94: =T94 -> 0.02141479686 | V94: Average | W94: 2.52158552 | X94: 0.5861722391 | Y94: 0.1677112429 | Z94: 0.003303823255 | AA94: 0.0005463492125 | AB94: -0.01028387476 | AC94: 0.1653687774 | AD94: 0.7098282301 | AE94: 0.09588289558 | AF94: 0.04919846719 | AG94: 0.1450904071 | AI94: Average | AJ94: 3.315197409 | AK94: 0.605082331 | AL94: 0.1748703951 | AM94: 0.07195045386 | AN94: 0.01526639207 | AO94: 0.008156189808 | AP94: 0.2121792325 | AQ94: 0.6833687242 | AR94: 0.08554442152 | AS94: 0.03671374324 | AT94: 0.194373111
E95: 0.06 | F95: 0.246031746 | G95: 0.3563636364 | Q95: 0.8015873016 | R95: 0.84 | S95: Y's | T95: 0 | U95: 1 | V95: Non-ratio average | X95: 228108.5373 | AG95: 56461.83551 | AI95: Non-ratio average | AK95: 246515.0804 | AT95: 79189.06343
E96: 0.1 | F96: 0.1150793651 | G96: 0.1163636364 | Q96: 0.9166666667 | R96: 0.9563636364 | S96: =IF(B26=F102,U1 &" Average","Your Farm") -> 2019 Average
E97: 0.14 | F97: 0.03571428571 | G97: 0.03636363636 | Q97: 0.9523809524 | R97: 0.9927272727 | W97: Blank
E98: 0.18 | F98: 0.02380952381 | G98: 0.003636363636 | Q98: 0.9761904762 | R98: 0.9963636364 | W98: Current Ratio | X98: Working Capital Ratio | Y98: Debt to Asset Ratio | Z98: Operating Profit Margin | AA98: ROA | AB98: ROE | AC98: Asset Turnover | AD98: Operating Expense Ratio | AE98: Depr Expense Ratio | AF98: Interest Expense Ratio | AG98: NFI Ratio | AJ98: Current Ratio | AK98: Working Capital Ratio | AL98: Debt to Asset Ratio | AM98: Operating Profit Margin | AN98: ROA | AO98: ROE | AP98: Asset Turnover | AQ98: Operating Expense Ratio | AR98: Depr Expense Ratio | AS98: Interest Expense Ratio | AT98: NFI Ratio
E99: 0.22 | F99: 0.007936507937 | G99: 0.003636363636 | Q99: 0.9841269841 | R99: 1
E100: More | F100: 0.01587301587 | G100: 0 | Q100: 1 | R100: 1
E101: Count | F101: =F80 -> 252 | G101: =G80 -> 275 | Q101: =IF($T$6=$W$1,AA3/$F$101,IF($T$6=$W$17,AA19/$F$101,IF($T$6=$W$33,AA35/$F$101,IF($T$6=$W$49,AA51/$F$101,IF($T$6=$W$65,AA67/$F$101,IF($T$6=$W$81,AA83/$F$101,IF($T$6=$W$97,AA99/$F$101,IF($T$6=$W$113,AA115/$F$101,IF($T$6=$W$129,AA131/$F$101,IF($T$6=$W$145,AA147/$F$101,IF($T$6=$W$161,AA163/$F$101,"N/A"))))))))))) -> 0.06349206349 | R101: =IF($T$6=$W$1,AN3/$G$38,IF($T$6=$W$17,AN19/$G$38,IF($T$6=$W$33,AN35/$G$38,IF($T$6=$W$49,AN51/$G$38,IF($T$6=$W$65,AN67/$G$38,IF($T$6=$W$81,AN83/$G$38,IF($T$6=$W$97,AN99/$G$38,IF($T$6=$W$113,AN115/$G$38,IF($T$6=$W$129,AN131/$G$38,IF($T$6=$W$145,AN147/$G$38,IF($T$6=$W$161,AN163/$G$38,"N/A"))))))))))) -> 0.003636363636
E102: Average | F102: =IF($T$6=$W$1,$AA$14,IF($T$6=$W$17,$AA$30,IF($T$6=$W$33,$AA$46,IF($T$6=$W$49,$AA$62,IF($T$6=$W$65,$AA$78,IF($T$6=$W$81,$AA$94,IF($T$6=$W$97,$AA$110,IF($T$6=$W$113,$AA$126,IF($T$6=$W$129,$AA$142,IF($T$6=$W$145,$AA$158,IF($T$6=$W$161,AA174,"N/A"))))))))))) -> 0.02141479686 | G102: =IF($T$6=$W$1,$AN$14,IF($T$6=$W$17,$AN$30,IF($T$6=$W$33,$AN$46,IF($T$6=$W$49,$AN$62,IF($T$6=$W$65,$AN$78,IF($T$6=$W$81,$AN$94,IF($T$6=$W$97,$AN$110,IF($T$6=$W$113,$AN$126,IF($T$6=$W$129,$AN$142,IF($T$6=$W$145,$AN$158,IF($T$6=$W$161,$AN$174,"N/A"))))))))))) -> 0.03346516321 | Q102: 0.03174603175 | R102: 0.03272727273
Q103: 0.1706349206 | R103: 0.08
Q104: 0.2896825397 | R104: 0.3672727273
Q105: 0.246031746 | R105: 0.3563636364
F106: =IF(B26=F102,"","Your Farm") ->  | G106: =IF(B26=F102,"",B26) ->  | Q106: 0.1150793651 | R106: 0.1163636364
Q107: 0.03571428571 | R107: 0.03636363636
Q108: 0.02380952381 | R108: 0.003636363636
Q109: 0.007936507937 | R109: 0.003636363636 | V109: Count | AI109: Count
E110: Rate of Return on Farm Equity | Q110: 0.01587301587 | R110: 0 | V110: Average | AI110: Average
F111: =U1 -> 2019 | G111: 10-Year | V111: Non-ratio average | AI111: Non-ratio average
E112: -0.1 | F112: =Q122 -> 0.09920634921 | G112: =R122 -> 0.07272727273 | Q112: =Q122 -> 0.09920634921 | R112: =R122 -> 0.07272727273
E113: -0.05 | F113: =Q123 -> 0.119047619 | G113: =R123 -> 0.05454545455 | Q113: =Q112+Q123 -> 0.2182539683 | R113: =R112+R123 -> 0.1272727273 | W113: Greater than 1500No
E114: 0 | F114: 0.2658730159 | G114: 0.2363636364 | Q114: 0.4841269841 | R114: 0.3636363636 | W114: Current Ratio | X114: Working Capital Ratio | Y114: Debt to Asset Ratio | Z114: Operating Profit Margin | AA114: ROA | AB114: ROE | AC114: Asset Turnover | AD114: Operating Expense Ratio | AE114: Depr Expense Ratio | AF114: Interest Expense Ratio | AG114: NFI Ratio | AJ114: Current Ratio | AK114: Working Capital Ratio | AL114: Debt to Asset Ratio | AM114: Operating Profit Margin | AN114: ROA | AO114: ROE | AP114: Asset Turnover | AQ114: Operating Expense Ratio | AR114: Depr Expense Ratio | AS114: Interest Expense Ratio | AT114: NFI Ratio
E115: 0.05 | F115: 0.2896825397 | G115: 0.3781818182 | Q115: 0.7738095238 | R115: 0.7418181818 | S115: Your Farm Line-Return on Equity | W115: 0 | X115: 0 | Y115: 4 | Z115: 0 | AA115: 2 | AB115: 4 | AC115: 0 | AD115: 0 | AE115: 0 | AF115: 3 | AG115: 0 | AJ115: 0 | AK115: 0 | AL115: 0 | AM115: 0 | AN115: 0 | AO115: 2 | AP115: 0 | AQ115: 0 | AR115: 0 | AS115: 0 | AT115: 0
E116: 0.1 | F116: 0.07936507937 | G116: 0.1563636364 | Q116: 0.8531746032 | R116: 0.8981818182 | S116: X's | T116: =IF(B27>0.35,0.35,B27) -> 0.01462246626 | U116: =T116 -> 0.01462246626 | W116: 1 | X116: 1 | Y116: 11 | Z116: 0 | AA116: 1 | AB116: 0 | AC116: 2 | AD116: 2 | AE116: 0 | AF116: 15 | AG116: 1 | AJ116: 1 | AK116: 0 | AL116: 7 | AM116: 0 | AN116: 1 | AO116: 1 | AP116: 0 | AQ116: 2 | AR116: 1 | AS116: 20 | AT116: 0
E117: 0.15 | F117: 0.06746031746 | G117: 0.05454545455 | Q117: 0.9206349206 | R117: 0.9527272727 | S117: Y's | T117: 0 | U117: 1 | W117: 3 | X117: 3 | Y117: 1 | Z117: 1 | AA117: 2 | AB117: 7 | AC117: 5 | AD117: 11 | AE117: 4 | AF117: 8 | AG117: 2 | AJ117: 3 | AK117: 4 | AL117: 6 | AM117: 0 | AN117: 2 | AO117: 5 | AP117: 6 | AQ117: 8 | AR117: 0 | AS117: 12 | AT117: 0
E118: 0.2 | F118: 0.01587301587 | G118: 0.02181818182 | Q118: 0.9365079365 | R118: 0.9745454545 | S118: =IF(B27=F123,U1 &" Average","Your Farm") -> 2019 Average | W118: 3 | X118: 4 | Y118: 3 | Z118: 4 | AA118: 6 | AB118: 7 | AC118: 7 | AD118: 5 | AE118: 6 | AF118: 4 | AG118: 3 | AJ118: 5 | AK118: 6 | AL118: 5 | AM118: 0 | AN118: 7 | AO118: 12 | AP118: 6 | AQ118: 10 | AR118: 6 | AS118: 0 | AT118: 3
E119: 0.25 | F119: 0.01587301587 | G119: 0.003636363636 | Q119: 0.9523809524 | R119: 0.9781818182 | W119: 4 | X119: 7 | Y119: 2 | Z119: 4 | AA119: 8 | AB119: 4 | AC119: 5 | AD119: 5 | AE119: 10 | AF119: 0 | AG119: 7 | AJ119: 2 | AK119: 7 | AL119: 5 | AM119: 5 | AN119: 14 | AO119: 7 | AP119: 6 | AQ119: 7 | AR119: 8 | AS119: 0 | AT119: 9
E120: 0.3 | F120: 0.003968253968 | G120: 0 | Q120: 0.9563492063 | R120: 0.9781818182 | W120: 1 | X120: 4 | Y120: 5 | Z120: 9 | AA120: 9 | AB120: 8 | AC120: 3 | AD120: 6 | AE120: 3 | AF120: 0 | AG120: 7 | AJ120: 2 | AK120: 2 | AL120: 1 | AM120: 17 | AN120: 6 | AO120: 5 | AP120: 6 | AQ120: 4 | AR120: 9 | AS120: 0 | AT120: 15
E121: More | F121: 0.04365079365 | G121: 0.02181818182 | Q121: 1 | R121: 1 | W121: 2 | X121: 3 | Y121: 2 | Z121: 11 | AA121: 3 | AB121: 0 | AC121: 5 | AD121: 0 | AE121: 5 | AF121: 1 | AG121: 10 | AJ121: 5 | AK121: 5 | AL121: 4 | AM121: 9 | AN121: 2 | AO121: 0 | AP121: 3 | AQ121: 1 | AR121: 5 | AS121: 0 | AT121: 5
E122: Count | F122: =F101 -> 252 | G122: =G101 -> 275 | Q122: =IF($T$6=$W$1,AB3/$F$122,IF($T$6=$W$17,AB19/$F$122,IF($T$6=$W$33,AB35/$F$122,IF($T$6=$W$49,AB51/$F$122,IF($T$6=$W$65,AB67/$F$122,IF($T$6=$W$81,AB83/$F$122,IF($T$6=$W$97,AB99/$F$122,IF($T$6=$W$113,AB115/$F$122,IF($T$6=$W$129,AB131/$F$122,IF($T$6=$W$145,AB147/$F$122,IF($T$6=$W$161,AB163/$F$122,"N/A"))))))))))) -> 0.09920634921 | R122: =IF($T$6=$W$1,AO3/$G$38,IF($T$6=$W$17,AO19/$G$38,IF($T$6=$W$33,AO35/$G$38,IF($T$6=$W$49,AO51/$G$38,IF($T$6=$W$65,AO67/$G$38,IF($T$6=$W$81,AO83/$G$38,IF($T$6=$W$97,AO99/$G$38,IF($T$6=$W$113,AO115/$G$38,IF($T$6=$W$129,AO131/$G$38,IF($T$6=$W$145,AO147/$G$38,IF($T$6=$W$161,AO163/$G$38,"N/A"))))))))))) -> 0.07272727273 | W122: 1 | X122: 4 | Y122: 1 | Z122: 2 | AA122: 0 | AB122: 0 | AC122: 1 | AD122: 1 | AE122: 1 | AF122: 0 | AG122: 1 | AJ122: 1 | AK122: 4 | AL122: 3 | AM122: 1 | AN122: 0 | AO122: 0 | AP122: 2 | AQ122: 0 | AR122: 1 | AS122: 0 | AT122: 0
E123: Average | F123: =IF($T$6=$W$1,$AB$14,IF($T$6=$W$17,$AB$30,IF($T$6=$W$33,$AB$46,IF($T$6=$W$49,$AB$62,IF($T$6=$W$65,$AB$78,IF($T$6=$W$81,$AB$94,IF($T$6=$W$97,$AB$110,IF($T$6=$W$113,$AB$126,IF($T$6=$W$129,$AB$142,IF($T$6=$W$145,$AB$158,IF($T$6=W161,AB174,"N/A"))))))))))) -> 0.01462246626 | G123: =IF($T$6=$W$1,$AO$14,IF($T$6=$W$17,$AO$30,IF($T$6=$W$33,$AO$46,IF($T$6=$W$49,$AO$62,IF($T$6=$W$65,$AO$78,IF($T$6=$W$81,$AO$94,IF($T$6=$W$97,$AO$110,IF($T$6=$W$113,$AO$126,IF($T$6=$W$129,$AO$142,IF($T$6=$W$145,$AO$158,IF($T$6=$W$161,$AO$174,"N/A"))))))))))) -> 0.03093783246 | Q123: 0.119047619 | R123: 0.05454545455 | W123: 0 | X123: 2 | Y123: 2 | Z123: 0 | AA123: 0 | AB123: 1 | AC123: 1 | AD123: 1 | AE123: 2 | AF123: 0 | AG123: 0 | AJ123: 1 | AK123: 3 | AL123: 1 | AM123: 0 | AN123: 0 | AO123: 0 | AP123: 1 | AQ123: 0 | AR123: 2 | AS123: 0 | AT123: 0
Q124: 0.2658730159 | R124: 0.2363636364 | W124: 16 | X124: 3 | Z124: 0 | AA124: 0 | AB124: 0 | AC124: 2 | AG124: 0 | AJ124: 12 | AK124: 1 | AM124: 0 | AN124: 0 | AO124: 0 | AP124: 2 | AT124: 0
Q125: 0.2896825397 | R125: 0.3781818182 | V125: Count | W125: 31 | X125: 31 | Y125: 31 | Z125: 31 | AA125: 31 | AB125: 31 | AC125: 31 | AD125: 31 | AE125: 31 | AF125: 31 | AG125: 31 | AI125: Count | AJ125: 32 | AK125: 32 | AL125: 32 | AM125: 32 | AN125: 32 | AO125: 32 | AP125: 32 | AQ125: 32 | AR125: 32 | AS125: 32 | AT125: 32
Q126: 0.07936507937 | R126: 0.1563636364 | V126: Average | W126: 3.592097245 | X126: 0.6715960368 | Y126: 0.1851943058 | Z126: 0.1112601784 | AA126: 0.03108191895 | AB126: 0.0281763801 | AC126: 0.2793624764 | AD126: 0.6693633008 | AE126: 0.1199273492 | AF126: 0.02865138299 | AG126: 0.182057967 | AI126: Average | AJ126: 3.443157951 | AK126: 0.6128950255 | AL126: 0.1992027808 | AM126: 0.1362547346 | AN126: 0.04268373745 | AO126: 0.04331202997 | AP126: 0.3132642515 | AQ126: 0.6671515769 | AR126: 0.1208122078 | AS126: 0.02563550072 | AT126: 0.1864007146
F127: =IF(B27=F123,"","Your Farm") ->  | G127: =IF(B27=F123,"",B27) ->  | Q127: 0.06746031746 | R127: 0.05454545455 | V127: Non-ratio average | X127: 703344.2645 | AG127: 190664.3576 | AI127: Non-ratio average | AK127: 634609.825 | AT127: 193004.8702
Q128: 0.01587301587 | R128: 0.02181818182
Q129: 0.01587301587 | R129: 0.003636363636 | W129: Greater than 1500Yes
Q130: 0.003968253968 | R130: 0 | W130: Current Ratio | X130: Working Capital Ratio | Y130: Debt to Asset Ratio | Z130: Operating Profit Margin | AA130: ROA | AB130: ROE | AC130: Asset Turnover | AD130: Operating Expense Ratio | AE130: Depr Expense Ratio | AF130: Interest Expense Ratio | AG130: NFI Ratio | AJ130: Current Ratio | AK130: Working Capital Ratio | AL130: Debt to Asset Ratio | AM130: Operating Profit Margin | AN130: ROA | AO130: ROE | AP130: Asset Turnover | AQ130: Operating Expense Ratio | AR130: Depr Expense Ratio | AS130: Interest Expense Ratio | AT130: NFI Ratio
E131: Asset Turnover Rate | Q131: 0.04365079365 | R131: 0.02181818182 | W131: 0 | X131: 0 | Y131: 2 | Z131: 0 | AA131: 0 | AB131: 1 | AC131: 0 | AD131: 1 | AE131: 0 | AF131: 2 | AG131: 0 | AJ131: 0 | AK131: 0 | AL131: 0 | AM131: 0 | AN131: 0 | AO131: 3 | AP131: 0 | AQ131: 0 | AR131: 0 | AS131: 2 | AT131: 0
F132: =U1 -> 2019 | G132: 10-Year | W132: 0 | X132: 0 | Y132: 6 | Z132: 0 | AA132: 0 | AB132: 2 | AC132: 0 | AD132: 1 | AE132: 1 | AF132: 23 | AG132: 1 | AJ132: 0 | AK132: 0 | AL132: 11 | AM132: 0 | AN132: 1 | AO132: 0 | AP132: 0 | AQ132: 1 | AR132: 0 | AS132: 24 | AT132: 1
E133: 0 | F133: =Q143 -> 0 | G133: =R143 -> 0 | Q133: =Q143 -> 0 | R133: =R143 -> 0 | W133: 4 | X133: 4 | Y133: 13 | Z133: 1 | AA133: 3 | AB133: 7 | AC133: 12 | AD133: 9 | AE133: 6 | AF133: 13 | AG133: 0 | AJ133: 1 | AK133: 1 | AL133: 10 | AM133: 1 | AN133: 2 | AO133: 4 | AP133: 5 | AQ133: 3 | AR133: 7 | AS133: 15 | AT133: 0
E134: 0.1 | F134: =Q144 -> 0.1746031746 | G134: =R144 -> 0.08363636364 | Q134: =Q133+Q144 -> 0.1746031746 | R134: =R133+R144 -> 0.08363636364 | W134: 9 | X134: 7 | Y134: 10 | Z134: 0 | AA134: 12 | AB134: 30 | AC134: 23 | AD134: 20 | AE134: 16 | AF134: 9 | AG134: 1 | AJ134: 9 | AK134: 10 | AL134: 8 | AM134: 0 | AN134: 7 | AO134: 24 | AP134: 20 | AQ134: 28 | AR134: 13 | AS134: 11 | AT134: 1
E135: 0.2 | F135: 0.2698412698 | G135: 0.28 | Q135: 0.4444444444 | R135: 0.3636363636 | W135: 4 | X135: 9 | Y135: 10 | Z135: 4 | AA135: 26 | AB135: 5 | AC135: 5 | AD135: 12 | AE135: 9 | AF135: 1 | AG135: 18 | AJ135: 6 | AK135: 9 | AL135: 8 | AM135: 2 | AN135: 29 | AO135: 16 | AP135: 17 | AQ135: 16 | AR135: 21 | AS135: 0 | AT135: 12
E136: 0.3 | F136: 0.2261904762 | G136: 0.24 | Q136: 0.6706349206 | R136: 0.6036363636 | W136: 7 | X136: 11 | Y136: 3 | Z136: 23 | AA136: 7 | AB136: 3 | AC136: 3 | AD136: 6 | AE136: 7 | AF136: 2 | AG136: 27 | AJ136: 6 | AK136: 16 | AL136: 7 | AM136: 24 | AN136: 11 | AO136: 3 | AP136: 4 | AQ136: 3 | AR136: 5 | AS136: 0 | AT136: 37
E137: 0.4 | F137: 0.130952381 | G137: 0.1527272727 | Q137: 0.8015873016 | R137: 0.7563636364 | S137: Your Farm Line-Asset Turnover Rate | W137: 1 | X137: 9 | Y137: 3 | Z137: 20 | AA137: 2 | AB137: 1 | AC137: 3 | AD137: 0 | AE137: 8 | AF137: 0 | AG137: 3 | AJ137: 3 | AK137: 8 | AL137: 4 | AM137: 24 | AN137: 2 | AO137: 1 | AP137: 0 | AQ137: 0 | AR137: 3 | AS137: 0 | AT137: 1
E138: 0.5 | F138: 0.06349206349 | G138: 0.1345454545 | Q138: 0.8650793651 | R138: 0.8909090909 | S138: X's | T138: =IF(B28>0.9,0.9,B28) -> 0.222973853 | U138: =T138 -> 0.222973853 | W138: 3 | X138: 4 | Y138: 2 | Z138: 2 | AA138: 0 | AB138: 0 | AC138: 2 | AD138: 1 | AE138: 1 | AF138: 0 | AG138: 0 | AJ138: 3 | AK138: 3 | AL138: 3 | AM138: 1 | AN138: 0 | AO138: 0 | AP138: 4 | AQ138: 1 | AR138: 3 | AS138: 0 | AT138: 0
E139: 0.6 | F139: 0.05158730159 | G139: 0.03636363636 | Q139: 0.9166666667 | R139: 0.9272727273 | S139: Y's | T139: 0 | U139: 1 | W139: 1 | X139: 2 | Y139: 1 | Z139: 0 | AA139: 0 | AB139: 0 | AC139: 1 | AD139: 0 | AE139: 2 | AF139: 0 | AG139: 0 | AJ139: 2 | AK139: 3 | AL139: 1 | AM139: 0 | AN139: 0 | AO139: 0 | AP139: 0 | AQ139: 0 | AR139: 0 | AS139: 0 | AT139: 0
E140: 0.7 | F140: 0.01984126984 | G140: 0.02909090909 | Q140: 0.9365079365 | R140: 0.9563636364 | S140: =IF(B28=F144,U1 &" Average","Your Farm") -> 2019 Average | W140: 21 | X140: 4 | Z140: 0 | AA140: 0 | AB140: 1 | AC140: 1 | AG140: 0 | AJ140: 22 | AK140: 2 | AM140: 0 | AN140: 0 | AO140: 1 | AP140: 2 | AT140: 0
E141: 0.8 | F141: 0.0119047619 | G141: 0.01818181818 | Q141: 0.9484126984 | R141: 0.9745454545 | V141: Count | W141: 50 | X141: 50 | Y141: 50 | Z141: 50 | AA141: 50 | AB141: 50 | AC141: 50 | AD141: 50 | AE141: 50 | AF141: 50 | AG141: 50 | AI141: Count | AJ141: 52 | AK141: 52 | AL141: 52 | AM141: 52 | AN141: 52 | AO141: 52 | AP141: 52 | AQ141: 52 | AR141: 52 | AS141: 52 | AT141: 52
E142: More | F142: 0.05158730159 | G142: =R152 -> 0.02545454545 | Q142: 1 | R142: 1 | V142: Average | W142: 2.658640914 | X142: 0.6872561305 | Y142: 0.2306964848 | Z142: 0.1225604524 | AA142: 0.02880012252 | AB142: 0.02470383564 | AC142: 0.2349870774 | AD142: 0.6910272952 | AE142: 0.1150955554 | AF142: 0.03758605361 | AG142: 0.1562910958 | AI142: Average | AJ142: 3.021105238 | AK142: 0.6531352003 | AL142: 0.2437681195 | AM142: 0.1581893754 | AN142: 0.04614813827 | AO142: 0.04873532978 | AP142: 0.2917271665 | AQ142: 0.6852200003 | AR142: 0.09919942144 | AS142: 0.02978705696 | AT142: 0.1857935213
E143: Count | F143: =F122 -> 252 | G143: =G122 -> 275 | Q143: =IF($T$6=$W$1,AC3/$F$143,IF($T$6=$W$17,AC19/$F$143,IF($T$6=$W$33,AC35/$F$143,IF($T$6=$W$49,AC51/$F$143,IF($T$6=$W$65,AC67/$F$143,IF($T$6=$W$81,AC83/$F$143,IF($T$6=$W$97,AC99/$F$143,IF($T$6=$W$113,AC115/$F$143,IF($T$6=$W$129,AC131/$F$143,IF($T$6=$W$145,AC147/$F$143,IF($T$6=$W$161,AC163/$F$143,"N/A"))))))))))) -> 0 | R143: =IF($T$6=$W$1,AP3/$G$38,IF($T$6=$W$17,AP19/$G$38,IF($T$6=$W$33,AP35/$G$38,IF($T$6=$W$49,AP51/$G$38,IF($T$6=$W$65,AP67/$G$38,IF($T$6=$W$81,AP83/$G$38,IF($T$6=$W$97,AP99/$G$38,IF($T$6=$W$113,AP115/$G$38,IF($T$6=$W$129,AP131/$G$38,IF($T$6=$W$145,AP147/$G$38,IF($T$6=$W$161,AP163/$G$38,"N/A"))))))))))) -> 0 | V143: Non-ratio average | X143: 992975.4278 | AG143: 225815.6906 | AI143: Non-ratio average | AK143: 895221.512 | AT143: 254658.3877
E144: Average | F144: =IF($T$6=$W$1,$AC$14,IF($T$6=$W$17,$AC$30,IF($T$6=$W$33,$AC$46,IF($T$6=$W$49,$AC$62,IF($T$6=$W$65,$AC$78,IF($T$6=$W$81,$AC$94,IF($T$6=$W$97,$AC$110,IF($T$6=$W$113,$AC$126,IF($T$6=$W$129,$AC$142,IF($T$6=$W$145,$AC$158,IF($T$6=W161,AC174,"N/A"))))))))))) -> 0.222973853 | G144: =IF($T$6=$W$1,$AP$14,IF($T$6=$W$17,$AP$30,IF($T$6=$W$33,$AP$46,IF($T$6=$W$49,$AP$62,IF($T$6=$W$65,$AP$78,IF($T$6=$W$81,$AP$94,IF($T$6=$W$97,$AP$110,IF($T$6=$W$113,$AP$126,IF($T$6=$W$129,$AP$142,IF($T$6=$W$145,$AP$158,IF($T$6=$W$161,$AP$174,"N/A"))))))))))) -> 0.2580582613 | Q144: 0.1746031746 | R144: 0.08363636364
Q145: 0.2698412698 | R145: 0.28 | W145: Blank
Q146: 0.2261904762 | R146: 0.24 | W146: Current Ratio | X146: Working Capital Ratio | Y146: Debt to Asset Ratio | Z146: Operating Profit Margin | AA146: ROA | AB146: ROE | AC146: Asset Turnover | AD146: Operating Expense Ratio | AE146: Depr Expense Ratio | AF146: Interest Expense Ratio | AG146: NFI Ratio | AJ146: Current Ratio | AK146: Working Capital Ratio | AL146: Debt to Asset Ratio | AM146: Operating Profit Margin | AN146: ROA | AO146: ROE | AP146: Asset Turnover | AQ146: Operating Expense Ratio | AR146: Depr Expense Ratio | AS146: Interest Expense Ratio | AT146: NFI Ratio
Q147: 0.130952381 | R147: 0.1527272727
F148: =IF(B28=F144,"","Your Farm") ->  | G148: =IF(B28=F144,"",B28) ->  | Q148: 0.06349206349 | R148: 0.1345454545
Q149: 0.05158730159 | R149: 0.03636363636
Q150: 0.01984126984 | R150: 0.02909090909
Q151: 0.0119047619 | R151: 0.01818181818
E152: Operating Expense Ratio | Q152: 0.05158730159 | R152: 0.02545454545
F153: =U1 -> 2019 | G153: 10-Year
E154: 0.4 | F154: =Q163 -> 0.01984126984 | G154: =R163 -> 0.007272727273 | Q154: =Q163 -> 0.01984126984 | R154: =R163 -> 0.007272727273
E155: 0.5 | F155: =Q164 -> 0.05555555556 | G155: =R164 -> 0.05818181818 | Q155: =Q154+Q164 -> 0.0753968254 | R155: 0.06545454545
E156: 0.6 | F156: 0.1785714286 | G156: 0.1418181818 | Q156: 0.253968254 | R156: 0.2072727273
E157: 0.7 | F157: 0.253968254 | G157: 0.36 | Q157: 0.5079365079 | R157: 0.5672727273 | V157: Count | AI157: Count
E158: 0.8 | F158: 0.2023809524 | G158: 0.3127272727 | Q158: 0.7103174603 | R158: 0.88 | V158: Average | AI158: Average
E159: 0.9 | F159: 0.1468253968 | G159: 0.09818181818 | Q159: 0.8571428571 | R159: 0.9781818182 | S159: Your Farm Line-Operating Expense Ratio | V159: Non-ratio average | AI159: Non-ratio average
E160: 1 | F160: 0.04761904762 | G160: 0.01090909091 | Q160: 0.9047619048 | R160: 0.9890909091 | S160: X's | T160: =IF(B29>1.2,1.2,B29) -> 0.7051805616 | U160: =T160 -> 0.7051805616
E161: 1.1 | F161: 0.03174603175 | G161: 0.007272727273 | Q161: 0.9365079365 | R161: 0.9963636364 | S161: Y's | T161: 0 | U161: 1 | W161: All Farms
E162: More | F162: 0.06349206349 | G162: 0.003636363636 | Q162: 1 | R162: 1 | S162: =IF(B29=F164,U1 &" Average","Your Farm") -> 2019 Average | W162: Current Ratio | X162: Working Capital Ratio | Y162: Debt to Asset Ratio | Z162: Operating Profit Margin | AA162: ROA | AB162: ROE | AC162: Asset Turnover | AD162: Operating Expense Ratio | AE162: Depr Expense Ratio | AF162: Interest Expense Ratio | AG162: NFI Ratio | AJ162: Current Ratio | AK162: Working Capital Ratio | AL162: Debt to Asset Ratio | AM162: Operating Profit Margin | AN162: ROA | AO162: ROE | AP162: Asset Turnover | AQ162: Operating Expense Ratio | AR162: Depr Expense Ratio | AS162: Interest Expense Ratio | AT162: NFI Ratio
E163: Count | F163: =F143 -> 252 | G163: =G143 -> 275 | Q163: =IF($T$6=$W$1,AD3/$F$143,IF($T$6=$W$17,AD19/$F$143,IF($T$6=$W$33,AD35/$F$143,IF($T$6=$W$49,AD51/$F$143,IF($T$6=$W$65,AD67/$F$143,IF($T$6=$W$81,AD83/$F$143,IF($T$6=$W$97,AD99/$F$143,IF($T$6=$W$113,AD115/$F$143,IF($T$6=$W$129,AD131/$F$143,IF($T$6=$W$145,AD147/$F$143,IF($T$6=$W$161,AD163/$F$143,"N/A"))))))))))) -> 0.01984126984 | R163: =IF($T$6=$W$1,AQ3/$G$38,IF($T$6=$W$17,AQ19/$G$38,IF($T$6=$W$33,AQ35/$G$38,IF($T$6=$W$49,AQ51/$G$38,IF($T$6=$W$65,AQ67/$G$38,IF($T$6=$W$81,AQ83/$G$38,IF($T$6=$W$97,AQ99/$G$38,IF($T$6=$W$113,AQ115/$G$38,IF($T$6=$W$129,AQ131/$G$38,IF($T$6=$W$145,AQ147/$G$38,IF($T$6=$W$161,AQ163/$G$38,"N/A"))))))))))) -> 0.007272727273 | W163: 0 | X163: 6 | Y163: 29 | Z163: 22 | AA163: 16 | AB163: 25 | AC163: 0 | AD163: 5 | AE163: 3 | AF163: 24 | AG163: 11 | AJ163: 0 | AK163: 3 | AL163: 8 | AM163: 2 | AN163: 1 | AO163: 20 | AP163: 0 | AQ163: 2 | AR163: 0 | AS163: 8 | AT163: 0
